{"text_format":"1","workbook":"xlsx","n_sheets":2,"sheets":["Harmonogram produkcji","Listy wyboru"],"not_rendered":{"charts":0,"images":0,"macros":1,"external_links":0,"defined_names":2,"comments":0,"pivot_tables":0},"unopened":[],"bounds":{"document_bytes":16777216,"sheet_cells":100000,"rows_first":2000,"rows_last":500,"rows_between":2000,"halvings":0,"cell_chars":16384,"cell_head_chars":4096},"cells_cut":0,"cells_raw":0,"read":"whole","date_system":"1900"}

{"sheet":"Harmonogram produkcji","index":0,"n_rows":549,"n_cols":32,"rows_kept":549,"cut":false,"hidden":false,"merged":[]}
[null,"Numer wewn. samochodu","Model","Brygada monterów","Data przyjęcia ","Planowana data wydania","Nowa forma zlecenia","Nazwa klienta","Telefon","M: Spawanie","P: Spawanie","M: Stolarka","P: Stolarka","M: \n Szycie","P: \nSzycie","M: \nUbieranie","P: Ubieranie ","M: Tapicerka","P: Tapicerka","M: Elektrycy","P: Elektrycy","M: Montaż","P: Szyby","P: Montaż","P: Sprzątanie","W produkcji","Realna data skończenia","Realna data wydania","Planowana data przeglądu","Realizacja przeglądu","Miesiąc wydania","Status"]
[null,218,"Renault Master","maciek+dawid","2018-03-13",{"$f":"Harmonogram[[#This Row],[Data przyjęcia ]]+30","v":"2018-04-12"},null,"Klient 1",null,1,1,1,1,1,0.5,{"$f":"Harmonogram[[#This Row],[P: \nSzycie]]","v":0.5},0.5,1,0.5,0.5,0.5,0.5,1,0.5,0,{"$f":"SUM(Harmonogram[[#This Row],[P: Spawanie]:[P: Montaż]])","v":10},null,null,{"$f":"Harmonogram[[#This Row],[Realna data wydania]]+365","v":"1900-12-30"},null,{"$f":"IF(Harmonogram[[#This Row],[Realna data wydania]]=0,\"\",MONTH(Harmonogram[[#This Row],[Realna data wydania]]))","v":""},{"$f":"IF(AND(Harmonogram[[#This Row],[Realna data wydania]]>0,Harmonogram[[#This Row],[Realna data wydania]]<TODAY()),\"Wydany\",IF(Harmonogram[[#This Row],[Realna data skończenia]]>0,\"Zrobiony\",\"\"))","v":""}]
[null,243,"Renault Master"," macik dawid","2018-04-20",{"$f":"Harmonogram[[#This Row],[Data przyjęcia ]]+30","v":"2018-05-20"},null,"Klient 2",null,1,1,1,1,1,1,{"$f":"Harmonogram[[#This Row],[P: \nSzycie]]","v":1},1,1,1,1,1,1,1,0.5,0,{"$f":"SUM(Harmonogram[[#This Row],[P: Spawanie]:[P: Montaż]])","v":13.5},null,null,{"$f":"Harmonogram[[#This Row],[Realna data wydania]]+365","v":"1900-12-30"},null,{"$f":"IF(Harmonogram[[#This Row],[Realna data wydania]]=0,\"\",MONTH(Harmonogram[[#This Row],[Realna data wydania]]))","v":""},{"$f":"IF(AND(Harmonogram[[#This Row],[Realna data wydania]]>0,Harmonogram[[#This Row],[Realna data wydania]]<TODAY()),\"Wydany\",IF(Harmonogram[[#This Row],[Realna data skończenia]]>0,\"Zrobiony\",\"\"))","v":""}]
[null,237,"Renault Master","Jurek+Damian","2018-04-06","2018-04-30",null,"Klient 3",null,1,1,1,1,1,1,{"$f":"Harmonogram[[#This Row],[P: \nSzycie]]","v":1},1,1,1,1,1,1,null,1,null,{"$f":"SUM(Harmonogram[[#This Row],[P: Spawanie]:[P: Montaż]])","v":13},"2018-04-27","2018-05-04",{"$f":"Harmonogram[[#This Row],[Realna data wydania]]+365","v":"2019-05-04"},null,{"$f":"IF(Harmonogram[[#This Row],[Realna data wydania]]=0,\"\",MONTH(Harmonogram[[#This Row],[Realna data wydania]]))","v":5},{"$f":"IF(AND(Harmonogram[[#This Row],[Realna data wydania]]>0,Harmonogram[[#This Row],[Realna data wydania]]<TODAY()),\"Wydany\",IF(Harmonogram[[#This Row],[Realna data skończenia]]>0,\"Zrobiony\",\"\"))","v":"Wydany"}]
[null,238,"Renault Master","Darek + Grzesiek","2018-04-09",{"$f":"Harmonogram[[#This Row],[Data przyjęcia ]]+30","v":"2018-05-09"},null,"Klient 4",null,1,1,1,1,1,1,{"$f":"Harmonogram[[#This Row],[P: \nSzycie]]","v":1},1,1,1,1,1,1,1,1,1,{"$f":"SUM(Harmonogram[[#This Row],[P: Spawanie]:[P: Montaż]])","v":14},"2018-04-28",null,{"$f":"Harmonogram[[#This Row],[Realna data wydania]]+365","v":"1900-12-30"},null,{"$f":"IF(Harmonogram[[#This Row],[Realna data wydania]]=0,\"\",MONTH(Harmonogram[[#This Row],[Realna data wydania]]))","v":""},{"$f":"IF(AND(Harmonogram[[#This Row],[Realna data wydania]]>0,Harmonogram[[#This Row],[Realna data wydania]]<TODAY()),\"Wydany\",IF(Harmonogram[[#This Row],[Realna data skończenia]]>0,\"Zrobiony\",\"\"))","v":"Zrobiony"}]
[null,239,"Sprinter Mercedes","Kamil+Stanisław","2018-04-06","2018-05-05",null,"Klient 5",null,1,1,1,1,1,1,{"$f":"Harmonogram[[#This Row],[P: \nSzycie]]","v":1},1,1,1,1,1,1,null,1,null,{"$f":"SUM(Harmonogram[[#This Row],[P: Spawanie]:[P: Montaż]])","v":13},"2018-05-04","2018-05-04",{"$f":"Harmonogram[[#This Row],[Realna data wydania]]+365","v":"2019-05-04"},null,{"$f":"IF(Harmonogram[[#This Row],[Realna data wydania]]=0,\"\",MONTH(Harmonogram[[#This Row],[Realna data wydania]]))","v":5},{"$f":"IF(AND(Harmonogram[[#This Row],[Realna data wydania]]>0,Harmonogram[[#This Row],[Realna data wydania]]<TODAY()),\"Wydany\",IF(Harmonogram[[#This Row],[Realna data skończenia]]>0,\"Zrobiony\",\"\"))","v":"Wydany"}]
[null,242,"Sprinter Mercedes","Rudy+Marcin","2018-04-06",{"$f":"Harmonogram[[#This Row],[Data przyjęcia ]]+30","v":"2018-05-06"},null,"Klient 6",null,1,1,1,1,1,1,{"$f":"Harmonogram[[#This Row],[P: \nSzycie]]","v":1},1,1,1,1,1,1,1,1,1,{"$f":"SUM(Harmonogram[[#This Row],[P: Spawanie]:[P: Montaż]])","v":14},"2018-05-05","2018-05-09",{"$f":"Harmonogram[[#This Row],[Realna data wydania]]+365","v":"2019-05-09"},null,{"$f":"IF(Harmonogram[[#This Row],[Realna data wydania]]=0,\"\",MONTH(Harmonogram[[#This Row],[Realna data wydania]]))","v":5},{"$f":"IF(AND(Harmonogram[[#This Row],[Realna data wydania]]>0,Harmonogram[[#This Row],[Realna data wydania]]<TODAY()),\"Wydany\",IF(Harmonogram[[#This Row],[Realna data skończenia]]>0,\"Zrobiony\",\"\"))","v":"Wydany"}]
[null,244,"Fiat Ducato","Darek + Grzesiek","2018-04-13",{"$f":"Harmonogram[[#This Row],[Data przyjęcia ]]+30","v":"2018-05-13"},null,"Klient 7",null,1,1,1,1,1,1,{"$f":"Harmonogram[[#This Row],[P: \nSzycie]]","v":1},1,1,1,1,0.5,1,"x",0.5,0,{"$f":"SUM(Harmonogram[[#This Row],[P: Spawanie]:[P: Montaż]])","v":12},null,null,{"$f":"Harmonogram[[#This Row],[Realna data wydania]]+365","v":"1900-12-30"},null,{"$f":"IF(Harmonogram[[#This Row],[Realna data wydania]]=0,\"\",MONTH(Harmonogram[[#This Row],[Realna data wydania]]))","v":""},{"$f":"IF(AND(Harmonogram[[#This Row],[Realna data wydania]]>0,Harmonogram[[#This Row],[Realna data wydania]]<TODAY()),\"Wydany\",IF(Harmonogram[[#This Row],[Realna data skończenia]]>0,\"Zrobiony\",\"\"))","v":""}]
[null,257,"Sprinter Mercedes","Jurek+Damian","2018-04-26",{"$f":"Harmonogram[[#This Row],[Data przyjęcia ]]+30","v":"2018-05-26"},null,"Klient 8",null,1,0.5,1,0.5,0.5,0,{"$f":"Harmonogram[[#This Row],[P: \nSzycie]]","v":0},0,0,0,0.5,0,0.5,"x",0,0,{"$f":"SUM(Harmonogram[[#This Row],[P: Spawanie]:[P: Montaż]])","v":3.5},null,null,{"$f":"Harmonogram[[#This Row],[Realna data wydania]]+365","v":"1900-12-30"},null,{"$f":"IF(Harmonogram[[#This Row],[Realna data wydania]]=0,\"\",MONTH(Harmonogram[[#This Row],[Realna data wydania]]))","v":""},{"$f":"IF(AND(Harmonogram[[#This Row],[Realna data wydania]]>0,Harmonogram[[#This Row],[Realna data wydania]]<TODAY()),\"Wydany\",IF(Harmonogram[[#This Row],[Realna data skończenia]]>0,\"Zrobiony\",\"\"))","v":""}]
[null,248,"Renault Master","godziny","2018-04-20","2018-04-30",null,"Klient 9",null,1,1,1,1,"x","x",{"$f":"Harmonogram[[#This Row],[P: \nSzycie]]","v":"x"},"x",1,1,"x","x",1,null,1,null,{"$f":"SUM(Harmonogram[[#This Row],[P: Spawanie]:[P: Montaż]])","v":7},"2018-04-30","2018-04-30",{"$f":"Harmonogram[[#This Row],[Realna data wydania]]+365","v":"2019-04-30"},null,{"$f":"IF(Harmonogram[[#This Row],[Realna data wydania]]=0,\"\",MONTH(Harmonogram[[#This Row],[Realna data wydania]]))","v":4},{"$f":"IF(AND(Harmonogram[[#This Row],[Realna data wydania]]>0,Harmonogram[[#This Row],[Realna data wydania]]<TODAY()),\"Wydany\",IF(Harmonogram[[#This Row],[Realna data skończenia]]>0,\"Zrobiony\",\"\"))","v":"Wydany"}]
[null,255,"Renault Master","macik dawid","2018-04-25",{"$f":"Harmonogram[[#This Row],[Data przyjęcia ]]+30","v":"2018-05-25"},null,"Klient 10",null,1,1,1,1,1,1,{"$f":"Harmonogram[[#This Row],[P: \nSzycie]]","v":1},1,1,1,1,1,1,1,1,1,{"$f":"SUM(Harmonogram[[#This Row],[P: Spawanie]:[P: Montaż]])","v":14},"2018-05-08","2018-05-09",{"$f":"Harmonogram[[#This Row],[Realna data wydania]]+365","v":"2019-05-09"},null,{"$f":"IF(Harmonogram[[#This Row],[Realna data wydania]]=0,\"\",MONTH(Harmonogram[[#This Row],[Realna data wydania]]))","v":5},{"$f":"IF(AND(Harmonogram[[#This Row],[Realna data wydania]]>0,Harmonogram[[#This Row],[Realna data wydania]]<TODAY()),\"Wydany\",IF(Harmonogram[[#This Row],[Realna data skończenia]]>0,\"Zrobiony\",\"\"))","v":"Wydany"}]
[null,258,"Renault Master","Kamil+Stanisław","2018-04-28",{"$f":"Harmonogram[[#This Row],[Data przyjęcia ]]+30","v":"2018-05-28"},null,"Klient 11",null,1,1,1,1,1,0.5,{"$f":"Harmonogram[[#This Row],[P: \nSzycie]]","v":0.5},0,1,1,1,0.5,0.5,0,0.5,0,{"$f":"SUM(Harmonogram[[#This Row],[P: Spawanie]:[P: Montaż]])","v":9.5},null,null,{"$f":"Harmonogram[[#This Row],[Realna data wydania]]+365","v":"1900-12-30"},null,{"$f":"IF(Harmonogram[[#This Row],[Realna data wydania]]=0,\"\",MONTH(Harmonogram[[#This Row],[Realna data wydania]]))","v":""},{"$f":"IF(AND(Harmonogram[[#This Row],[Realna data wydania]]>0,Harmonogram[[#This Row],[Realna data wydania]]<TODAY()),\"Wydany\",IF(Harmonogram[[#This Row],[Realna data skończenia]]>0,\"Zrobiony\",\"\"))","v":""}]
[null,259,"Iveco Daily",null,"2018-05-09",{"$f":"Harmonogram[[#This Row],[Data przyjęcia ]]+30","v":"2018-06-08"},null,"Klient 12",null,1,0,1,0,1,0,{"$f":"Harmonogram[[#This Row],[P: \nSzycie]]","v":0},0,0,0,0.5,0,0,0,0,0,{"$f":"SUM(Harmonogram[[#This Row],[P: Spawanie]:[P: Montaż]])","v":2.5},null,null,{"$f":"Harmonogram[[#This Row],[Realna data wydania]]+365","v":"1900-12-30"},null,{"$f":"IF(Harmonogram[[#This Row],[Realna data wydania]]=0,\"\",MONTH(Harmonogram[[#This Row],[Realna data wydania]]))","v":""},{"$f":"IF(AND(Harmonogram[[#This Row],[Realna data wydania]]>0,Harmonogram[[#This Row],[Realna data wydania]]<TODAY()),\"Wydany\",IF(Harmonogram[[#This Row],[Realna data skończenia]]>0,\"Zrobiony\",\"\"))","v":""}]
[null,202,"Sprinter Mercedes","Rudy + Marcin","2018-05-12",{"$f":"Harmonogram[[#This Row],[Data przyjęcia ]]+30","v":"2018-06-11"},null,"Klient 13",null,0,0,0,0,0,0,{"$f":"Harmonogram[[#This Row],[P: \nSzycie]]","v":0},0,0,0,0,0,0,0,0,0,0,"00:00:00",null,{"$f":"Harmonogram[[#This Row],[Realna data wydania]]+365","v":"1900-12-30"},null,{"$f":"IF(Harmonogram[[#This Row],[Realna data wydania]]=0,\"\",MONTH(Harmonogram[[#This Row],[Realna data wydania]]))","v":""},{"$f":"IF(AND(Harmonogram[[#This Row],[Realna data wydania]]>0,Harmonogram[[#This Row],[Realna data wydania]]<TODAY()),\"Wydany\",IF(Harmonogram[[#This Row],[Realna data skończenia]]>0,\"Zrobiony\",\"\"))","v":""}]
[null,null,null,null,null,{"$f":"Harmonogram[[#This Row],[Data przyjęcia ]]+30","v":"1900-01-30"},null,null,null,null,null,null,null,null,null,{"$f":"Harmonogram[[#This Row],[P: \nSzycie]]","v":0},null,null,null,null,null,null,null,null,null,{"$f":"SUM(Harmonogram[[#This Row],[P: Spawanie]:[P: Montaż]])","v":0},null,null,{"$f":"Harmonogram[[#This Row],[Realna data wydania]]+365","v":"1900-12-30"},null,{"$f":"IF(Harmonogram[[#This Row],[Realna data wydania]]=0,\"\",MONTH(Harmonogram[[#This Row],[Realna data wydania]]))","v":""},{"$f":"IF(AND(Harmonogram[[#This Row],[Realna data wydania]]>0,Harmonogram[[#This Row],[Realna data wydania]]<TODAY()),\"Wydany\",IF(Harmonogram[[#This Row],[Realna data skończenia]]>0,\"Zrobiony\",\"\"))","v":""}]
[null,null,null,null,null,{"$f":"Harmonogram[[#This Row],[Data przyjęcia ]]+30","v":"1900-01-30"},null,null,null,null,null,null,null,null,null,{"$f":"Harmonogram[[#This Row],[P: \nSzycie]]","v":0},null,null,null,null,null,null,null,null,null,{"$f":"SUM(Harmonogram[[#This Row],[P: Spawanie]:[P: Montaż]])","v":0},null,null,{"$f":"Harmonogram[[#This Row],[Realna data wydania]]+365","v":"1900-12-30"},null,{"$f":"IF(Harmonogram[[#This Row],[Realna data wydania]]=0,\"\",MONTH(Harmonogram[[#This Row],[Realna data wydania]]))","v":""},{"$f":"IF(AND(Harmonogram[[#This Row],[Realna data wydania]]>0,Harmonogram[[#This Row],[Realna data wydania]]<TODAY()),\"Wydany\",IF(Harmonogram[[#This Row],[Realna data skończenia]]>0,\"Zrobiony\",\"\"))","v":""}]
[null,null,null,null,null,{"$f":"Harmonogram[[#This Row],[Data przyjęcia ]]+30","v":"1900-01-30"},null,null,null,null,null,null,null,null,null,{"$f":"Harmonogram[[#This Row],[P: \nSzycie]]","v":0},null,null,null,null,null,null,null,null,null,{"$f":"SUM(Harmonogram[[#This Row],[P: Spawanie]:[P: Montaż]])","v":0},null,null,{"$f":"Harmonogram[[#This Row],[Realna data wydania]]+365","v":"1900-12-30"},null,{"$f":"IF(Harmonogram[[#This Row],[Realna data wydania]]=0,\"\",MONTH(Harmonogram[[#This Row],[Realna data wydania]]))","v":""},{"$f":"IF(AND(Harmonogram[[#This Row],[Realna data wydania]]>0,Harmonogram[[#This Row],[Realna data wydania]]<TODAY()),\"Wydany\",IF(Harmonogram[[#This Row],[Realna data skończenia]]>0,\"Zrobiony\",\"\"))","v":""}]
[null,null,null,null,null,{"$f":"Harmonogram[[#This Row],[Data przyjęcia ]]+30","v":"1900-01-30"},null,null,null,null,null,null,null,null,null,{"$f":"Harmonogram[[#This Row],[P: \nSzycie]]","v":0},null,null,null,null,null,null,null,null,null,{"$f":"SUM(Harmonogram[[#This Row],[P: Spawanie]:[P: Montaż]])","v":0},null,null,{"$f":"Harmonogram[[#This Row],[Realna data wydania]]+365","v":"1900-12-30"},null,{"$f":"IF(Harmonogram[[#This Row],[Realna data wydania]]=0,\"\",MONTH(Harmonogram[[#This Row],[Realna data wydania]]))","v":""},{"$f":"IF(AND(Harmonogram[[#This Row],[Realna data wydania]]>0,Harmonogram[[#This Row],[Realna data wydania]]<TODAY()),\"Wydany\",IF(Harmonogram[[#This Row],[Realna data skończenia]]>0,\"Zrobiony\",\"\"))","v":""}]
[null,null,null,null,null,{"$f":"Harmonogram[[#This Row],[Data przyjęcia ]]+30","v":"1900-01-30"},null,null,null,null,null,null,null,null,null,{"$f":"Harmonogram[[#This Row],[P: \nSzycie]]","v":0},null,null,null,null,null,null,null,null,null,{"$f":"SUM(Harmonogram[[#This Row],[P: Spawanie]:[P: Montaż]])","v":0},null,null,{"$f":"Harmonogram[[#This Row],[Realna data wydania]]+365","v":"1900-12-30"},null,{"$f":"IF(Harmonogram[[#This Row],[Realna data wydania]]=0,\"\",MONTH(Harmonogram[[#This Row],[Realna data wydania]]))","v":""},{"$f":"IF(AND(Harmonogram[[#This Row],[Realna data wydania]]>0,Harmonogram[[#This Row],[Realna data wydania]]<TODAY()),\"Wydany\",IF(Harmonogram[[#This Row],[Realna data skończenia]]>0,\"Zrobiony\",\"\"))","v":""}]
[null,null,null,null,null,{"$f":"Harmonogram[[#This Row],[Data przyjęcia ]]+30","v":"1900-01-30"},null,null,null,null,null,null,null,null,null,{"$f":"Harmonogram[[#This Row],[P: \nSzycie]]","v":0},null,null,null,null,null,null,null,null,null,{"$f":"SUM(Harmonogram[[#This Row],[P: Spawanie]:[P: Montaż]])","v":0},null,null,{"$f":"Harmonogram[[#This Row],[Realna data wydania]]+365","v":"1900-12-30"},null,{"$f":"IF(Harmonogram[[#This Row],[Realna data wydania]]=0,\"\",MONTH(Harmonogram[[#This Row],[Realna data wydania]]))","v":""},{"$f":"IF(AND(Harmonogram[[#This Row],[Realna data wydania]]>0,Harmonogram[[#This Row],[Realna data wydania]]<TODAY()),\"Wydany\",IF(Harmonogram[[#This Row],[Realna data skończenia]]>0,\"Zrobiony\",\"\"))","v":""}]
[null,null,null,null,null,{"$f":"Harmonogram[[#This Row],[Data przyjęcia ]]+30","v":"1900-01-30"},null,null,null,null,null,null,null,null,null,{"$f":"Harmonogram[[#This Row],[P: \nSzycie]]","v":0},null,null,null,null,null,null,null,null,null,{"$f":"SUM(Harmonogram[[#This Row],[P: Spawanie]:[P: Montaż]])","v":0},null,null,{"$f":"Harmonogram[[#This Row],[Realna data wydania]]+365","v":"1900-12-30"},null,{"$f":"IF(Harmonogram[[#This Row],[Realna data wydania]]=0,\"\",MONTH(Harmonogram[[#This Row],[Realna data wydania]]))","v":""},{"$f":"IF(AND(Harmonogram[[#This Row],[Realna data wydania]]>0,Harmonogram[[#This Row],[Realna data wydania]]<TODAY()),\"Wydany\",IF(Harmonogram[[#This Row],[Realna data skończenia]]>0,\"Zrobiony\",\"\"))","v":""}]
[null,null,null,null,null,{"$f":"Harmonogram[[#This Row],[Data przyjęcia ]]+30","v":"1900-01-30"},null,null,null,null,null,null,null,null,null,{"$f":"Harmonogram[[#This Row],[P: \nSzycie]]","v":0},null,null,null,null,null,null,null,null,null,{"$f":"SUM(Harmonogram[[#This Row],[P: Spawanie]:[P: Montaż]])","v":0},null,null,{"$f":"Harmonogram[[#This Row],[Realna data wydania]]+365","v":"1900-12-30"},null,{"$f":"IF(Harmonogram[[#This Row],[Realna data wydania]]=0,\"\",MONTH(Harmonogram[[#This Row],[Realna data wydania]]))","v":""},{"$f":"IF(AND(Harmonogram[[#This Row],[Realna data wydania]]>0,Harmonogram[[#This Row],[Realna data wydania]]<TODAY()),\"Wydany\",IF(Harmonogram[[#This Row],[Realna data skończenia]]>0,\"Zrobiony\",\"\"))","v":""}]
[null,null,null,null,null,{"$f":"Harmonogram[[#This Row],[Data przyjęcia ]]+30","v":"1900-01-30"},null,null,null,null,null,null,null,null,null,{"$f":"Harmonogram[[#This Row],[P: \nSzycie]]","v":0},null,null,null,null,null,null,null,null,null,{"$f":"SUM(Harmonogram[[#This Row],[P: Spawanie]:[P: Montaż]])","v":0},null,null,{"$f":"Harmonogram[[#This Row],[Realna data wydania]]+365","v":"1900-12-30"},null,{"$f":"IF(Harmonogram[[#This Row],[Realna data wydania]]=0,\"\",MONTH(Harmonogram[[#This Row],[Realna data wydania]]))","v":""},{"$f":"IF(AND(Harmonogram[[#This Row],[Realna data wydania]]>0,Harmonogram[[#This Row],[Realna data wydania]]<TODAY()),\"Wydany\",IF(Harmonogram[[#This Row],[Realna data skończenia]]>0,\"Zrobiony\",\"\"))","v":""}]
[null,null,null,null,null,{"$f":"Harmonogram[[#This Row],[Data przyjęcia ]]+30","v":"1900-01-30"},null,null,null,null,null,null,null,null,null,{"$f":"Harmonogram[[#This Row],[P: \nSzycie]]","v":0},null,null,null,null,null,null,null,null,null,{"$f":"SUM(Harmonogram[[#This Row],[P: Spawanie]:[P: Montaż]])","v":0},null,null,{"$f":"Harmonogram[[#This Row],[Realna data wydania]]+365","v":"1900-12-30"},null,{"$f":"IF(Harmonogram[[#This Row],[Realna data wydania]]=0,\"\",MONTH(Harmonogram[[#This Row],[Realna data wydania]]))","v":""},{"$f":"IF(AND(Harmonogram[[#This Row],[Realna data wydania]]>0,Harmonogram[[#This Row],[Realna data wydania]]<TODAY()),\"Wydany\",IF(Harmonogram[[#This Row],[Realna data skończenia]]>0,\"Zrobiony\",\"\"))","v":""}]
[null,null,null,null,null,{"$f":"Harmonogram[[#This Row],[Data przyjęcia ]]+30","v":"1900-01-30"},null,null,null,null,null,null,null,null,null,{"$f":"Harmonogram[[#This Row],[P: \nSzycie]]","v":0},null,null,null,null,null,null,null,null,null,{"$f":"SUM(Harmonogram[[#This Row],[P: Spawanie]:[P: Montaż]])","v":0},null,null,{"$f":"Harmonogram[[#This Row],[Realna data wydania]]+365","v":"1900-12-30"},null,{"$f":"IF(Harmonogram[[#This Row],[Realna data wydania]]=0,\"\",MONTH(Harmonogram[[#This Row],[Realna data wydania]]))","v":""},{"$f":"IF(AND(Harmonogram[[#This Row],[Realna data wydania]]>0,Harmonogram[[#This Row],[Realna data wydania]]<TODAY()),\"Wydany\",IF(Harmonogram[[#This Row],[Realna data skończenia]]>0,\"Zrobiony\",\"\"))","v":""}]
[null,null,null,null,null,{"$f":"Harmonogram[[#This Row],[Data przyjęcia ]]+30","v":"1900-01-30"},null,null,null,null,null,null,null,null,null,{"$f":"Harmonogram[[#This Row],[P: \nSzycie]]","v":0},null,null,null,null,null,null,null,null,null,{"$f":"SUM(Harmonogram[[#This Row],[P: Spawanie]:[P: Montaż]])","v":0},null,null,{"$f":"Harmonogram[[#This Row],[Realna data wydania]]+365","v":"1900-12-30"},null,{"$f":"IF(Harmonogram[[#This Row],[Realna data wydania]]=0,\"\",MONTH(Harmonogram[[#This Row],[Realna data wydania]]))","v":""},{"$f":"IF(AND(Harmonogram[[#This Row],[Realna data wydania]]>0,Harmonogram[[#This Row],[Realna data wydania]]<TODAY()),\"Wydany\",IF(Harmonogram[[#This Row],[Realna data skończenia]]>0,\"Zrobiony\",\"\"))","v":""}]
[null,null,null,null,null,{"$f":"Harmonogram[[#This Row],[Data przyjęcia ]]+30","v":"1900-01-30"},null,null,null,null,null,null,null,null,null,{"$f":"Harmonogram[[#This Row],[P: \nSzycie]]","v":0},null,null,null,null,null,null,null,null,null,{"$f":"SUM(Harmonogram[[#This Row],[P: Spawanie]:[P: Montaż]])","v":0},null,null,{"$f":"Harmonogram[[#This Row],[Realna data wydania]]+365","v":"1900-12-30"},null,{"$f":"IF(Harmonogram[[#This Row],[Realna data wydania]]=0,\"\",MONTH(Harmonogram[[#This Row],[Realna data wydania]]))","v":""},{"$f":"IF(AND(Harmonogram[[#This Row],[Realna data wydania]]>0,Harmonogram[[#This Row],[Realna data wydania]]<TODAY()),\"Wydany\",IF(Harmonogram[[#This Row],[Realna data skończenia]]>0,\"Zrobiony\",\"\"))","v":""}]
[null,null,null,null,null,{"$f":"Harmonogram[[#This Row],[Data przyjęcia ]]+30","v":"1900-01-30"},null,null,null,null,null,null,null,null,null,{"$f":"Harmonogram[[#This Row],[P: \nSzycie]]","v":0},null,null,null,null,null,null,null,null,null,{"$f":"SUM(Harmonogram[[#This Row],[P: Spawanie]:[P: Montaż]])","v":0},null,null,{"$f":"Harmonogram[[#This Row],[Realna data wydania]]+365","v":"1900-12-30"},null,{"$f":"IF(Harmonogram[[#This Row],[Realna data wydania]]=0,\"\",MONTH(Harmonogram[[#This Row],[Realna data wydania]]))","v":""},{"$f":"IF(AND(Harmonogram[[#This Row],[Realna data wydania]]>0,Harmonogram[[#This Row],[Realna data wydania]]<TODAY()),\"Wydany\",IF(Harmonogram[[#This Row],[Realna data skończenia]]>0,\"Zrobiony\",\"\"))","v":""}]
[null,null,null,null,null,{"$f":"Harmonogram[[#This Row],[Data przyjęcia ]]+30","v":"1900-01-30"},null,null,null,null,null,null,null,null,null,{"$f":"Harmonogram[[#This Row],[P: \nSzycie]]","v":0},null,null,null,null,null,null,null,null,null,{"$f":"SUM(Harmonogram[[#This Row],[P: Spawanie]:[P: Montaż]])","v":0},null,null,{"$f":"Harmonogram[[#This Row],[Realna data wydania]]+365","v":"1900-12-30"},null,{"$f":"IF(Harmonogram[[#This Row],[Realna data wydania]]=0,\"\",MONTH(Harmonogram[[#This Row],[Realna data wydania]]))","v":""},{"$f":"IF(AND(Harmonogram[[#This Row],[Realna data wydania]]>0,Harmonogram[[#This Row],[Realna data wydania]]<TODAY()),\"Wydany\",IF(Harmonogram[[#This Row],[Realna data skończenia]]>0,\"Zrobiony\",\"\"))","v":""}]
[null,null,null,null,null,{"$f":"Harmonogram[[#This Row],[Data przyjęcia ]]+30","v":"1900-01-30"},null,null,null,null,null,null,null,null,null,{"$f":"Harmonogram[[#This Row],[P: \nSzycie]]","v":0},null,null,null,null,null,null,null,null,null,{"$f":"SUM(Harmonogram[[#This Row],[P: Spawanie]:[P: Montaż]])","v":0},null,null,{"$f":"Harmonogram[[#This Row],[Realna data wydania]]+365","v":"1900-12-30"},null,{"$f":"IF(Harmonogram[[#This Row],[Realna data wydania]]=0,\"\",MONTH(Harmonogram[[#This Row],[Realna data wydania]]))","v":""},{"$f":"IF(AND(Harmonogram[[#This Row],[Realna data wydania]]>0,Harmonogram[[#This Row],[Realna data wydania]]<TODAY()),\"Wydany\",IF(Harmonogram[[#This Row],[Realna data skończenia]]>0,\"Zrobiony\",\"\"))","v":""}]
[null,null,null,null,null,{"$f":"Harmonogram[[#This Row],[Data przyjęcia ]]+30","v":"1900-01-30"},null,null,null,null,null,null,null,null,null,{"$f":"Harmonogram[[#This Row],[P: \nSzycie]]","v":0},null,null,null,null,null,null,null,null,null,{"$f":"SUM(Harmonogram[[#This Row],[P: Spawanie]:[P: Montaż]])","v":0},null,null,{"$f":"Harmonogram[[#This Row],[Realna data wydania]]+365","v":"1900-12-30"},null,{"$f":"IF(Harmonogram[[#This Row],[Realna data wydania]]=0,\"\",MONTH(Harmonogram[[#This Row],[Realna data wydania]]))","v":""},{"$f":"IF(AND(Harmonogram[[#This Row],[Realna data wydania]]>0,Harmonogram[[#This Row],[Realna data wydania]]<TODAY()),\"Wydany\",IF(Harmonogram[[#This Row],[Realna data skończenia]]>0,\"Zrobiony\",\"\"))","v":""}]
[null,null,null,null,null,{"$f":"Harmonogram[[#This Row],[Data przyjęcia ]]+30","v":"1900-01-30"},null,null,null,null,null,null,null,null,null,{"$f":"Harmonogram[[#This Row],[P: \nSzycie]]","v":0},null,null,null,null,null,null,null,null,null,{"$f":"SUM(Harmonogram[[#This Row],[P: Spawanie]:[P: Montaż]])","v":0},null,null,{"$f":"Harmonogram[[#This Row],[Realna data wydania]]+365","v":"1900-12-30"},null,{"$f":"IF(Harmonogram[[#This Row],[Realna data wydania]]=0,\"\",MONTH(Harmonogram[[#This Row],[Realna data wydania]]))","v":""},{"$f":"IF(AND(Harmonogram[[#This Row],[Realna data wydania]]>0,Harmonogram[[#This Row],[Realna data wydania]]<TODAY()),\"Wydany\",IF(Harmonogram[[#This Row],[Realna data skończenia]]>0,\"Zrobiony\",\"\"))","v":""}]
[null,null,null,null,null,{"$f":"Harmonogram[[#This Row],[Data przyjęcia ]]+30","v":"1900-01-30"},null,null,null,null,null,null,null,null,null,{"$f":"Harmonogram[[#This Row],[P: \nSzycie]]","v":0},null,null,null,null,null,null,null,null,null,{"$f":"SUM(Harmonogram[[#This Row],[P: Spawanie]:[P: Montaż]])","v":0},null,null,{"$f":"Harmonogram[[#This Row],[Realna data wydania]]+365","v":"1900-12-30"},null,{"$f":"IF(Harmonogram[[#This Row],[Realna data wydania]]=0,\"\",MONTH(Harmonogram[[#This Row],[Realna data wydania]]))","v":""},{"$f":"IF(AND(Harmonogram[[#This Row],[Realna data wydania]]>0,Harmonogram[[#This Row],[Realna data wydania]]<TODAY()),\"Wydany\",IF(Harmonogram[[#This Row],[Realna data skończenia]]>0,\"Zrobiony\",\"\"))","v":""}]
[null,null,null,null,null,{"$f":"Harmonogram[[#This Row],[Data przyjęcia ]]+30","v":"1900-01-30"},null,null,null,null,null,null,null,null,null,{"$f":"Harmonogram[[#This Row],[P: \nSzycie]]","v":0},null,null,null,null,null,null,null,null,null,{"$f":"SUM(Harmonogram[[#This Row],[P: Spawanie]:[P: Montaż]])","v":0},null,null,{"$f":"Harmonogram[[#This Row],[Realna data wydania]]+365","v":"1900-12-30"},null,{"$f":"IF(Harmonogram[[#This Row],[Realna data wydania]]=0,\"\",MONTH(Harmonogram[[#This Row],[Realna data wydania]]))","v":""},{"$f":"IF(AND(Harmonogram[[#This Row],[Realna data wydania]]>0,Harmonogram[[#This Row],[Realna data wydania]]<TODAY()),\"Wydany\",IF(Harmonogram[[#This Row],[Realna data skończenia]]>0,\"Zrobiony\",\"\"))","v":""}]
[null,null,null,null,null,{"$f":"Harmonogram[[#This Row],[Data przyjęcia ]]+30","v":"1900-01-30"},null,null,null,null,null,null,null,null,null,{"$f":"Harmonogram[[#This Row],[P: \nSzycie]]","v":0},null,null,null,null,null,null,null,null,null,{"$f":"SUM(Harmonogram[[#This Row],[P: Spawanie]:[P: Montaż]])","v":0},null,null,{"$f":"Harmonogram[[#This Row],[Realna data wydania]]+365","v":"1900-12-30"},null,{"$f":"IF(Harmonogram[[#This Row],[Realna data wydania]]=0,\"\",MONTH(Harmonogram[[#This Row],[Realna data wydania]]))","v":""},{"$f":"IF(AND(Harmonogram[[#This Row],[Realna data wydania]]>0,Harmonogram[[#This Row],[Realna data wydania]]<TODAY()),\"Wydany\",IF(Harmonogram[[#This Row],[Realna data skończenia]]>0,\"Zrobiony\",\"\"))","v":""}]
[null,null,null,null,null,{"$f":"Harmonogram[[#This Row],[Data przyjęcia ]]+30","v":"1900-01-30"},null,null,null,null,null,null,null,null,null,{"$f":"Harmonogram[[#This Row],[P: \nSzycie]]","v":0},null,null,null,null,null,null,null,null,null,{"$f":"SUM(Harmonogram[[#This Row],[P: Spawanie]:[P: Montaż]])","v":0},null,null,{"$f":"Harmonogram[[#This Row],[Realna data wydania]]+365","v":"1900-12-30"},null,{"$f":"IF(Harmonogram[[#This Row],[Realna data wydania]]=0,\"\",MONTH(Harmonogram[[#This Row],[Realna data wydania]]))","v":""},{"$f":"IF(AND(Harmonogram[[#This Row],[Realna data wydania]]>0,Harmonogram[[#This Row],[Realna data wydania]]<TODAY()),\"Wydany\",IF(Harmonogram[[#This Row],[Realna data skończenia]]>0,\"Zrobiony\",\"\"))","v":""}]
[null,null,null,null,null,{"$f":"Harmonogram[[#This Row],[Data przyjęcia ]]+30","v":"1900-01-30"},null,null,null,null,null,null,null,null,null,{"$f":"Harmonogram[[#This Row],[P: \nSzycie]]","v":0},null,null,null,null,null,null,null,null,null,{"$f":"SUM(Harmonogram[[#This Row],[P: Spawanie]:[P: Montaż]])","v":0},null,null,{"$f":"Harmonogram[[#This Row],[Realna data wydania]]+365","v":"1900-12-30"},null,{"$f":"IF(Harmonogram[[#This Row],[Realna data wydania]]=0,\"\",MONTH(Harmonogram[[#This Row],[Realna data wydania]]))","v":""},{"$f":"IF(AND(Harmonogram[[#This Row],[Realna data wydania]]>0,Harmonogram[[#This Row],[Realna data wydania]]<TODAY()),\"Wydany\",IF(Harmonogram[[#This Row],[Realna data skończenia]]>0,\"Zrobiony\",\"\"))","v":""}]
[null,null,null,null,null,{"$f":"Harmonogram[[#This Row],[Data przyjęcia ]]+30","v":"1900-01-30"},null,null,null,null,null,null,null,null,null,{"$f":"Harmonogram[[#This Row],[P: \nSzycie]]","v":0},null,null,null,null,null,null,null,null,null,{"$f":"SUM(Harmonogram[[#This Row],[P: Spawanie]:[P: Montaż]])","v":0},null,null,{"$f":"Harmonogram[[#This Row],[Realna data wydania]]+365","v":"1900-12-30"},null,{"$f":"IF(Harmonogram[[#This Row],[Realna data wydania]]=0,\"\",MONTH(Harmonogram[[#This Row],[Realna data wydania]]))","v":""},{"$f":"IF(AND(Harmonogram[[#This Row],[Realna data wydania]]>0,Harmonogram[[#This Row],[Realna data wydania]]<TODAY()),\"Wydany\",IF(Harmonogram[[#This Row],[Realna data skończenia]]>0,\"Zrobiony\",\"\"))","v":""}]
[null,null,null,null,null,{"$f":"Harmonogram[[#This Row],[Data przyjęcia ]]+30","v":"1900-01-30"},null,null,null,null,null,null,null,null,null,{"$f":"Harmonogram[[#This Row],[P: \nSzycie]]","v":0},null,null,null,null,null,null,null,null,null,{"$f":"SUM(Harmonogram[[#This Row],[P: Spawanie]:[P: Montaż]])","v":0},null,null,{"$f":"Harmonogram[[#This Row],[Realna data wydania]]+365","v":"1900-12-30"},null,{"$f":"IF(Harmonogram[[#This Row],[Realna data wydania]]=0,\"\",MONTH(Harmonogram[[#This Row],[Realna data wydania]]))","v":""},{"$f":"IF(AND(Harmonogram[[#This Row],[Realna data wydania]]>0,Harmonogram[[#This Row],[Realna data wydania]]<TODAY()),\"Wydany\",IF(Harmonogram[[#This Row],[Realna data skończenia]]>0,\"Zrobiony\",\"\"))","v":""}]
[null,null,null,null,null,{"$f":"Harmonogram[[#This Row],[Data przyjęcia ]]+30","v":"1900-01-30"},null,null,null,null,null,null,null,null,null,{"$f":"Harmonogram[[#This Row],[P: \nSzycie]]","v":0},null,null,null,null,null,null,null,null,null,{"$f":"SUM(Harmonogram[[#This Row],[P: Spawanie]:[P: Montaż]])","v":0},null,null,{"$f":"Harmonogram[[#This Row],[Realna data wydania]]+365","v":"1900-12-30"},null,{"$f":"IF(Harmonogram[[#This Row],[Realna data wydania]]=0,\"\",MONTH(Harmonogram[[#This Row],[Realna data wydania]]))","v":""},{"$f":"IF(AND(Harmonogram[[#This Row],[Realna data wydania]]>0,Harmonogram[[#This Row],[Realna data wydania]]<TODAY()),\"Wydany\",IF(Harmonogram[[#This Row],[Realna data skończenia]]>0,\"Zrobiony\",\"\"))","v":""}]
[null,null,null,null,null,{"$f":"Harmonogram[[#This Row],[Data przyjęcia ]]+30","v":"1900-01-30"},null,null,null,null,null,null,null,null,null,{"$f":"Harmonogram[[#This Row],[P: \nSzycie]]","v":0},null,null,null,null,null,null,null,null,null,{"$f":"SUM(Harmonogram[[#This Row],[P: Spawanie]:[P: Montaż]])","v":0},null,null,{"$f":"Harmonogram[[#This Row],[Realna data wydania]]+365","v":"1900-12-30"},null,{"$f":"IF(Harmonogram[[#This Row],[Realna data wydania]]=0,\"\",MONTH(Harmonogram[[#This Row],[Realna data wydania]]))","v":""},{"$f":"IF(AND(Harmonogram[[#This Row],[Realna data wydania]]>0,Harmonogram[[#This Row],[Realna data wydania]]<TODAY()),\"Wydany\",IF(Harmonogram[[#This Row],[Realna data skończenia]]>0,\"Zrobiony\",\"\"))","v":""}]
[null,null,null,null,null,{"$f":"Harmonogram[[#This Row],[Data przyjęcia ]]+30","v":"1900-01-30"},null,null,null,null,null,null,null,null,null,{"$f":"Harmonogram[[#This Row],[P: \nSzycie]]","v":0},null,null,null,null,null,null,null,null,null,{"$f":"SUM(Harmonogram[[#This Row],[P: Spawanie]:[P: Montaż]])","v":0},null,null,{"$f":"Harmonogram[[#This Row],[Realna data wydania]]+365","v":"1900-12-30"},null,{"$f":"IF(Harmonogram[[#This Row],[Realna data wydania]]=0,\"\",MONTH(Harmonogram[[#This Row],[Realna data wydania]]))","v":""},{"$f":"IF(AND(Harmonogram[[#This Row],[Realna data wydania]]>0,Harmonogram[[#This Row],[Realna data wydania]]<TODAY()),\"Wydany\",IF(Harmonogram[[#This Row],[Realna data skończenia]]>0,\"Zrobiony\",\"\"))","v":""}]
[null,null,null,null,null,{"$f":"Harmonogram[[#This Row],[Data przyjęcia ]]+30","v":"1900-01-30"},null,null,null,null,null,null,null,null,null,{"$f":"Harmonogram[[#This Row],[P: \nSzycie]]","v":0},null,null,null,null,null,null,null,null,null,{"$f":"SUM(Harmonogram[[#This Row],[P: Spawanie]:[P: Montaż]])","v":0},null,null,{"$f":"Harmonogram[[#This Row],[Realna data wydania]]+365","v":"1900-12-30"},null,{"$f":"IF(Harmonogram[[#This Row],[Realna data wydania]]=0,\"\",MONTH(Harmonogram[[#This Row],[Realna data wydania]]))","v":""},{"$f":"IF(AND(Harmonogram[[#This Row],[Realna data wydania]]>0,Harmonogram[[#This Row],[Realna data wydania]]<TODAY()),\"Wydany\",IF(Harmonogram[[#This Row],[Realna data skończenia]]>0,\"Zrobiony\",\"\"))","v":""}]
[null,null,null,null,null,{"$f":"Harmonogram[[#This Row],[Data przyjęcia ]]+30","v":"1900-01-30"},null,null,null,null,null,null,null,null,null,{"$f":"Harmonogram[[#This Row],[P: \nSzycie]]","v":0},null,null,null,null,null,null,null,null,null,{"$f":"SUM(Harmonogram[[#This Row],[P: Spawanie]:[P: Montaż]])","v":0},null,null,{"$f":"Harmonogram[[#This Row],[Realna data wydania]]+365","v":"1900-12-30"},null,{"$f":"IF(Harmonogram[[#This Row],[Realna data wydania]]=0,\"\",MONTH(Harmonogram[[#This Row],[Realna data wydania]]))","v":""},{"$f":"IF(AND(Harmonogram[[#This Row],[Realna data wydania]]>0,Harmonogram[[#This Row],[Realna data wydania]]<TODAY()),\"Wydany\",IF(Harmonogram[[#This Row],[Realna data skończenia]]>0,\"Zrobiony\",\"\"))","v":""}]
[null,null,null,null,null,{"$f":"Harmonogram[[#This Row],[Data przyjęcia ]]+30","v":"1900-01-30"},null,null,null,null,null,null,null,null,null,{"$f":"Harmonogram[[#This Row],[P: \nSzycie]]","v":0},null,null,null,null,null,null,null,null,null,{"$f":"SUM(Harmonogram[[#This Row],[P: Spawanie]:[P: Montaż]])","v":0},null,null,{"$f":"Harmonogram[[#This Row],[Realna data wydania]]+365","v":"1900-12-30"},null,{"$f":"IF(Harmonogram[[#This Row],[Realna data wydania]]=0,\"\",MONTH(Harmonogram[[#This Row],[Realna data wydania]]))","v":""},{"$f":"IF(AND(Harmonogram[[#This Row],[Realna data wydania]]>0,Harmonogram[[#This Row],[Realna data wydania]]<TODAY()),\"Wydany\",IF(Harmonogram[[#This Row],[Realna data skończenia]]>0,\"Zrobiony\",\"\"))","v":""}]
[null,null,null,null,null,{"$f":"Harmonogram[[#This Row],[Data przyjęcia ]]+30","v":"1900-01-30"},null,null,null,null,null,null,null,null,null,{"$f":"Harmonogram[[#This Row],[P: \nSzycie]]","v":0},null,null,null,null,null,null,null,null,null,{"$f":"SUM(Harmonogram[[#This Row],[P: Spawanie]:[P: Montaż]])","v":0},null,null,{"$f":"Harmonogram[[#This Row],[Realna data wydania]]+365","v":"1900-12-30"},null,{"$f":"IF(Harmonogram[[#This Row],[Realna data wydania]]=0,\"\",MONTH(Harmonogram[[#This Row],[Realna data wydania]]))","v":""},{"$f":"IF(AND(Harmonogram[[#This Row],[Realna data wydania]]>0,Harmonogram[[#This Row],[Realna data wydania]]<TODAY()),\"Wydany\",IF(Harmonogram[[#This Row],[Realna data skończenia]]>0,\"Zrobiony\",\"\"))","v":""}]
[null,null,null,null,null,{"$f":"Harmonogram[[#This Row],[Data przyjęcia ]]+30","v":"1900-01-30"},null,null,null,null,null,null,null,null,null,{"$f":"Harmonogram[[#This Row],[P: \nSzycie]]","v":0},null,null,null,null,null,null,null,null,null,{"$f":"SUM(Harmonogram[[#This Row],[P: Spawanie]:[P: Montaż]])","v":0},null,null,{"$f":"Harmonogram[[#This Row],[Realna data wydania]]+365","v":"1900-12-30"},null,{"$f":"IF(Harmonogram[[#This Row],[Realna data wydania]]=0,\"\",MONTH(Harmonogram[[#This Row],[Realna data wydania]]))","v":""},{"$f":"IF(AND(Harmonogram[[#This Row],[Realna data wydania]]>0,Harmonogram[[#This Row],[Realna data wydania]]<TODAY()),\"Wydany\",IF(Harmonogram[[#This Row],[Realna data skończenia]]>0,\"Zrobiony\",\"\"))","v":""}]
[null,null,null,null,null,{"$f":"Harmonogram[[#This Row],[Data przyjęcia ]]+30","v":"1900-01-30"},null,null,null,null,null,null,null,null,null,{"$f":"Harmonogram[[#This Row],[P: \nSzycie]]","v":0},null,null,null,null,null,null,null,null,null,{"$f":"SUM(Harmonogram[[#This Row],[P: Spawanie]:[P: Montaż]])","v":0},null,null,{"$f":"Harmonogram[[#This Row],[Realna data wydania]]+365","v":"1900-12-30"},null,{"$f":"IF(Harmonogram[[#This Row],[Realna data wydania]]=0,\"\",MONTH(Harmonogram[[#This Row],[Realna data wydania]]))","v":""},{"$f":"IF(AND(Harmonogram[[#This Row],[Realna data wydania]]>0,Harmonogram[[#This Row],[Realna data wydania]]<TODAY()),\"Wydany\",IF(Harmonogram[[#This Row],[Realna data skończenia]]>0,\"Zrobiony\",\"\"))","v":""}]
[null,null,null,null,null,{"$f":"Harmonogram[[#This Row],[Data przyjęcia ]]+30","v":"1900-01-30"},null,null,null,null,null,null,null,null,null,{"$f":"Harmonogram[[#This Row],[P: \nSzycie]]","v":0},null,null,null,null,null,null,null,null,null,{"$f":"SUM(Harmonogram[[#This Row],[P: Spawanie]:[P: Montaż]])","v":0},null,null,{"$f":"Harmonogram[[#This Row],[Realna data wydania]]+365","v":"1900-12-30"},null,{"$f":"IF(Harmonogram[[#This Row],[Realna data wydania]]=0,\"\",MONTH(Harmonogram[[#This Row],[Realna data wydania]]))","v":""},{"$f":"IF(AND(Harmonogram[[#This Row],[Realna data wydania]]>0,Harmonogram[[#This Row],[Realna data wydania]]<TODAY()),\"Wydany\",IF(Harmonogram[[#This Row],[Realna data skończenia]]>0,\"Zrobiony\",\"\"))","v":""}]
[null,null,null,null,null,{"$f":"Harmonogram[[#This Row],[Data przyjęcia ]]+30","v":"1900-01-30"},null,null,null,null,null,null,null,null,null,{"$f":"Harmonogram[[#This Row],[P: \nSzycie]]","v":0},null,null,null,null,null,null,null,null,null,{"$f":"SUM(Harmonogram[[#This Row],[P: Spawanie]:[P: Montaż]])","v":0},null,null,{"$f":"Harmonogram[[#This Row],[Realna data wydania]]+365","v":"1900-12-30"},null,{"$f":"IF(Harmonogram[[#This Row],[Realna data wydania]]=0,\"\",MONTH(Harmonogram[[#This Row],[Realna data wydania]]))","v":""},{"$f":"IF(AND(Harmonogram[[#This Row],[Realna data wydania]]>0,Harmonogram[[#This Row],[Realna data wydania]]<TODAY()),\"Wydany\",IF(Harmonogram[[#This Row],[Realna data skończenia]]>0,\"Zrobiony\",\"\"))","v":""}]
[null,null,null,null,null,{"$f":"Harmonogram[[#This Row],[Data przyjęcia ]]+30","v":"1900-01-30"},null,null,null,null,null,null,null,null,null,{"$f":"Harmonogram[[#This Row],[P: \nSzycie]]","v":0},null,null,null,null,null,null,null,null,null,{"$f":"SUM(Harmonogram[[#This Row],[P: Spawanie]:[P: Montaż]])","v":0},null,null,{"$f":"Harmonogram[[#This Row],[Realna data wydania]]+365","v":"1900-12-30"},null,{"$f":"IF(Harmonogram[[#This Row],[Realna data wydania]]=0,\"\",MONTH(Harmonogram[[#This Row],[Realna data wydania]]))","v":""},{"$f":"IF(AND(Harmonogram[[#This Row],[Realna data wydania]]>0,Harmonogram[[#This Row],[Realna data wydania]]<TODAY()),\"Wydany\",IF(Harmonogram[[#This Row],[Realna data skończenia]]>0,\"Zrobiony\",\"\"))","v":""}]
[null,null,null,null,null,{"$f":"Harmonogram[[#This Row],[Data przyjęcia ]]+30","v":"1900-01-30"},null,null,null,null,null,null,null,null,null,{"$f":"Harmonogram[[#This Row],[P: \nSzycie]]","v":0},null,null,null,null,null,null,null,null,null,{"$f":"SUM(Harmonogram[[#This Row],[P: Spawanie]:[P: Montaż]])","v":0},null,null,{"$f":"Harmonogram[[#This Row],[Realna data wydania]]+365","v":"1900-12-30"},null,{"$f":"IF(Harmonogram[[#This Row],[Realna data wydania]]=0,\"\",MONTH(Harmonogram[[#This Row],[Realna data wydania]]))","v":""},{"$f":"IF(AND(Harmonogram[[#This Row],[Realna data wydania]]>0,Harmonogram[[#This Row],[Realna data wydania]]<TODAY()),\"Wydany\",IF(Harmonogram[[#This Row],[Realna data skończenia]]>0,\"Zrobiony\",\"\"))","v":""}]
[null,null,null,null,null,{"$f":"Harmonogram[[#This Row],[Data przyjęcia ]]+30","v":"1900-01-30"},null,null,null,null,null,null,null,null,null,{"$f":"Harmonogram[[#This Row],[P: \nSzycie]]","v":0},null,null,null,null,null,null,null,null,null,{"$f":"SUM(Harmonogram[[#This Row],[P: Spawanie]:[P: Montaż]])","v":0},null,null,{"$f":"Harmonogram[[#This Row],[Realna data wydania]]+365","v":"1900-12-30"},null,{"$f":"IF(Harmonogram[[#This Row],[Realna data wydania]]=0,\"\",MONTH(Harmonogram[[#This Row],[Realna data wydania]]))","v":""},{"$f":"IF(AND(Harmonogram[[#This Row],[Realna data wydania]]>0,Harmonogram[[#This Row],[Realna data wydania]]<TODAY()),\"Wydany\",IF(Harmonogram[[#This Row],[Realna data skończenia]]>0,\"Zrobiony\",\"\"))","v":""}]
[null,null,null,null,null,{"$f":"Harmonogram[[#This Row],[Data przyjęcia ]]+30","v":"1900-01-30"},null,null,null,null,null,null,null,null,null,{"$f":"Harmonogram[[#This Row],[P: \nSzycie]]","v":0},null,null,null,null,null,null,null,null,null,{"$f":"SUM(Harmonogram[[#This Row],[P: Spawanie]:[P: Montaż]])","v":0},null,null,{"$f":"Harmonogram[[#This Row],[Realna data wydania]]+365","v":"1900-12-30"},null,{"$f":"IF(Harmonogram[[#This Row],[Realna data wydania]]=0,\"\",MONTH(Harmonogram[[#This Row],[Realna data wydania]]))","v":""},{"$f":"IF(AND(Harmonogram[[#This Row],[Realna data wydania]]>0,Harmonogram[[#This Row],[Realna data wydania]]<TODAY()),\"Wydany\",IF(Harmonogram[[#This Row],[Realna data skończenia]]>0,\"Zrobiony\",\"\"))","v":""}]
[null,null,null,null,null,{"$f":"Harmonogram[[#This Row],[Data przyjęcia ]]+30","v":"1900-01-30"},null,null,null,null,null,null,null,null,null,{"$f":"Harmonogram[[#This Row],[P: \nSzycie]]","v":0},null,null,null,null,null,null,null,null,null,{"$f":"SUM(Harmonogram[[#This Row],[P: Spawanie]:[P: Montaż]])","v":0},null,null,{"$f":"Harmonogram[[#This Row],[Realna data wydania]]+365","v":"1900-12-30"},null,{"$f":"IF(Harmonogram[[#This Row],[Realna data wydania]]=0,\"\",MONTH(Harmonogram[[#This Row],[Realna data wydania]]))","v":""},{"$f":"IF(AND(Harmonogram[[#This Row],[Realna data wydania]]>0,Harmonogram[[#This Row],[Realna data wydania]]<TODAY()),\"Wydany\",IF(Harmonogram[[#This Row],[Realna data skończenia]]>0,\"Zrobiony\",\"\"))","v":""}]
[null,null,null,null,null,{"$f":"Harmonogram[[#This Row],[Data przyjęcia ]]+30","v":"1900-01-30"},null,null,null,null,null,null,null,null,null,{"$f":"Harmonogram[[#This Row],[P: \nSzycie]]","v":0},null,null,null,null,null,null,null,null,null,{"$f":"SUM(Harmonogram[[#This Row],[P: Spawanie]:[P: Montaż]])","v":0},null,null,{"$f":"Harmonogram[[#This Row],[Realna data wydania]]+365","v":"1900-12-30"},null,{"$f":"IF(Harmonogram[[#This Row],[Realna data wydania]]=0,\"\",MONTH(Harmonogram[[#This Row],[Realna data wydania]]))","v":""},{"$f":"IF(AND(Harmonogram[[#This Row],[Realna data wydania]]>0,Harmonogram[[#This Row],[Realna data wydania]]<TODAY()),\"Wydany\",IF(Harmonogram[[#This Row],[Realna data skończenia]]>0,\"Zrobiony\",\"\"))","v":""}]
[null,null,null,null,null,{"$f":"Harmonogram[[#This Row],[Data przyjęcia ]]+30","v":"1900-01-30"},null,null,null,null,null,null,null,null,null,{"$f":"Harmonogram[[#This Row],[P: \nSzycie]]","v":0},null,null,null,null,null,null,null,null,null,{"$f":"SUM(Harmonogram[[#This Row],[P: Spawanie]:[P: Montaż]])","v":0},null,null,{"$f":"Harmonogram[[#This Row],[Realna data wydania]]+365","v":"1900-12-30"},null,{"$f":"IF(Harmonogram[[#This Row],[Realna data wydania]]=0,\"\",MONTH(Harmonogram[[#This Row],[Realna data wydania]]))","v":""},{"$f":"IF(AND(Harmonogram[[#This Row],[Realna data wydania]]>0,Harmonogram[[#This Row],[Realna data wydania]]<TODAY()),\"Wydany\",IF(Harmonogram[[#This Row],[Realna data skończenia]]>0,\"Zrobiony\",\"\"))","v":""}]
[null,null,null,null,null,{"$f":"Harmonogram[[#This Row],[Data przyjęcia ]]+30","v":"1900-01-30"},null,null,null,null,null,null,null,null,null,{"$f":"Harmonogram[[#This Row],[P: \nSzycie]]","v":0},null,null,null,null,null,null,null,null,null,{"$f":"SUM(Harmonogram[[#This Row],[P: Spawanie]:[P: Montaż]])","v":0},null,null,{"$f":"Harmonogram[[#This Row],[Realna data wydania]]+365","v":"1900-12-30"},null,{"$f":"IF(Harmonogram[[#This Row],[Realna data wydania]]=0,\"\",MONTH(Harmonogram[[#This Row],[Realna data wydania]]))","v":""},{"$f":"IF(AND(Harmonogram[[#This Row],[Realna data wydania]]>0,Harmonogram[[#This Row],[Realna data wydania]]<TODAY()),\"Wydany\",IF(Harmonogram[[#This Row],[Realna data skończenia]]>0,\"Zrobiony\",\"\"))","v":""}]
[null,null,null,null,null,{"$f":"Harmonogram[[#This Row],[Data przyjęcia ]]+30","v":"1900-01-30"},null,null,null,null,null,null,null,null,null,{"$f":"Harmonogram[[#This Row],[P: \nSzycie]]","v":0},null,null,null,null,null,null,null,null,null,{"$f":"SUM(Harmonogram[[#This Row],[P: Spawanie]:[P: Montaż]])","v":0},null,null,{"$f":"Harmonogram[[#This Row],[Realna data wydania]]+365","v":"1900-12-30"},null,{"$f":"IF(Harmonogram[[#This Row],[Realna data wydania]]=0,\"\",MONTH(Harmonogram[[#This Row],[Realna data wydania]]))","v":""},{"$f":"IF(AND(Harmonogram[[#This Row],[Realna data wydania]]>0,Harmonogram[[#This Row],[Realna data wydania]]<TODAY()),\"Wydany\",IF(Harmonogram[[#This Row],[Realna data skończenia]]>0,\"Zrobiony\",\"\"))","v":""}]
[null,null,null,null,null,{"$f":"Harmonogram[[#This Row],[Data przyjęcia ]]+30","v":"1900-01-30"},null,null,null,null,null,null,null,null,null,{"$f":"Harmonogram[[#This Row],[P: \nSzycie]]","v":0},null,null,null,null,null,null,null,null,null,{"$f":"SUM(Harmonogram[[#This Row],[P: Spawanie]:[P: Montaż]])","v":0},null,null,{"$f":"Harmonogram[[#This Row],[Realna data wydania]]+365","v":"1900-12-30"},null,{"$f":"IF(Harmonogram[[#This Row],[Realna data wydania]]=0,\"\",MONTH(Harmonogram[[#This Row],[Realna data wydania]]))","v":""},{"$f":"IF(AND(Harmonogram[[#This Row],[Realna data wydania]]>0,Harmonogram[[#This Row],[Realna data wydania]]<TODAY()),\"Wydany\",IF(Harmonogram[[#This Row],[Realna data skończenia]]>0,\"Zrobiony\",\"\"))","v":""}]
[null,null,null,null,null,{"$f":"Harmonogram[[#This Row],[Data przyjęcia ]]+30","v":"1900-01-30"},null,null,null,null,null,null,null,null,null,{"$f":"Harmonogram[[#This Row],[P: \nSzycie]]","v":0},null,null,null,null,null,null,null,null,null,{"$f":"SUM(Harmonogram[[#This Row],[P: Spawanie]:[P: Montaż]])","v":0},null,null,{"$f":"Harmonogram[[#This Row],[Realna data wydania]]+365","v":"1900-12-30"},null,{"$f":"IF(Harmonogram[[#This Row],[Realna data wydania]]=0,\"\",MONTH(Harmonogram[[#This Row],[Realna data wydania]]))","v":""},{"$f":"IF(AND(Harmonogram[[#This Row],[Realna data wydania]]>0,Harmonogram[[#This Row],[Realna data wydania]]<TODAY()),\"Wydany\",IF(Harmonogram[[#This Row],[Realna data skończenia]]>0,\"Zrobiony\",\"\"))","v":""}]
[null,null,null,null,null,{"$f":"Harmonogram[[#This Row],[Data przyjęcia ]]+30","v":"1900-01-30"},null,null,null,null,null,null,null,null,null,{"$f":"Harmonogram[[#This Row],[P: \nSzycie]]","v":0},null,null,null,null,null,null,null,null,null,{"$f":"SUM(Harmonogram[[#This Row],[P: Spawanie]:[P: Montaż]])","v":0},null,null,{"$f":"Harmonogram[[#This Row],[Realna data wydania]]+365","v":"1900-12-30"},null,{"$f":"IF(Harmonogram[[#This Row],[Realna data wydania]]=0,\"\",MONTH(Harmonogram[[#This Row],[Realna data wydania]]))","v":""},{"$f":"IF(AND(Harmonogram[[#This Row],[Realna data wydania]]>0,Harmonogram[[#This Row],[Realna data wydania]]<TODAY()),\"Wydany\",IF(Harmonogram[[#This Row],[Realna data skończenia]]>0,\"Zrobiony\",\"\"))","v":""}]
[null,null,null,null,null,{"$f":"Harmonogram[[#This Row],[Data przyjęcia ]]+30","v":"1900-01-30"},null,null,null,null,null,null,null,null,null,{"$f":"Harmonogram[[#This Row],[P: \nSzycie]]","v":0},null,null,null,null,null,null,null,null,null,{"$f":"SUM(Harmonogram[[#This Row],[P: Spawanie]:[P: Montaż]])","v":0},null,null,{"$f":"Harmonogram[[#This Row],[Realna data wydania]]+365","v":"1900-12-30"},null,{"$f":"IF(Harmonogram[[#This Row],[Realna data wydania]]=0,\"\",MONTH(Harmonogram[[#This Row],[Realna data wydania]]))","v":""},{"$f":"IF(AND(Harmonogram[[#This Row],[Realna data wydania]]>0,Harmonogram[[#This Row],[Realna data wydania]]<TODAY()),\"Wydany\",IF(Harmonogram[[#This Row],[Realna data skończenia]]>0,\"Zrobiony\",\"\"))","v":""}]
[null,null,null,null,null,{"$f":"Harmonogram[[#This Row],[Data przyjęcia ]]+30","v":"1900-01-30"},null,null,null,null,null,null,null,null,null,{"$f":"Harmonogram[[#This Row],[P: \nSzycie]]","v":0},null,null,null,null,null,null,null,null,null,{"$f":"SUM(Harmonogram[[#This Row],[P: Spawanie]:[P: Montaż]])","v":0},null,null,{"$f":"Harmonogram[[#This Row],[Realna data wydania]]+365","v":"1900-12-30"},null,{"$f":"IF(Harmonogram[[#This Row],[Realna data wydania]]=0,\"\",MONTH(Harmonogram[[#This Row],[Realna data wydania]]))","v":""},{"$f":"IF(AND(Harmonogram[[#This Row],[Realna data wydania]]>0,Harmonogram[[#This Row],[Realna data wydania]]<TODAY()),\"Wydany\",IF(Harmonogram[[#This Row],[Realna data skończenia]]>0,\"Zrobiony\",\"\"))","v":""}]
[null,null,null,null,null,{"$f":"Harmonogram[[#This Row],[Data przyjęcia ]]+30","v":"1900-01-30"},null,null,null,null,null,null,null,null,null,{"$f":"Harmonogram[[#This Row],[P: \nSzycie]]","v":0},null,null,null,null,null,null,null,null,null,{"$f":"SUM(Harmonogram[[#This Row],[P: Spawanie]:[P: Montaż]])","v":0},null,null,{"$f":"Harmonogram[[#This Row],[Realna data wydania]]+365","v":"1900-12-30"},null,{"$f":"IF(Harmonogram[[#This Row],[Realna data wydania]]=0,\"\",MONTH(Harmonogram[[#This Row],[Realna data wydania]]))","v":""},{"$f":"IF(AND(Harmonogram[[#This Row],[Realna data wydania]]>0,Harmonogram[[#This Row],[Realna data wydania]]<TODAY()),\"Wydany\",IF(Harmonogram[[#This Row],[Realna data skończenia]]>0,\"Zrobiony\",\"\"))","v":""}]
[null,null,null,null,null,{"$f":"Harmonogram[[#This Row],[Data przyjęcia ]]+30","v":"1900-01-30"},null,null,null,null,null,null,null,null,null,{"$f":"Harmonogram[[#This Row],[P: \nSzycie]]","v":0},null,null,null,null,null,null,null,null,null,{"$f":"SUM(Harmonogram[[#This Row],[P: Spawanie]:[P: Montaż]])","v":0},null,null,{"$f":"Harmonogram[[#This Row],[Realna data wydania]]+365","v":"1900-12-30"},null,{"$f":"IF(Harmonogram[[#This Row],[Realna data wydania]]=0,\"\",MONTH(Harmonogram[[#This Row],[Realna data wydania]]))","v":""},{"$f":"IF(AND(Harmonogram[[#This Row],[Realna data wydania]]>0,Harmonogram[[#This Row],[Realna data wydania]]<TODAY()),\"Wydany\",IF(Harmonogram[[#This Row],[Realna data skończenia]]>0,\"Zrobiony\",\"\"))","v":""}]
[null,null,null,null,null,{"$f":"Harmonogram[[#This Row],[Data przyjęcia ]]+30","v":"1900-01-30"},null,null,null,null,null,null,null,null,null,{"$f":"Harmonogram[[#This Row],[P: \nSzycie]]","v":0},null,null,null,null,null,null,null,null,null,{"$f":"SUM(Harmonogram[[#This Row],[P: Spawanie]:[P: Montaż]])","v":0},null,null,{"$f":"Harmonogram[[#This Row],[Realna data wydania]]+365","v":"1900-12-30"},null,{"$f":"IF(Harmonogram[[#This Row],[Realna data wydania]]=0,\"\",MONTH(Harmonogram[[#This Row],[Realna data wydania]]))","v":""},{"$f":"IF(AND(Harmonogram[[#This Row],[Realna data wydania]]>0,Harmonogram[[#This Row],[Realna data wydania]]<TODAY()),\"Wydany\",IF(Harmonogram[[#This Row],[Realna data skończenia]]>0,\"Zrobiony\",\"\"))","v":""}]
[null,null,null,null,null,{"$f":"Harmonogram[[#This Row],[Data przyjęcia ]]+30","v":"1900-01-30"},null,null,null,null,null,null,null,null,null,{"$f":"Harmonogram[[#This Row],[P: \nSzycie]]","v":0},null,null,null,null,null,null,null,null,null,{"$f":"SUM(Harmonogram[[#This Row],[P: Spawanie]:[P: Montaż]])","v":0},null,null,{"$f":"Harmonogram[[#This Row],[Realna data wydania]]+365","v":"1900-12-30"},null,{"$f":"IF(Harmonogram[[#This Row],[Realna data wydania]]=0,\"\",MONTH(Harmonogram[[#This Row],[Realna data wydania]]))","v":""},{"$f":"IF(AND(Harmonogram[[#This Row],[Realna data wydania]]>0,Harmonogram[[#This Row],[Realna data wydania]]<TODAY()),\"Wydany\",IF(Harmonogram[[#This Row],[Realna data skończenia]]>0,\"Zrobiony\",\"\"))","v":""}]
[null,null,null,null,null,{"$f":"Harmonogram[[#This Row],[Data przyjęcia ]]+30","v":"1900-01-30"},null,null,null,null,null,null,null,null,null,{"$f":"Harmonogram[[#This Row],[P: \nSzycie]]","v":0},null,null,null,null,null,null,null,null,null,{"$f":"SUM(Harmonogram[[#This Row],[P: Spawanie]:[P: Montaż]])","v":0},null,null,{"$f":"Harmonogram[[#This Row],[Realna data wydania]]+365","v":"1900-12-30"},null,{"$f":"IF(Harmonogram[[#This Row],[Realna data wydania]]=0,\"\",MONTH(Harmonogram[[#This Row],[Realna data wydania]]))","v":""},{"$f":"IF(AND(Harmonogram[[#This Row],[Realna data wydania]]>0,Harmonogram[[#This Row],[Realna data wydania]]<TODAY()),\"Wydany\",IF(Harmonogram[[#This Row],[Realna data skończenia]]>0,\"Zrobiony\",\"\"))","v":""}]
[null,null,null,null,null,{"$f":"Harmonogram[[#This Row],[Data przyjęcia ]]+30","v":"1900-01-30"},null,null,null,null,null,null,null,null,null,{"$f":"Harmonogram[[#This Row],[P: \nSzycie]]","v":0},null,null,null,null,null,null,null,null,null,{"$f":"SUM(Harmonogram[[#This Row],[P: Spawanie]:[P: Montaż]])","v":0},null,null,{"$f":"Harmonogram[[#This Row],[Realna data wydania]]+365","v":"1900-12-30"},null,{"$f":"IF(Harmonogram[[#This Row],[Realna data wydania]]=0,\"\",MONTH(Harmonogram[[#This Row],[Realna data wydania]]))","v":""},{"$f":"IF(AND(Harmonogram[[#This Row],[Realna data wydania]]>0,Harmonogram[[#This Row],[Realna data wydania]]<TODAY()),\"Wydany\",IF(Harmonogram[[#This Row],[Realna data skończenia]]>0,\"Zrobiony\",\"\"))","v":""}]
[null,null,null,null,null,{"$f":"Harmonogram[[#This Row],[Data przyjęcia ]]+30","v":"1900-01-30"},null,null,null,null,null,null,null,null,null,{"$f":"Harmonogram[[#This Row],[P: \nSzycie]]","v":0},null,null,null,null,null,null,null,null,null,{"$f":"SUM(Harmonogram[[#This Row],[P: Spawanie]:[P: Montaż]])","v":0},null,null,{"$f":"Harmonogram[[#This Row],[Realna data wydania]]+365","v":"1900-12-30"},null,{"$f":"IF(Harmonogram[[#This Row],[Realna data wydania]]=0,\"\",MONTH(Harmonogram[[#This Row],[Realna data wydania]]))","v":""},{"$f":"IF(AND(Harmonogram[[#This Row],[Realna data wydania]]>0,Harmonogram[[#This Row],[Realna data wydania]]<TODAY()),\"Wydany\",IF(Harmonogram[[#This Row],[Realna data skończenia]]>0,\"Zrobiony\",\"\"))","v":""}]
[null,null,null,null,null,{"$f":"Harmonogram[[#This Row],[Data przyjęcia ]]+30","v":"1900-01-30"},null,null,null,null,null,null,null,null,null,{"$f":"Harmonogram[[#This Row],[P: \nSzycie]]","v":0},null,null,null,null,null,null,null,null,null,{"$f":"SUM(Harmonogram[[#This Row],[P: Spawanie]:[P: Montaż]])","v":0},null,null,{"$f":"Harmonogram[[#This Row],[Realna data wydania]]+365","v":"1900-12-30"},null,{"$f":"IF(Harmonogram[[#This Row],[Realna data wydania]]=0,\"\",MONTH(Harmonogram[[#This Row],[Realna data wydania]]))","v":""},{"$f":"IF(AND(Harmonogram[[#This Row],[Realna data wydania]]>0,Harmonogram[[#This Row],[Realna data wydania]]<TODAY()),\"Wydany\",IF(Harmonogram[[#This Row],[Realna data skończenia]]>0,\"Zrobiony\",\"\"))","v":""}]
[null,null,null,null,null,{"$f":"Harmonogram[[#This Row],[Data przyjęcia ]]+30","v":"1900-01-30"},null,null,null,null,null,null,null,null,null,{"$f":"Harmonogram[[#This Row],[P: \nSzycie]]","v":0},null,null,null,null,null,null,null,null,null,{"$f":"SUM(Harmonogram[[#This Row],[P: Spawanie]:[P: Montaż]])","v":0},null,null,{"$f":"Harmonogram[[#This Row],[Realna data wydania]]+365","v":"1900-12-30"},null,{"$f":"IF(Harmonogram[[#This Row],[Realna data wydania]]=0,\"\",MONTH(Harmonogram[[#This Row],[Realna data wydania]]))","v":""},{"$f":"IF(AND(Harmonogram[[#This Row],[Realna data wydania]]>0,Harmonogram[[#This Row],[Realna data wydania]]<TODAY()),\"Wydany\",IF(Harmonogram[[#This Row],[Realna data skończenia]]>0,\"Zrobiony\",\"\"))","v":""}]
[null,null,null,null,null,{"$f":"Harmonogram[[#This Row],[Data przyjęcia ]]+30","v":"1900-01-30"},null,null,null,null,null,null,null,null,null,{"$f":"Harmonogram[[#This Row],[P: \nSzycie]]","v":0},null,null,null,null,null,null,null,null,null,{"$f":"SUM(Harmonogram[[#This Row],[P: Spawanie]:[P: Montaż]])","v":0},null,null,{"$f":"Harmonogram[[#This Row],[Realna data wydania]]+365","v":"1900-12-30"},null,{"$f":"IF(Harmonogram[[#This Row],[Realna data wydania]]=0,\"\",MONTH(Harmonogram[[#This Row],[Realna data wydania]]))","v":""},{"$f":"IF(AND(Harmonogram[[#This Row],[Realna data wydania]]>0,Harmonogram[[#This Row],[Realna data wydania]]<TODAY()),\"Wydany\",IF(Harmonogram[[#This Row],[Realna data skończenia]]>0,\"Zrobiony\",\"\"))","v":""}]
[null,null,null,null,null,{"$f":"Harmonogram[[#This Row],[Data przyjęcia ]]+30","v":"1900-01-30"},null,null,null,null,null,null,null,null,null,{"$f":"Harmonogram[[#This Row],[P: \nSzycie]]","v":0},null,null,null,null,null,null,null,null,null,{"$f":"SUM(Harmonogram[[#This Row],[P: Spawanie]:[P: Montaż]])","v":0},null,null,{"$f":"Harmonogram[[#This Row],[Realna data wydania]]+365","v":"1900-12-30"},null,{"$f":"IF(Harmonogram[[#This Row],[Realna data wydania]]=0,\"\",MONTH(Harmonogram[[#This Row],[Realna data wydania]]))","v":""},{"$f":"IF(AND(Harmonogram[[#This Row],[Realna data wydania]]>0,Harmonogram[[#This Row],[Realna data wydania]]<TODAY()),\"Wydany\",IF(Harmonogram[[#This Row],[Realna data skończenia]]>0,\"Zrobiony\",\"\"))","v":""}]
[null,null,null,null,null,{"$f":"Harmonogram[[#This Row],[Data przyjęcia ]]+30","v":"1900-01-30"},null,null,null,null,null,null,null,null,null,{"$f":"Harmonogram[[#This Row],[P: \nSzycie]]","v":0},null,null,null,null,null,null,null,null,null,{"$f":"SUM(Harmonogram[[#This Row],[P: Spawanie]:[P: Montaż]])","v":0},null,null,{"$f":"Harmonogram[[#This Row],[Realna data wydania]]+365","v":"1900-12-30"},null,{"$f":"IF(Harmonogram[[#This Row],[Realna data wydania]]=0,\"\",MONTH(Harmonogram[[#This Row],[Realna data wydania]]))","v":""},{"$f":"IF(AND(Harmonogram[[#This Row],[Realna data wydania]]>0,Harmonogram[[#This Row],[Realna data wydania]]<TODAY()),\"Wydany\",IF(Harmonogram[[#This Row],[Realna data skończenia]]>0,\"Zrobiony\",\"\"))","v":""}]
[null,null,null,null,null,{"$f":"Harmonogram[[#This Row],[Data przyjęcia ]]+30","v":"1900-01-30"},null,null,null,null,null,null,null,null,null,{"$f":"Harmonogram[[#This Row],[P: \nSzycie]]","v":0},null,null,null,null,null,null,null,null,null,{"$f":"SUM(Harmonogram[[#This Row],[P: Spawanie]:[P: Montaż]])","v":0},null,null,{"$f":"Harmonogram[[#This Row],[Realna data wydania]]+365","v":"1900-12-30"},null,{"$f":"IF(Harmonogram[[#This Row],[Realna data wydania]]=0,\"\",MONTH(Harmonogram[[#This Row],[Realna data wydania]]))","v":""},{"$f":"IF(AND(Harmonogram[[#This Row],[Realna data wydania]]>0,Harmonogram[[#This Row],[Realna data wydania]]<TODAY()),\"Wydany\",IF(Harmonogram[[#This Row],[Realna data skończenia]]>0,\"Zrobiony\",\"\"))","v":""}]
[null,null,null,null,null,{"$f":"Harmonogram[[#This Row],[Data przyjęcia ]]+30","v":"1900-01-30"},null,null,null,null,null,null,null,null,null,{"$f":"Harmonogram[[#This Row],[P: \nSzycie]]","v":0},null,null,null,null,null,null,null,null,null,{"$f":"SUM(Harmonogram[[#This Row],[P: Spawanie]:[P: Montaż]])","v":0},null,null,{"$f":"Harmonogram[[#This Row],[Realna data wydania]]+365","v":"1900-12-30"},null,{"$f":"IF(Harmonogram[[#This Row],[Realna data wydania]]=0,\"\",MONTH(Harmonogram[[#This Row],[Realna data wydania]]))","v":""},{"$f":"IF(AND(Harmonogram[[#This Row],[Realna data wydania]]>0,Harmonogram[[#This Row],[Realna data wydania]]<TODAY()),\"Wydany\",IF(Harmonogram[[#This Row],[Realna data skończenia]]>0,\"Zrobiony\",\"\"))","v":""}]
[null,null,null,null,null,{"$f":"Harmonogram[[#This Row],[Data przyjęcia ]]+30","v":"1900-01-30"},null,null,null,null,null,null,null,null,null,{"$f":"Harmonogram[[#This Row],[P: \nSzycie]]","v":0},null,null,null,null,null,null,null,null,null,{"$f":"SUM(Harmonogram[[#This Row],[P: Spawanie]:[P: Montaż]])","v":0},null,null,{"$f":"Harmonogram[[#This Row],[Realna data wydania]]+365","v":"1900-12-30"},null,{"$f":"IF(Harmonogram[[#This Row],[Realna data wydania]]=0,\"\",MONTH(Harmonogram[[#This Row],[Realna data wydania]]))","v":""},{"$f":"IF(AND(Harmonogram[[#This Row],[Realna data wydania]]>0,Harmonogram[[#This Row],[Realna data wydania]]<TODAY()),\"Wydany\",IF(Harmonogram[[#This Row],[Realna data skończenia]]>0,\"Zrobiony\",\"\"))","v":""}]
[null,null,null,null,null,{"$f":"Harmonogram[[#This Row],[Data przyjęcia ]]+30","v":"1900-01-30"},null,null,null,null,null,null,null,null,null,{"$f":"Harmonogram[[#This Row],[P: \nSzycie]]","v":0},null,null,null,null,null,null,null,null,null,{"$f":"SUM(Harmonogram[[#This Row],[P: Spawanie]:[P: Montaż]])","v":0},null,null,{"$f":"Harmonogram[[#This Row],[Realna data wydania]]+365","v":"1900-12-30"},null,{"$f":"IF(Harmonogram[[#This Row],[Realna data wydania]]=0,\"\",MONTH(Harmonogram[[#This Row],[Realna data wydania]]))","v":""},{"$f":"IF(AND(Harmonogram[[#This Row],[Realna data wydania]]>0,Harmonogram[[#This Row],[Realna data wydania]]<TODAY()),\"Wydany\",IF(Harmonogram[[#This Row],[Realna data skończenia]]>0,\"Zrobiony\",\"\"))","v":""}]
[null,null,null,null,null,{"$f":"Harmonogram[[#This Row],[Data przyjęcia ]]+30","v":"1900-01-30"},null,null,null,null,null,null,null,null,null,{"$f":"Harmonogram[[#This Row],[P: \nSzycie]]","v":0},null,null,null,null,null,null,null,null,null,{"$f":"SUM(Harmonogram[[#This Row],[P: Spawanie]:[P: Montaż]])","v":0},null,null,{"$f":"Harmonogram[[#This Row],[Realna data wydania]]+365","v":"1900-12-30"},null,{"$f":"IF(Harmonogram[[#This Row],[Realna data wydania]]=0,\"\",MONTH(Harmonogram[[#This Row],[Realna data wydania]]))","v":""},{"$f":"IF(AND(Harmonogram[[#This Row],[Realna data wydania]]>0,Harmonogram[[#This Row],[Realna data wydania]]<TODAY()),\"Wydany\",IF(Harmonogram[[#This Row],[Realna data skończenia]]>0,\"Zrobiony\",\"\"))","v":""}]
[null,null,null,null,null,{"$f":"Harmonogram[[#This Row],[Data przyjęcia ]]+30","v":"1900-01-30"},null,null,null,null,null,null,null,null,null,{"$f":"Harmonogram[[#This Row],[P: \nSzycie]]","v":0},null,null,null,null,null,null,null,null,null,{"$f":"SUM(Harmonogram[[#This Row],[P: Spawanie]:[P: Montaż]])","v":0},null,null,{"$f":"Harmonogram[[#This Row],[Realna data wydania]]+365","v":"1900-12-30"},null,{"$f":"IF(Harmonogram[[#This Row],[Realna data wydania]]=0,\"\",MONTH(Harmonogram[[#This Row],[Realna data wydania]]))","v":""},{"$f":"IF(AND(Harmonogram[[#This Row],[Realna data wydania]]>0,Harmonogram[[#This Row],[Realna data wydania]]<TODAY()),\"Wydany\",IF(Harmonogram[[#This Row],[Realna data skończenia]]>0,\"Zrobiony\",\"\"))","v":""}]
[null,null,null,null,null,{"$f":"Harmonogram[[#This Row],[Data przyjęcia ]]+30","v":"1900-01-30"},null,null,null,null,null,null,null,null,null,{"$f":"Harmonogram[[#This Row],[P: \nSzycie]]","v":0},null,null,null,null,null,null,null,null,null,{"$f":"SUM(Harmonogram[[#This Row],[P: Spawanie]:[P: Montaż]])","v":0},null,null,{"$f":"Harmonogram[[#This Row],[Realna data wydania]]+365","v":"1900-12-30"},null,{"$f":"IF(Harmonogram[[#This Row],[Realna data wydania]]=0,\"\",MONTH(Harmonogram[[#This Row],[Realna data wydania]]))","v":""},{"$f":"IF(AND(Harmonogram[[#This Row],[Realna data wydania]]>0,Harmonogram[[#This Row],[Realna data wydania]]<TODAY()),\"Wydany\",IF(Harmonogram[[#This Row],[Realna data skończenia]]>0,\"Zrobiony\",\"\"))","v":""}]
[null,null,null,null,null,{"$f":"Harmonogram[[#This Row],[Data przyjęcia ]]+30","v":"1900-01-30"},null,null,null,null,null,null,null,null,null,{"$f":"Harmonogram[[#This Row],[P: \nSzycie]]","v":0},null,null,null,null,null,null,null,null,null,{"$f":"SUM(Harmonogram[[#This Row],[P: Spawanie]:[P: Montaż]])","v":0},null,null,{"$f":"Harmonogram[[#This Row],[Realna data wydania]]+365","v":"1900-12-30"},null,{"$f":"IF(Harmonogram[[#This Row],[Realna data wydania]]=0,\"\",MONTH(Harmonogram[[#This Row],[Realna data wydania]]))","v":""},{"$f":"IF(AND(Harmonogram[[#This Row],[Realna data wydania]]>0,Harmonogram[[#This Row],[Realna data wydania]]<TODAY()),\"Wydany\",IF(Harmonogram[[#This Row],[Realna data skończenia]]>0,\"Zrobiony\",\"\"))","v":""}]
[null,null,null,null,null,{"$f":"Harmonogram[[#This Row],[Data przyjęcia ]]+30","v":"1900-01-30"},null,null,null,null,null,null,null,null,null,{"$f":"Harmonogram[[#This Row],[P: \nSzycie]]","v":0},null,null,null,null,null,null,null,null,null,{"$f":"SUM(Harmonogram[[#This Row],[P: Spawanie]:[P: Montaż]])","v":0},null,null,{"$f":"Harmonogram[[#This Row],[Realna data wydania]]+365","v":"1900-12-30"},null,{"$f":"IF(Harmonogram[[#This Row],[Realna data wydania]]=0,\"\",MONTH(Harmonogram[[#This Row],[Realna data wydania]]))","v":""},{"$f":"IF(AND(Harmonogram[[#This Row],[Realna data wydania]]>0,Harmonogram[[#This Row],[Realna data wydania]]<TODAY()),\"Wydany\",IF(Harmonogram[[#This Row],[Realna data skończenia]]>0,\"Zrobiony\",\"\"))","v":""}]
[null,null,null,null,null,{"$f":"Harmonogram[[#This Row],[Data przyjęcia ]]+30","v":"1900-01-30"},null,null,null,null,null,null,null,null,null,{"$f":"Harmonogram[[#This Row],[P: \nSzycie]]","v":0},null,null,null,null,null,null,null,null,null,{"$f":"SUM(Harmonogram[[#This Row],[P: Spawanie]:[P: Montaż]])","v":0},null,null,{"$f":"Harmonogram[[#This Row],[Realna data wydania]]+365","v":"1900-12-30"},null,{"$f":"IF(Harmonogram[[#This Row],[Realna data wydania]]=0,\"\",MONTH(Harmonogram[[#This Row],[Realna data wydania]]))","v":""},{"$f":"IF(AND(Harmonogram[[#This Row],[Realna data wydania]]>0,Harmonogram[[#This Row],[Realna data wydania]]<TODAY()),\"Wydany\",IF(Harmonogram[[#This Row],[Realna data skończenia]]>0,\"Zrobiony\",\"\"))","v":""}]
[null,null,null,null,null,{"$f":"Harmonogram[[#This Row],[Data przyjęcia ]]+30","v":"1900-01-30"},null,null,null,null,null,null,null,null,null,{"$f":"Harmonogram[[#This Row],[P: \nSzycie]]","v":0},null,null,null,null,null,null,null,null,null,{"$f":"SUM(Harmonogram[[#This Row],[P: Spawanie]:[P: Montaż]])","v":0},null,null,{"$f":"Harmonogram[[#This Row],[Realna data wydania]]+365","v":"1900-12-30"},null,{"$f":"IF(Harmonogram[[#This Row],[Realna data wydania]]=0,\"\",MONTH(Harmonogram[[#This Row],[Realna data wydania]]))","v":""},{"$f":"IF(AND(Harmonogram[[#This Row],[Realna data wydania]]>0,Harmonogram[[#This Row],[Realna data wydania]]<TODAY()),\"Wydany\",IF(Harmonogram[[#This Row],[Realna data skończenia]]>0,\"Zrobiony\",\"\"))","v":""}]
[null,null,null,null,null,{"$f":"Harmonogram[[#This Row],[Data przyjęcia ]]+30","v":"1900-01-30"},null,null,null,null,null,null,null,null,null,{"$f":"Harmonogram[[#This Row],[P: \nSzycie]]","v":0},null,null,null,null,null,null,null,null,null,{"$f":"SUM(Harmonogram[[#This Row],[P: Spawanie]:[P: Montaż]])","v":0},null,null,{"$f":"Harmonogram[[#This Row],[Realna data wydania]]+365","v":"1900-12-30"},null,{"$f":"IF(Harmonogram[[#This Row],[Realna data wydania]]=0,\"\",MONTH(Harmonogram[[#This Row],[Realna data wydania]]))","v":""},{"$f":"IF(AND(Harmonogram[[#This Row],[Realna data wydania]]>0,Harmonogram[[#This Row],[Realna data wydania]]<TODAY()),\"Wydany\",IF(Harmonogram[[#This Row],[Realna data skończenia]]>0,\"Zrobiony\",\"\"))","v":""}]
[null,null,null,null,null,{"$f":"Harmonogram[[#This Row],[Data przyjęcia ]]+30","v":"1900-01-30"},null,null,null,null,null,null,null,null,null,{"$f":"Harmonogram[[#This Row],[P: \nSzycie]]","v":0},null,null,null,null,null,null,null,null,null,{"$f":"SUM(Harmonogram[[#This Row],[P: Spawanie]:[P: Montaż]])","v":0},null,null,{"$f":"Harmonogram[[#This Row],[Realna data wydania]]+365","v":"1900-12-30"},null,{"$f":"IF(Harmonogram[[#This Row],[Realna data wydania]]=0,\"\",MONTH(Harmonogram[[#This Row],[Realna data wydania]]))","v":""},{"$f":"IF(AND(Harmonogram[[#This Row],[Realna data wydania]]>0,Harmonogram[[#This Row],[Realna data wydania]]<TODAY()),\"Wydany\",IF(Harmonogram[[#This Row],[Realna data skończenia]]>0,\"Zrobiony\",\"\"))","v":""}]
[null,null,null,null,null,{"$f":"Harmonogram[[#This Row],[Data przyjęcia ]]+30","v":"1900-01-30"},null,null,null,null,null,null,null,null,null,{"$f":"Harmonogram[[#This Row],[P: \nSzycie]]","v":0},null,null,null,null,null,null,null,null,null,{"$f":"SUM(Harmonogram[[#This Row],[P: Spawanie]:[P: Montaż]])","v":0},null,null,{"$f":"Harmonogram[[#This Row],[Realna data wydania]]+365","v":"1900-12-30"},null,{"$f":"IF(Harmonogram[[#This Row],[Realna data wydania]]=0,\"\",MONTH(Harmonogram[[#This Row],[Realna data wydania]]))","v":""},{"$f":"IF(AND(Harmonogram[[#This Row],[Realna data wydania]]>0,Harmonogram[[#This Row],[Realna data wydania]]<TODAY()),\"Wydany\",IF(Harmonogram[[#This Row],[Realna data skończenia]]>0,\"Zrobiony\",\"\"))","v":""}]
[null,null,null,null,null,{"$f":"Harmonogram[[#This Row],[Data przyjęcia ]]+30","v":"1900-01-30"},null,null,null,null,null,null,null,null,null,{"$f":"Harmonogram[[#This Row],[P: \nSzycie]]","v":0},null,null,null,null,null,null,null,null,null,{"$f":"SUM(Harmonogram[[#This Row],[P: Spawanie]:[P: Montaż]])","v":0},null,null,{"$f":"Harmonogram[[#This Row],[Realna data wydania]]+365","v":"1900-12-30"},null,{"$f":"IF(Harmonogram[[#This Row],[Realna data wydania]]=0,\"\",MONTH(Harmonogram[[#This Row],[Realna data wydania]]))","v":""},{"$f":"IF(AND(Harmonogram[[#This Row],[Realna data wydania]]>0,Harmonogram[[#This Row],[Realna data wydania]]<TODAY()),\"Wydany\",IF(Harmonogram[[#This Row],[Realna data skończenia]]>0,\"Zrobiony\",\"\"))","v":""}]
[null,null,null,null,null,{"$f":"Harmonogram[[#This Row],[Data przyjęcia ]]+30","v":"1900-01-30"},null,null,null,null,null,null,null,null,null,{"$f":"Harmonogram[[#This Row],[P: \nSzycie]]","v":0},null,null,null,null,null,null,null,null,null,{"$f":"SUM(Harmonogram[[#This Row],[P: Spawanie]:[P: Montaż]])","v":0},null,null,{"$f":"Harmonogram[[#This Row],[Realna data wydania]]+365","v":"1900-12-30"},null,{"$f":"IF(Harmonogram[[#This Row],[Realna data wydania]]=0,\"\",MONTH(Harmonogram[[#This Row],[Realna data wydania]]))","v":""},{"$f":"IF(AND(Harmonogram[[#This Row],[Realna data wydania]]>0,Harmonogram[[#This Row],[Realna data wydania]]<TODAY()),\"Wydany\",IF(Harmonogram[[#This Row],[Realna data skończenia]]>0,\"Zrobiony\",\"\"))","v":""}]
[null,null,null,null,null,{"$f":"Harmonogram[[#This Row],[Data przyjęcia ]]+30","v":"1900-01-30"},null,null,null,null,null,null,null,null,null,{"$f":"Harmonogram[[#This Row],[P: \nSzycie]]","v":0},null,null,null,null,null,null,null,null,null,{"$f":"SUM(Harmonogram[[#This Row],[P: Spawanie]:[P: Montaż]])","v":0},null,null,{"$f":"Harmonogram[[#This Row],[Realna data wydania]]+365","v":"1900-12-30"},null,{"$f":"IF(Harmonogram[[#This Row],[Realna data wydania]]=0,\"\",MONTH(Harmonogram[[#This Row],[Realna data wydania]]))","v":""},{"$f":"IF(AND(Harmonogram[[#This Row],[Realna data wydania]]>0,Harmonogram[[#This Row],[Realna data wydania]]<TODAY()),\"Wydany\",IF(Harmonogram[[#This Row],[Realna data skończenia]]>0,\"Zrobiony\",\"\"))","v":""}]
[null,null,null,null,null,{"$f":"Harmonogram[[#This Row],[Data przyjęcia ]]+30","v":"1900-01-30"},null,null,null,null,null,null,null,null,null,{"$f":"Harmonogram[[#This Row],[P: \nSzycie]]","v":0},null,null,null,null,null,null,null,null,null,{"$f":"SUM(Harmonogram[[#This Row],[P: Spawanie]:[P: Montaż]])","v":0},null,null,{"$f":"Harmonogram[[#This Row],[Realna data wydania]]+365","v":"1900-12-30"},null,{"$f":"IF(Harmonogram[[#This Row],[Realna data wydania]]=0,\"\",MONTH(Harmonogram[[#This Row],[Realna data wydania]]))","v":""},{"$f":"IF(AND(Harmonogram[[#This Row],[Realna data wydania]]>0,Harmonogram[[#This Row],[Realna data wydania]]<TODAY()),\"Wydany\",IF(Harmonogram[[#This Row],[Realna data skończenia]]>0,\"Zrobiony\",\"\"))","v":""}]
[null,null,null,null,null,{"$f":"Harmonogram[[#This Row],[Data przyjęcia ]]+30","v":"1900-01-30"},null,null,null,null,null,null,null,null,null,{"$f":"Harmonogram[[#This Row],[P: \nSzycie]]","v":0},null,null,null,null,null,null,null,null,null,{"$f":"SUM(Harmonogram[[#This Row],[P: Spawanie]:[P: Montaż]])","v":0},null,null,{"$f":"Harmonogram[[#This Row],[Realna data wydania]]+365","v":"1900-12-30"},null,{"$f":"IF(Harmonogram[[#This Row],[Realna data wydania]]=0,\"\",MONTH(Harmonogram[[#This Row],[Realna data wydania]]))","v":""},{"$f":"IF(AND(Harmonogram[[#This Row],[Realna data wydania]]>0,Harmonogram[[#This Row],[Realna data wydania]]<TODAY()),\"Wydany\",IF(Harmonogram[[#This Row],[Realna data skończenia]]>0,\"Zrobiony\",\"\"))","v":""}]
[null,null,null,null,null,{"$f":"Harmonogram[[#This Row],[Data przyjęcia ]]+30","v":"1900-01-30"},null,null,null,null,null,null,null,null,null,{"$f":"Harmonogram[[#This Row],[P: \nSzycie]]","v":0},null,null,null,null,null,null,null,null,null,{"$f":"SUM(Harmonogram[[#This Row],[P: Spawanie]:[P: Montaż]])","v":0},null,null,{"$f":"Harmonogram[[#This Row],[Realna data wydania]]+365","v":"1900-12-30"},null,{"$f":"IF(Harmonogram[[#This Row],[Realna data wydania]]=0,\"\",MONTH(Harmonogram[[#This Row],[Realna data wydania]]))","v":""},{"$f":"IF(AND(Harmonogram[[#This Row],[Realna data wydania]]>0,Harmonogram[[#This Row],[Realna data wydania]]<TODAY()),\"Wydany\",IF(Harmonogram[[#This Row],[Realna data skończenia]]>0,\"Zrobiony\",\"\"))","v":""}]
[null,null,null,null,null,{"$f":"Harmonogram[[#This Row],[Data przyjęcia ]]+30","v":"1900-01-30"},null,null,null,null,null,null,null,null,null,{"$f":"Harmonogram[[#This Row],[P: \nSzycie]]","v":0},null,null,null,null,null,null,null,null,null,{"$f":"SUM(Harmonogram[[#This Row],[P: Spawanie]:[P: Montaż]])","v":0},null,null,{"$f":"Harmonogram[[#This Row],[Realna data wydania]]+365","v":"1900-12-30"},null,{"$f":"IF(Harmonogram[[#This Row],[Realna data wydania]]=0,\"\",MONTH(Harmonogram[[#This Row],[Realna data wydania]]))","v":""},{"$f":"IF(AND(Harmonogram[[#This Row],[Realna data wydania]]>0,Harmonogram[[#This Row],[Realna data wydania]]<TODAY()),\"Wydany\",IF(Harmonogram[[#This Row],[Realna data skończenia]]>0,\"Zrobiony\",\"\"))","v":""}]
[null,null,null,null,null,{"$f":"Harmonogram[[#This Row],[Data przyjęcia ]]+30","v":"1900-01-30"},null,null,null,null,null,null,null,null,null,{"$f":"Harmonogram[[#This Row],[P: \nSzycie]]","v":0},null,null,null,null,null,null,null,null,null,{"$f":"SUM(Harmonogram[[#This Row],[P: Spawanie]:[P: Montaż]])","v":0},null,null,{"$f":"Harmonogram[[#This Row],[Realna data wydania]]+365","v":"1900-12-30"},null,{"$f":"IF(Harmonogram[[#This Row],[Realna data wydania]]=0,\"\",MONTH(Harmonogram[[#This Row],[Realna data wydania]]))","v":""},{"$f":"IF(AND(Harmonogram[[#This Row],[Realna data wydania]]>0,Harmonogram[[#This Row],[Realna data wydania]]<TODAY()),\"Wydany\",IF(Harmonogram[[#This Row],[Realna data skończenia]]>0,\"Zrobiony\",\"\"))","v":""}]
[null,null,null,null,null,{"$f":"Harmonogram[[#This Row],[Data przyjęcia ]]+30","v":"1900-01-30"},null,null,null,null,null,null,null,null,null,{"$f":"Harmonogram[[#This Row],[P: \nSzycie]]","v":0},null,null,null,null,null,null,null,null,null,{"$f":"SUM(Harmonogram[[#This Row],[P: Spawanie]:[P: Montaż]])","v":0},null,null,{"$f":"Harmonogram[[#This Row],[Realna data wydania]]+365","v":"1900-12-30"},null,{"$f":"IF(Harmonogram[[#This Row],[Realna data wydania]]=0,\"\",MONTH(Harmonogram[[#This Row],[Realna data wydania]]))","v":""},{"$f":"IF(AND(Harmonogram[[#This Row],[Realna data wydania]]>0,Harmonogram[[#This Row],[Realna data wydania]]<TODAY()),\"Wydany\",IF(Harmonogram[[#This Row],[Realna data skończenia]]>0,\"Zrobiony\",\"\"))","v":""}]
[null,null,null,null,null,{"$f":"Harmonogram[[#This Row],[Data przyjęcia ]]+30","v":"1900-01-30"},null,null,null,null,null,null,null,null,null,{"$f":"Harmonogram[[#This Row],[P: \nSzycie]]","v":0},null,null,null,null,null,null,null,null,null,{"$f":"SUM(Harmonogram[[#This Row],[P: Spawanie]:[P: Montaż]])","v":0},null,null,{"$f":"Harmonogram[[#This Row],[Realna data wydania]]+365","v":"1900-12-30"},null,{"$f":"IF(Harmonogram[[#This Row],[Realna data wydania]]=0,\"\",MONTH(Harmonogram[[#This Row],[Realna data wydania]]))","v":""},{"$f":"IF(AND(Harmonogram[[#This Row],[Realna data wydania]]>0,Harmonogram[[#This Row],[Realna data wydania]]<TODAY()),\"Wydany\",IF(Harmonogram[[#This Row],[Realna data skończenia]]>0,\"Zrobiony\",\"\"))","v":""}]
[null,null,null,null,null,{"$f":"Harmonogram[[#This Row],[Data przyjęcia ]]+30","v":"1900-01-30"},null,null,null,null,null,null,null,null,null,{"$f":"Harmonogram[[#This Row],[P: \nSzycie]]","v":0},null,null,null,null,null,null,null,null,null,{"$f":"SUM(Harmonogram[[#This Row],[P: Spawanie]:[P: Montaż]])","v":0},null,null,{"$f":"Harmonogram[[#This Row],[Realna data wydania]]+365","v":"1900-12-30"},null,{"$f":"IF(Harmonogram[[#This Row],[Realna data wydania]]=0,\"\",MONTH(Harmonogram[[#This Row],[Realna data wydania]]))","v":""},{"$f":"IF(AND(Harmonogram[[#This Row],[Realna data wydania]]>0,Harmonogram[[#This Row],[Realna data wydania]]<TODAY()),\"Wydany\",IF(Harmonogram[[#This Row],[Realna data skończenia]]>0,\"Zrobiony\",\"\"))","v":""}]
[null,null,null,null,null,{"$f":"Harmonogram[[#This Row],[Data przyjęcia ]]+30","v":"1900-01-30"},null,null,null,null,null,null,null,null,null,{"$f":"Harmonogram[[#This Row],[P: \nSzycie]]","v":0},null,null,null,null,null,null,null,null,null,{"$f":"SUM(Harmonogram[[#This Row],[P: Spawanie]:[P: Montaż]])","v":0},null,null,{"$f":"Harmonogram[[#This Row],[Realna data wydania]]+365","v":"1900-12-30"},null,{"$f":"IF(Harmonogram[[#This Row],[Realna data wydania]]=0,\"\",MONTH(Harmonogram[[#This Row],[Realna data wydania]]))","v":""},{"$f":"IF(AND(Harmonogram[[#This Row],[Realna data wydania]]>0,Harmonogram[[#This Row],[Realna data wydania]]<TODAY()),\"Wydany\",IF(Harmonogram[[#This Row],[Realna data skończenia]]>0,\"Zrobiony\",\"\"))","v":""}]
[null,null,null,null,null,{"$f":"Harmonogram[[#This Row],[Data przyjęcia ]]+30","v":"1900-01-30"},null,null,null,null,null,null,null,null,null,{"$f":"Harmonogram[[#This Row],[P: \nSzycie]]","v":0},null,null,null,null,null,null,null,null,null,{"$f":"SUM(Harmonogram[[#This Row],[P: Spawanie]:[P: Montaż]])","v":0},null,null,{"$f":"Harmonogram[[#This Row],[Realna data wydania]]+365","v":"1900-12-30"},null,{"$f":"IF(Harmonogram[[#This Row],[Realna data wydania]]=0,\"\",MONTH(Harmonogram[[#This Row],[Realna data wydania]]))","v":""},{"$f":"IF(AND(Harmonogram[[#This Row],[Realna data wydania]]>0,Harmonogram[[#This Row],[Realna data wydania]]<TODAY()),\"Wydany\",IF(Harmonogram[[#This Row],[Realna data skończenia]]>0,\"Zrobiony\",\"\"))","v":""}]
[null,null,null,null,null,{"$f":"Harmonogram[[#This Row],[Data przyjęcia ]]+30","v":"1900-01-30"},null,null,null,null,null,null,null,null,null,{"$f":"Harmonogram[[#This Row],[P: \nSzycie]]","v":0},null,null,null,null,null,null,null,null,null,{"$f":"SUM(Harmonogram[[#This Row],[P: Spawanie]:[P: Montaż]])","v":0},null,null,{"$f":"Harmonogram[[#This Row],[Realna data wydania]]+365","v":"1900-12-30"},null,{"$f":"IF(Harmonogram[[#This Row],[Realna data wydania]]=0,\"\",MONTH(Harmonogram[[#This Row],[Realna data wydania]]))","v":""},{"$f":"IF(AND(Harmonogram[[#This Row],[Realna data wydania]]>0,Harmonogram[[#This Row],[Realna data wydania]]<TODAY()),\"Wydany\",IF(Harmonogram[[#This Row],[Realna data skończenia]]>0,\"Zrobiony\",\"\"))","v":""}]
[null,null,null,null,null,{"$f":"Harmonogram[[#This Row],[Data przyjęcia ]]+30","v":"1900-01-30"},null,null,null,null,null,null,null,null,null,{"$f":"Harmonogram[[#This Row],[P: \nSzycie]]","v":0},null,null,null,null,null,null,null,null,null,{"$f":"SUM(Harmonogram[[#This Row],[P: Spawanie]:[P: Montaż]])","v":0},null,null,{"$f":"Harmonogram[[#This Row],[Realna data wydania]]+365","v":"1900-12-30"},null,{"$f":"IF(Harmonogram[[#This Row],[Realna data wydania]]=0,\"\",MONTH(Harmonogram[[#This Row],[Realna data wydania]]))","v":""},{"$f":"IF(AND(Harmonogram[[#This Row],[Realna data wydania]]>0,Harmonogram[[#This Row],[Realna data wydania]]<TODAY()),\"Wydany\",IF(Harmonogram[[#This Row],[Realna data skończenia]]>0,\"Zrobiony\",\"\"))","v":""}]
[null,null,null,null,null,{"$f":"Harmonogram[[#This Row],[Data przyjęcia ]]+30","v":"1900-01-30"},null,null,null,null,null,null,null,null,null,{"$f":"Harmonogram[[#This Row],[P: \nSzycie]]","v":0},null,null,null,null,null,null,null,null,null,{"$f":"SUM(Harmonogram[[#This Row],[P: Spawanie]:[P: Montaż]])","v":0},null,null,{"$f":"Harmonogram[[#This Row],[Realna data wydania]]+365","v":"1900-12-30"},null,{"$f":"IF(Harmonogram[[#This Row],[Realna data wydania]]=0,\"\",MONTH(Harmonogram[[#This Row],[Realna data wydania]]))","v":""},{"$f":"IF(AND(Harmonogram[[#This Row],[Realna data wydania]]>0,Harmonogram[[#This Row],[Realna data wydania]]<TODAY()),\"Wydany\",IF(Harmonogram[[#This Row],[Realna data skończenia]]>0,\"Zrobiony\",\"\"))","v":""}]
[null,null,null,null,null,{"$f":"Harmonogram[[#This Row],[Data przyjęcia ]]+30","v":"1900-01-30"},null,null,null,null,null,null,null,null,null,{"$f":"Harmonogram[[#This Row],[P: \nSzycie]]","v":0},null,null,null,null,null,null,null,null,null,{"$f":"SUM(Harmonogram[[#This Row],[P: Spawanie]:[P: Montaż]])","v":0},null,null,{"$f":"Harmonogram[[#This Row],[Realna data wydania]]+365","v":"1900-12-30"},null,{"$f":"IF(Harmonogram[[#This Row],[Realna data wydania]]=0,\"\",MONTH(Harmonogram[[#This Row],[Realna data wydania]]))","v":""},{"$f":"IF(AND(Harmonogram[[#This Row],[Realna data wydania]]>0,Harmonogram[[#This Row],[Realna data wydania]]<TODAY()),\"Wydany\",IF(Harmonogram[[#This Row],[Realna data skończenia]]>0,\"Zrobiony\",\"\"))","v":""}]
[null,null,null,null,null,{"$f":"Harmonogram[[#This Row],[Data przyjęcia ]]+30","v":"1900-01-30"},null,null,null,null,null,null,null,null,null,{"$f":"Harmonogram[[#This Row],[P: \nSzycie]]","v":0},null,null,null,null,null,null,null,null,null,{"$f":"SUM(Harmonogram[[#This Row],[P: Spawanie]:[P: Montaż]])","v":0},null,null,{"$f":"Harmonogram[[#This Row],[Realna data wydania]]+365","v":"1900-12-30"},null,{"$f":"IF(Harmonogram[[#This Row],[Realna data wydania]]=0,\"\",MONTH(Harmonogram[[#This Row],[Realna data wydania]]))","v":""},{"$f":"IF(AND(Harmonogram[[#This Row],[Realna data wydania]]>0,Harmonogram[[#This Row],[Realna data wydania]]<TODAY()),\"Wydany\",IF(Harmonogram[[#This Row],[Realna data skończenia]]>0,\"Zrobiony\",\"\"))","v":""}]
[null,null,null,null,null,{"$f":"Harmonogram[[#This Row],[Data przyjęcia ]]+30","v":"1900-01-30"},null,null,null,null,null,null,null,null,null,{"$f":"Harmonogram[[#This Row],[P: \nSzycie]]","v":0},null,null,null,null,null,null,null,null,null,{"$f":"SUM(Harmonogram[[#This Row],[P: Spawanie]:[P: Montaż]])","v":0},null,null,{"$f":"Harmonogram[[#This Row],[Realna data wydania]]+365","v":"1900-12-30"},null,{"$f":"IF(Harmonogram[[#This Row],[Realna data wydania]]=0,\"\",MONTH(Harmonogram[[#This Row],[Realna data wydania]]))","v":""},{"$f":"IF(AND(Harmonogram[[#This Row],[Realna data wydania]]>0,Harmonogram[[#This Row],[Realna data wydania]]<TODAY()),\"Wydany\",IF(Harmonogram[[#This Row],[Realna data skończenia]]>0,\"Zrobiony\",\"\"))","v":""}]
[null,null,null,null,null,{"$f":"Harmonogram[[#This Row],[Data przyjęcia ]]+30","v":"1900-01-30"},null,null,null,null,null,null,null,null,null,{"$f":"Harmonogram[[#This Row],[P: \nSzycie]]","v":0},null,null,null,null,null,null,null,null,null,{"$f":"SUM(Harmonogram[[#This Row],[P: Spawanie]:[P: Montaż]])","v":0},null,null,{"$f":"Harmonogram[[#This Row],[Realna data wydania]]+365","v":"1900-12-30"},null,{"$f":"IF(Harmonogram[[#This Row],[Realna data wydania]]=0,\"\",MONTH(Harmonogram[[#This Row],[Realna data wydania]]))","v":""},{"$f":"IF(AND(Harmonogram[[#This Row],[Realna data wydania]]>0,Harmonogram[[#This Row],[Realna data wydania]]<TODAY()),\"Wydany\",IF(Harmonogram[[#This Row],[Realna data skończenia]]>0,\"Zrobiony\",\"\"))","v":""}]
[null,null,null,null,null,{"$f":"Harmonogram[[#This Row],[Data przyjęcia ]]+30","v":"1900-01-30"},null,null,null,null,null,null,null,null,null,{"$f":"Harmonogram[[#This Row],[P: \nSzycie]]","v":0},null,null,null,null,null,null,null,null,null,{"$f":"SUM(Harmonogram[[#This Row],[P: Spawanie]:[P: Montaż]])","v":0},null,null,{"$f":"Harmonogram[[#This Row],[Realna data wydania]]+365","v":"1900-12-30"},null,{"$f":"IF(Harmonogram[[#This Row],[Realna data wydania]]=0,\"\",MONTH(Harmonogram[[#This Row],[Realna data wydania]]))","v":""},{"$f":"IF(AND(Harmonogram[[#This Row],[Realna data wydania]]>0,Harmonogram[[#This Row],[Realna data wydania]]<TODAY()),\"Wydany\",IF(Harmonogram[[#This Row],[Realna data skończenia]]>0,\"Zrobiony\",\"\"))","v":""}]
[null,null,null,null,null,{"$f":"Harmonogram[[#This Row],[Data przyjęcia ]]+30","v":"1900-01-30"},null,null,null,null,null,null,null,null,null,{"$f":"Harmonogram[[#This Row],[P: \nSzycie]]","v":0},null,null,null,null,null,null,null,null,null,{"$f":"SUM(Harmonogram[[#This Row],[P: Spawanie]:[P: Montaż]])","v":0},null,null,{"$f":"Harmonogram[[#This Row],[Realna data wydania]]+365","v":"1900-12-30"},null,{"$f":"IF(Harmonogram[[#This Row],[Realna data wydania]]=0,\"\",MONTH(Harmonogram[[#This Row],[Realna data wydania]]))","v":""},{"$f":"IF(AND(Harmonogram[[#This Row],[Realna data wydania]]>0,Harmonogram[[#This Row],[Realna data wydania]]<TODAY()),\"Wydany\",IF(Harmonogram[[#This Row],[Realna data skończenia]]>0,\"Zrobiony\",\"\"))","v":""}]
[null,null,null,null,null,{"$f":"Harmonogram[[#This Row],[Data przyjęcia ]]+30","v":"1900-01-30"},null,null,null,null,null,null,null,null,null,{"$f":"Harmonogram[[#This Row],[P: \nSzycie]]","v":0},null,null,null,null,null,null,null,null,null,{"$f":"SUM(Harmonogram[[#This Row],[P: Spawanie]:[P: Montaż]])","v":0},null,null,{"$f":"Harmonogram[[#This Row],[Realna data wydania]]+365","v":"1900-12-30"},null,{"$f":"IF(Harmonogram[[#This Row],[Realna data wydania]]=0,\"\",MONTH(Harmonogram[[#This Row],[Realna data wydania]]))","v":""},{"$f":"IF(AND(Harmonogram[[#This Row],[Realna data wydania]]>0,Harmonogram[[#This Row],[Realna data wydania]]<TODAY()),\"Wydany\",IF(Harmonogram[[#This Row],[Realna data skończenia]]>0,\"Zrobiony\",\"\"))","v":""}]
[null,null,null,null,null,{"$f":"Harmonogram[[#This Row],[Data przyjęcia ]]+30","v":"1900-01-30"},null,null,null,null,null,null,null,null,null,{"$f":"Harmonogram[[#This Row],[P: \nSzycie]]","v":0},null,null,null,null,null,null,null,null,null,{"$f":"SUM(Harmonogram[[#This Row],[P: Spawanie]:[P: Montaż]])","v":0},null,null,{"$f":"Harmonogram[[#This Row],[Realna data wydania]]+365","v":"1900-12-30"},null,{"$f":"IF(Harmonogram[[#This Row],[Realna data wydania]]=0,\"\",MONTH(Harmonogram[[#This Row],[Realna data wydania]]))","v":""},{"$f":"IF(AND(Harmonogram[[#This Row],[Realna data wydania]]>0,Harmonogram[[#This Row],[Realna data wydania]]<TODAY()),\"Wydany\",IF(Harmonogram[[#This Row],[Realna data skończenia]]>0,\"Zrobiony\",\"\"))","v":""}]
[null,null,null,null,null,{"$f":"Harmonogram[[#This Row],[Data przyjęcia ]]+30","v":"1900-01-30"},null,null,null,null,null,null,null,null,null,{"$f":"Harmonogram[[#This Row],[P: \nSzycie]]","v":0},null,null,null,null,null,null,null,null,null,{"$f":"SUM(Harmonogram[[#This Row],[P: Spawanie]:[P: Montaż]])","v":0},null,null,{"$f":"Harmonogram[[#This Row],[Realna data wydania]]+365","v":"1900-12-30"},null,{"$f":"IF(Harmonogram[[#This Row],[Realna data wydania]]=0,\"\",MONTH(Harmonogram[[#This Row],[Realna data wydania]]))","v":""},{"$f":"IF(AND(Harmonogram[[#This Row],[Realna data wydania]]>0,Harmonogram[[#This Row],[Realna data wydania]]<TODAY()),\"Wydany\",IF(Harmonogram[[#This Row],[Realna data skończenia]]>0,\"Zrobiony\",\"\"))","v":""}]
[null,null,null,null,null,{"$f":"Harmonogram[[#This Row],[Data przyjęcia ]]+30","v":"1900-01-30"},null,null,null,null,null,null,null,null,null,{"$f":"Harmonogram[[#This Row],[P: \nSzycie]]","v":0},null,null,null,null,null,null,null,null,null,{"$f":"SUM(Harmonogram[[#This Row],[P: Spawanie]:[P: Montaż]])","v":0},null,null,{"$f":"Harmonogram[[#This Row],[Realna data wydania]]+365","v":"1900-12-30"},null,{"$f":"IF(Harmonogram[[#This Row],[Realna data wydania]]=0,\"\",MONTH(Harmonogram[[#This Row],[Realna data wydania]]))","v":""},{"$f":"IF(AND(Harmonogram[[#This Row],[Realna data wydania]]>0,Harmonogram[[#This Row],[Realna data wydania]]<TODAY()),\"Wydany\",IF(Harmonogram[[#This Row],[Realna data skończenia]]>0,\"Zrobiony\",\"\"))","v":""}]
[null,null,null,null,null,{"$f":"Harmonogram[[#This Row],[Data przyjęcia ]]+30","v":"1900-01-30"},null,null,null,null,null,null,null,null,null,{"$f":"Harmonogram[[#This Row],[P: \nSzycie]]","v":0},null,null,null,null,null,null,null,null,null,{"$f":"SUM(Harmonogram[[#This Row],[P: Spawanie]:[P: Montaż]])","v":0},null,null,{"$f":"Harmonogram[[#This Row],[Realna data wydania]]+365","v":"1900-12-30"},null,{"$f":"IF(Harmonogram[[#This Row],[Realna data wydania]]=0,\"\",MONTH(Harmonogram[[#This Row],[Realna data wydania]]))","v":""},{"$f":"IF(AND(Harmonogram[[#This Row],[Realna data wydania]]>0,Harmonogram[[#This Row],[Realna data wydania]]<TODAY()),\"Wydany\",IF(Harmonogram[[#This Row],[Realna data skończenia]]>0,\"Zrobiony\",\"\"))","v":""}]
[null,null,null,null,null,{"$f":"Harmonogram[[#This Row],[Data przyjęcia ]]+30","v":"1900-01-30"},null,null,null,null,null,null,null,null,null,{"$f":"Harmonogram[[#This Row],[P: \nSzycie]]","v":0},null,null,null,null,null,null,null,null,null,{"$f":"SUM(Harmonogram[[#This Row],[P: Spawanie]:[P: Montaż]])","v":0},null,null,{"$f":"Harmonogram[[#This Row],[Realna data wydania]]+365","v":"1900-12-30"},null,{"$f":"IF(Harmonogram[[#This Row],[Realna data wydania]]=0,\"\",MONTH(Harmonogram[[#This Row],[Realna data wydania]]))","v":""},{"$f":"IF(AND(Harmonogram[[#This Row],[Realna data wydania]]>0,Harmonogram[[#This Row],[Realna data wydania]]<TODAY()),\"Wydany\",IF(Harmonogram[[#This Row],[Realna data skończenia]]>0,\"Zrobiony\",\"\"))","v":""}]
[null,null,null,null,null,{"$f":"Harmonogram[[#This Row],[Data przyjęcia ]]+30","v":"1900-01-30"},null,null,null,null,null,null,null,null,null,{"$f":"Harmonogram[[#This Row],[P: \nSzycie]]","v":0},null,null,null,null,null,null,null,null,null,{"$f":"SUM(Harmonogram[[#This Row],[P: Spawanie]:[P: Montaż]])","v":0},null,null,{"$f":"Harmonogram[[#This Row],[Realna data wydania]]+365","v":"1900-12-30"},null,{"$f":"IF(Harmonogram[[#This Row],[Realna data wydania]]=0,\"\",MONTH(Harmonogram[[#This Row],[Realna data wydania]]))","v":""},{"$f":"IF(AND(Harmonogram[[#This Row],[Realna data wydania]]>0,Harmonogram[[#This Row],[Realna data wydania]]<TODAY()),\"Wydany\",IF(Harmonogram[[#This Row],[Realna data skończenia]]>0,\"Zrobiony\",\"\"))","v":""}]
[null,null,null,null,null,{"$f":"Harmonogram[[#This Row],[Data przyjęcia ]]+30","v":"1900-01-30"},null,null,null,null,null,null,null,null,null,{"$f":"Harmonogram[[#This Row],[P: \nSzycie]]","v":0},null,null,null,null,null,null,null,null,null,{"$f":"SUM(Harmonogram[[#This Row],[P: Spawanie]:[P: Montaż]])","v":0},null,null,{"$f":"Harmonogram[[#This Row],[Realna data wydania]]+365","v":"1900-12-30"},null,{"$f":"IF(Harmonogram[[#This Row],[Realna data wydania]]=0,\"\",MONTH(Harmonogram[[#This Row],[Realna data wydania]]))","v":""},{"$f":"IF(AND(Harmonogram[[#This Row],[Realna data wydania]]>0,Harmonogram[[#This Row],[Realna data wydania]]<TODAY()),\"Wydany\",IF(Harmonogram[[#This Row],[Realna data skończenia]]>0,\"Zrobiony\",\"\"))","v":""}]
[null,null,null,null,null,{"$f":"Harmonogram[[#This Row],[Data przyjęcia ]]+30","v":"1900-01-30"},null,null,null,null,null,null,null,null,null,{"$f":"Harmonogram[[#This Row],[P: \nSzycie]]","v":0},null,null,null,null,null,null,null,null,null,{"$f":"SUM(Harmonogram[[#This Row],[P: Spawanie]:[P: Montaż]])","v":0},null,null,{"$f":"Harmonogram[[#This Row],[Realna data wydania]]+365","v":"1900-12-30"},null,{"$f":"IF(Harmonogram[[#This Row],[Realna data wydania]]=0,\"\",MONTH(Harmonogram[[#This Row],[Realna data wydania]]))","v":""},{"$f":"IF(AND(Harmonogram[[#This Row],[Realna data wydania]]>0,Harmonogram[[#This Row],[Realna data wydania]]<TODAY()),\"Wydany\",IF(Harmonogram[[#This Row],[Realna data skończenia]]>0,\"Zrobiony\",\"\"))","v":""}]
[null,null,null,null,null,{"$f":"Harmonogram[[#This Row],[Data przyjęcia ]]+30","v":"1900-01-30"},null,null,null,null,null,null,null,null,null,{"$f":"Harmonogram[[#This Row],[P: \nSzycie]]","v":0},null,null,null,null,null,null,null,null,null,{"$f":"SUM(Harmonogram[[#This Row],[P: Spawanie]:[P: Montaż]])","v":0},null,null,{"$f":"Harmonogram[[#This Row],[Realna data wydania]]+365","v":"1900-12-30"},null,{"$f":"IF(Harmonogram[[#This Row],[Realna data wydania]]=0,\"\",MONTH(Harmonogram[[#This Row],[Realna data wydania]]))","v":""},{"$f":"IF(AND(Harmonogram[[#This Row],[Realna data wydania]]>0,Harmonogram[[#This Row],[Realna data wydania]]<TODAY()),\"Wydany\",IF(Harmonogram[[#This Row],[Realna data skończenia]]>0,\"Zrobiony\",\"\"))","v":""}]
[null,null,null,null,null,{"$f":"Harmonogram[[#This Row],[Data przyjęcia ]]+30","v":"1900-01-30"},null,null,null,null,null,null,null,null,null,{"$f":"Harmonogram[[#This Row],[P: \nSzycie]]","v":0},null,null,null,null,null,null,null,null,null,{"$f":"SUM(Harmonogram[[#This Row],[P: Spawanie]:[P: Montaż]])","v":0},null,null,{"$f":"Harmonogram[[#This Row],[Realna data wydania]]+365","v":"1900-12-30"},null,{"$f":"IF(Harmonogram[[#This Row],[Realna data wydania]]=0,\"\",MONTH(Harmonogram[[#This Row],[Realna data wydania]]))","v":""},{"$f":"IF(AND(Harmonogram[[#This Row],[Realna data wydania]]>0,Harmonogram[[#This Row],[Realna data wydania]]<TODAY()),\"Wydany\",IF(Harmonogram[[#This Row],[Realna data skończenia]]>0,\"Zrobiony\",\"\"))","v":""}]
[null,null,null,null,null,{"$f":"Harmonogram[[#This Row],[Data przyjęcia ]]+30","v":"1900-01-30"},null,null,null,null,null,null,null,null,null,{"$f":"Harmonogram[[#This Row],[P: \nSzycie]]","v":0},null,null,null,null,null,null,null,null,null,{"$f":"SUM(Harmonogram[[#This Row],[P: Spawanie]:[P: Montaż]])","v":0},null,null,{"$f":"Harmonogram[[#This Row],[Realna data wydania]]+365","v":"1900-12-30"},null,{"$f":"IF(Harmonogram[[#This Row],[Realna data wydania]]=0,\"\",MONTH(Harmonogram[[#This Row],[Realna data wydania]]))","v":""},{"$f":"IF(AND(Harmonogram[[#This Row],[Realna data wydania]]>0,Harmonogram[[#This Row],[Realna data wydania]]<TODAY()),\"Wydany\",IF(Harmonogram[[#This Row],[Realna data skończenia]]>0,\"Zrobiony\",\"\"))","v":""}]
[null,null,null,null,null,{"$f":"Harmonogram[[#This Row],[Data przyjęcia ]]+30","v":"1900-01-30"},null,null,null,null,null,null,null,null,null,{"$f":"Harmonogram[[#This Row],[P: \nSzycie]]","v":0},null,null,null,null,null,null,null,null,null,{"$f":"SUM(Harmonogram[[#This Row],[P: Spawanie]:[P: Montaż]])","v":0},null,null,{"$f":"Harmonogram[[#This Row],[Realna data wydania]]+365","v":"1900-12-30"},null,{"$f":"IF(Harmonogram[[#This Row],[Realna data wydania]]=0,\"\",MONTH(Harmonogram[[#This Row],[Realna data wydania]]))","v":""},{"$f":"IF(AND(Harmonogram[[#This Row],[Realna data wydania]]>0,Harmonogram[[#This Row],[Realna data wydania]]<TODAY()),\"Wydany\",IF(Harmonogram[[#This Row],[Realna data skończenia]]>0,\"Zrobiony\",\"\"))","v":""}]
[null,null,null,null,null,{"$f":"Harmonogram[[#This Row],[Data przyjęcia ]]+30","v":"1900-01-30"},null,null,null,null,null,null,null,null,null,{"$f":"Harmonogram[[#This Row],[P: \nSzycie]]","v":0},null,null,null,null,null,null,null,null,null,{"$f":"SUM(Harmonogram[[#This Row],[P: Spawanie]:[P: Montaż]])","v":0},null,null,{"$f":"Harmonogram[[#This Row],[Realna data wydania]]+365","v":"1900-12-30"},null,{"$f":"IF(Harmonogram[[#This Row],[Realna data wydania]]=0,\"\",MONTH(Harmonogram[[#This Row],[Realna data wydania]]))","v":""},{"$f":"IF(AND(Harmonogram[[#This Row],[Realna data wydania]]>0,Harmonogram[[#This Row],[Realna data wydania]]<TODAY()),\"Wydany\",IF(Harmonogram[[#This Row],[Realna data skończenia]]>0,\"Zrobiony\",\"\"))","v":""}]
[null,null,null,null,null,{"$f":"Harmonogram[[#This Row],[Data przyjęcia ]]+30","v":"1900-01-30"},null,null,null,null,null,null,null,null,null,{"$f":"Harmonogram[[#This Row],[P: \nSzycie]]","v":0},null,null,null,null,null,null,null,null,null,{"$f":"SUM(Harmonogram[[#This Row],[P: Spawanie]:[P: Montaż]])","v":0},null,null,{"$f":"Harmonogram[[#This Row],[Realna data wydania]]+365","v":"1900-12-30"},null,{"$f":"IF(Harmonogram[[#This Row],[Realna data wydania]]=0,\"\",MONTH(Harmonogram[[#This Row],[Realna data wydania]]))","v":""},{"$f":"IF(AND(Harmonogram[[#This Row],[Realna data wydania]]>0,Harmonogram[[#This Row],[Realna data wydania]]<TODAY()),\"Wydany\",IF(Harmonogram[[#This Row],[Realna data skończenia]]>0,\"Zrobiony\",\"\"))","v":""}]
[null,null,null,null,null,{"$f":"Harmonogram[[#This Row],[Data przyjęcia ]]+30","v":"1900-01-30"},null,null,null,null,null,null,null,null,null,{"$f":"Harmonogram[[#This Row],[P: \nSzycie]]","v":0},null,null,null,null,null,null,null,null,null,{"$f":"SUM(Harmonogram[[#This Row],[P: Spawanie]:[P: Montaż]])","v":0},null,null,{"$f":"Harmonogram[[#This Row],[Realna data wydania]]+365","v":"1900-12-30"},null,{"$f":"IF(Harmonogram[[#This Row],[Realna data wydania]]=0,\"\",MONTH(Harmonogram[[#This Row],[Realna data wydania]]))","v":""},{"$f":"IF(AND(Harmonogram[[#This Row],[Realna data wydania]]>0,Harmonogram[[#This Row],[Realna data wydania]]<TODAY()),\"Wydany\",IF(Harmonogram[[#This Row],[Realna data skończenia]]>0,\"Zrobiony\",\"\"))","v":""}]
[null,null,null,null,null,{"$f":"Harmonogram[[#This Row],[Data przyjęcia ]]+30","v":"1900-01-30"},null,null,null,null,null,null,null,null,null,{"$f":"Harmonogram[[#This Row],[P: \nSzycie]]","v":0},null,null,null,null,null,null,null,null,null,{"$f":"SUM(Harmonogram[[#This Row],[P: Spawanie]:[P: Montaż]])","v":0},null,null,{"$f":"Harmonogram[[#This Row],[Realna data wydania]]+365","v":"1900-12-30"},null,{"$f":"IF(Harmonogram[[#This Row],[Realna data wydania]]=0,\"\",MONTH(Harmonogram[[#This Row],[Realna data wydania]]))","v":""},{"$f":"IF(AND(Harmonogram[[#This Row],[Realna data wydania]]>0,Harmonogram[[#This Row],[Realna data wydania]]<TODAY()),\"Wydany\",IF(Harmonogram[[#This Row],[Realna data skończenia]]>0,\"Zrobiony\",\"\"))","v":""}]
[null,null,null,null,null,{"$f":"Harmonogram[[#This Row],[Data przyjęcia ]]+30","v":"1900-01-30"},null,null,null,null,null,null,null,null,null,{"$f":"Harmonogram[[#This Row],[P: \nSzycie]]","v":0},null,null,null,null,null,null,null,null,null,{"$f":"SUM(Harmonogram[[#This Row],[P: Spawanie]:[P: Montaż]])","v":0},null,null,{"$f":"Harmonogram[[#This Row],[Realna data wydania]]+365","v":"1900-12-30"},null,{"$f":"IF(Harmonogram[[#This Row],[Realna data wydania]]=0,\"\",MONTH(Harmonogram[[#This Row],[Realna data wydania]]))","v":""},{"$f":"IF(AND(Harmonogram[[#This Row],[Realna data wydania]]>0,Harmonogram[[#This Row],[Realna data wydania]]<TODAY()),\"Wydany\",IF(Harmonogram[[#This Row],[Realna data skończenia]]>0,\"Zrobiony\",\"\"))","v":""}]
[null,null,null,null,null,{"$f":"Harmonogram[[#This Row],[Data przyjęcia ]]+30","v":"1900-01-30"},null,null,null,null,null,null,null,null,null,{"$f":"Harmonogram[[#This Row],[P: \nSzycie]]","v":0},null,null,null,null,null,null,null,null,null,{"$f":"SUM(Harmonogram[[#This Row],[P: Spawanie]:[P: Montaż]])","v":0},null,null,{"$f":"Harmonogram[[#This Row],[Realna data wydania]]+365","v":"1900-12-30"},null,{"$f":"IF(Harmonogram[[#This Row],[Realna data wydania]]=0,\"\",MONTH(Harmonogram[[#This Row],[Realna data wydania]]))","v":""},{"$f":"IF(AND(Harmonogram[[#This Row],[Realna data wydania]]>0,Harmonogram[[#This Row],[Realna data wydania]]<TODAY()),\"Wydany\",IF(Harmonogram[[#This Row],[Realna data skończenia]]>0,\"Zrobiony\",\"\"))","v":""}]
[null,null,null,null,null,{"$f":"Harmonogram[[#This Row],[Data przyjęcia ]]+30","v":"1900-01-30"},null,null,null,null,null,null,null,null,null,{"$f":"Harmonogram[[#This Row],[P: \nSzycie]]","v":0},null,null,null,null,null,null,null,null,null,{"$f":"SUM(Harmonogram[[#This Row],[P: Spawanie]:[P: Montaż]])","v":0},null,null,{"$f":"Harmonogram[[#This Row],[Realna data wydania]]+365","v":"1900-12-30"},null,{"$f":"IF(Harmonogram[[#This Row],[Realna data wydania]]=0,\"\",MONTH(Harmonogram[[#This Row],[Realna data wydania]]))","v":""},{"$f":"IF(AND(Harmonogram[[#This Row],[Realna data wydania]]>0,Harmonogram[[#This Row],[Realna data wydania]]<TODAY()),\"Wydany\",IF(Harmonogram[[#This Row],[Realna data skończenia]]>0,\"Zrobiony\",\"\"))","v":""}]
[null,null,null,null,null,{"$f":"Harmonogram[[#This Row],[Data przyjęcia ]]+30","v":"1900-01-30"},null,null,null,null,null,null,null,null,null,{"$f":"Harmonogram[[#This Row],[P: \nSzycie]]","v":0},null,null,null,null,null,null,null,null,null,{"$f":"SUM(Harmonogram[[#This Row],[P: Spawanie]:[P: Montaż]])","v":0},null,null,{"$f":"Harmonogram[[#This Row],[Realna data wydania]]+365","v":"1900-12-30"},null,{"$f":"IF(Harmonogram[[#This Row],[Realna data wydania]]=0,\"\",MONTH(Harmonogram[[#This Row],[Realna data wydania]]))","v":""},{"$f":"IF(AND(Harmonogram[[#This Row],[Realna data wydania]]>0,Harmonogram[[#This Row],[Realna data wydania]]<TODAY()),\"Wydany\",IF(Harmonogram[[#This Row],[Realna data skończenia]]>0,\"Zrobiony\",\"\"))","v":""}]
[null,null,null,null,null,{"$f":"Harmonogram[[#This Row],[Data przyjęcia ]]+30","v":"1900-01-30"},null,null,null,null,null,null,null,null,null,{"$f":"Harmonogram[[#This Row],[P: \nSzycie]]","v":0},null,null,null,null,null,null,null,null,null,{"$f":"SUM(Harmonogram[[#This Row],[P: Spawanie]:[P: Montaż]])","v":0},null,null,{"$f":"Harmonogram[[#This Row],[Realna data wydania]]+365","v":"1900-12-30"},null,{"$f":"IF(Harmonogram[[#This Row],[Realna data wydania]]=0,\"\",MONTH(Harmonogram[[#This Row],[Realna data wydania]]))","v":""},{"$f":"IF(AND(Harmonogram[[#This Row],[Realna data wydania]]>0,Harmonogram[[#This Row],[Realna data wydania]]<TODAY()),\"Wydany\",IF(Harmonogram[[#This Row],[Realna data skończenia]]>0,\"Zrobiony\",\"\"))","v":""}]
[null,null,null,null,null,{"$f":"Harmonogram[[#This Row],[Data przyjęcia ]]+30","v":"1900-01-30"},null,null,null,null,null,null,null,null,null,{"$f":"Harmonogram[[#This Row],[P: \nSzycie]]","v":0},null,null,null,null,null,null,null,null,null,{"$f":"SUM(Harmonogram[[#This Row],[P: Spawanie]:[P: Montaż]])","v":0},null,null,{"$f":"Harmonogram[[#This Row],[Realna data wydania]]+365","v":"1900-12-30"},null,{"$f":"IF(Harmonogram[[#This Row],[Realna data wydania]]=0,\"\",MONTH(Harmonogram[[#This Row],[Realna data wydania]]))","v":""},{"$f":"IF(AND(Harmonogram[[#This Row],[Realna data wydania]]>0,Harmonogram[[#This Row],[Realna data wydania]]<TODAY()),\"Wydany\",IF(Harmonogram[[#This Row],[Realna data skończenia]]>0,\"Zrobiony\",\"\"))","v":""}]
[null,null,null,null,null,{"$f":"Harmonogram[[#This Row],[Data przyjęcia ]]+30","v":"1900-01-30"},null,null,null,null,null,null,null,null,null,{"$f":"Harmonogram[[#This Row],[P: \nSzycie]]","v":0},null,null,null,null,null,null,null,null,null,{"$f":"SUM(Harmonogram[[#This Row],[P: Spawanie]:[P: Montaż]])","v":0},null,null,{"$f":"Harmonogram[[#This Row],[Realna data wydania]]+365","v":"1900-12-30"},null,{"$f":"IF(Harmonogram[[#This Row],[Realna data wydania]]=0,\"\",MONTH(Harmonogram[[#This Row],[Realna data wydania]]))","v":""},{"$f":"IF(AND(Harmonogram[[#This Row],[Realna data wydania]]>0,Harmonogram[[#This Row],[Realna data wydania]]<TODAY()),\"Wydany\",IF(Harmonogram[[#This Row],[Realna data skończenia]]>0,\"Zrobiony\",\"\"))","v":""}]
[null,null,null,null,null,{"$f":"Harmonogram[[#This Row],[Data przyjęcia ]]+30","v":"1900-01-30"},null,null,null,null,null,null,null,null,null,{"$f":"Harmonogram[[#This Row],[P: \nSzycie]]","v":0},null,null,null,null,null,null,null,null,null,{"$f":"SUM(Harmonogram[[#This Row],[P: Spawanie]:[P: Montaż]])","v":0},null,null,{"$f":"Harmonogram[[#This Row],[Realna data wydania]]+365","v":"1900-12-30"},null,{"$f":"IF(Harmonogram[[#This Row],[Realna data wydania]]=0,\"\",MONTH(Harmonogram[[#This Row],[Realna data wydania]]))","v":""},{"$f":"IF(AND(Harmonogram[[#This Row],[Realna data wydania]]>0,Harmonogram[[#This Row],[Realna data wydania]]<TODAY()),\"Wydany\",IF(Harmonogram[[#This Row],[Realna data skończenia]]>0,\"Zrobiony\",\"\"))","v":""}]
[null,null,null,null,null,{"$f":"Harmonogram[[#This Row],[Data przyjęcia ]]+30","v":"1900-01-30"},null,null,null,null,null,null,null,null,null,{"$f":"Harmonogram[[#This Row],[P: \nSzycie]]","v":0},null,null,null,null,null,null,null,null,null,{"$f":"SUM(Harmonogram[[#This Row],[P: Spawanie]:[P: Montaż]])","v":0},null,null,{"$f":"Harmonogram[[#This Row],[Realna data wydania]]+365","v":"1900-12-30"},null,{"$f":"IF(Harmonogram[[#This Row],[Realna data wydania]]=0,\"\",MONTH(Harmonogram[[#This Row],[Realna data wydania]]))","v":""},{"$f":"IF(AND(Harmonogram[[#This Row],[Realna data wydania]]>0,Harmonogram[[#This Row],[Realna data wydania]]<TODAY()),\"Wydany\",IF(Harmonogram[[#This Row],[Realna data skończenia]]>0,\"Zrobiony\",\"\"))","v":""}]
[null,null,null,null,null,{"$f":"Harmonogram[[#This Row],[Data przyjęcia ]]+30","v":"1900-01-30"},null,null,null,null,null,null,null,null,null,{"$f":"Harmonogram[[#This Row],[P: \nSzycie]]","v":0},null,null,null,null,null,null,null,null,null,{"$f":"SUM(Harmonogram[[#This Row],[P: Spawanie]:[P: Montaż]])","v":0},null,null,{"$f":"Harmonogram[[#This Row],[Realna data wydania]]+365","v":"1900-12-30"},null,{"$f":"IF(Harmonogram[[#This Row],[Realna data wydania]]=0,\"\",MONTH(Harmonogram[[#This Row],[Realna data wydania]]))","v":""},{"$f":"IF(AND(Harmonogram[[#This Row],[Realna data wydania]]>0,Harmonogram[[#This Row],[Realna data wydania]]<TODAY()),\"Wydany\",IF(Harmonogram[[#This Row],[Realna data skończenia]]>0,\"Zrobiony\",\"\"))","v":""}]
[null,null,null,null,null,{"$f":"Harmonogram[[#This Row],[Data przyjęcia ]]+30","v":"1900-01-30"},null,null,null,null,null,null,null,null,null,{"$f":"Harmonogram[[#This Row],[P: \nSzycie]]","v":0},null,null,null,null,null,null,null,null,null,{"$f":"SUM(Harmonogram[[#This Row],[P: Spawanie]:[P: Montaż]])","v":0},null,null,{"$f":"Harmonogram[[#This Row],[Realna data wydania]]+365","v":"1900-12-30"},null,{"$f":"IF(Harmonogram[[#This Row],[Realna data wydania]]=0,\"\",MONTH(Harmonogram[[#This Row],[Realna data wydania]]))","v":""},{"$f":"IF(AND(Harmonogram[[#This Row],[Realna data wydania]]>0,Harmonogram[[#This Row],[Realna data wydania]]<TODAY()),\"Wydany\",IF(Harmonogram[[#This Row],[Realna data skończenia]]>0,\"Zrobiony\",\"\"))","v":""}]
[null,null,null,null,null,{"$f":"Harmonogram[[#This Row],[Data przyjęcia ]]+30","v":"1900-01-30"},null,null,null,null,null,null,null,null,null,{"$f":"Harmonogram[[#This Row],[P: \nSzycie]]","v":0},null,null,null,null,null,null,null,null,null,{"$f":"SUM(Harmonogram[[#This Row],[P: Spawanie]:[P: Montaż]])","v":0},null,null,{"$f":"Harmonogram[[#This Row],[Realna data wydania]]+365","v":"1900-12-30"},null,{"$f":"IF(Harmonogram[[#This Row],[Realna data wydania]]=0,\"\",MONTH(Harmonogram[[#This Row],[Realna data wydania]]))","v":""},{"$f":"IF(AND(Harmonogram[[#This Row],[Realna data wydania]]>0,Harmonogram[[#This Row],[Realna data wydania]]<TODAY()),\"Wydany\",IF(Harmonogram[[#This Row],[Realna data skończenia]]>0,\"Zrobiony\",\"\"))","v":""}]
[null,null,null,null,null,{"$f":"Harmonogram[[#This Row],[Data przyjęcia ]]+30","v":"1900-01-30"},null,null,null,null,null,null,null,null,null,{"$f":"Harmonogram[[#This Row],[P: \nSzycie]]","v":0},null,null,null,null,null,null,null,null,null,{"$f":"SUM(Harmonogram[[#This Row],[P: Spawanie]:[P: Montaż]])","v":0},null,null,{"$f":"Harmonogram[[#This Row],[Realna data wydania]]+365","v":"1900-12-30"},null,{"$f":"IF(Harmonogram[[#This Row],[Realna data wydania]]=0,\"\",MONTH(Harmonogram[[#This Row],[Realna data wydania]]))","v":""},{"$f":"IF(AND(Harmonogram[[#This Row],[Realna data wydania]]>0,Harmonogram[[#This Row],[Realna data wydania]]<TODAY()),\"Wydany\",IF(Harmonogram[[#This Row],[Realna data skończenia]]>0,\"Zrobiony\",\"\"))","v":""}]
[null,null,null,null,null,{"$f":"Harmonogram[[#This Row],[Data przyjęcia ]]+30","v":"1900-01-30"},null,null,null,null,null,null,null,null,null,{"$f":"Harmonogram[[#This Row],[P: \nSzycie]]","v":0},null,null,null,null,null,null,null,null,null,{"$f":"SUM(Harmonogram[[#This Row],[P: Spawanie]:[P: Montaż]])","v":0},null,null,{"$f":"Harmonogram[[#This Row],[Realna data wydania]]+365","v":"1900-12-30"},null,{"$f":"IF(Harmonogram[[#This Row],[Realna data wydania]]=0,\"\",MONTH(Harmonogram[[#This Row],[Realna data wydania]]))","v":""},{"$f":"IF(AND(Harmonogram[[#This Row],[Realna data wydania]]>0,Harmonogram[[#This Row],[Realna data wydania]]<TODAY()),\"Wydany\",IF(Harmonogram[[#This Row],[Realna data skończenia]]>0,\"Zrobiony\",\"\"))","v":""}]
[null,null,null,null,null,{"$f":"Harmonogram[[#This Row],[Data przyjęcia ]]+30","v":"1900-01-30"},null,null,null,null,null,null,null,null,null,{"$f":"Harmonogram[[#This Row],[P: \nSzycie]]","v":0},null,null,null,null,null,null,null,null,null,{"$f":"SUM(Harmonogram[[#This Row],[P: Spawanie]:[P: Montaż]])","v":0},null,null,{"$f":"Harmonogram[[#This Row],[Realna data wydania]]+365","v":"1900-12-30"},null,{"$f":"IF(Harmonogram[[#This Row],[Realna data wydania]]=0,\"\",MONTH(Harmonogram[[#This Row],[Realna data wydania]]))","v":""},{"$f":"IF(AND(Harmonogram[[#This Row],[Realna data wydania]]>0,Harmonogram[[#This Row],[Realna data wydania]]<TODAY()),\"Wydany\",IF(Harmonogram[[#This Row],[Realna data skończenia]]>0,\"Zrobiony\",\"\"))","v":""}]
[null,null,null,null,null,{"$f":"Harmonogram[[#This Row],[Data przyjęcia ]]+30","v":"1900-01-30"},null,null,null,null,null,null,null,null,null,{"$f":"Harmonogram[[#This Row],[P: \nSzycie]]","v":0},null,null,null,null,null,null,null,null,null,{"$f":"SUM(Harmonogram[[#This Row],[P: Spawanie]:[P: Montaż]])","v":0},null,null,{"$f":"Harmonogram[[#This Row],[Realna data wydania]]+365","v":"1900-12-30"},null,{"$f":"IF(Harmonogram[[#This Row],[Realna data wydania]]=0,\"\",MONTH(Harmonogram[[#This Row],[Realna data wydania]]))","v":""},{"$f":"IF(AND(Harmonogram[[#This Row],[Realna data wydania]]>0,Harmonogram[[#This Row],[Realna data wydania]]<TODAY()),\"Wydany\",IF(Harmonogram[[#This Row],[Realna data skończenia]]>0,\"Zrobiony\",\"\"))","v":""}]
[null,null,null,null,null,{"$f":"Harmonogram[[#This Row],[Data przyjęcia ]]+30","v":"1900-01-30"},null,null,null,null,null,null,null,null,null,{"$f":"Harmonogram[[#This Row],[P: \nSzycie]]","v":0},null,null,null,null,null,null,null,null,null,{"$f":"SUM(Harmonogram[[#This Row],[P: Spawanie]:[P: Montaż]])","v":0},null,null,{"$f":"Harmonogram[[#This Row],[Realna data wydania]]+365","v":"1900-12-30"},null,{"$f":"IF(Harmonogram[[#This Row],[Realna data wydania]]=0,\"\",MONTH(Harmonogram[[#This Row],[Realna data wydania]]))","v":""},{"$f":"IF(AND(Harmonogram[[#This Row],[Realna data wydania]]>0,Harmonogram[[#This Row],[Realna data wydania]]<TODAY()),\"Wydany\",IF(Harmonogram[[#This Row],[Realna data skończenia]]>0,\"Zrobiony\",\"\"))","v":""}]
[null,null,null,null,null,{"$f":"Harmonogram[[#This Row],[Data przyjęcia ]]+30","v":"1900-01-30"},null,null,null,null,null,null,null,null,null,{"$f":"Harmonogram[[#This Row],[P: \nSzycie]]","v":0},null,null,null,null,null,null,null,null,null,{"$f":"SUM(Harmonogram[[#This Row],[P: Spawanie]:[P: Montaż]])","v":0},null,null,{"$f":"Harmonogram[[#This Row],[Realna data wydania]]+365","v":"1900-12-30"},null,{"$f":"IF(Harmonogram[[#This Row],[Realna data wydania]]=0,\"\",MONTH(Harmonogram[[#This Row],[Realna data wydania]]))","v":""},{"$f":"IF(AND(Harmonogram[[#This Row],[Realna data wydania]]>0,Harmonogram[[#This Row],[Realna data wydania]]<TODAY()),\"Wydany\",IF(Harmonogram[[#This Row],[Realna data skończenia]]>0,\"Zrobiony\",\"\"))","v":""}]
[null,null,null,null,null,{"$f":"Harmonogram[[#This Row],[Data przyjęcia ]]+30","v":"1900-01-30"},null,null,null,null,null,null,null,null,null,{"$f":"Harmonogram[[#This Row],[P: \nSzycie]]","v":0},null,null,null,null,null,null,null,null,null,{"$f":"SUM(Harmonogram[[#This Row],[P: Spawanie]:[P: Montaż]])","v":0},null,null,{"$f":"Harmonogram[[#This Row],[Realna data wydania]]+365","v":"1900-12-30"},null,{"$f":"IF(Harmonogram[[#This Row],[Realna data wydania]]=0,\"\",MONTH(Harmonogram[[#This Row],[Realna data wydania]]))","v":""},{"$f":"IF(AND(Harmonogram[[#This Row],[Realna data wydania]]>0,Harmonogram[[#This Row],[Realna data wydania]]<TODAY()),\"Wydany\",IF(Harmonogram[[#This Row],[Realna data skończenia]]>0,\"Zrobiony\",\"\"))","v":""}]
[null,null,null,null,null,{"$f":"Harmonogram[[#This Row],[Data przyjęcia ]]+30","v":"1900-01-30"},null,null,null,null,null,null,null,null,null,{"$f":"Harmonogram[[#This Row],[P: \nSzycie]]","v":0},null,null,null,null,null,null,null,null,null,{"$f":"SUM(Harmonogram[[#This Row],[P: Spawanie]:[P: Montaż]])","v":0},null,null,{"$f":"Harmonogram[[#This Row],[Realna data wydania]]+365","v":"1900-12-30"},null,{"$f":"IF(Harmonogram[[#This Row],[Realna data wydania]]=0,\"\",MONTH(Harmonogram[[#This Row],[Realna data wydania]]))","v":""},{"$f":"IF(AND(Harmonogram[[#This Row],[Realna data wydania]]>0,Harmonogram[[#This Row],[Realna data wydania]]<TODAY()),\"Wydany\",IF(Harmonogram[[#This Row],[Realna data skończenia]]>0,\"Zrobiony\",\"\"))","v":""}]
[null,null,null,null,null,{"$f":"Harmonogram[[#This Row],[Data przyjęcia ]]+30","v":"1900-01-30"},null,null,null,null,null,null,null,null,null,{"$f":"Harmonogram[[#This Row],[P: \nSzycie]]","v":0},null,null,null,null,null,null,null,null,null,{"$f":"SUM(Harmonogram[[#This Row],[P: Spawanie]:[P: Montaż]])","v":0},null,null,{"$f":"Harmonogram[[#This Row],[Realna data wydania]]+365","v":"1900-12-30"},null,{"$f":"IF(Harmonogram[[#This Row],[Realna data wydania]]=0,\"\",MONTH(Harmonogram[[#This Row],[Realna data wydania]]))","v":""},{"$f":"IF(AND(Harmonogram[[#This Row],[Realna data wydania]]>0,Harmonogram[[#This Row],[Realna data wydania]]<TODAY()),\"Wydany\",IF(Harmonogram[[#This Row],[Realna data skończenia]]>0,\"Zrobiony\",\"\"))","v":""}]
[null,null,null,null,null,{"$f":"Harmonogram[[#This Row],[Data przyjęcia ]]+30","v":"1900-01-30"},null,null,null,null,null,null,null,null,null,{"$f":"Harmonogram[[#This Row],[P: \nSzycie]]","v":0},null,null,null,null,null,null,null,null,null,{"$f":"SUM(Harmonogram[[#This Row],[P: Spawanie]:[P: Montaż]])","v":0},null,null,{"$f":"Harmonogram[[#This Row],[Realna data wydania]]+365","v":"1900-12-30"},null,{"$f":"IF(Harmonogram[[#This Row],[Realna data wydania]]=0,\"\",MONTH(Harmonogram[[#This Row],[Realna data wydania]]))","v":""},{"$f":"IF(AND(Harmonogram[[#This Row],[Realna data wydania]]>0,Harmonogram[[#This Row],[Realna data wydania]]<TODAY()),\"Wydany\",IF(Harmonogram[[#This Row],[Realna data skończenia]]>0,\"Zrobiony\",\"\"))","v":""}]
[null,null,null,null,null,{"$f":"Harmonogram[[#This Row],[Data przyjęcia ]]+30","v":"1900-01-30"},null,null,null,null,null,null,null,null,null,{"$f":"Harmonogram[[#This Row],[P: \nSzycie]]","v":0},null,null,null,null,null,null,null,null,null,{"$f":"SUM(Harmonogram[[#This Row],[P: Spawanie]:[P: Montaż]])","v":0},null,null,{"$f":"Harmonogram[[#This Row],[Realna data wydania]]+365","v":"1900-12-30"},null,{"$f":"IF(Harmonogram[[#This Row],[Realna data wydania]]=0,\"\",MONTH(Harmonogram[[#This Row],[Realna data wydania]]))","v":""},{"$f":"IF(AND(Harmonogram[[#This Row],[Realna data wydania]]>0,Harmonogram[[#This Row],[Realna data wydania]]<TODAY()),\"Wydany\",IF(Harmonogram[[#This Row],[Realna data skończenia]]>0,\"Zrobiony\",\"\"))","v":""}]
[null,null,null,null,null,{"$f":"Harmonogram[[#This Row],[Data przyjęcia ]]+30","v":"1900-01-30"},null,null,null,null,null,null,null,null,null,{"$f":"Harmonogram[[#This Row],[P: \nSzycie]]","v":0},null,null,null,null,null,null,null,null,null,{"$f":"SUM(Harmonogram[[#This Row],[P: Spawanie]:[P: Montaż]])","v":0},null,null,{"$f":"Harmonogram[[#This Row],[Realna data wydania]]+365","v":"1900-12-30"},null,{"$f":"IF(Harmonogram[[#This Row],[Realna data wydania]]=0,\"\",MONTH(Harmonogram[[#This Row],[Realna data wydania]]))","v":""},{"$f":"IF(AND(Harmonogram[[#This Row],[Realna data wydania]]>0,Harmonogram[[#This Row],[Realna data wydania]]<TODAY()),\"Wydany\",IF(Harmonogram[[#This Row],[Realna data skończenia]]>0,\"Zrobiony\",\"\"))","v":""}]
[null,null,null,null,null,{"$f":"Harmonogram[[#This Row],[Data przyjęcia ]]+30","v":"1900-01-30"},null,null,null,null,null,null,null,null,null,{"$f":"Harmonogram[[#This Row],[P: \nSzycie]]","v":0},null,null,null,null,null,null,null,null,null,{"$f":"SUM(Harmonogram[[#This Row],[P: Spawanie]:[P: Montaż]])","v":0},null,null,{"$f":"Harmonogram[[#This Row],[Realna data wydania]]+365","v":"1900-12-30"},null,{"$f":"IF(Harmonogram[[#This Row],[Realna data wydania]]=0,\"\",MONTH(Harmonogram[[#This Row],[Realna data wydania]]))","v":""},{"$f":"IF(AND(Harmonogram[[#This Row],[Realna data wydania]]>0,Harmonogram[[#This Row],[Realna data wydania]]<TODAY()),\"Wydany\",IF(Harmonogram[[#This Row],[Realna data skończenia]]>0,\"Zrobiony\",\"\"))","v":""}]
[null,null,null,null,null,{"$f":"Harmonogram[[#This Row],[Data przyjęcia ]]+30","v":"1900-01-30"},null,null,null,null,null,null,null,null,null,{"$f":"Harmonogram[[#This Row],[P: \nSzycie]]","v":0},null,null,null,null,null,null,null,null,null,{"$f":"SUM(Harmonogram[[#This Row],[P: Spawanie]:[P: Montaż]])","v":0},null,null,{"$f":"Harmonogram[[#This Row],[Realna data wydania]]+365","v":"1900-12-30"},null,{"$f":"IF(Harmonogram[[#This Row],[Realna data wydania]]=0,\"\",MONTH(Harmonogram[[#This Row],[Realna data wydania]]))","v":""},{"$f":"IF(AND(Harmonogram[[#This Row],[Realna data wydania]]>0,Harmonogram[[#This Row],[Realna data wydania]]<TODAY()),\"Wydany\",IF(Harmonogram[[#This Row],[Realna data skończenia]]>0,\"Zrobiony\",\"\"))","v":""}]
[null,null,null,null,null,{"$f":"Harmonogram[[#This Row],[Data przyjęcia ]]+30","v":"1900-01-30"},null,null,null,null,null,null,null,null,null,{"$f":"Harmonogram[[#This Row],[P: \nSzycie]]","v":0},null,null,null,null,null,null,null,null,null,{"$f":"SUM(Harmonogram[[#This Row],[P: Spawanie]:[P: Montaż]])","v":0},null,null,{"$f":"Harmonogram[[#This Row],[Realna data wydania]]+365","v":"1900-12-30"},null,{"$f":"IF(Harmonogram[[#This Row],[Realna data wydania]]=0,\"\",MONTH(Harmonogram[[#This Row],[Realna data wydania]]))","v":""},{"$f":"IF(AND(Harmonogram[[#This Row],[Realna data wydania]]>0,Harmonogram[[#This Row],[Realna data wydania]]<TODAY()),\"Wydany\",IF(Harmonogram[[#This Row],[Realna data skończenia]]>0,\"Zrobiony\",\"\"))","v":""}]
[null,null,null,null,null,{"$f":"Harmonogram[[#This Row],[Data przyjęcia ]]+30","v":"1900-01-30"},null,null,null,null,null,null,null,null,null,{"$f":"Harmonogram[[#This Row],[P: \nSzycie]]","v":0},null,null,null,null,null,null,null,null,null,{"$f":"SUM(Harmonogram[[#This Row],[P: Spawanie]:[P: Montaż]])","v":0},null,null,{"$f":"Harmonogram[[#This Row],[Realna data wydania]]+365","v":"1900-12-30"},null,{"$f":"IF(Harmonogram[[#This Row],[Realna data wydania]]=0,\"\",MONTH(Harmonogram[[#This Row],[Realna data wydania]]))","v":""},{"$f":"IF(AND(Harmonogram[[#This Row],[Realna data wydania]]>0,Harmonogram[[#This Row],[Realna data wydania]]<TODAY()),\"Wydany\",IF(Harmonogram[[#This Row],[Realna data skończenia]]>0,\"Zrobiony\",\"\"))","v":""}]
[null,null,null,null,null,{"$f":"Harmonogram[[#This Row],[Data przyjęcia ]]+30","v":"1900-01-30"},null,null,null,null,null,null,null,null,null,{"$f":"Harmonogram[[#This Row],[P: \nSzycie]]","v":0},null,null,null,null,null,null,null,null,null,{"$f":"SUM(Harmonogram[[#This Row],[P: Spawanie]:[P: Montaż]])","v":0},null,null,{"$f":"Harmonogram[[#This Row],[Realna data wydania]]+365","v":"1900-12-30"},null,{"$f":"IF(Harmonogram[[#This Row],[Realna data wydania]]=0,\"\",MONTH(Harmonogram[[#This Row],[Realna data wydania]]))","v":""},{"$f":"IF(AND(Harmonogram[[#This Row],[Realna data wydania]]>0,Harmonogram[[#This Row],[Realna data wydania]]<TODAY()),\"Wydany\",IF(Harmonogram[[#This Row],[Realna data skończenia]]>0,\"Zrobiony\",\"\"))","v":""}]
[null,null,null,null,null,{"$f":"Harmonogram[[#This Row],[Data przyjęcia ]]+30","v":"1900-01-30"},null,null,null,null,null,null,null,null,null,{"$f":"Harmonogram[[#This Row],[P: \nSzycie]]","v":0},null,null,null,null,null,null,null,null,null,{"$f":"SUM(Harmonogram[[#This Row],[P: Spawanie]:[P: Montaż]])","v":0},null,null,{"$f":"Harmonogram[[#This Row],[Realna data wydania]]+365","v":"1900-12-30"},null,{"$f":"IF(Harmonogram[[#This Row],[Realna data wydania]]=0,\"\",MONTH(Harmonogram[[#This Row],[Realna data wydania]]))","v":""},{"$f":"IF(AND(Harmonogram[[#This Row],[Realna data wydania]]>0,Harmonogram[[#This Row],[Realna data wydania]]<TODAY()),\"Wydany\",IF(Harmonogram[[#This Row],[Realna data skończenia]]>0,\"Zrobiony\",\"\"))","v":""}]
[null,null,null,null,null,{"$f":"Harmonogram[[#This Row],[Data przyjęcia ]]+30","v":"1900-01-30"},null,null,null,null,null,null,null,null,null,{"$f":"Harmonogram[[#This Row],[P: \nSzycie]]","v":0},null,null,null,null,null,null,null,null,null,{"$f":"SUM(Harmonogram[[#This Row],[P: Spawanie]:[P: Montaż]])","v":0},null,null,{"$f":"Harmonogram[[#This Row],[Realna data wydania]]+365","v":"1900-12-30"},null,{"$f":"IF(Harmonogram[[#This Row],[Realna data wydania]]=0,\"\",MONTH(Harmonogram[[#This Row],[Realna data wydania]]))","v":""},{"$f":"IF(AND(Harmonogram[[#This Row],[Realna data wydania]]>0,Harmonogram[[#This Row],[Realna data wydania]]<TODAY()),\"Wydany\",IF(Harmonogram[[#This Row],[Realna data skończenia]]>0,\"Zrobiony\",\"\"))","v":""}]
[null,null,null,null,null,{"$f":"Harmonogram[[#This Row],[Data przyjęcia ]]+30","v":"1900-01-30"},null,null,null,null,null,null,null,null,null,{"$f":"Harmonogram[[#This Row],[P: \nSzycie]]","v":0},null,null,null,null,null,null,null,null,null,{"$f":"SUM(Harmonogram[[#This Row],[P: Spawanie]:[P: Montaż]])","v":0},null,null,{"$f":"Harmonogram[[#This Row],[Realna data wydania]]+365","v":"1900-12-30"},null,{"$f":"IF(Harmonogram[[#This Row],[Realna data wydania]]=0,\"\",MONTH(Harmonogram[[#This Row],[Realna data wydania]]))","v":""},{"$f":"IF(AND(Harmonogram[[#This Row],[Realna data wydania]]>0,Harmonogram[[#This Row],[Realna data wydania]]<TODAY()),\"Wydany\",IF(Harmonogram[[#This Row],[Realna data skończenia]]>0,\"Zrobiony\",\"\"))","v":""}]
[null,null,null,null,null,{"$f":"Harmonogram[[#This Row],[Data przyjęcia ]]+30","v":"1900-01-30"},null,null,null,null,null,null,null,null,null,{"$f":"Harmonogram[[#This Row],[P: \nSzycie]]","v":0},null,null,null,null,null,null,null,null,null,{"$f":"SUM(Harmonogram[[#This Row],[P: Spawanie]:[P: Montaż]])","v":0},null,null,{"$f":"Harmonogram[[#This Row],[Realna data wydania]]+365","v":"1900-12-30"},null,{"$f":"IF(Harmonogram[[#This Row],[Realna data wydania]]=0,\"\",MONTH(Harmonogram[[#This Row],[Realna data wydania]]))","v":""},{"$f":"IF(AND(Harmonogram[[#This Row],[Realna data wydania]]>0,Harmonogram[[#This Row],[Realna data wydania]]<TODAY()),\"Wydany\",IF(Harmonogram[[#This Row],[Realna data skończenia]]>0,\"Zrobiony\",\"\"))","v":""}]
[null,null,null,null,null,{"$f":"Harmonogram[[#This Row],[Data przyjęcia ]]+30","v":"1900-01-30"},null,null,null,null,null,null,null,null,null,{"$f":"Harmonogram[[#This Row],[P: \nSzycie]]","v":0},null,null,null,null,null,null,null,null,null,{"$f":"SUM(Harmonogram[[#This Row],[P: Spawanie]:[P: Montaż]])","v":0},null,null,{"$f":"Harmonogram[[#This Row],[Realna data wydania]]+365","v":"1900-12-30"},null,{"$f":"IF(Harmonogram[[#This Row],[Realna data wydania]]=0,\"\",MONTH(Harmonogram[[#This Row],[Realna data wydania]]))","v":""},{"$f":"IF(AND(Harmonogram[[#This Row],[Realna data wydania]]>0,Harmonogram[[#This Row],[Realna data wydania]]<TODAY()),\"Wydany\",IF(Harmonogram[[#This Row],[Realna data skończenia]]>0,\"Zrobiony\",\"\"))","v":""}]
[null,null,null,null,null,{"$f":"Harmonogram[[#This Row],[Data przyjęcia ]]+30","v":"1900-01-30"},null,null,null,null,null,null,null,null,null,{"$f":"Harmonogram[[#This Row],[P: \nSzycie]]","v":0},null,null,null,null,null,null,null,null,null,{"$f":"SUM(Harmonogram[[#This Row],[P: Spawanie]:[P: Montaż]])","v":0},null,null,{"$f":"Harmonogram[[#This Row],[Realna data wydania]]+365","v":"1900-12-30"},null,{"$f":"IF(Harmonogram[[#This Row],[Realna data wydania]]=0,\"\",MONTH(Harmonogram[[#This Row],[Realna data wydania]]))","v":""},{"$f":"IF(AND(Harmonogram[[#This Row],[Realna data wydania]]>0,Harmonogram[[#This Row],[Realna data wydania]]<TODAY()),\"Wydany\",IF(Harmonogram[[#This Row],[Realna data skończenia]]>0,\"Zrobiony\",\"\"))","v":""}]
[null,null,null,null,null,{"$f":"Harmonogram[[#This Row],[Data przyjęcia ]]+30","v":"1900-01-30"},null,null,null,null,null,null,null,null,null,{"$f":"Harmonogram[[#This Row],[P: \nSzycie]]","v":0},null,null,null,null,null,null,null,null,null,{"$f":"SUM(Harmonogram[[#This Row],[P: Spawanie]:[P: Montaż]])","v":0},null,null,{"$f":"Harmonogram[[#This Row],[Realna data wydania]]+365","v":"1900-12-30"},null,{"$f":"IF(Harmonogram[[#This Row],[Realna data wydania]]=0,\"\",MONTH(Harmonogram[[#This Row],[Realna data wydania]]))","v":""},{"$f":"IF(AND(Harmonogram[[#This Row],[Realna data wydania]]>0,Harmonogram[[#This Row],[Realna data wydania]]<TODAY()),\"Wydany\",IF(Harmonogram[[#This Row],[Realna data skończenia]]>0,\"Zrobiony\",\"\"))","v":""}]
[null,null,null,null,null,{"$f":"Harmonogram[[#This Row],[Data przyjęcia ]]+30","v":"1900-01-30"},null,null,null,null,null,null,null,null,null,{"$f":"Harmonogram[[#This Row],[P: \nSzycie]]","v":0},null,null,null,null,null,null,null,null,null,{"$f":"SUM(Harmonogram[[#This Row],[P: Spawanie]:[P: Montaż]])","v":0},null,null,{"$f":"Harmonogram[[#This Row],[Realna data wydania]]+365","v":"1900-12-30"},null,{"$f":"IF(Harmonogram[[#This Row],[Realna data wydania]]=0,\"\",MONTH(Harmonogram[[#This Row],[Realna data wydania]]))","v":""},{"$f":"IF(AND(Harmonogram[[#This Row],[Realna data wydania]]>0,Harmonogram[[#This Row],[Realna data wydania]]<TODAY()),\"Wydany\",IF(Harmonogram[[#This Row],[Realna data skończenia]]>0,\"Zrobiony\",\"\"))","v":""}]
[null,null,null,null,null,{"$f":"Harmonogram[[#This Row],[Data przyjęcia ]]+30","v":"1900-01-30"},null,null,null,null,null,null,null,null,null,{"$f":"Harmonogram[[#This Row],[P: \nSzycie]]","v":0},null,null,null,null,null,null,null,null,null,{"$f":"SUM(Harmonogram[[#This Row],[P: Spawanie]:[P: Montaż]])","v":0},null,null,{"$f":"Harmonogram[[#This Row],[Realna data wydania]]+365","v":"1900-12-30"},null,{"$f":"IF(Harmonogram[[#This Row],[Realna data wydania]]=0,\"\",MONTH(Harmonogram[[#This Row],[Realna data wydania]]))","v":""},{"$f":"IF(AND(Harmonogram[[#This Row],[Realna data wydania]]>0,Harmonogram[[#This Row],[Realna data wydania]]<TODAY()),\"Wydany\",IF(Harmonogram[[#This Row],[Realna data skończenia]]>0,\"Zrobiony\",\"\"))","v":""}]
[null,null,null,null,null,{"$f":"Harmonogram[[#This Row],[Data przyjęcia ]]+30","v":"1900-01-30"},null,null,null,null,null,null,null,null,null,{"$f":"Harmonogram[[#This Row],[P: \nSzycie]]","v":0},null,null,null,null,null,null,null,null,null,{"$f":"SUM(Harmonogram[[#This Row],[P: Spawanie]:[P: Montaż]])","v":0},null,null,{"$f":"Harmonogram[[#This Row],[Realna data wydania]]+365","v":"1900-12-30"},null,{"$f":"IF(Harmonogram[[#This Row],[Realna data wydania]]=0,\"\",MONTH(Harmonogram[[#This Row],[Realna data wydania]]))","v":""},{"$f":"IF(AND(Harmonogram[[#This Row],[Realna data wydania]]>0,Harmonogram[[#This Row],[Realna data wydania]]<TODAY()),\"Wydany\",IF(Harmonogram[[#This Row],[Realna data skończenia]]>0,\"Zrobiony\",\"\"))","v":""}]
[null,null,null,null,null,{"$f":"Harmonogram[[#This Row],[Data przyjęcia ]]+30","v":"1900-01-30"},null,null,null,null,null,null,null,null,null,{"$f":"Harmonogram[[#This Row],[P: \nSzycie]]","v":0},null,null,null,null,null,null,null,null,null,{"$f":"SUM(Harmonogram[[#This Row],[P: Spawanie]:[P: Montaż]])","v":0},null,null,{"$f":"Harmonogram[[#This Row],[Realna data wydania]]+365","v":"1900-12-30"},null,{"$f":"IF(Harmonogram[[#This Row],[Realna data wydania]]=0,\"\",MONTH(Harmonogram[[#This Row],[Realna data wydania]]))","v":""},{"$f":"IF(AND(Harmonogram[[#This Row],[Realna data wydania]]>0,Harmonogram[[#This Row],[Realna data wydania]]<TODAY()),\"Wydany\",IF(Harmonogram[[#This Row],[Realna data skończenia]]>0,\"Zrobiony\",\"\"))","v":""}]
[null,null,null,null,null,{"$f":"Harmonogram[[#This Row],[Data przyjęcia ]]+30","v":"1900-01-30"},null,null,null,null,null,null,null,null,null,{"$f":"Harmonogram[[#This Row],[P: \nSzycie]]","v":0},null,null,null,null,null,null,null,null,null,{"$f":"SUM(Harmonogram[[#This Row],[P: Spawanie]:[P: Montaż]])","v":0},null,null,{"$f":"Harmonogram[[#This Row],[Realna data wydania]]+365","v":"1900-12-30"},null,{"$f":"IF(Harmonogram[[#This Row],[Realna data wydania]]=0,\"\",MONTH(Harmonogram[[#This Row],[Realna data wydania]]))","v":""},{"$f":"IF(AND(Harmonogram[[#This Row],[Realna data wydania]]>0,Harmonogram[[#This Row],[Realna data wydania]]<TODAY()),\"Wydany\",IF(Harmonogram[[#This Row],[Realna data skończenia]]>0,\"Zrobiony\",\"\"))","v":""}]
[null,null,null,null,null,{"$f":"Harmonogram[[#This Row],[Data przyjęcia ]]+30","v":"1900-01-30"},null,null,null,null,null,null,null,null,null,{"$f":"Harmonogram[[#This Row],[P: \nSzycie]]","v":0},null,null,null,null,null,null,null,null,null,{"$f":"SUM(Harmonogram[[#This Row],[P: Spawanie]:[P: Montaż]])","v":0},null,null,{"$f":"Harmonogram[[#This Row],[Realna data wydania]]+365","v":"1900-12-30"},null,{"$f":"IF(Harmonogram[[#This Row],[Realna data wydania]]=0,\"\",MONTH(Harmonogram[[#This Row],[Realna data wydania]]))","v":""},{"$f":"IF(AND(Harmonogram[[#This Row],[Realna data wydania]]>0,Harmonogram[[#This Row],[Realna data wydania]]<TODAY()),\"Wydany\",IF(Harmonogram[[#This Row],[Realna data skończenia]]>0,\"Zrobiony\",\"\"))","v":""}]
[null,null,null,null,null,{"$f":"Harmonogram[[#This Row],[Data przyjęcia ]]+30","v":"1900-01-30"},null,null,null,null,null,null,null,null,null,{"$f":"Harmonogram[[#This Row],[P: \nSzycie]]","v":0},null,null,null,null,null,null,null,null,null,{"$f":"SUM(Harmonogram[[#This Row],[P: Spawanie]:[P: Montaż]])","v":0},null,null,{"$f":"Harmonogram[[#This Row],[Realna data wydania]]+365","v":"1900-12-30"},null,{"$f":"IF(Harmonogram[[#This Row],[Realna data wydania]]=0,\"\",MONTH(Harmonogram[[#This Row],[Realna data wydania]]))","v":""},{"$f":"IF(AND(Harmonogram[[#This Row],[Realna data wydania]]>0,Harmonogram[[#This Row],[Realna data wydania]]<TODAY()),\"Wydany\",IF(Harmonogram[[#This Row],[Realna data skończenia]]>0,\"Zrobiony\",\"\"))","v":""}]
[null,null,null,null,null,{"$f":"Harmonogram[[#This Row],[Data przyjęcia ]]+30","v":"1900-01-30"},null,null,null,null,null,null,null,null,null,{"$f":"Harmonogram[[#This Row],[P: \nSzycie]]","v":0},null,null,null,null,null,null,null,null,null,{"$f":"SUM(Harmonogram[[#This Row],[P: Spawanie]:[P: Montaż]])","v":0},null,null,{"$f":"Harmonogram[[#This Row],[Realna data wydania]]+365","v":"1900-12-30"},null,{"$f":"IF(Harmonogram[[#This Row],[Realna data wydania]]=0,\"\",MONTH(Harmonogram[[#This Row],[Realna data wydania]]))","v":""},{"$f":"IF(AND(Harmonogram[[#This Row],[Realna data wydania]]>0,Harmonogram[[#This Row],[Realna data wydania]]<TODAY()),\"Wydany\",IF(Harmonogram[[#This Row],[Realna data skończenia]]>0,\"Zrobiony\",\"\"))","v":""}]
[null,null,null,null,null,{"$f":"Harmonogram[[#This Row],[Data przyjęcia ]]+30","v":"1900-01-30"},null,null,null,null,null,null,null,null,null,{"$f":"Harmonogram[[#This Row],[P: \nSzycie]]","v":0},null,null,null,null,null,null,null,null,null,{"$f":"SUM(Harmonogram[[#This Row],[P: Spawanie]:[P: Montaż]])","v":0},null,null,{"$f":"Harmonogram[[#This Row],[Realna data wydania]]+365","v":"1900-12-30"},null,{"$f":"IF(Harmonogram[[#This Row],[Realna data wydania]]=0,\"\",MONTH(Harmonogram[[#This Row],[Realna data wydania]]))","v":""},{"$f":"IF(AND(Harmonogram[[#This Row],[Realna data wydania]]>0,Harmonogram[[#This Row],[Realna data wydania]]<TODAY()),\"Wydany\",IF(Harmonogram[[#This Row],[Realna data skończenia]]>0,\"Zrobiony\",\"\"))","v":""}]
[null,null,null,null,null,{"$f":"Harmonogram[[#This Row],[Data przyjęcia ]]+30","v":"1900-01-30"},null,null,null,null,null,null,null,null,null,{"$f":"Harmonogram[[#This Row],[P: \nSzycie]]","v":0},null,null,null,null,null,null,null,null,null,{"$f":"SUM(Harmonogram[[#This Row],[P: Spawanie]:[P: Montaż]])","v":0},null,null,{"$f":"Harmonogram[[#This Row],[Realna data wydania]]+365","v":"1900-12-30"},null,{"$f":"IF(Harmonogram[[#This Row],[Realna data wydania]]=0,\"\",MONTH(Harmonogram[[#This Row],[Realna data wydania]]))","v":""},{"$f":"IF(AND(Harmonogram[[#This Row],[Realna data wydania]]>0,Harmonogram[[#This Row],[Realna data wydania]]<TODAY()),\"Wydany\",IF(Harmonogram[[#This Row],[Realna data skończenia]]>0,\"Zrobiony\",\"\"))","v":""}]
[null,null,null,null,null,{"$f":"Harmonogram[[#This Row],[Data przyjęcia ]]+30","v":"1900-01-30"},null,null,null,null,null,null,null,null,null,{"$f":"Harmonogram[[#This Row],[P: \nSzycie]]","v":0},null,null,null,null,null,null,null,null,null,{"$f":"SUM(Harmonogram[[#This Row],[P: Spawanie]:[P: Montaż]])","v":0},null,null,{"$f":"Harmonogram[[#This Row],[Realna data wydania]]+365","v":"1900-12-30"},null,{"$f":"IF(Harmonogram[[#This Row],[Realna data wydania]]=0,\"\",MONTH(Harmonogram[[#This Row],[Realna data wydania]]))","v":""},{"$f":"IF(AND(Harmonogram[[#This Row],[Realna data wydania]]>0,Harmonogram[[#This Row],[Realna data wydania]]<TODAY()),\"Wydany\",IF(Harmonogram[[#This Row],[Realna data skończenia]]>0,\"Zrobiony\",\"\"))","v":""}]
[null,null,null,null,null,{"$f":"Harmonogram[[#This Row],[Data przyjęcia ]]+30","v":"1900-01-30"},null,null,null,null,null,null,null,null,null,{"$f":"Harmonogram[[#This Row],[P: \nSzycie]]","v":0},null,null,null,null,null,null,null,null,null,{"$f":"SUM(Harmonogram[[#This Row],[P: Spawanie]:[P: Montaż]])","v":0},null,null,{"$f":"Harmonogram[[#This Row],[Realna data wydania]]+365","v":"1900-12-30"},null,{"$f":"IF(Harmonogram[[#This Row],[Realna data wydania]]=0,\"\",MONTH(Harmonogram[[#This Row],[Realna data wydania]]))","v":""},{"$f":"IF(AND(Harmonogram[[#This Row],[Realna data wydania]]>0,Harmonogram[[#This Row],[Realna data wydania]]<TODAY()),\"Wydany\",IF(Harmonogram[[#This Row],[Realna data skończenia]]>0,\"Zrobiony\",\"\"))","v":""}]
[null,null,null,null,null,{"$f":"Harmonogram[[#This Row],[Data przyjęcia ]]+30","v":"1900-01-30"},null,null,null,null,null,null,null,null,null,{"$f":"Harmonogram[[#This Row],[P: \nSzycie]]","v":0},null,null,null,null,null,null,null,null,null,{"$f":"SUM(Harmonogram[[#This Row],[P: Spawanie]:[P: Montaż]])","v":0},null,null,{"$f":"Harmonogram[[#This Row],[Realna data wydania]]+365","v":"1900-12-30"},null,{"$f":"IF(Harmonogram[[#This Row],[Realna data wydania]]=0,\"\",MONTH(Harmonogram[[#This Row],[Realna data wydania]]))","v":""},{"$f":"IF(AND(Harmonogram[[#This Row],[Realna data wydania]]>0,Harmonogram[[#This Row],[Realna data wydania]]<TODAY()),\"Wydany\",IF(Harmonogram[[#This Row],[Realna data skończenia]]>0,\"Zrobiony\",\"\"))","v":""}]
[null,null,null,null,null,{"$f":"Harmonogram[[#This Row],[Data przyjęcia ]]+30","v":"1900-01-30"},null,null,null,null,null,null,null,null,null,{"$f":"Harmonogram[[#This Row],[P: \nSzycie]]","v":0},null,null,null,null,null,null,null,null,null,{"$f":"SUM(Harmonogram[[#This Row],[P: Spawanie]:[P: Montaż]])","v":0},null,null,{"$f":"Harmonogram[[#This Row],[Realna data wydania]]+365","v":"1900-12-30"},null,{"$f":"IF(Harmonogram[[#This Row],[Realna data wydania]]=0,\"\",MONTH(Harmonogram[[#This Row],[Realna data wydania]]))","v":""},{"$f":"IF(AND(Harmonogram[[#This Row],[Realna data wydania]]>0,Harmonogram[[#This Row],[Realna data wydania]]<TODAY()),\"Wydany\",IF(Harmonogram[[#This Row],[Realna data skończenia]]>0,\"Zrobiony\",\"\"))","v":""}]
[null,null,null,null,null,{"$f":"Harmonogram[[#This Row],[Data przyjęcia ]]+30","v":"1900-01-30"},null,null,null,null,null,null,null,null,null,{"$f":"Harmonogram[[#This Row],[P: \nSzycie]]","v":0},null,null,null,null,null,null,null,null,null,{"$f":"SUM(Harmonogram[[#This Row],[P: Spawanie]:[P: Montaż]])","v":0},null,null,{"$f":"Harmonogram[[#This Row],[Realna data wydania]]+365","v":"1900-12-30"},null,{"$f":"IF(Harmonogram[[#This Row],[Realna data wydania]]=0,\"\",MONTH(Harmonogram[[#This Row],[Realna data wydania]]))","v":""},{"$f":"IF(AND(Harmonogram[[#This Row],[Realna data wydania]]>0,Harmonogram[[#This Row],[Realna data wydania]]<TODAY()),\"Wydany\",IF(Harmonogram[[#This Row],[Realna data skończenia]]>0,\"Zrobiony\",\"\"))","v":""}]
[null,null,null,null,null,{"$f":"Harmonogram[[#This Row],[Data przyjęcia ]]+30","v":"1900-01-30"},null,null,null,null,null,null,null,null,null,{"$f":"Harmonogram[[#This Row],[P: \nSzycie]]","v":0},null,null,null,null,null,null,null,null,null,{"$f":"SUM(Harmonogram[[#This Row],[P: Spawanie]:[P: Montaż]])","v":0},null,null,{"$f":"Harmonogram[[#This Row],[Realna data wydania]]+365","v":"1900-12-30"},null,{"$f":"IF(Harmonogram[[#This Row],[Realna data wydania]]=0,\"\",MONTH(Harmonogram[[#This Row],[Realna data wydania]]))","v":""},{"$f":"IF(AND(Harmonogram[[#This Row],[Realna data wydania]]>0,Harmonogram[[#This Row],[Realna data wydania]]<TODAY()),\"Wydany\",IF(Harmonogram[[#This Row],[Realna data skończenia]]>0,\"Zrobiony\",\"\"))","v":""}]
[null,null,null,null,null,{"$f":"Harmonogram[[#This Row],[Data przyjęcia ]]+30","v":"1900-01-30"},null,null,null,null,null,null,null,null,null,{"$f":"Harmonogram[[#This Row],[P: \nSzycie]]","v":0},null,null,null,null,null,null,null,null,null,{"$f":"SUM(Harmonogram[[#This Row],[P: Spawanie]:[P: Montaż]])","v":0},null,null,{"$f":"Harmonogram[[#This Row],[Realna data wydania]]+365","v":"1900-12-30"},null,{"$f":"IF(Harmonogram[[#This Row],[Realna data wydania]]=0,\"\",MONTH(Harmonogram[[#This Row],[Realna data wydania]]))","v":""},{"$f":"IF(AND(Harmonogram[[#This Row],[Realna data wydania]]>0,Harmonogram[[#This Row],[Realna data wydania]]<TODAY()),\"Wydany\",IF(Harmonogram[[#This Row],[Realna data skończenia]]>0,\"Zrobiony\",\"\"))","v":""}]
[null,null,null,null,null,{"$f":"Harmonogram[[#This Row],[Data przyjęcia ]]+30","v":"1900-01-30"},null,null,null,null,null,null,null,null,null,{"$f":"Harmonogram[[#This Row],[P: \nSzycie]]","v":0},null,null,null,null,null,null,null,null,null,{"$f":"SUM(Harmonogram[[#This Row],[P: Spawanie]:[P: Montaż]])","v":0},null,null,{"$f":"Harmonogram[[#This Row],[Realna data wydania]]+365","v":"1900-12-30"},null,{"$f":"IF(Harmonogram[[#This Row],[Realna data wydania]]=0,\"\",MONTH(Harmonogram[[#This Row],[Realna data wydania]]))","v":""},{"$f":"IF(AND(Harmonogram[[#This Row],[Realna data wydania]]>0,Harmonogram[[#This Row],[Realna data wydania]]<TODAY()),\"Wydany\",IF(Harmonogram[[#This Row],[Realna data skończenia]]>0,\"Zrobiony\",\"\"))","v":""}]
[null,null,null,null,null,{"$f":"Harmonogram[[#This Row],[Data przyjęcia ]]+30","v":"1900-01-30"},null,null,null,null,null,null,null,null,null,{"$f":"Harmonogram[[#This Row],[P: \nSzycie]]","v":0},null,null,null,null,null,null,null,null,null,{"$f":"SUM(Harmonogram[[#This Row],[P: Spawanie]:[P: Montaż]])","v":0},null,null,{"$f":"Harmonogram[[#This Row],[Realna data wydania]]+365","v":"1900-12-30"},null,{"$f":"IF(Harmonogram[[#This Row],[Realna data wydania]]=0,\"\",MONTH(Harmonogram[[#This Row],[Realna data wydania]]))","v":""},{"$f":"IF(AND(Harmonogram[[#This Row],[Realna data wydania]]>0,Harmonogram[[#This Row],[Realna data wydania]]<TODAY()),\"Wydany\",IF(Harmonogram[[#This Row],[Realna data skończenia]]>0,\"Zrobiony\",\"\"))","v":""}]
[null,null,null,null,null,{"$f":"Harmonogram[[#This Row],[Data przyjęcia ]]+30","v":"1900-01-30"},null,null,null,null,null,null,null,null,null,{"$f":"Harmonogram[[#This Row],[P: \nSzycie]]","v":0},null,null,null,null,null,null,null,null,null,{"$f":"SUM(Harmonogram[[#This Row],[P: Spawanie]:[P: Montaż]])","v":0},null,null,{"$f":"Harmonogram[[#This Row],[Realna data wydania]]+365","v":"1900-12-30"},null,{"$f":"IF(Harmonogram[[#This Row],[Realna data wydania]]=0,\"\",MONTH(Harmonogram[[#This Row],[Realna data wydania]]))","v":""},{"$f":"IF(AND(Harmonogram[[#This Row],[Realna data wydania]]>0,Harmonogram[[#This Row],[Realna data wydania]]<TODAY()),\"Wydany\",IF(Harmonogram[[#This Row],[Realna data skończenia]]>0,\"Zrobiony\",\"\"))","v":""}]
[null,null,null,null,null,{"$f":"Harmonogram[[#This Row],[Data przyjęcia ]]+30","v":"1900-01-30"},null,null,null,null,null,null,null,null,null,{"$f":"Harmonogram[[#This Row],[P: \nSzycie]]","v":0},null,null,null,null,null,null,null,null,null,{"$f":"SUM(Harmonogram[[#This Row],[P: Spawanie]:[P: Montaż]])","v":0},null,null,{"$f":"Harmonogram[[#This Row],[Realna data wydania]]+365","v":"1900-12-30"},null,{"$f":"IF(Harmonogram[[#This Row],[Realna data wydania]]=0,\"\",MONTH(Harmonogram[[#This Row],[Realna data wydania]]))","v":""},{"$f":"IF(AND(Harmonogram[[#This Row],[Realna data wydania]]>0,Harmonogram[[#This Row],[Realna data wydania]]<TODAY()),\"Wydany\",IF(Harmonogram[[#This Row],[Realna data skończenia]]>0,\"Zrobiony\",\"\"))","v":""}]
[null,null,null,null,null,{"$f":"Harmonogram[[#This Row],[Data przyjęcia ]]+30","v":"1900-01-30"},null,null,null,null,null,null,null,null,null,{"$f":"Harmonogram[[#This Row],[P: \nSzycie]]","v":0},null,null,null,null,null,null,null,null,null,{"$f":"SUM(Harmonogram[[#This Row],[P: Spawanie]:[P: Montaż]])","v":0},null,null,{"$f":"Harmonogram[[#This Row],[Realna data wydania]]+365","v":"1900-12-30"},null,{"$f":"IF(Harmonogram[[#This Row],[Realna data wydania]]=0,\"\",MONTH(Harmonogram[[#This Row],[Realna data wydania]]))","v":""},{"$f":"IF(AND(Harmonogram[[#This Row],[Realna data wydania]]>0,Harmonogram[[#This Row],[Realna data wydania]]<TODAY()),\"Wydany\",IF(Harmonogram[[#This Row],[Realna data skończenia]]>0,\"Zrobiony\",\"\"))","v":""}]
[null,null,null,null,null,{"$f":"Harmonogram[[#This Row],[Data przyjęcia ]]+30","v":"1900-01-30"},null,null,null,null,null,null,null,null,null,{"$f":"Harmonogram[[#This Row],[P: \nSzycie]]","v":0},null,null,null,null,null,null,null,null,null,{"$f":"SUM(Harmonogram[[#This Row],[P: Spawanie]:[P: Montaż]])","v":0},null,null,{"$f":"Harmonogram[[#This Row],[Realna data wydania]]+365","v":"1900-12-30"},null,{"$f":"IF(Harmonogram[[#This Row],[Realna data wydania]]=0,\"\",MONTH(Harmonogram[[#This Row],[Realna data wydania]]))","v":""},{"$f":"IF(AND(Harmonogram[[#This Row],[Realna data wydania]]>0,Harmonogram[[#This Row],[Realna data wydania]]<TODAY()),\"Wydany\",IF(Harmonogram[[#This Row],[Realna data skończenia]]>0,\"Zrobiony\",\"\"))","v":""}]
[null,null,null,null,null,{"$f":"Harmonogram[[#This Row],[Data przyjęcia ]]+30","v":"1900-01-30"},null,null,null,null,null,null,null,null,null,{"$f":"Harmonogram[[#This Row],[P: \nSzycie]]","v":0},null,null,null,null,null,null,null,null,null,{"$f":"SUM(Harmonogram[[#This Row],[P: Spawanie]:[P: Montaż]])","v":0},null,null,{"$f":"Harmonogram[[#This Row],[Realna data wydania]]+365","v":"1900-12-30"},null,{"$f":"IF(Harmonogram[[#This Row],[Realna data wydania]]=0,\"\",MONTH(Harmonogram[[#This Row],[Realna data wydania]]))","v":""},{"$f":"IF(AND(Harmonogram[[#This Row],[Realna data wydania]]>0,Harmonogram[[#This Row],[Realna data wydania]]<TODAY()),\"Wydany\",IF(Harmonogram[[#This Row],[Realna data skończenia]]>0,\"Zrobiony\",\"\"))","v":""}]
[null,null,null,null,null,{"$f":"Harmonogram[[#This Row],[Data przyjęcia ]]+30","v":"1900-01-30"},null,null,null,null,null,null,null,null,null,{"$f":"Harmonogram[[#This Row],[P: \nSzycie]]","v":0},null,null,null,null,null,null,null,null,null,{"$f":"SUM(Harmonogram[[#This Row],[P: Spawanie]:[P: Montaż]])","v":0},null,null,{"$f":"Harmonogram[[#This Row],[Realna data wydania]]+365","v":"1900-12-30"},null,{"$f":"IF(Harmonogram[[#This Row],[Realna data wydania]]=0,\"\",MONTH(Harmonogram[[#This Row],[Realna data wydania]]))","v":""},{"$f":"IF(AND(Harmonogram[[#This Row],[Realna data wydania]]>0,Harmonogram[[#This Row],[Realna data wydania]]<TODAY()),\"Wydany\",IF(Harmonogram[[#This Row],[Realna data skończenia]]>0,\"Zrobiony\",\"\"))","v":""}]
[null,null,null,null,null,{"$f":"Harmonogram[[#This Row],[Data przyjęcia ]]+30","v":"1900-01-30"},null,null,null,null,null,null,null,null,null,{"$f":"Harmonogram[[#This Row],[P: \nSzycie]]","v":0},null,null,null,null,null,null,null,null,null,{"$f":"SUM(Harmonogram[[#This Row],[P: Spawanie]:[P: Montaż]])","v":0},null,null,{"$f":"Harmonogram[[#This Row],[Realna data wydania]]+365","v":"1900-12-30"},null,{"$f":"IF(Harmonogram[[#This Row],[Realna data wydania]]=0,\"\",MONTH(Harmonogram[[#This Row],[Realna data wydania]]))","v":""},{"$f":"IF(AND(Harmonogram[[#This Row],[Realna data wydania]]>0,Harmonogram[[#This Row],[Realna data wydania]]<TODAY()),\"Wydany\",IF(Harmonogram[[#This Row],[Realna data skończenia]]>0,\"Zrobiony\",\"\"))","v":""}]
[null,null,null,null,null,{"$f":"Harmonogram[[#This Row],[Data przyjęcia ]]+30","v":"1900-01-30"},null,null,null,null,null,null,null,null,null,{"$f":"Harmonogram[[#This Row],[P: \nSzycie]]","v":0},null,null,null,null,null,null,null,null,null,{"$f":"SUM(Harmonogram[[#This Row],[P: Spawanie]:[P: Montaż]])","v":0},null,null,{"$f":"Harmonogram[[#This Row],[Realna data wydania]]+365","v":"1900-12-30"},null,{"$f":"IF(Harmonogram[[#This Row],[Realna data wydania]]=0,\"\",MONTH(Harmonogram[[#This Row],[Realna data wydania]]))","v":""},{"$f":"IF(AND(Harmonogram[[#This Row],[Realna data wydania]]>0,Harmonogram[[#This Row],[Realna data wydania]]<TODAY()),\"Wydany\",IF(Harmonogram[[#This Row],[Realna data skończenia]]>0,\"Zrobiony\",\"\"))","v":""}]
[null,null,null,null,null,{"$f":"Harmonogram[[#This Row],[Data przyjęcia ]]+30","v":"1900-01-30"},null,null,null,null,null,null,null,null,null,{"$f":"Harmonogram[[#This Row],[P: \nSzycie]]","v":0},null,null,null,null,null,null,null,null,null,{"$f":"SUM(Harmonogram[[#This Row],[P: Spawanie]:[P: Montaż]])","v":0},null,null,{"$f":"Harmonogram[[#This Row],[Realna data wydania]]+365","v":"1900-12-30"},null,{"$f":"IF(Harmonogram[[#This Row],[Realna data wydania]]=0,\"\",MONTH(Harmonogram[[#This Row],[Realna data wydania]]))","v":""},{"$f":"IF(AND(Harmonogram[[#This Row],[Realna data wydania]]>0,Harmonogram[[#This Row],[Realna data wydania]]<TODAY()),\"Wydany\",IF(Harmonogram[[#This Row],[Realna data skończenia]]>0,\"Zrobiony\",\"\"))","v":""}]
[null,null,null,null,null,{"$f":"Harmonogram[[#This Row],[Data przyjęcia ]]+30","v":"1900-01-30"},null,null,null,null,null,null,null,null,null,{"$f":"Harmonogram[[#This Row],[P: \nSzycie]]","v":0},null,null,null,null,null,null,null,null,null,{"$f":"SUM(Harmonogram[[#This Row],[P: Spawanie]:[P: Montaż]])","v":0},null,null,{"$f":"Harmonogram[[#This Row],[Realna data wydania]]+365","v":"1900-12-30"},null,{"$f":"IF(Harmonogram[[#This Row],[Realna data wydania]]=0,\"\",MONTH(Harmonogram[[#This Row],[Realna data wydania]]))","v":""},{"$f":"IF(AND(Harmonogram[[#This Row],[Realna data wydania]]>0,Harmonogram[[#This Row],[Realna data wydania]]<TODAY()),\"Wydany\",IF(Harmonogram[[#This Row],[Realna data skończenia]]>0,\"Zrobiony\",\"\"))","v":""}]
[null,null,null,null,null,{"$f":"Harmonogram[[#This Row],[Data przyjęcia ]]+30","v":"1900-01-30"},null,null,null,null,null,null,null,null,null,{"$f":"Harmonogram[[#This Row],[P: \nSzycie]]","v":0},null,null,null,null,null,null,null,null,null,{"$f":"SUM(Harmonogram[[#This Row],[P: Spawanie]:[P: Montaż]])","v":0},null,null,{"$f":"Harmonogram[[#This Row],[Realna data wydania]]+365","v":"1900-12-30"},null,{"$f":"IF(Harmonogram[[#This Row],[Realna data wydania]]=0,\"\",MONTH(Harmonogram[[#This Row],[Realna data wydania]]))","v":""},{"$f":"IF(AND(Harmonogram[[#This Row],[Realna data wydania]]>0,Harmonogram[[#This Row],[Realna data wydania]]<TODAY()),\"Wydany\",IF(Harmonogram[[#This Row],[Realna data skończenia]]>0,\"Zrobiony\",\"\"))","v":""}]
[null,null,null,null,null,{"$f":"Harmonogram[[#This Row],[Data przyjęcia ]]+30","v":"1900-01-30"},null,null,null,null,null,null,null,null,null,{"$f":"Harmonogram[[#This Row],[P: \nSzycie]]","v":0},null,null,null,null,null,null,null,null,null,{"$f":"SUM(Harmonogram[[#This Row],[P: Spawanie]:[P: Montaż]])","v":0},null,null,{"$f":"Harmonogram[[#This Row],[Realna data wydania]]+365","v":"1900-12-30"},null,{"$f":"IF(Harmonogram[[#This Row],[Realna data wydania]]=0,\"\",MONTH(Harmonogram[[#This Row],[Realna data wydania]]))","v":""},{"$f":"IF(AND(Harmonogram[[#This Row],[Realna data wydania]]>0,Harmonogram[[#This Row],[Realna data wydania]]<TODAY()),\"Wydany\",IF(Harmonogram[[#This Row],[Realna data skończenia]]>0,\"Zrobiony\",\"\"))","v":""}]
[null,null,null,null,null,{"$f":"Harmonogram[[#This Row],[Data przyjęcia ]]+30","v":"1900-01-30"},null,null,null,null,null,null,null,null,null,{"$f":"Harmonogram[[#This Row],[P: \nSzycie]]","v":0},null,null,null,null,null,null,null,null,null,{"$f":"SUM(Harmonogram[[#This Row],[P: Spawanie]:[P: Montaż]])","v":0},null,null,{"$f":"Harmonogram[[#This Row],[Realna data wydania]]+365","v":"1900-12-30"},null,{"$f":"IF(Harmonogram[[#This Row],[Realna data wydania]]=0,\"\",MONTH(Harmonogram[[#This Row],[Realna data wydania]]))","v":""},{"$f":"IF(AND(Harmonogram[[#This Row],[Realna data wydania]]>0,Harmonogram[[#This Row],[Realna data wydania]]<TODAY()),\"Wydany\",IF(Harmonogram[[#This Row],[Realna data skończenia]]>0,\"Zrobiony\",\"\"))","v":""}]
[null,null,null,null,null,{"$f":"Harmonogram[[#This Row],[Data przyjęcia ]]+30","v":"1900-01-30"},null,null,null,null,null,null,null,null,null,{"$f":"Harmonogram[[#This Row],[P: \nSzycie]]","v":0},null,null,null,null,null,null,null,null,null,{"$f":"SUM(Harmonogram[[#This Row],[P: Spawanie]:[P: Montaż]])","v":0},null,null,{"$f":"Harmonogram[[#This Row],[Realna data wydania]]+365","v":"1900-12-30"},null,{"$f":"IF(Harmonogram[[#This Row],[Realna data wydania]]=0,\"\",MONTH(Harmonogram[[#This Row],[Realna data wydania]]))","v":""},{"$f":"IF(AND(Harmonogram[[#This Row],[Realna data wydania]]>0,Harmonogram[[#This Row],[Realna data wydania]]<TODAY()),\"Wydany\",IF(Harmonogram[[#This Row],[Realna data skończenia]]>0,\"Zrobiony\",\"\"))","v":""}]
[null,null,null,null,null,{"$f":"Harmonogram[[#This Row],[Data przyjęcia ]]+30","v":"1900-01-30"},null,null,null,null,null,null,null,null,null,{"$f":"Harmonogram[[#This Row],[P: \nSzycie]]","v":0},null,null,null,null,null,null,null,null,null,{"$f":"SUM(Harmonogram[[#This Row],[P: Spawanie]:[P: Montaż]])","v":0},null,null,{"$f":"Harmonogram[[#This Row],[Realna data wydania]]+365","v":"1900-12-30"},null,{"$f":"IF(Harmonogram[[#This Row],[Realna data wydania]]=0,\"\",MONTH(Harmonogram[[#This Row],[Realna data wydania]]))","v":""},{"$f":"IF(AND(Harmonogram[[#This Row],[Realna data wydania]]>0,Harmonogram[[#This Row],[Realna data wydania]]<TODAY()),\"Wydany\",IF(Harmonogram[[#This Row],[Realna data skończenia]]>0,\"Zrobiony\",\"\"))","v":""}]
[null,null,null,null,null,{"$f":"Harmonogram[[#This Row],[Data przyjęcia ]]+30","v":"1900-01-30"},null,null,null,null,null,null,null,null,null,{"$f":"Harmonogram[[#This Row],[P: \nSzycie]]","v":0},null,null,null,null,null,null,null,null,null,{"$f":"SUM(Harmonogram[[#This Row],[P: Spawanie]:[P: Montaż]])","v":0},null,null,{"$f":"Harmonogram[[#This Row],[Realna data wydania]]+365","v":"1900-12-30"},null,{"$f":"IF(Harmonogram[[#This Row],[Realna data wydania]]=0,\"\",MONTH(Harmonogram[[#This Row],[Realna data wydania]]))","v":""},{"$f":"IF(AND(Harmonogram[[#This Row],[Realna data wydania]]>0,Harmonogram[[#This Row],[Realna data wydania]]<TODAY()),\"Wydany\",IF(Harmonogram[[#This Row],[Realna data skończenia]]>0,\"Zrobiony\",\"\"))","v":""}]
[null,null,null,null,null,{"$f":"Harmonogram[[#This Row],[Data przyjęcia ]]+30","v":"1900-01-30"},null,null,null,null,null,null,null,null,null,{"$f":"Harmonogram[[#This Row],[P: \nSzycie]]","v":0},null,null,null,null,null,null,null,null,null,{"$f":"SUM(Harmonogram[[#This Row],[P: Spawanie]:[P: Montaż]])","v":0},null,null,{"$f":"Harmonogram[[#This Row],[Realna data wydania]]+365","v":"1900-12-30"},null,{"$f":"IF(Harmonogram[[#This Row],[Realna data wydania]]=0,\"\",MONTH(Harmonogram[[#This Row],[Realna data wydania]]))","v":""},{"$f":"IF(AND(Harmonogram[[#This Row],[Realna data wydania]]>0,Harmonogram[[#This Row],[Realna data wydania]]<TODAY()),\"Wydany\",IF(Harmonogram[[#This Row],[Realna data skończenia]]>0,\"Zrobiony\",\"\"))","v":""}]
[null,null,null,null,null,{"$f":"Harmonogram[[#This Row],[Data przyjęcia ]]+30","v":"1900-01-30"},null,null,null,null,null,null,null,null,null,{"$f":"Harmonogram[[#This Row],[P: \nSzycie]]","v":0},null,null,null,null,null,null,null,null,null,{"$f":"SUM(Harmonogram[[#This Row],[P: Spawanie]:[P: Montaż]])","v":0},null,null,{"$f":"Harmonogram[[#This Row],[Realna data wydania]]+365","v":"1900-12-30"},null,{"$f":"IF(Harmonogram[[#This Row],[Realna data wydania]]=0,\"\",MONTH(Harmonogram[[#This Row],[Realna data wydania]]))","v":""},{"$f":"IF(AND(Harmonogram[[#This Row],[Realna data wydania]]>0,Harmonogram[[#This Row],[Realna data wydania]]<TODAY()),\"Wydany\",IF(Harmonogram[[#This Row],[Realna data skończenia]]>0,\"Zrobiony\",\"\"))","v":""}]
[null,null,null,null,null,{"$f":"Harmonogram[[#This Row],[Data przyjęcia ]]+30","v":"1900-01-30"},null,null,null,null,null,null,null,null,null,{"$f":"Harmonogram[[#This Row],[P: \nSzycie]]","v":0},null,null,null,null,null,null,null,null,null,{"$f":"SUM(Harmonogram[[#This Row],[P: Spawanie]:[P: Montaż]])","v":0},null,null,{"$f":"Harmonogram[[#This Row],[Realna data wydania]]+365","v":"1900-12-30"},null,{"$f":"IF(Harmonogram[[#This Row],[Realna data wydania]]=0,\"\",MONTH(Harmonogram[[#This Row],[Realna data wydania]]))","v":""},{"$f":"IF(AND(Harmonogram[[#This Row],[Realna data wydania]]>0,Harmonogram[[#This Row],[Realna data wydania]]<TODAY()),\"Wydany\",IF(Harmonogram[[#This Row],[Realna data skończenia]]>0,\"Zrobiony\",\"\"))","v":""}]
[null,null,null,null,null,{"$f":"Harmonogram[[#This Row],[Data przyjęcia ]]+30","v":"1900-01-30"},null,null,null,null,null,null,null,null,null,{"$f":"Harmonogram[[#This Row],[P: \nSzycie]]","v":0},null,null,null,null,null,null,null,null,null,{"$f":"SUM(Harmonogram[[#This Row],[P: Spawanie]:[P: Montaż]])","v":0},null,null,{"$f":"Harmonogram[[#This Row],[Realna data wydania]]+365","v":"1900-12-30"},null,{"$f":"IF(Harmonogram[[#This Row],[Realna data wydania]]=0,\"\",MONTH(Harmonogram[[#This Row],[Realna data wydania]]))","v":""},{"$f":"IF(AND(Harmonogram[[#This Row],[Realna data wydania]]>0,Harmonogram[[#This Row],[Realna data wydania]]<TODAY()),\"Wydany\",IF(Harmonogram[[#This Row],[Realna data skończenia]]>0,\"Zrobiony\",\"\"))","v":""}]
[null,null,null,null,null,{"$f":"Harmonogram[[#This Row],[Data przyjęcia ]]+30","v":"1900-01-30"},null,null,null,null,null,null,null,null,null,{"$f":"Harmonogram[[#This Row],[P: \nSzycie]]","v":0},null,null,null,null,null,null,null,null,null,{"$f":"SUM(Harmonogram[[#This Row],[P: Spawanie]:[P: Montaż]])","v":0},null,null,{"$f":"Harmonogram[[#This Row],[Realna data wydania]]+365","v":"1900-12-30"},null,{"$f":"IF(Harmonogram[[#This Row],[Realna data wydania]]=0,\"\",MONTH(Harmonogram[[#This Row],[Realna data wydania]]))","v":""},{"$f":"IF(AND(Harmonogram[[#This Row],[Realna data wydania]]>0,Harmonogram[[#This Row],[Realna data wydania]]<TODAY()),\"Wydany\",IF(Harmonogram[[#This Row],[Realna data skończenia]]>0,\"Zrobiony\",\"\"))","v":""}]
[null,null,null,null,null,{"$f":"Harmonogram[[#This Row],[Data przyjęcia ]]+30","v":"1900-01-30"},null,null,null,null,null,null,null,null,null,{"$f":"Harmonogram[[#This Row],[P: \nSzycie]]","v":0},null,null,null,null,null,null,null,null,null,{"$f":"SUM(Harmonogram[[#This Row],[P: Spawanie]:[P: Montaż]])","v":0},null,null,{"$f":"Harmonogram[[#This Row],[Realna data wydania]]+365","v":"1900-12-30"},null,{"$f":"IF(Harmonogram[[#This Row],[Realna data wydania]]=0,\"\",MONTH(Harmonogram[[#This Row],[Realna data wydania]]))","v":""},{"$f":"IF(AND(Harmonogram[[#This Row],[Realna data wydania]]>0,Harmonogram[[#This Row],[Realna data wydania]]<TODAY()),\"Wydany\",IF(Harmonogram[[#This Row],[Realna data skończenia]]>0,\"Zrobiony\",\"\"))","v":""}]
[null,null,null,null,null,{"$f":"Harmonogram[[#This Row],[Data przyjęcia ]]+30","v":"1900-01-30"},null,null,null,null,null,null,null,null,null,{"$f":"Harmonogram[[#This Row],[P: \nSzycie]]","v":0},null,null,null,null,null,null,null,null,null,{"$f":"SUM(Harmonogram[[#This Row],[P: Spawanie]:[P: Montaż]])","v":0},null,null,{"$f":"Harmonogram[[#This Row],[Realna data wydania]]+365","v":"1900-12-30"},null,{"$f":"IF(Harmonogram[[#This Row],[Realna data wydania]]=0,\"\",MONTH(Harmonogram[[#This Row],[Realna data wydania]]))","v":""},{"$f":"IF(AND(Harmonogram[[#This Row],[Realna data wydania]]>0,Harmonogram[[#This Row],[Realna data wydania]]<TODAY()),\"Wydany\",IF(Harmonogram[[#This Row],[Realna data skończenia]]>0,\"Zrobiony\",\"\"))","v":""}]
[null,null,null,null,null,{"$f":"Harmonogram[[#This Row],[Data przyjęcia ]]+30","v":"1900-01-30"},null,null,null,null,null,null,null,null,null,{"$f":"Harmonogram[[#This Row],[P: \nSzycie]]","v":0},null,null,null,null,null,null,null,null,null,{"$f":"SUM(Harmonogram[[#This Row],[P: Spawanie]:[P: Montaż]])","v":0},null,null,{"$f":"Harmonogram[[#This Row],[Realna data wydania]]+365","v":"1900-12-30"},null,{"$f":"IF(Harmonogram[[#This Row],[Realna data wydania]]=0,\"\",MONTH(Harmonogram[[#This Row],[Realna data wydania]]))","v":""},{"$f":"IF(AND(Harmonogram[[#This Row],[Realna data wydania]]>0,Harmonogram[[#This Row],[Realna data wydania]]<TODAY()),\"Wydany\",IF(Harmonogram[[#This Row],[Realna data skończenia]]>0,\"Zrobiony\",\"\"))","v":""}]
[null,null,null,null,null,{"$f":"Harmonogram[[#This Row],[Data przyjęcia ]]+30","v":"1900-01-30"},null,null,null,null,null,null,null,null,null,{"$f":"Harmonogram[[#This Row],[P: \nSzycie]]","v":0},null,null,null,null,null,null,null,null,null,{"$f":"SUM(Harmonogram[[#This Row],[P: Spawanie]:[P: Montaż]])","v":0},null,null,{"$f":"Harmonogram[[#This Row],[Realna data wydania]]+365","v":"1900-12-30"},null,{"$f":"IF(Harmonogram[[#This Row],[Realna data wydania]]=0,\"\",MONTH(Harmonogram[[#This Row],[Realna data wydania]]))","v":""},{"$f":"IF(AND(Harmonogram[[#This Row],[Realna data wydania]]>0,Harmonogram[[#This Row],[Realna data wydania]]<TODAY()),\"Wydany\",IF(Harmonogram[[#This Row],[Realna data skończenia]]>0,\"Zrobiony\",\"\"))","v":""}]
[null,null,null,null,null,{"$f":"Harmonogram[[#This Row],[Data przyjęcia ]]+30","v":"1900-01-30"},null,null,null,null,null,null,null,null,null,{"$f":"Harmonogram[[#This Row],[P: \nSzycie]]","v":0},null,null,null,null,null,null,null,null,null,{"$f":"SUM(Harmonogram[[#This Row],[P: Spawanie]:[P: Montaż]])","v":0},null,null,{"$f":"Harmonogram[[#This Row],[Realna data wydania]]+365","v":"1900-12-30"},null,{"$f":"IF(Harmonogram[[#This Row],[Realna data wydania]]=0,\"\",MONTH(Harmonogram[[#This Row],[Realna data wydania]]))","v":""},{"$f":"IF(AND(Harmonogram[[#This Row],[Realna data wydania]]>0,Harmonogram[[#This Row],[Realna data wydania]]<TODAY()),\"Wydany\",IF(Harmonogram[[#This Row],[Realna data skończenia]]>0,\"Zrobiony\",\"\"))","v":""}]
[null,null,null,null,null,{"$f":"Harmonogram[[#This Row],[Data przyjęcia ]]+30","v":"1900-01-30"},null,null,null,null,null,null,null,null,null,{"$f":"Harmonogram[[#This Row],[P: \nSzycie]]","v":0},null,null,null,null,null,null,null,null,null,{"$f":"SUM(Harmonogram[[#This Row],[P: Spawanie]:[P: Montaż]])","v":0},null,null,{"$f":"Harmonogram[[#This Row],[Realna data wydania]]+365","v":"1900-12-30"},null,{"$f":"IF(Harmonogram[[#This Row],[Realna data wydania]]=0,\"\",MONTH(Harmonogram[[#This Row],[Realna data wydania]]))","v":""},{"$f":"IF(AND(Harmonogram[[#This Row],[Realna data wydania]]>0,Harmonogram[[#This Row],[Realna data wydania]]<TODAY()),\"Wydany\",IF(Harmonogram[[#This Row],[Realna data skończenia]]>0,\"Zrobiony\",\"\"))","v":""}]
[null,null,null,null,null,{"$f":"Harmonogram[[#This Row],[Data przyjęcia ]]+30","v":"1900-01-30"},null,null,null,null,null,null,null,null,null,{"$f":"Harmonogram[[#This Row],[P: \nSzycie]]","v":0},null,null,null,null,null,null,null,null,null,{"$f":"SUM(Harmonogram[[#This Row],[P: Spawanie]:[P: Montaż]])","v":0},null,null,{"$f":"Harmonogram[[#This Row],[Realna data wydania]]+365","v":"1900-12-30"},null,{"$f":"IF(Harmonogram[[#This Row],[Realna data wydania]]=0,\"\",MONTH(Harmonogram[[#This Row],[Realna data wydania]]))","v":""},{"$f":"IF(AND(Harmonogram[[#This Row],[Realna data wydania]]>0,Harmonogram[[#This Row],[Realna data wydania]]<TODAY()),\"Wydany\",IF(Harmonogram[[#This Row],[Realna data skończenia]]>0,\"Zrobiony\",\"\"))","v":""}]
[null,null,null,null,null,{"$f":"Harmonogram[[#This Row],[Data przyjęcia ]]+30","v":"1900-01-30"},null,null,null,null,null,null,null,null,null,{"$f":"Harmonogram[[#This Row],[P: \nSzycie]]","v":0},null,null,null,null,null,null,null,null,null,{"$f":"SUM(Harmonogram[[#This Row],[P: Spawanie]:[P: Montaż]])","v":0},null,null,{"$f":"Harmonogram[[#This Row],[Realna data wydania]]+365","v":"1900-12-30"},null,{"$f":"IF(Harmonogram[[#This Row],[Realna data wydania]]=0,\"\",MONTH(Harmonogram[[#This Row],[Realna data wydania]]))","v":""},{"$f":"IF(AND(Harmonogram[[#This Row],[Realna data wydania]]>0,Harmonogram[[#This Row],[Realna data wydania]]<TODAY()),\"Wydany\",IF(Harmonogram[[#This Row],[Realna data skończenia]]>0,\"Zrobiony\",\"\"))","v":""}]
[null,null,null,null,null,{"$f":"Harmonogram[[#This Row],[Data przyjęcia ]]+30","v":"1900-01-30"},null,null,null,null,null,null,null,null,null,{"$f":"Harmonogram[[#This Row],[P: \nSzycie]]","v":0},null,null,null,null,null,null,null,null,null,{"$f":"SUM(Harmonogram[[#This Row],[P: Spawanie]:[P: Montaż]])","v":0},null,null,{"$f":"Harmonogram[[#This Row],[Realna data wydania]]+365","v":"1900-12-30"},null,{"$f":"IF(Harmonogram[[#This Row],[Realna data wydania]]=0,\"\",MONTH(Harmonogram[[#This Row],[Realna data wydania]]))","v":""},{"$f":"IF(AND(Harmonogram[[#This Row],[Realna data wydania]]>0,Harmonogram[[#This Row],[Realna data wydania]]<TODAY()),\"Wydany\",IF(Harmonogram[[#This Row],[Realna data skończenia]]>0,\"Zrobiony\",\"\"))","v":""}]
[null,null,null,null,null,{"$f":"Harmonogram[[#This Row],[Data przyjęcia ]]+30","v":"1900-01-30"},null,null,null,null,null,null,null,null,null,{"$f":"Harmonogram[[#This Row],[P: \nSzycie]]","v":0},null,null,null,null,null,null,null,null,null,{"$f":"SUM(Harmonogram[[#This Row],[P: Spawanie]:[P: Montaż]])","v":0},null,null,{"$f":"Harmonogram[[#This Row],[Realna data wydania]]+365","v":"1900-12-30"},null,{"$f":"IF(Harmonogram[[#This Row],[Realna data wydania]]=0,\"\",MONTH(Harmonogram[[#This Row],[Realna data wydania]]))","v":""},{"$f":"IF(AND(Harmonogram[[#This Row],[Realna data wydania]]>0,Harmonogram[[#This Row],[Realna data wydania]]<TODAY()),\"Wydany\",IF(Harmonogram[[#This Row],[Realna data skończenia]]>0,\"Zrobiony\",\"\"))","v":""}]
[null,null,null,null,null,{"$f":"Harmonogram[[#This Row],[Data przyjęcia ]]+30","v":"1900-01-30"},null,null,null,null,null,null,null,null,null,{"$f":"Harmonogram[[#This Row],[P: \nSzycie]]","v":0},null,null,null,null,null,null,null,null,null,{"$f":"SUM(Harmonogram[[#This Row],[P: Spawanie]:[P: Montaż]])","v":0},null,null,{"$f":"Harmonogram[[#This Row],[Realna data wydania]]+365","v":"1900-12-30"},null,{"$f":"IF(Harmonogram[[#This Row],[Realna data wydania]]=0,\"\",MONTH(Harmonogram[[#This Row],[Realna data wydania]]))","v":""},{"$f":"IF(AND(Harmonogram[[#This Row],[Realna data wydania]]>0,Harmonogram[[#This Row],[Realna data wydania]]<TODAY()),\"Wydany\",IF(Harmonogram[[#This Row],[Realna data skończenia]]>0,\"Zrobiony\",\"\"))","v":""}]
[null,null,null,null,null,{"$f":"Harmonogram[[#This Row],[Data przyjęcia ]]+30","v":"1900-01-30"},null,null,null,null,null,null,null,null,null,{"$f":"Harmonogram[[#This Row],[P: \nSzycie]]","v":0},null,null,null,null,null,null,null,null,null,{"$f":"SUM(Harmonogram[[#This Row],[P: Spawanie]:[P: Montaż]])","v":0},null,null,{"$f":"Harmonogram[[#This Row],[Realna data wydania]]+365","v":"1900-12-30"},null,{"$f":"IF(Harmonogram[[#This Row],[Realna data wydania]]=0,\"\",MONTH(Harmonogram[[#This Row],[Realna data wydania]]))","v":""},{"$f":"IF(AND(Harmonogram[[#This Row],[Realna data wydania]]>0,Harmonogram[[#This Row],[Realna data wydania]]<TODAY()),\"Wydany\",IF(Harmonogram[[#This Row],[Realna data skończenia]]>0,\"Zrobiony\",\"\"))","v":""}]
[null,null,null,null,null,{"$f":"Harmonogram[[#This Row],[Data przyjęcia ]]+30","v":"1900-01-30"},null,null,null,null,null,null,null,null,null,{"$f":"Harmonogram[[#This Row],[P: \nSzycie]]","v":0},null,null,null,null,null,null,null,null,null,{"$f":"SUM(Harmonogram[[#This Row],[P: Spawanie]:[P: Montaż]])","v":0},null,null,{"$f":"Harmonogram[[#This Row],[Realna data wydania]]+365","v":"1900-12-30"},null,{"$f":"IF(Harmonogram[[#This Row],[Realna data wydania]]=0,\"\",MONTH(Harmonogram[[#This Row],[Realna data wydania]]))","v":""},{"$f":"IF(AND(Harmonogram[[#This Row],[Realna data wydania]]>0,Harmonogram[[#This Row],[Realna data wydania]]<TODAY()),\"Wydany\",IF(Harmonogram[[#This Row],[Realna data skończenia]]>0,\"Zrobiony\",\"\"))","v":""}]
[null,null,null,null,null,{"$f":"Harmonogram[[#This Row],[Data przyjęcia ]]+30","v":"1900-01-30"},null,null,null,null,null,null,null,null,null,{"$f":"Harmonogram[[#This Row],[P: \nSzycie]]","v":0},null,null,null,null,null,null,null,null,null,{"$f":"SUM(Harmonogram[[#This Row],[P: Spawanie]:[P: Montaż]])","v":0},null,null,{"$f":"Harmonogram[[#This Row],[Realna data wydania]]+365","v":"1900-12-30"},null,{"$f":"IF(Harmonogram[[#This Row],[Realna data wydania]]=0,\"\",MONTH(Harmonogram[[#This Row],[Realna data wydania]]))","v":""},{"$f":"IF(AND(Harmonogram[[#This Row],[Realna data wydania]]>0,Harmonogram[[#This Row],[Realna data wydania]]<TODAY()),\"Wydany\",IF(Harmonogram[[#This Row],[Realna data skończenia]]>0,\"Zrobiony\",\"\"))","v":""}]
[null,null,null,null,null,{"$f":"Harmonogram[[#This Row],[Data przyjęcia ]]+30","v":"1900-01-30"},null,null,null,null,null,null,null,null,null,{"$f":"Harmonogram[[#This Row],[P: \nSzycie]]","v":0},null,null,null,null,null,null,null,null,null,{"$f":"SUM(Harmonogram[[#This Row],[P: Spawanie]:[P: Montaż]])","v":0},null,null,{"$f":"Harmonogram[[#This Row],[Realna data wydania]]+365","v":"1900-12-30"},null,{"$f":"IF(Harmonogram[[#This Row],[Realna data wydania]]=0,\"\",MONTH(Harmonogram[[#This Row],[Realna data wydania]]))","v":""},{"$f":"IF(AND(Harmonogram[[#This Row],[Realna data wydania]]>0,Harmonogram[[#This Row],[Realna data wydania]]<TODAY()),\"Wydany\",IF(Harmonogram[[#This Row],[Realna data skończenia]]>0,\"Zrobiony\",\"\"))","v":""}]
[null,null,null,null,null,{"$f":"Harmonogram[[#This Row],[Data przyjęcia ]]+30","v":"1900-01-30"},null,null,null,null,null,null,null,null,null,{"$f":"Harmonogram[[#This Row],[P: \nSzycie]]","v":0},null,null,null,null,null,null,null,null,null,{"$f":"SUM(Harmonogram[[#This Row],[P: Spawanie]:[P: Montaż]])","v":0},null,null,{"$f":"Harmonogram[[#This Row],[Realna data wydania]]+365","v":"1900-12-30"},null,{"$f":"IF(Harmonogram[[#This Row],[Realna data wydania]]=0,\"\",MONTH(Harmonogram[[#This Row],[Realna data wydania]]))","v":""},{"$f":"IF(AND(Harmonogram[[#This Row],[Realna data wydania]]>0,Harmonogram[[#This Row],[Realna data wydania]]<TODAY()),\"Wydany\",IF(Harmonogram[[#This Row],[Realna data skończenia]]>0,\"Zrobiony\",\"\"))","v":""}]
[null,null,null,null,null,{"$f":"Harmonogram[[#This Row],[Data przyjęcia ]]+30","v":"1900-01-30"},null,null,null,null,null,null,null,null,null,{"$f":"Harmonogram[[#This Row],[P: \nSzycie]]","v":0},null,null,null,null,null,null,null,null,null,{"$f":"SUM(Harmonogram[[#This Row],[P: Spawanie]:[P: Montaż]])","v":0},null,null,{"$f":"Harmonogram[[#This Row],[Realna data wydania]]+365","v":"1900-12-30"},null,{"$f":"IF(Harmonogram[[#This Row],[Realna data wydania]]=0,\"\",MONTH(Harmonogram[[#This Row],[Realna data wydania]]))","v":""},{"$f":"IF(AND(Harmonogram[[#This Row],[Realna data wydania]]>0,Harmonogram[[#This Row],[Realna data wydania]]<TODAY()),\"Wydany\",IF(Harmonogram[[#This Row],[Realna data skończenia]]>0,\"Zrobiony\",\"\"))","v":""}]
[null,null,null,null,null,{"$f":"Harmonogram[[#This Row],[Data przyjęcia ]]+30","v":"1900-01-30"},null,null,null,null,null,null,null,null,null,{"$f":"Harmonogram[[#This Row],[P: \nSzycie]]","v":0},null,null,null,null,null,null,null,null,null,{"$f":"SUM(Harmonogram[[#This Row],[P: Spawanie]:[P: Montaż]])","v":0},null,null,{"$f":"Harmonogram[[#This Row],[Realna data wydania]]+365","v":"1900-12-30"},null,{"$f":"IF(Harmonogram[[#This Row],[Realna data wydania]]=0,\"\",MONTH(Harmonogram[[#This Row],[Realna data wydania]]))","v":""},{"$f":"IF(AND(Harmonogram[[#This Row],[Realna data wydania]]>0,Harmonogram[[#This Row],[Realna data wydania]]<TODAY()),\"Wydany\",IF(Harmonogram[[#This Row],[Realna data skończenia]]>0,\"Zrobiony\",\"\"))","v":""}]
[null,null,null,null,null,{"$f":"Harmonogram[[#This Row],[Data przyjęcia ]]+30","v":"1900-01-30"},null,null,null,null,null,null,null,null,null,{"$f":"Harmonogram[[#This Row],[P: \nSzycie]]","v":0},null,null,null,null,null,null,null,null,null,{"$f":"SUM(Harmonogram[[#This Row],[P: Spawanie]:[P: Montaż]])","v":0},null,null,{"$f":"Harmonogram[[#This Row],[Realna data wydania]]+365","v":"1900-12-30"},null,{"$f":"IF(Harmonogram[[#This Row],[Realna data wydania]]=0,\"\",MONTH(Harmonogram[[#This Row],[Realna data wydania]]))","v":""},{"$f":"IF(AND(Harmonogram[[#This Row],[Realna data wydania]]>0,Harmonogram[[#This Row],[Realna data wydania]]<TODAY()),\"Wydany\",IF(Harmonogram[[#This Row],[Realna data skończenia]]>0,\"Zrobiony\",\"\"))","v":""}]
[null,null,null,null,null,{"$f":"Harmonogram[[#This Row],[Data przyjęcia ]]+30","v":"1900-01-30"},null,null,null,null,null,null,null,null,null,{"$f":"Harmonogram[[#This Row],[P: \nSzycie]]","v":0},null,null,null,null,null,null,null,null,null,{"$f":"SUM(Harmonogram[[#This Row],[P: Spawanie]:[P: Montaż]])","v":0},null,null,{"$f":"Harmonogram[[#This Row],[Realna data wydania]]+365","v":"1900-12-30"},null,{"$f":"IF(Harmonogram[[#This Row],[Realna data wydania]]=0,\"\",MONTH(Harmonogram[[#This Row],[Realna data wydania]]))","v":""},{"$f":"IF(AND(Harmonogram[[#This Row],[Realna data wydania]]>0,Harmonogram[[#This Row],[Realna data wydania]]<TODAY()),\"Wydany\",IF(Harmonogram[[#This Row],[Realna data skończenia]]>0,\"Zrobiony\",\"\"))","v":""}]
[null,null,null,null,null,{"$f":"Harmonogram[[#This Row],[Data przyjęcia ]]+30","v":"1900-01-30"},null,null,null,null,null,null,null,null,null,{"$f":"Harmonogram[[#This Row],[P: \nSzycie]]","v":0},null,null,null,null,null,null,null,null,null,{"$f":"SUM(Harmonogram[[#This Row],[P: Spawanie]:[P: Montaż]])","v":0},null,null,{"$f":"Harmonogram[[#This Row],[Realna data wydania]]+365","v":"1900-12-30"},null,{"$f":"IF(Harmonogram[[#This Row],[Realna data wydania]]=0,\"\",MONTH(Harmonogram[[#This Row],[Realna data wydania]]))","v":""},{"$f":"IF(AND(Harmonogram[[#This Row],[Realna data wydania]]>0,Harmonogram[[#This Row],[Realna data wydania]]<TODAY()),\"Wydany\",IF(Harmonogram[[#This Row],[Realna data skończenia]]>0,\"Zrobiony\",\"\"))","v":""}]
[null,null,null,null,null,{"$f":"Harmonogram[[#This Row],[Data przyjęcia ]]+30","v":"1900-01-30"},null,null,null,null,null,null,null,null,null,{"$f":"Harmonogram[[#This Row],[P: \nSzycie]]","v":0},null,null,null,null,null,null,null,null,null,{"$f":"SUM(Harmonogram[[#This Row],[P: Spawanie]:[P: Montaż]])","v":0},null,null,{"$f":"Harmonogram[[#This Row],[Realna data wydania]]+365","v":"1900-12-30"},null,{"$f":"IF(Harmonogram[[#This Row],[Realna data wydania]]=0,\"\",MONTH(Harmonogram[[#This Row],[Realna data wydania]]))","v":""},{"$f":"IF(AND(Harmonogram[[#This Row],[Realna data wydania]]>0,Harmonogram[[#This Row],[Realna data wydania]]<TODAY()),\"Wydany\",IF(Harmonogram[[#This Row],[Realna data skończenia]]>0,\"Zrobiony\",\"\"))","v":""}]
[null,null,null,null,null,{"$f":"Harmonogram[[#This Row],[Data przyjęcia ]]+30","v":"1900-01-30"},null,null,null,null,null,null,null,null,null,{"$f":"Harmonogram[[#This Row],[P: \nSzycie]]","v":0},null,null,null,null,null,null,null,null,null,{"$f":"SUM(Harmonogram[[#This Row],[P: Spawanie]:[P: Montaż]])","v":0},null,null,{"$f":"Harmonogram[[#This Row],[Realna data wydania]]+365","v":"1900-12-30"},null,{"$f":"IF(Harmonogram[[#This Row],[Realna data wydania]]=0,\"\",MONTH(Harmonogram[[#This Row],[Realna data wydania]]))","v":""},{"$f":"IF(AND(Harmonogram[[#This Row],[Realna data wydania]]>0,Harmonogram[[#This Row],[Realna data wydania]]<TODAY()),\"Wydany\",IF(Harmonogram[[#This Row],[Realna data skończenia]]>0,\"Zrobiony\",\"\"))","v":""}]
[null,null,null,null,null,{"$f":"Harmonogram[[#This Row],[Data przyjęcia ]]+30","v":"1900-01-30"},null,null,null,null,null,null,null,null,null,{"$f":"Harmonogram[[#This Row],[P: \nSzycie]]","v":0},null,null,null,null,null,null,null,null,null,{"$f":"SUM(Harmonogram[[#This Row],[P: Spawanie]:[P: Montaż]])","v":0},null,null,{"$f":"Harmonogram[[#This Row],[Realna data wydania]]+365","v":"1900-12-30"},null,{"$f":"IF(Harmonogram[[#This Row],[Realna data wydania]]=0,\"\",MONTH(Harmonogram[[#This Row],[Realna data wydania]]))","v":""},{"$f":"IF(AND(Harmonogram[[#This Row],[Realna data wydania]]>0,Harmonogram[[#This Row],[Realna data wydania]]<TODAY()),\"Wydany\",IF(Harmonogram[[#This Row],[Realna data skończenia]]>0,\"Zrobiony\",\"\"))","v":""}]
[null,null,null,null,null,{"$f":"Harmonogram[[#This Row],[Data przyjęcia ]]+30","v":"1900-01-30"},null,null,null,null,null,null,null,null,null,{"$f":"Harmonogram[[#This Row],[P: \nSzycie]]","v":0},null,null,null,null,null,null,null,null,null,{"$f":"SUM(Harmonogram[[#This Row],[P: Spawanie]:[P: Montaż]])","v":0},null,null,{"$f":"Harmonogram[[#This Row],[Realna data wydania]]+365","v":"1900-12-30"},null,{"$f":"IF(Harmonogram[[#This Row],[Realna data wydania]]=0,\"\",MONTH(Harmonogram[[#This Row],[Realna data wydania]]))","v":""},{"$f":"IF(AND(Harmonogram[[#This Row],[Realna data wydania]]>0,Harmonogram[[#This Row],[Realna data wydania]]<TODAY()),\"Wydany\",IF(Harmonogram[[#This Row],[Realna data skończenia]]>0,\"Zrobiony\",\"\"))","v":""}]
[null,null,null,null,null,{"$f":"Harmonogram[[#This Row],[Data przyjęcia ]]+30","v":"1900-01-30"},null,null,null,null,null,null,null,null,null,{"$f":"Harmonogram[[#This Row],[P: \nSzycie]]","v":0},null,null,null,null,null,null,null,null,null,{"$f":"SUM(Harmonogram[[#This Row],[P: Spawanie]:[P: Montaż]])","v":0},null,null,{"$f":"Harmonogram[[#This Row],[Realna data wydania]]+365","v":"1900-12-30"},null,{"$f":"IF(Harmonogram[[#This Row],[Realna data wydania]]=0,\"\",MONTH(Harmonogram[[#This Row],[Realna data wydania]]))","v":""},{"$f":"IF(AND(Harmonogram[[#This Row],[Realna data wydania]]>0,Harmonogram[[#This Row],[Realna data wydania]]<TODAY()),\"Wydany\",IF(Harmonogram[[#This Row],[Realna data skończenia]]>0,\"Zrobiony\",\"\"))","v":""}]
[null,null,null,null,null,{"$f":"Harmonogram[[#This Row],[Data przyjęcia ]]+30","v":"1900-01-30"},null,null,null,null,null,null,null,null,null,{"$f":"Harmonogram[[#This Row],[P: \nSzycie]]","v":0},null,null,null,null,null,null,null,null,null,{"$f":"SUM(Harmonogram[[#This Row],[P: Spawanie]:[P: Montaż]])","v":0},null,null,{"$f":"Harmonogram[[#This Row],[Realna data wydania]]+365","v":"1900-12-30"},null,{"$f":"IF(Harmonogram[[#This Row],[Realna data wydania]]=0,\"\",MONTH(Harmonogram[[#This Row],[Realna data wydania]]))","v":""},{"$f":"IF(AND(Harmonogram[[#This Row],[Realna data wydania]]>0,Harmonogram[[#This Row],[Realna data wydania]]<TODAY()),\"Wydany\",IF(Harmonogram[[#This Row],[Realna data skończenia]]>0,\"Zrobiony\",\"\"))","v":""}]
[null,null,null,null,null,{"$f":"Harmonogram[[#This Row],[Data przyjęcia ]]+30","v":"1900-01-30"},null,null,null,null,null,null,null,null,null,{"$f":"Harmonogram[[#This Row],[P: \nSzycie]]","v":0},null,null,null,null,null,null,null,null,null,{"$f":"SUM(Harmonogram[[#This Row],[P: Spawanie]:[P: Montaż]])","v":0},null,null,{"$f":"Harmonogram[[#This Row],[Realna data wydania]]+365","v":"1900-12-30"},null,{"$f":"IF(Harmonogram[[#This Row],[Realna data wydania]]=0,\"\",MONTH(Harmonogram[[#This Row],[Realna data wydania]]))","v":""},{"$f":"IF(AND(Harmonogram[[#This Row],[Realna data wydania]]>0,Harmonogram[[#This Row],[Realna data wydania]]<TODAY()),\"Wydany\",IF(Harmonogram[[#This Row],[Realna data skończenia]]>0,\"Zrobiony\",\"\"))","v":""}]
[null,null,null,null,null,{"$f":"Harmonogram[[#This Row],[Data przyjęcia ]]+30","v":"1900-01-30"},null,null,null,null,null,null,null,null,null,{"$f":"Harmonogram[[#This Row],[P: \nSzycie]]","v":0},null,null,null,null,null,null,null,null,null,{"$f":"SUM(Harmonogram[[#This Row],[P: Spawanie]:[P: Montaż]])","v":0},null,null,{"$f":"Harmonogram[[#This Row],[Realna data wydania]]+365","v":"1900-12-30"},null,{"$f":"IF(Harmonogram[[#This Row],[Realna data wydania]]=0,\"\",MONTH(Harmonogram[[#This Row],[Realna data wydania]]))","v":""},{"$f":"IF(AND(Harmonogram[[#This Row],[Realna data wydania]]>0,Harmonogram[[#This Row],[Realna data wydania]]<TODAY()),\"Wydany\",IF(Harmonogram[[#This Row],[Realna data skończenia]]>0,\"Zrobiony\",\"\"))","v":""}]
[null,null,null,null,null,{"$f":"Harmonogram[[#This Row],[Data przyjęcia ]]+30","v":"1900-01-30"},null,null,null,null,null,null,null,null,null,{"$f":"Harmonogram[[#This Row],[P: \nSzycie]]","v":0},null,null,null,null,null,null,null,null,null,{"$f":"SUM(Harmonogram[[#This Row],[P: Spawanie]:[P: Montaż]])","v":0},null,null,{"$f":"Harmonogram[[#This Row],[Realna data wydania]]+365","v":"1900-12-30"},null,{"$f":"IF(Harmonogram[[#This Row],[Realna data wydania]]=0,\"\",MONTH(Harmonogram[[#This Row],[Realna data wydania]]))","v":""},{"$f":"IF(AND(Harmonogram[[#This Row],[Realna data wydania]]>0,Harmonogram[[#This Row],[Realna data wydania]]<TODAY()),\"Wydany\",IF(Harmonogram[[#This Row],[Realna data skończenia]]>0,\"Zrobiony\",\"\"))","v":""}]
[null,null,null,null,null,{"$f":"Harmonogram[[#This Row],[Data przyjęcia ]]+30","v":"1900-01-30"},null,null,null,null,null,null,null,null,null,{"$f":"Harmonogram[[#This Row],[P: \nSzycie]]","v":0},null,null,null,null,null,null,null,null,null,{"$f":"SUM(Harmonogram[[#This Row],[P: Spawanie]:[P: Montaż]])","v":0},null,null,{"$f":"Harmonogram[[#This Row],[Realna data wydania]]+365","v":"1900-12-30"},null,{"$f":"IF(Harmonogram[[#This Row],[Realna data wydania]]=0,\"\",MONTH(Harmonogram[[#This Row],[Realna data wydania]]))","v":""},{"$f":"IF(AND(Harmonogram[[#This Row],[Realna data wydania]]>0,Harmonogram[[#This Row],[Realna data wydania]]<TODAY()),\"Wydany\",IF(Harmonogram[[#This Row],[Realna data skończenia]]>0,\"Zrobiony\",\"\"))","v":""}]
[null,null,null,null,null,{"$f":"Harmonogram[[#This Row],[Data przyjęcia ]]+30","v":"1900-01-30"},null,null,null,null,null,null,null,null,null,{"$f":"Harmonogram[[#This Row],[P: \nSzycie]]","v":0},null,null,null,null,null,null,null,null,null,{"$f":"SUM(Harmonogram[[#This Row],[P: Spawanie]:[P: Montaż]])","v":0},null,null,{"$f":"Harmonogram[[#This Row],[Realna data wydania]]+365","v":"1900-12-30"},null,{"$f":"IF(Harmonogram[[#This Row],[Realna data wydania]]=0,\"\",MONTH(Harmonogram[[#This Row],[Realna data wydania]]))","v":""},{"$f":"IF(AND(Harmonogram[[#This Row],[Realna data wydania]]>0,Harmonogram[[#This Row],[Realna data wydania]]<TODAY()),\"Wydany\",IF(Harmonogram[[#This Row],[Realna data skończenia]]>0,\"Zrobiony\",\"\"))","v":""}]
[null,null,null,null,null,{"$f":"Harmonogram[[#This Row],[Data przyjęcia ]]+30","v":"1900-01-30"},null,null,null,null,null,null,null,null,null,{"$f":"Harmonogram[[#This Row],[P: \nSzycie]]","v":0},null,null,null,null,null,null,null,null,null,{"$f":"SUM(Harmonogram[[#This Row],[P: Spawanie]:[P: Montaż]])","v":0},null,null,{"$f":"Harmonogram[[#This Row],[Realna data wydania]]+365","v":"1900-12-30"},null,{"$f":"IF(Harmonogram[[#This Row],[Realna data wydania]]=0,\"\",MONTH(Harmonogram[[#This Row],[Realna data wydania]]))","v":""},{"$f":"IF(AND(Harmonogram[[#This Row],[Realna data wydania]]>0,Harmonogram[[#This Row],[Realna data wydania]]<TODAY()),\"Wydany\",IF(Harmonogram[[#This Row],[Realna data skończenia]]>0,\"Zrobiony\",\"\"))","v":""}]
[null,null,null,null,null,{"$f":"Harmonogram[[#This Row],[Data przyjęcia ]]+30","v":"1900-01-30"},null,null,null,null,null,null,null,null,null,{"$f":"Harmonogram[[#This Row],[P: \nSzycie]]","v":0},null,null,null,null,null,null,null,null,null,{"$f":"SUM(Harmonogram[[#This Row],[P: Spawanie]:[P: Montaż]])","v":0},null,null,{"$f":"Harmonogram[[#This Row],[Realna data wydania]]+365","v":"1900-12-30"},null,{"$f":"IF(Harmonogram[[#This Row],[Realna data wydania]]=0,\"\",MONTH(Harmonogram[[#This Row],[Realna data wydania]]))","v":""},{"$f":"IF(AND(Harmonogram[[#This Row],[Realna data wydania]]>0,Harmonogram[[#This Row],[Realna data wydania]]<TODAY()),\"Wydany\",IF(Harmonogram[[#This Row],[Realna data skończenia]]>0,\"Zrobiony\",\"\"))","v":""}]
[null,null,null,null,null,{"$f":"Harmonogram[[#This Row],[Data przyjęcia ]]+30","v":"1900-01-30"},null,null,null,null,null,null,null,null,null,{"$f":"Harmonogram[[#This Row],[P: \nSzycie]]","v":0},null,null,null,null,null,null,null,null,null,{"$f":"SUM(Harmonogram[[#This Row],[P: Spawanie]:[P: Montaż]])","v":0},null,null,{"$f":"Harmonogram[[#This Row],[Realna data wydania]]+365","v":"1900-12-30"},null,{"$f":"IF(Harmonogram[[#This Row],[Realna data wydania]]=0,\"\",MONTH(Harmonogram[[#This Row],[Realna data wydania]]))","v":""},{"$f":"IF(AND(Harmonogram[[#This Row],[Realna data wydania]]>0,Harmonogram[[#This Row],[Realna data wydania]]<TODAY()),\"Wydany\",IF(Harmonogram[[#This Row],[Realna data skończenia]]>0,\"Zrobiony\",\"\"))","v":""}]
[null,null,null,null,null,{"$f":"Harmonogram[[#This Row],[Data przyjęcia ]]+30","v":"1900-01-30"},null,null,null,null,null,null,null,null,null,{"$f":"Harmonogram[[#This Row],[P: \nSzycie]]","v":0},null,null,null,null,null,null,null,null,null,{"$f":"SUM(Harmonogram[[#This Row],[P: Spawanie]:[P: Montaż]])","v":0},null,null,{"$f":"Harmonogram[[#This Row],[Realna data wydania]]+365","v":"1900-12-30"},null,{"$f":"IF(Harmonogram[[#This Row],[Realna data wydania]]=0,\"\",MONTH(Harmonogram[[#This Row],[Realna data wydania]]))","v":""},{"$f":"IF(AND(Harmonogram[[#This Row],[Realna data wydania]]>0,Harmonogram[[#This Row],[Realna data wydania]]<TODAY()),\"Wydany\",IF(Harmonogram[[#This Row],[Realna data skończenia]]>0,\"Zrobiony\",\"\"))","v":""}]
[null,null,null,null,null,{"$f":"Harmonogram[[#This Row],[Data przyjęcia ]]+30","v":"1900-01-30"},null,null,null,null,null,null,null,null,null,{"$f":"Harmonogram[[#This Row],[P: \nSzycie]]","v":0},null,null,null,null,null,null,null,null,null,{"$f":"SUM(Harmonogram[[#This Row],[P: Spawanie]:[P: Montaż]])","v":0},null,null,{"$f":"Harmonogram[[#This Row],[Realna data wydania]]+365","v":"1900-12-30"},null,{"$f":"IF(Harmonogram[[#This Row],[Realna data wydania]]=0,\"\",MONTH(Harmonogram[[#This Row],[Realna data wydania]]))","v":""},{"$f":"IF(AND(Harmonogram[[#This Row],[Realna data wydania]]>0,Harmonogram[[#This Row],[Realna data wydania]]<TODAY()),\"Wydany\",IF(Harmonogram[[#This Row],[Realna data skończenia]]>0,\"Zrobiony\",\"\"))","v":""}]
[null,null,null,null,null,{"$f":"Harmonogram[[#This Row],[Data przyjęcia ]]+30","v":"1900-01-30"},null,null,null,null,null,null,null,null,null,{"$f":"Harmonogram[[#This Row],[P: \nSzycie]]","v":0},null,null,null,null,null,null,null,null,null,{"$f":"SUM(Harmonogram[[#This Row],[P: Spawanie]:[P: Montaż]])","v":0},null,null,{"$f":"Harmonogram[[#This Row],[Realna data wydania]]+365","v":"1900-12-30"},null,{"$f":"IF(Harmonogram[[#This Row],[Realna data wydania]]=0,\"\",MONTH(Harmonogram[[#This Row],[Realna data wydania]]))","v":""},{"$f":"IF(AND(Harmonogram[[#This Row],[Realna data wydania]]>0,Harmonogram[[#This Row],[Realna data wydania]]<TODAY()),\"Wydany\",IF(Harmonogram[[#This Row],[Realna data skończenia]]>0,\"Zrobiony\",\"\"))","v":""}]
[null,null,null,null,null,{"$f":"Harmonogram[[#This Row],[Data przyjęcia ]]+30","v":"1900-01-30"},null,null,null,null,null,null,null,null,null,{"$f":"Harmonogram[[#This Row],[P: \nSzycie]]","v":0},null,null,null,null,null,null,null,null,null,{"$f":"SUM(Harmonogram[[#This Row],[P: Spawanie]:[P: Montaż]])","v":0},null,null,{"$f":"Harmonogram[[#This Row],[Realna data wydania]]+365","v":"1900-12-30"},null,{"$f":"IF(Harmonogram[[#This Row],[Realna data wydania]]=0,\"\",MONTH(Harmonogram[[#This Row],[Realna data wydania]]))","v":""},{"$f":"IF(AND(Harmonogram[[#This Row],[Realna data wydania]]>0,Harmonogram[[#This Row],[Realna data wydania]]<TODAY()),\"Wydany\",IF(Harmonogram[[#This Row],[Realna data skończenia]]>0,\"Zrobiony\",\"\"))","v":""}]
[null,null,null,null,null,{"$f":"Harmonogram[[#This Row],[Data przyjęcia ]]+30","v":"1900-01-30"},null,null,null,null,null,null,null,null,null,{"$f":"Harmonogram[[#This Row],[P: \nSzycie]]","v":0},null,null,null,null,null,null,null,null,null,{"$f":"SUM(Harmonogram[[#This Row],[P: Spawanie]:[P: Montaż]])","v":0},null,null,{"$f":"Harmonogram[[#This Row],[Realna data wydania]]+365","v":"1900-12-30"},null,{"$f":"IF(Harmonogram[[#This Row],[Realna data wydania]]=0,\"\",MONTH(Harmonogram[[#This Row],[Realna data wydania]]))","v":""},{"$f":"IF(AND(Harmonogram[[#This Row],[Realna data wydania]]>0,Harmonogram[[#This Row],[Realna data wydania]]<TODAY()),\"Wydany\",IF(Harmonogram[[#This Row],[Realna data skończenia]]>0,\"Zrobiony\",\"\"))","v":""}]
[null,null,null,null,null,{"$f":"Harmonogram[[#This Row],[Data przyjęcia ]]+30","v":"1900-01-30"},null,null,null,null,null,null,null,null,null,{"$f":"Harmonogram[[#This Row],[P: \nSzycie]]","v":0},null,null,null,null,null,null,null,null,null,{"$f":"SUM(Harmonogram[[#This Row],[P: Spawanie]:[P: Montaż]])","v":0},null,null,{"$f":"Harmonogram[[#This Row],[Realna data wydania]]+365","v":"1900-12-30"},null,{"$f":"IF(Harmonogram[[#This Row],[Realna data wydania]]=0,\"\",MONTH(Harmonogram[[#This Row],[Realna data wydania]]))","v":""},{"$f":"IF(AND(Harmonogram[[#This Row],[Realna data wydania]]>0,Harmonogram[[#This Row],[Realna data wydania]]<TODAY()),\"Wydany\",IF(Harmonogram[[#This Row],[Realna data skończenia]]>0,\"Zrobiony\",\"\"))","v":""}]
[null,null,null,null,null,{"$f":"Harmonogram[[#This Row],[Data przyjęcia ]]+30","v":"1900-01-30"},null,null,null,null,null,null,null,null,null,{"$f":"Harmonogram[[#This Row],[P: \nSzycie]]","v":0},null,null,null,null,null,null,null,null,null,{"$f":"SUM(Harmonogram[[#This Row],[P: Spawanie]:[P: Montaż]])","v":0},null,null,{"$f":"Harmonogram[[#This Row],[Realna data wydania]]+365","v":"1900-12-30"},null,{"$f":"IF(Harmonogram[[#This Row],[Realna data wydania]]=0,\"\",MONTH(Harmonogram[[#This Row],[Realna data wydania]]))","v":""},{"$f":"IF(AND(Harmonogram[[#This Row],[Realna data wydania]]>0,Harmonogram[[#This Row],[Realna data wydania]]<TODAY()),\"Wydany\",IF(Harmonogram[[#This Row],[Realna data skończenia]]>0,\"Zrobiony\",\"\"))","v":""}]
[null,null,null,null,null,{"$f":"Harmonogram[[#This Row],[Data przyjęcia ]]+30","v":"1900-01-30"},null,null,null,null,null,null,null,null,null,{"$f":"Harmonogram[[#This Row],[P: \nSzycie]]","v":0},null,null,null,null,null,null,null,null,null,{"$f":"SUM(Harmonogram[[#This Row],[P: Spawanie]:[P: Montaż]])","v":0},null,null,{"$f":"Harmonogram[[#This Row],[Realna data wydania]]+365","v":"1900-12-30"},null,{"$f":"IF(Harmonogram[[#This Row],[Realna data wydania]]=0,\"\",MONTH(Harmonogram[[#This Row],[Realna data wydania]]))","v":""},{"$f":"IF(AND(Harmonogram[[#This Row],[Realna data wydania]]>0,Harmonogram[[#This Row],[Realna data wydania]]<TODAY()),\"Wydany\",IF(Harmonogram[[#This Row],[Realna data skończenia]]>0,\"Zrobiony\",\"\"))","v":""}]
[null,null,null,null,null,{"$f":"Harmonogram[[#This Row],[Data przyjęcia ]]+30","v":"1900-01-30"},null,null,null,null,null,null,null,null,null,{"$f":"Harmonogram[[#This Row],[P: \nSzycie]]","v":0},null,null,null,null,null,null,null,null,null,{"$f":"SUM(Harmonogram[[#This Row],[P: Spawanie]:[P: Montaż]])","v":0},null,null,{"$f":"Harmonogram[[#This Row],[Realna data wydania]]+365","v":"1900-12-30"},null,{"$f":"IF(Harmonogram[[#This Row],[Realna data wydania]]=0,\"\",MONTH(Harmonogram[[#This Row],[Realna data wydania]]))","v":""},{"$f":"IF(AND(Harmonogram[[#This Row],[Realna data wydania]]>0,Harmonogram[[#This Row],[Realna data wydania]]<TODAY()),\"Wydany\",IF(Harmonogram[[#This Row],[Realna data skończenia]]>0,\"Zrobiony\",\"\"))","v":""}]
[null,null,null,null,null,{"$f":"Harmonogram[[#This Row],[Data przyjęcia ]]+30","v":"1900-01-30"},null,null,null,null,null,null,null,null,null,{"$f":"Harmonogram[[#This Row],[P: \nSzycie]]","v":0},null,null,null,null,null,null,null,null,null,{"$f":"SUM(Harmonogram[[#This Row],[P: Spawanie]:[P: Montaż]])","v":0},null,null,{"$f":"Harmonogram[[#This Row],[Realna data wydania]]+365","v":"1900-12-30"},null,{"$f":"IF(Harmonogram[[#This Row],[Realna data wydania]]=0,\"\",MONTH(Harmonogram[[#This Row],[Realna data wydania]]))","v":""},{"$f":"IF(AND(Harmonogram[[#This Row],[Realna data wydania]]>0,Harmonogram[[#This Row],[Realna data wydania]]<TODAY()),\"Wydany\",IF(Harmonogram[[#This Row],[Realna data skończenia]]>0,\"Zrobiony\",\"\"))","v":""}]
[null,null,null,null,null,{"$f":"Harmonogram[[#This Row],[Data przyjęcia ]]+30","v":"1900-01-30"},null,null,null,null,null,null,null,null,null,{"$f":"Harmonogram[[#This Row],[P: \nSzycie]]","v":0},null,null,null,null,null,null,null,null,null,{"$f":"SUM(Harmonogram[[#This Row],[P: Spawanie]:[P: Montaż]])","v":0},null,null,{"$f":"Harmonogram[[#This Row],[Realna data wydania]]+365","v":"1900-12-30"},null,{"$f":"IF(Harmonogram[[#This Row],[Realna data wydania]]=0,\"\",MONTH(Harmonogram[[#This Row],[Realna data wydania]]))","v":""},{"$f":"IF(AND(Harmonogram[[#This Row],[Realna data wydania]]>0,Harmonogram[[#This Row],[Realna data wydania]]<TODAY()),\"Wydany\",IF(Harmonogram[[#This Row],[Realna data skończenia]]>0,\"Zrobiony\",\"\"))","v":""}]
[null,null,null,null,null,{"$f":"Harmonogram[[#This Row],[Data przyjęcia ]]+30","v":"1900-01-30"},null,null,null,null,null,null,null,null,null,{"$f":"Harmonogram[[#This Row],[P: \nSzycie]]","v":0},null,null,null,null,null,null,null,null,null,{"$f":"SUM(Harmonogram[[#This Row],[P: Spawanie]:[P: Montaż]])","v":0},null,null,{"$f":"Harmonogram[[#This Row],[Realna data wydania]]+365","v":"1900-12-30"},null,{"$f":"IF(Harmonogram[[#This Row],[Realna data wydania]]=0,\"\",MONTH(Harmonogram[[#This Row],[Realna data wydania]]))","v":""},{"$f":"IF(AND(Harmonogram[[#This Row],[Realna data wydania]]>0,Harmonogram[[#This Row],[Realna data wydania]]<TODAY()),\"Wydany\",IF(Harmonogram[[#This Row],[Realna data skończenia]]>0,\"Zrobiony\",\"\"))","v":""}]
[null,null,null,null,null,{"$f":"Harmonogram[[#This Row],[Data przyjęcia ]]+30","v":"1900-01-30"},null,null,null,null,null,null,null,null,null,{"$f":"Harmonogram[[#This Row],[P: \nSzycie]]","v":0},null,null,null,null,null,null,null,null,null,{"$f":"SUM(Harmonogram[[#This Row],[P: Spawanie]:[P: Montaż]])","v":0},null,null,{"$f":"Harmonogram[[#This Row],[Realna data wydania]]+365","v":"1900-12-30"},null,{"$f":"IF(Harmonogram[[#This Row],[Realna data wydania]]=0,\"\",MONTH(Harmonogram[[#This Row],[Realna data wydania]]))","v":""},{"$f":"IF(AND(Harmonogram[[#This Row],[Realna data wydania]]>0,Harmonogram[[#This Row],[Realna data wydania]]<TODAY()),\"Wydany\",IF(Harmonogram[[#This Row],[Realna data skończenia]]>0,\"Zrobiony\",\"\"))","v":""}]
[null,null,null,null,null,{"$f":"Harmonogram[[#This Row],[Data przyjęcia ]]+30","v":"1900-01-30"},null,null,null,null,null,null,null,null,null,{"$f":"Harmonogram[[#This Row],[P: \nSzycie]]","v":0},null,null,null,null,null,null,null,null,null,{"$f":"SUM(Harmonogram[[#This Row],[P: Spawanie]:[P: Montaż]])","v":0},null,null,{"$f":"Harmonogram[[#This Row],[Realna data wydania]]+365","v":"1900-12-30"},null,{"$f":"IF(Harmonogram[[#This Row],[Realna data wydania]]=0,\"\",MONTH(Harmonogram[[#This Row],[Realna data wydania]]))","v":""},{"$f":"IF(AND(Harmonogram[[#This Row],[Realna data wydania]]>0,Harmonogram[[#This Row],[Realna data wydania]]<TODAY()),\"Wydany\",IF(Harmonogram[[#This Row],[Realna data skończenia]]>0,\"Zrobiony\",\"\"))","v":""}]
[null,null,null,null,null,{"$f":"Harmonogram[[#This Row],[Data przyjęcia ]]+30","v":"1900-01-30"},null,null,null,null,null,null,null,null,null,{"$f":"Harmonogram[[#This Row],[P: \nSzycie]]","v":0},null,null,null,null,null,null,null,null,null,{"$f":"SUM(Harmonogram[[#This Row],[P: Spawanie]:[P: Montaż]])","v":0},null,null,{"$f":"Harmonogram[[#This Row],[Realna data wydania]]+365","v":"1900-12-30"},null,{"$f":"IF(Harmonogram[[#This Row],[Realna data wydania]]=0,\"\",MONTH(Harmonogram[[#This Row],[Realna data wydania]]))","v":""},{"$f":"IF(AND(Harmonogram[[#This Row],[Realna data wydania]]>0,Harmonogram[[#This Row],[Realna data wydania]]<TODAY()),\"Wydany\",IF(Harmonogram[[#This Row],[Realna data skończenia]]>0,\"Zrobiony\",\"\"))","v":""}]
[null,null,null,null,null,{"$f":"Harmonogram[[#This Row],[Data przyjęcia ]]+30","v":"1900-01-30"},null,null,null,null,null,null,null,null,null,{"$f":"Harmonogram[[#This Row],[P: \nSzycie]]","v":0},null,null,null,null,null,null,null,null,null,{"$f":"SUM(Harmonogram[[#This Row],[P: Spawanie]:[P: Montaż]])","v":0},null,null,{"$f":"Harmonogram[[#This Row],[Realna data wydania]]+365","v":"1900-12-30"},null,{"$f":"IF(Harmonogram[[#This Row],[Realna data wydania]]=0,\"\",MONTH(Harmonogram[[#This Row],[Realna data wydania]]))","v":""},{"$f":"IF(AND(Harmonogram[[#This Row],[Realna data wydania]]>0,Harmonogram[[#This Row],[Realna data wydania]]<TODAY()),\"Wydany\",IF(Harmonogram[[#This Row],[Realna data skończenia]]>0,\"Zrobiony\",\"\"))","v":""}]
[null,null,null,null,null,{"$f":"Harmonogram[[#This Row],[Data przyjęcia ]]+30","v":"1900-01-30"},null,null,null,null,null,null,null,null,null,{"$f":"Harmonogram[[#This Row],[P: \nSzycie]]","v":0},null,null,null,null,null,null,null,null,null,{"$f":"SUM(Harmonogram[[#This Row],[P: Spawanie]:[P: Montaż]])","v":0},null,null,{"$f":"Harmonogram[[#This Row],[Realna data wydania]]+365","v":"1900-12-30"},null,{"$f":"IF(Harmonogram[[#This Row],[Realna data wydania]]=0,\"\",MONTH(Harmonogram[[#This Row],[Realna data wydania]]))","v":""},{"$f":"IF(AND(Harmonogram[[#This Row],[Realna data wydania]]>0,Harmonogram[[#This Row],[Realna data wydania]]<TODAY()),\"Wydany\",IF(Harmonogram[[#This Row],[Realna data skończenia]]>0,\"Zrobiony\",\"\"))","v":""}]
[null,null,null,null,null,{"$f":"Harmonogram[[#This Row],[Data przyjęcia ]]+30","v":"1900-01-30"},null,null,null,null,null,null,null,null,null,{"$f":"Harmonogram[[#This Row],[P: \nSzycie]]","v":0},null,null,null,null,null,null,null,null,null,{"$f":"SUM(Harmonogram[[#This Row],[P: Spawanie]:[P: Montaż]])","v":0},null,null,{"$f":"Harmonogram[[#This Row],[Realna data wydania]]+365","v":"1900-12-30"},null,{"$f":"IF(Harmonogram[[#This Row],[Realna data wydania]]=0,\"\",MONTH(Harmonogram[[#This Row],[Realna data wydania]]))","v":""},{"$f":"IF(AND(Harmonogram[[#This Row],[Realna data wydania]]>0,Harmonogram[[#This Row],[Realna data wydania]]<TODAY()),\"Wydany\",IF(Harmonogram[[#This Row],[Realna data skończenia]]>0,\"Zrobiony\",\"\"))","v":""}]
[null,null,null,null,null,{"$f":"Harmonogram[[#This Row],[Data przyjęcia ]]+30","v":"1900-01-30"},null,null,null,null,null,null,null,null,null,{"$f":"Harmonogram[[#This Row],[P: \nSzycie]]","v":0},null,null,null,null,null,null,null,null,null,{"$f":"SUM(Harmonogram[[#This Row],[P: Spawanie]:[P: Montaż]])","v":0},null,null,{"$f":"Harmonogram[[#This Row],[Realna data wydania]]+365","v":"1900-12-30"},null,{"$f":"IF(Harmonogram[[#This Row],[Realna data wydania]]=0,\"\",MONTH(Harmonogram[[#This Row],[Realna data wydania]]))","v":""},{"$f":"IF(AND(Harmonogram[[#This Row],[Realna data wydania]]>0,Harmonogram[[#This Row],[Realna data wydania]]<TODAY()),\"Wydany\",IF(Harmonogram[[#This Row],[Realna data skończenia]]>0,\"Zrobiony\",\"\"))","v":""}]
[null,null,null,null,null,{"$f":"Harmonogram[[#This Row],[Data przyjęcia ]]+30","v":"1900-01-30"},null,null,null,null,null,null,null,null,null,{"$f":"Harmonogram[[#This Row],[P: \nSzycie]]","v":0},null,null,null,null,null,null,null,null,null,{"$f":"SUM(Harmonogram[[#This Row],[P: Spawanie]:[P: Montaż]])","v":0},null,null,{"$f":"Harmonogram[[#This Row],[Realna data wydania]]+365","v":"1900-12-30"},null,{"$f":"IF(Harmonogram[[#This Row],[Realna data wydania]]=0,\"\",MONTH(Harmonogram[[#This Row],[Realna data wydania]]))","v":""},{"$f":"IF(AND(Harmonogram[[#This Row],[Realna data wydania]]>0,Harmonogram[[#This Row],[Realna data wydania]]<TODAY()),\"Wydany\",IF(Harmonogram[[#This Row],[Realna data skończenia]]>0,\"Zrobiony\",\"\"))","v":""}]
[null,null,null,null,null,{"$f":"Harmonogram[[#This Row],[Data przyjęcia ]]+30","v":"1900-01-30"},null,null,null,null,null,null,null,null,null,{"$f":"Harmonogram[[#This Row],[P: \nSzycie]]","v":0},null,null,null,null,null,null,null,null,null,{"$f":"SUM(Harmonogram[[#This Row],[P: Spawanie]:[P: Montaż]])","v":0},null,null,{"$f":"Harmonogram[[#This Row],[Realna data wydania]]+365","v":"1900-12-30"},null,{"$f":"IF(Harmonogram[[#This Row],[Realna data wydania]]=0,\"\",MONTH(Harmonogram[[#This Row],[Realna data wydania]]))","v":""},{"$f":"IF(AND(Harmonogram[[#This Row],[Realna data wydania]]>0,Harmonogram[[#This Row],[Realna data wydania]]<TODAY()),\"Wydany\",IF(Harmonogram[[#This Row],[Realna data skończenia]]>0,\"Zrobiony\",\"\"))","v":""}]
[null,null,null,null,null,{"$f":"Harmonogram[[#This Row],[Data przyjęcia ]]+30","v":"1900-01-30"},null,null,null,null,null,null,null,null,null,{"$f":"Harmonogram[[#This Row],[P: \nSzycie]]","v":0},null,null,null,null,null,null,null,null,null,{"$f":"SUM(Harmonogram[[#This Row],[P: Spawanie]:[P: Montaż]])","v":0},null,null,{"$f":"Harmonogram[[#This Row],[Realna data wydania]]+365","v":"1900-12-30"},null,{"$f":"IF(Harmonogram[[#This Row],[Realna data wydania]]=0,\"\",MONTH(Harmonogram[[#This Row],[Realna data wydania]]))","v":""},{"$f":"IF(AND(Harmonogram[[#This Row],[Realna data wydania]]>0,Harmonogram[[#This Row],[Realna data wydania]]<TODAY()),\"Wydany\",IF(Harmonogram[[#This Row],[Realna data skończenia]]>0,\"Zrobiony\",\"\"))","v":""}]
[null,null,null,null,null,{"$f":"Harmonogram[[#This Row],[Data przyjęcia ]]+30","v":"1900-01-30"},null,null,null,null,null,null,null,null,null,{"$f":"Harmonogram[[#This Row],[P: \nSzycie]]","v":0},null,null,null,null,null,null,null,null,null,{"$f":"SUM(Harmonogram[[#This Row],[P: Spawanie]:[P: Montaż]])","v":0},null,null,{"$f":"Harmonogram[[#This Row],[Realna data wydania]]+365","v":"1900-12-30"},null,{"$f":"IF(Harmonogram[[#This Row],[Realna data wydania]]=0,\"\",MONTH(Harmonogram[[#This Row],[Realna data wydania]]))","v":""},{"$f":"IF(AND(Harmonogram[[#This Row],[Realna data wydania]]>0,Harmonogram[[#This Row],[Realna data wydania]]<TODAY()),\"Wydany\",IF(Harmonogram[[#This Row],[Realna data skończenia]]>0,\"Zrobiony\",\"\"))","v":""}]
[null,null,null,null,null,{"$f":"Harmonogram[[#This Row],[Data przyjęcia ]]+30","v":"1900-01-30"},null,null,null,null,null,null,null,null,null,{"$f":"Harmonogram[[#This Row],[P: \nSzycie]]","v":0},null,null,null,null,null,null,null,null,null,{"$f":"SUM(Harmonogram[[#This Row],[P: Spawanie]:[P: Montaż]])","v":0},null,null,{"$f":"Harmonogram[[#This Row],[Realna data wydania]]+365","v":"1900-12-30"},null,{"$f":"IF(Harmonogram[[#This Row],[Realna data wydania]]=0,\"\",MONTH(Harmonogram[[#This Row],[Realna data wydania]]))","v":""},{"$f":"IF(AND(Harmonogram[[#This Row],[Realna data wydania]]>0,Harmonogram[[#This Row],[Realna data wydania]]<TODAY()),\"Wydany\",IF(Harmonogram[[#This Row],[Realna data skończenia]]>0,\"Zrobiony\",\"\"))","v":""}]
[null,null,null,null,null,{"$f":"Harmonogram[[#This Row],[Data przyjęcia ]]+30","v":"1900-01-30"},null,null,null,null,null,null,null,null,null,{"$f":"Harmonogram[[#This Row],[P: \nSzycie]]","v":0},null,null,null,null,null,null,null,null,null,{"$f":"SUM(Harmonogram[[#This Row],[P: Spawanie]:[P: Montaż]])","v":0},null,null,{"$f":"Harmonogram[[#This Row],[Realna data wydania]]+365","v":"1900-12-30"},null,{"$f":"IF(Harmonogram[[#This Row],[Realna data wydania]]=0,\"\",MONTH(Harmonogram[[#This Row],[Realna data wydania]]))","v":""},{"$f":"IF(AND(Harmonogram[[#This Row],[Realna data wydania]]>0,Harmonogram[[#This Row],[Realna data wydania]]<TODAY()),\"Wydany\",IF(Harmonogram[[#This Row],[Realna data skończenia]]>0,\"Zrobiony\",\"\"))","v":""}]
[null,null,null,null,null,{"$f":"Harmonogram[[#This Row],[Data przyjęcia ]]+30","v":"1900-01-30"},null,null,null,null,null,null,null,null,null,{"$f":"Harmonogram[[#This Row],[P: \nSzycie]]","v":0},null,null,null,null,null,null,null,null,null,{"$f":"SUM(Harmonogram[[#This Row],[P: Spawanie]:[P: Montaż]])","v":0},null,null,{"$f":"Harmonogram[[#This Row],[Realna data wydania]]+365","v":"1900-12-30"},null,{"$f":"IF(Harmonogram[[#This Row],[Realna data wydania]]=0,\"\",MONTH(Harmonogram[[#This Row],[Realna data wydania]]))","v":""},{"$f":"IF(AND(Harmonogram[[#This Row],[Realna data wydania]]>0,Harmonogram[[#This Row],[Realna data wydania]]<TODAY()),\"Wydany\",IF(Harmonogram[[#This Row],[Realna data skończenia]]>0,\"Zrobiony\",\"\"))","v":""}]
[null,null,null,null,null,{"$f":"Harmonogram[[#This Row],[Data przyjęcia ]]+30","v":"1900-01-30"},null,null,null,null,null,null,null,null,null,{"$f":"Harmonogram[[#This Row],[P: \nSzycie]]","v":0},null,null,null,null,null,null,null,null,null,{"$f":"SUM(Harmonogram[[#This Row],[P: Spawanie]:[P: Montaż]])","v":0},null,null,{"$f":"Harmonogram[[#This Row],[Realna data wydania]]+365","v":"1900-12-30"},null,{"$f":"IF(Harmonogram[[#This Row],[Realna data wydania]]=0,\"\",MONTH(Harmonogram[[#This Row],[Realna data wydania]]))","v":""},{"$f":"IF(AND(Harmonogram[[#This Row],[Realna data wydania]]>0,Harmonogram[[#This Row],[Realna data wydania]]<TODAY()),\"Wydany\",IF(Harmonogram[[#This Row],[Realna data skończenia]]>0,\"Zrobiony\",\"\"))","v":""}]
[null,null,null,null,null,{"$f":"Harmonogram[[#This Row],[Data przyjęcia ]]+30","v":"1900-01-30"},null,null,null,null,null,null,null,null,null,{"$f":"Harmonogram[[#This Row],[P: \nSzycie]]","v":0},null,null,null,null,null,null,null,null,null,{"$f":"SUM(Harmonogram[[#This Row],[P: Spawanie]:[P: Montaż]])","v":0},null,null,{"$f":"Harmonogram[[#This Row],[Realna data wydania]]+365","v":"1900-12-30"},null,{"$f":"IF(Harmonogram[[#This Row],[Realna data wydania]]=0,\"\",MONTH(Harmonogram[[#This Row],[Realna data wydania]]))","v":""},{"$f":"IF(AND(Harmonogram[[#This Row],[Realna data wydania]]>0,Harmonogram[[#This Row],[Realna data wydania]]<TODAY()),\"Wydany\",IF(Harmonogram[[#This Row],[Realna data skończenia]]>0,\"Zrobiony\",\"\"))","v":""}]
[null,null,null,null,null,{"$f":"Harmonogram[[#This Row],[Data przyjęcia ]]+30","v":"1900-01-30"},null,null,null,null,null,null,null,null,null,{"$f":"Harmonogram[[#This Row],[P: \nSzycie]]","v":0},null,null,null,null,null,null,null,null,null,{"$f":"SUM(Harmonogram[[#This Row],[P: Spawanie]:[P: Montaż]])","v":0},null,null,{"$f":"Harmonogram[[#This Row],[Realna data wydania]]+365","v":"1900-12-30"},null,{"$f":"IF(Harmonogram[[#This Row],[Realna data wydania]]=0,\"\",MONTH(Harmonogram[[#This Row],[Realna data wydania]]))","v":""},{"$f":"IF(AND(Harmonogram[[#This Row],[Realna data wydania]]>0,Harmonogram[[#This Row],[Realna data wydania]]<TODAY()),\"Wydany\",IF(Harmonogram[[#This Row],[Realna data skończenia]]>0,\"Zrobiony\",\"\"))","v":""}]
[null,null,null,null,null,{"$f":"Harmonogram[[#This Row],[Data przyjęcia ]]+30","v":"1900-01-30"},null,null,null,null,null,null,null,null,null,{"$f":"Harmonogram[[#This Row],[P: \nSzycie]]","v":0},null,null,null,null,null,null,null,null,null,{"$f":"SUM(Harmonogram[[#This Row],[P: Spawanie]:[P: Montaż]])","v":0},null,null,{"$f":"Harmonogram[[#This Row],[Realna data wydania]]+365","v":"1900-12-30"},null,{"$f":"IF(Harmonogram[[#This Row],[Realna data wydania]]=0,\"\",MONTH(Harmonogram[[#This Row],[Realna data wydania]]))","v":""},{"$f":"IF(AND(Harmonogram[[#This Row],[Realna data wydania]]>0,Harmonogram[[#This Row],[Realna data wydania]]<TODAY()),\"Wydany\",IF(Harmonogram[[#This Row],[Realna data skończenia]]>0,\"Zrobiony\",\"\"))","v":""}]
[null,null,null,null,null,{"$f":"Harmonogram[[#This Row],[Data przyjęcia ]]+30","v":"1900-01-30"},null,null,null,null,null,null,null,null,null,{"$f":"Harmonogram[[#This Row],[P: \nSzycie]]","v":0},null,null,null,null,null,null,null,null,null,{"$f":"SUM(Harmonogram[[#This Row],[P: Spawanie]:[P: Montaż]])","v":0},null,null,{"$f":"Harmonogram[[#This Row],[Realna data wydania]]+365","v":"1900-12-30"},null,{"$f":"IF(Harmonogram[[#This Row],[Realna data wydania]]=0,\"\",MONTH(Harmonogram[[#This Row],[Realna data wydania]]))","v":""},{"$f":"IF(AND(Harmonogram[[#This Row],[Realna data wydania]]>0,Harmonogram[[#This Row],[Realna data wydania]]<TODAY()),\"Wydany\",IF(Harmonogram[[#This Row],[Realna data skończenia]]>0,\"Zrobiony\",\"\"))","v":""}]
[null,null,null,null,null,{"$f":"Harmonogram[[#This Row],[Data przyjęcia ]]+30","v":"1900-01-30"},null,null,null,null,null,null,null,null,null,{"$f":"Harmonogram[[#This Row],[P: \nSzycie]]","v":0},null,null,null,null,null,null,null,null,null,{"$f":"SUM(Harmonogram[[#This Row],[P: Spawanie]:[P: Montaż]])","v":0},null,null,{"$f":"Harmonogram[[#This Row],[Realna data wydania]]+365","v":"1900-12-30"},null,{"$f":"IF(Harmonogram[[#This Row],[Realna data wydania]]=0,\"\",MONTH(Harmonogram[[#This Row],[Realna data wydania]]))","v":""},{"$f":"IF(AND(Harmonogram[[#This Row],[Realna data wydania]]>0,Harmonogram[[#This Row],[Realna data wydania]]<TODAY()),\"Wydany\",IF(Harmonogram[[#This Row],[Realna data skończenia]]>0,\"Zrobiony\",\"\"))","v":""}]
[null,null,null,null,null,{"$f":"Harmonogram[[#This Row],[Data przyjęcia ]]+30","v":"1900-01-30"},null,null,null,null,null,null,null,null,null,{"$f":"Harmonogram[[#This Row],[P: \nSzycie]]","v":0},null,null,null,null,null,null,null,null,null,{"$f":"SUM(Harmonogram[[#This Row],[P: Spawanie]:[P: Montaż]])","v":0},null,null,{"$f":"Harmonogram[[#This Row],[Realna data wydania]]+365","v":"1900-12-30"},null,{"$f":"IF(Harmonogram[[#This Row],[Realna data wydania]]=0,\"\",MONTH(Harmonogram[[#This Row],[Realna data wydania]]))","v":""},{"$f":"IF(AND(Harmonogram[[#This Row],[Realna data wydania]]>0,Harmonogram[[#This Row],[Realna data wydania]]<TODAY()),\"Wydany\",IF(Harmonogram[[#This Row],[Realna data skończenia]]>0,\"Zrobiony\",\"\"))","v":""}]
[null,null,null,null,null,{"$f":"Harmonogram[[#This Row],[Data przyjęcia ]]+30","v":"1900-01-30"},null,null,null,null,null,null,null,null,null,{"$f":"Harmonogram[[#This Row],[P: \nSzycie]]","v":0},null,null,null,null,null,null,null,null,null,{"$f":"SUM(Harmonogram[[#This Row],[P: Spawanie]:[P: Montaż]])","v":0},null,null,{"$f":"Harmonogram[[#This Row],[Realna data wydania]]+365","v":"1900-12-30"},null,{"$f":"IF(Harmonogram[[#This Row],[Realna data wydania]]=0,\"\",MONTH(Harmonogram[[#This Row],[Realna data wydania]]))","v":""},{"$f":"IF(AND(Harmonogram[[#This Row],[Realna data wydania]]>0,Harmonogram[[#This Row],[Realna data wydania]]<TODAY()),\"Wydany\",IF(Harmonogram[[#This Row],[Realna data skończenia]]>0,\"Zrobiony\",\"\"))","v":""}]
[null,null,null,null,null,{"$f":"Harmonogram[[#This Row],[Data przyjęcia ]]+30","v":"1900-01-30"},null,null,null,null,null,null,null,null,null,{"$f":"Harmonogram[[#This Row],[P: \nSzycie]]","v":0},null,null,null,null,null,null,null,null,null,{"$f":"SUM(Harmonogram[[#This Row],[P: Spawanie]:[P: Montaż]])","v":0},null,null,{"$f":"Harmonogram[[#This Row],[Realna data wydania]]+365","v":"1900-12-30"},null,{"$f":"IF(Harmonogram[[#This Row],[Realna data wydania]]=0,\"\",MONTH(Harmonogram[[#This Row],[Realna data wydania]]))","v":""},{"$f":"IF(AND(Harmonogram[[#This Row],[Realna data wydania]]>0,Harmonogram[[#This Row],[Realna data wydania]]<TODAY()),\"Wydany\",IF(Harmonogram[[#This Row],[Realna data skończenia]]>0,\"Zrobiony\",\"\"))","v":""}]
[null,null,null,null,null,{"$f":"Harmonogram[[#This Row],[Data przyjęcia ]]+30","v":"1900-01-30"},null,null,null,null,null,null,null,null,null,{"$f":"Harmonogram[[#This Row],[P: \nSzycie]]","v":0},null,null,null,null,null,null,null,null,null,{"$f":"SUM(Harmonogram[[#This Row],[P: Spawanie]:[P: Montaż]])","v":0},null,null,{"$f":"Harmonogram[[#This Row],[Realna data wydania]]+365","v":"1900-12-30"},null,{"$f":"IF(Harmonogram[[#This Row],[Realna data wydania]]=0,\"\",MONTH(Harmonogram[[#This Row],[Realna data wydania]]))","v":""},{"$f":"IF(AND(Harmonogram[[#This Row],[Realna data wydania]]>0,Harmonogram[[#This Row],[Realna data wydania]]<TODAY()),\"Wydany\",IF(Harmonogram[[#This Row],[Realna data skończenia]]>0,\"Zrobiony\",\"\"))","v":""}]
[null,null,null,null,null,{"$f":"Harmonogram[[#This Row],[Data przyjęcia ]]+30","v":"1900-01-30"},null,null,null,null,null,null,null,null,null,{"$f":"Harmonogram[[#This Row],[P: \nSzycie]]","v":0},null,null,null,null,null,null,null,null,null,{"$f":"SUM(Harmonogram[[#This Row],[P: Spawanie]:[P: Montaż]])","v":0},null,null,{"$f":"Harmonogram[[#This Row],[Realna data wydania]]+365","v":"1900-12-30"},null,{"$f":"IF(Harmonogram[[#This Row],[Realna data wydania]]=0,\"\",MONTH(Harmonogram[[#This Row],[Realna data wydania]]))","v":""},{"$f":"IF(AND(Harmonogram[[#This Row],[Realna data wydania]]>0,Harmonogram[[#This Row],[Realna data wydania]]<TODAY()),\"Wydany\",IF(Harmonogram[[#This Row],[Realna data skończenia]]>0,\"Zrobiony\",\"\"))","v":""}]
[null,null,null,null,null,{"$f":"Harmonogram[[#This Row],[Data przyjęcia ]]+30","v":"1900-01-30"},null,null,null,null,null,null,null,null,null,{"$f":"Harmonogram[[#This Row],[P: \nSzycie]]","v":0},null,null,null,null,null,null,null,null,null,{"$f":"SUM(Harmonogram[[#This Row],[P: Spawanie]:[P: Montaż]])","v":0},null,null,{"$f":"Harmonogram[[#This Row],[Realna data wydania]]+365","v":"1900-12-30"},null,{"$f":"IF(Harmonogram[[#This Row],[Realna data wydania]]=0,\"\",MONTH(Harmonogram[[#This Row],[Realna data wydania]]))","v":""},{"$f":"IF(AND(Harmonogram[[#This Row],[Realna data wydania]]>0,Harmonogram[[#This Row],[Realna data wydania]]<TODAY()),\"Wydany\",IF(Harmonogram[[#This Row],[Realna data skończenia]]>0,\"Zrobiony\",\"\"))","v":""}]
[null,null,null,null,null,{"$f":"Harmonogram[[#This Row],[Data przyjęcia ]]+30","v":"1900-01-30"},null,null,null,null,null,null,null,null,null,{"$f":"Harmonogram[[#This Row],[P: \nSzycie]]","v":0},null,null,null,null,null,null,null,null,null,{"$f":"SUM(Harmonogram[[#This Row],[P: Spawanie]:[P: Montaż]])","v":0},null,null,{"$f":"Harmonogram[[#This Row],[Realna data wydania]]+365","v":"1900-12-30"},null,{"$f":"IF(Harmonogram[[#This Row],[Realna data wydania]]=0,\"\",MONTH(Harmonogram[[#This Row],[Realna data wydania]]))","v":""},{"$f":"IF(AND(Harmonogram[[#This Row],[Realna data wydania]]>0,Harmonogram[[#This Row],[Realna data wydania]]<TODAY()),\"Wydany\",IF(Harmonogram[[#This Row],[Realna data skończenia]]>0,\"Zrobiony\",\"\"))","v":""}]
[null,null,null,null,null,{"$f":"Harmonogram[[#This Row],[Data przyjęcia ]]+30","v":"1900-01-30"},null,null,null,null,null,null,null,null,null,{"$f":"Harmonogram[[#This Row],[P: \nSzycie]]","v":0},null,null,null,null,null,null,null,null,null,{"$f":"SUM(Harmonogram[[#This Row],[P: Spawanie]:[P: Montaż]])","v":0},null,null,{"$f":"Harmonogram[[#This Row],[Realna data wydania]]+365","v":"1900-12-30"},null,{"$f":"IF(Harmonogram[[#This Row],[Realna data wydania]]=0,\"\",MONTH(Harmonogram[[#This Row],[Realna data wydania]]))","v":""},{"$f":"IF(AND(Harmonogram[[#This Row],[Realna data wydania]]>0,Harmonogram[[#This Row],[Realna data wydania]]<TODAY()),\"Wydany\",IF(Harmonogram[[#This Row],[Realna data skończenia]]>0,\"Zrobiony\",\"\"))","v":""}]
[null,null,null,null,null,{"$f":"Harmonogram[[#This Row],[Data przyjęcia ]]+30","v":"1900-01-30"},null,null,null,null,null,null,null,null,null,{"$f":"Harmonogram[[#This Row],[P: \nSzycie]]","v":0},null,null,null,null,null,null,null,null,null,{"$f":"SUM(Harmonogram[[#This Row],[P: Spawanie]:[P: Montaż]])","v":0},null,null,{"$f":"Harmonogram[[#This Row],[Realna data wydania]]+365","v":"1900-12-30"},null,{"$f":"IF(Harmonogram[[#This Row],[Realna data wydania]]=0,\"\",MONTH(Harmonogram[[#This Row],[Realna data wydania]]))","v":""},{"$f":"IF(AND(Harmonogram[[#This Row],[Realna data wydania]]>0,Harmonogram[[#This Row],[Realna data wydania]]<TODAY()),\"Wydany\",IF(Harmonogram[[#This Row],[Realna data skończenia]]>0,\"Zrobiony\",\"\"))","v":""}]
[null,null,null,null,null,{"$f":"Harmonogram[[#This Row],[Data przyjęcia ]]+30","v":"1900-01-30"},null,null,null,null,null,null,null,null,null,{"$f":"Harmonogram[[#This Row],[P: \nSzycie]]","v":0},null,null,null,null,null,null,null,null,null,{"$f":"SUM(Harmonogram[[#This Row],[P: Spawanie]:[P: Montaż]])","v":0},null,null,{"$f":"Harmonogram[[#This Row],[Realna data wydania]]+365","v":"1900-12-30"},null,{"$f":"IF(Harmonogram[[#This Row],[Realna data wydania]]=0,\"\",MONTH(Harmonogram[[#This Row],[Realna data wydania]]))","v":""},{"$f":"IF(AND(Harmonogram[[#This Row],[Realna data wydania]]>0,Harmonogram[[#This Row],[Realna data wydania]]<TODAY()),\"Wydany\",IF(Harmonogram[[#This Row],[Realna data skończenia]]>0,\"Zrobiony\",\"\"))","v":""}]
[null,null,null,null,null,{"$f":"Harmonogram[[#This Row],[Data przyjęcia ]]+30","v":"1900-01-30"},null,null,null,null,null,null,null,null,null,{"$f":"Harmonogram[[#This Row],[P: \nSzycie]]","v":0},null,null,null,null,null,null,null,null,null,{"$f":"SUM(Harmonogram[[#This Row],[P: Spawanie]:[P: Montaż]])","v":0},null,null,{"$f":"Harmonogram[[#This Row],[Realna data wydania]]+365","v":"1900-12-30"},null,{"$f":"IF(Harmonogram[[#This Row],[Realna data wydania]]=0,\"\",MONTH(Harmonogram[[#This Row],[Realna data wydania]]))","v":""},{"$f":"IF(AND(Harmonogram[[#This Row],[Realna data wydania]]>0,Harmonogram[[#This Row],[Realna data wydania]]<TODAY()),\"Wydany\",IF(Harmonogram[[#This Row],[Realna data skończenia]]>0,\"Zrobiony\",\"\"))","v":""}]
[null,null,null,null,null,{"$f":"Harmonogram[[#This Row],[Data przyjęcia ]]+30","v":"1900-01-30"},null,null,null,null,null,null,null,null,null,{"$f":"Harmonogram[[#This Row],[P: \nSzycie]]","v":0},null,null,null,null,null,null,null,null,null,{"$f":"SUM(Harmonogram[[#This Row],[P: Spawanie]:[P: Montaż]])","v":0},null,null,{"$f":"Harmonogram[[#This Row],[Realna data wydania]]+365","v":"1900-12-30"},null,{"$f":"IF(Harmonogram[[#This Row],[Realna data wydania]]=0,\"\",MONTH(Harmonogram[[#This Row],[Realna data wydania]]))","v":""},{"$f":"IF(AND(Harmonogram[[#This Row],[Realna data wydania]]>0,Harmonogram[[#This Row],[Realna data wydania]]<TODAY()),\"Wydany\",IF(Harmonogram[[#This Row],[Realna data skończenia]]>0,\"Zrobiony\",\"\"))","v":""}]
[null,null,null,null,null,{"$f":"Harmonogram[[#This Row],[Data przyjęcia ]]+30","v":"1900-01-30"},null,null,null,null,null,null,null,null,null,{"$f":"Harmonogram[[#This Row],[P: \nSzycie]]","v":0},null,null,null,null,null,null,null,null,null,{"$f":"SUM(Harmonogram[[#This Row],[P: Spawanie]:[P: Montaż]])","v":0},null,null,{"$f":"Harmonogram[[#This Row],[Realna data wydania]]+365","v":"1900-12-30"},null,{"$f":"IF(Harmonogram[[#This Row],[Realna data wydania]]=0,\"\",MONTH(Harmonogram[[#This Row],[Realna data wydania]]))","v":""},{"$f":"IF(AND(Harmonogram[[#This Row],[Realna data wydania]]>0,Harmonogram[[#This Row],[Realna data wydania]]<TODAY()),\"Wydany\",IF(Harmonogram[[#This Row],[Realna data skończenia]]>0,\"Zrobiony\",\"\"))","v":""}]
[null,null,null,null,null,{"$f":"Harmonogram[[#This Row],[Data przyjęcia ]]+30","v":"1900-01-30"},null,null,null,null,null,null,null,null,null,{"$f":"Harmonogram[[#This Row],[P: \nSzycie]]","v":0},null,null,null,null,null,null,null,null,null,{"$f":"SUM(Harmonogram[[#This Row],[P: Spawanie]:[P: Montaż]])","v":0},null,null,{"$f":"Harmonogram[[#This Row],[Realna data wydania]]+365","v":"1900-12-30"},null,{"$f":"IF(Harmonogram[[#This Row],[Realna data wydania]]=0,\"\",MONTH(Harmonogram[[#This Row],[Realna data wydania]]))","v":""},{"$f":"IF(AND(Harmonogram[[#This Row],[Realna data wydania]]>0,Harmonogram[[#This Row],[Realna data wydania]]<TODAY()),\"Wydany\",IF(Harmonogram[[#This Row],[Realna data skończenia]]>0,\"Zrobiony\",\"\"))","v":""}]
[null,null,null,null,null,{"$f":"Harmonogram[[#This Row],[Data przyjęcia ]]+30","v":"1900-01-30"},null,null,null,null,null,null,null,null,null,{"$f":"Harmonogram[[#This Row],[P: \nSzycie]]","v":0},null,null,null,null,null,null,null,null,null,{"$f":"SUM(Harmonogram[[#This Row],[P: Spawanie]:[P: Montaż]])","v":0},null,null,{"$f":"Harmonogram[[#This Row],[Realna data wydania]]+365","v":"1900-12-30"},null,{"$f":"IF(Harmonogram[[#This Row],[Realna data wydania]]=0,\"\",MONTH(Harmonogram[[#This Row],[Realna data wydania]]))","v":""},{"$f":"IF(AND(Harmonogram[[#This Row],[Realna data wydania]]>0,Harmonogram[[#This Row],[Realna data wydania]]<TODAY()),\"Wydany\",IF(Harmonogram[[#This Row],[Realna data skończenia]]>0,\"Zrobiony\",\"\"))","v":""}]
[null,null,null,null,null,{"$f":"Harmonogram[[#This Row],[Data przyjęcia ]]+30","v":"1900-01-30"},null,null,null,null,null,null,null,null,null,{"$f":"Harmonogram[[#This Row],[P: \nSzycie]]","v":0},null,null,null,null,null,null,null,null,null,{"$f":"SUM(Harmonogram[[#This Row],[P: Spawanie]:[P: Montaż]])","v":0},null,null,{"$f":"Harmonogram[[#This Row],[Realna data wydania]]+365","v":"1900-12-30"},null,{"$f":"IF(Harmonogram[[#This Row],[Realna data wydania]]=0,\"\",MONTH(Harmonogram[[#This Row],[Realna data wydania]]))","v":""},{"$f":"IF(AND(Harmonogram[[#This Row],[Realna data wydania]]>0,Harmonogram[[#This Row],[Realna data wydania]]<TODAY()),\"Wydany\",IF(Harmonogram[[#This Row],[Realna data skończenia]]>0,\"Zrobiony\",\"\"))","v":""}]
[null,null,null,null,null,{"$f":"Harmonogram[[#This Row],[Data przyjęcia ]]+30","v":"1900-01-30"},null,null,null,null,null,null,null,null,null,{"$f":"Harmonogram[[#This Row],[P: \nSzycie]]","v":0},null,null,null,null,null,null,null,null,null,{"$f":"SUM(Harmonogram[[#This Row],[P: Spawanie]:[P: Montaż]])","v":0},null,null,{"$f":"Harmonogram[[#This Row],[Realna data wydania]]+365","v":"1900-12-30"},null,{"$f":"IF(Harmonogram[[#This Row],[Realna data wydania]]=0,\"\",MONTH(Harmonogram[[#This Row],[Realna data wydania]]))","v":""},{"$f":"IF(AND(Harmonogram[[#This Row],[Realna data wydania]]>0,Harmonogram[[#This Row],[Realna data wydania]]<TODAY()),\"Wydany\",IF(Harmonogram[[#This Row],[Realna data skończenia]]>0,\"Zrobiony\",\"\"))","v":""}]
[null,null,null,null,null,{"$f":"Harmonogram[[#This Row],[Data przyjęcia ]]+30","v":"1900-01-30"},null,null,null,null,null,null,null,null,null,{"$f":"Harmonogram[[#This Row],[P: \nSzycie]]","v":0},null,null,null,null,null,null,null,null,null,{"$f":"SUM(Harmonogram[[#This Row],[P: Spawanie]:[P: Montaż]])","v":0},null,null,{"$f":"Harmonogram[[#This Row],[Realna data wydania]]+365","v":"1900-12-30"},null,{"$f":"IF(Harmonogram[[#This Row],[Realna data wydania]]=0,\"\",MONTH(Harmonogram[[#This Row],[Realna data wydania]]))","v":""},{"$f":"IF(AND(Harmonogram[[#This Row],[Realna data wydania]]>0,Harmonogram[[#This Row],[Realna data wydania]]<TODAY()),\"Wydany\",IF(Harmonogram[[#This Row],[Realna data skończenia]]>0,\"Zrobiony\",\"\"))","v":""}]
[null,null,null,null,null,{"$f":"Harmonogram[[#This Row],[Data przyjęcia ]]+30","v":"1900-01-30"},null,null,null,null,null,null,null,null,null,{"$f":"Harmonogram[[#This Row],[P: \nSzycie]]","v":0},null,null,null,null,null,null,null,null,null,{"$f":"SUM(Harmonogram[[#This Row],[P: Spawanie]:[P: Montaż]])","v":0},null,null,{"$f":"Harmonogram[[#This Row],[Realna data wydania]]+365","v":"1900-12-30"},null,{"$f":"IF(Harmonogram[[#This Row],[Realna data wydania]]=0,\"\",MONTH(Harmonogram[[#This Row],[Realna data wydania]]))","v":""},{"$f":"IF(AND(Harmonogram[[#This Row],[Realna data wydania]]>0,Harmonogram[[#This Row],[Realna data wydania]]<TODAY()),\"Wydany\",IF(Harmonogram[[#This Row],[Realna data skończenia]]>0,\"Zrobiony\",\"\"))","v":""}]
[null,null,null,null,null,{"$f":"Harmonogram[[#This Row],[Data przyjęcia ]]+30","v":"1900-01-30"},null,null,null,null,null,null,null,null,null,{"$f":"Harmonogram[[#This Row],[P: \nSzycie]]","v":0},null,null,null,null,null,null,null,null,null,{"$f":"SUM(Harmonogram[[#This Row],[P: Spawanie]:[P: Montaż]])","v":0},null,null,{"$f":"Harmonogram[[#This Row],[Realna data wydania]]+365","v":"1900-12-30"},null,{"$f":"IF(Harmonogram[[#This Row],[Realna data wydania]]=0,\"\",MONTH(Harmonogram[[#This Row],[Realna data wydania]]))","v":""},{"$f":"IF(AND(Harmonogram[[#This Row],[Realna data wydania]]>0,Harmonogram[[#This Row],[Realna data wydania]]<TODAY()),\"Wydany\",IF(Harmonogram[[#This Row],[Realna data skończenia]]>0,\"Zrobiony\",\"\"))","v":""}]
[null,null,null,null,null,{"$f":"Harmonogram[[#This Row],[Data przyjęcia ]]+30","v":"1900-01-30"},null,null,null,null,null,null,null,null,null,{"$f":"Harmonogram[[#This Row],[P: \nSzycie]]","v":0},null,null,null,null,null,null,null,null,null,{"$f":"SUM(Harmonogram[[#This Row],[P: Spawanie]:[P: Montaż]])","v":0},null,null,{"$f":"Harmonogram[[#This Row],[Realna data wydania]]+365","v":"1900-12-30"},null,{"$f":"IF(Harmonogram[[#This Row],[Realna data wydania]]=0,\"\",MONTH(Harmonogram[[#This Row],[Realna data wydania]]))","v":""},{"$f":"IF(AND(Harmonogram[[#This Row],[Realna data wydania]]>0,Harmonogram[[#This Row],[Realna data wydania]]<TODAY()),\"Wydany\",IF(Harmonogram[[#This Row],[Realna data skończenia]]>0,\"Zrobiony\",\"\"))","v":""}]
[null,null,null,null,null,{"$f":"Harmonogram[[#This Row],[Data przyjęcia ]]+30","v":"1900-01-30"},null,null,null,null,null,null,null,null,null,{"$f":"Harmonogram[[#This Row],[P: \nSzycie]]","v":0},null,null,null,null,null,null,null,null,null,{"$f":"SUM(Harmonogram[[#This Row],[P: Spawanie]:[P: Montaż]])","v":0},null,null,{"$f":"Harmonogram[[#This Row],[Realna data wydania]]+365","v":"1900-12-30"},null,{"$f":"IF(Harmonogram[[#This Row],[Realna data wydania]]=0,\"\",MONTH(Harmonogram[[#This Row],[Realna data wydania]]))","v":""},{"$f":"IF(AND(Harmonogram[[#This Row],[Realna data wydania]]>0,Harmonogram[[#This Row],[Realna data wydania]]<TODAY()),\"Wydany\",IF(Harmonogram[[#This Row],[Realna data skończenia]]>0,\"Zrobiony\",\"\"))","v":""}]
[null,null,null,null,null,{"$f":"Harmonogram[[#This Row],[Data przyjęcia ]]+30","v":"1900-01-30"},null,null,null,null,null,null,null,null,null,{"$f":"Harmonogram[[#This Row],[P: \nSzycie]]","v":0},null,null,null,null,null,null,null,null,null,{"$f":"SUM(Harmonogram[[#This Row],[P: Spawanie]:[P: Montaż]])","v":0},null,null,{"$f":"Harmonogram[[#This Row],[Realna data wydania]]+365","v":"1900-12-30"},null,{"$f":"IF(Harmonogram[[#This Row],[Realna data wydania]]=0,\"\",MONTH(Harmonogram[[#This Row],[Realna data wydania]]))","v":""},{"$f":"IF(AND(Harmonogram[[#This Row],[Realna data wydania]]>0,Harmonogram[[#This Row],[Realna data wydania]]<TODAY()),\"Wydany\",IF(Harmonogram[[#This Row],[Realna data skończenia]]>0,\"Zrobiony\",\"\"))","v":""}]
[null,null,null,null,null,{"$f":"Harmonogram[[#This Row],[Data przyjęcia ]]+30","v":"1900-01-30"},null,null,null,null,null,null,null,null,null,{"$f":"Harmonogram[[#This Row],[P: \nSzycie]]","v":0},null,null,null,null,null,null,null,null,null,{"$f":"SUM(Harmonogram[[#This Row],[P: Spawanie]:[P: Montaż]])","v":0},null,null,{"$f":"Harmonogram[[#This Row],[Realna data wydania]]+365","v":"1900-12-30"},null,{"$f":"IF(Harmonogram[[#This Row],[Realna data wydania]]=0,\"\",MONTH(Harmonogram[[#This Row],[Realna data wydania]]))","v":""},{"$f":"IF(AND(Harmonogram[[#This Row],[Realna data wydania]]>0,Harmonogram[[#This Row],[Realna data wydania]]<TODAY()),\"Wydany\",IF(Harmonogram[[#This Row],[Realna data skończenia]]>0,\"Zrobiony\",\"\"))","v":""}]
[null,null,null,null,null,{"$f":"Harmonogram[[#This Row],[Data przyjęcia ]]+30","v":"1900-01-30"},null,null,null,null,null,null,null,null,null,{"$f":"Harmonogram[[#This Row],[P: \nSzycie]]","v":0},null,null,null,null,null,null,null,null,null,{"$f":"SUM(Harmonogram[[#This Row],[P: Spawanie]:[P: Montaż]])","v":0},null,null,{"$f":"Harmonogram[[#This Row],[Realna data wydania]]+365","v":"1900-12-30"},null,{"$f":"IF(Harmonogram[[#This Row],[Realna data wydania]]=0,\"\",MONTH(Harmonogram[[#This Row],[Realna data wydania]]))","v":""},{"$f":"IF(AND(Harmonogram[[#This Row],[Realna data wydania]]>0,Harmonogram[[#This Row],[Realna data wydania]]<TODAY()),\"Wydany\",IF(Harmonogram[[#This Row],[Realna data skończenia]]>0,\"Zrobiony\",\"\"))","v":""}]
[null,null,null,null,null,{"$f":"Harmonogram[[#This Row],[Data przyjęcia ]]+30","v":"1900-01-30"},null,null,null,null,null,null,null,null,null,{"$f":"Harmonogram[[#This Row],[P: \nSzycie]]","v":0},null,null,null,null,null,null,null,null,null,{"$f":"SUM(Harmonogram[[#This Row],[P: Spawanie]:[P: Montaż]])","v":0},null,null,{"$f":"Harmonogram[[#This Row],[Realna data wydania]]+365","v":"1900-12-30"},null,{"$f":"IF(Harmonogram[[#This Row],[Realna data wydania]]=0,\"\",MONTH(Harmonogram[[#This Row],[Realna data wydania]]))","v":""},{"$f":"IF(AND(Harmonogram[[#This Row],[Realna data wydania]]>0,Harmonogram[[#This Row],[Realna data wydania]]<TODAY()),\"Wydany\",IF(Harmonogram[[#This Row],[Realna data skończenia]]>0,\"Zrobiony\",\"\"))","v":""}]
[null,null,null,null,null,{"$f":"Harmonogram[[#This Row],[Data przyjęcia ]]+30","v":"1900-01-30"},null,null,null,null,null,null,null,null,null,{"$f":"Harmonogram[[#This Row],[P: \nSzycie]]","v":0},null,null,null,null,null,null,null,null,null,{"$f":"SUM(Harmonogram[[#This Row],[P: Spawanie]:[P: Montaż]])","v":0},null,null,{"$f":"Harmonogram[[#This Row],[Realna data wydania]]+365","v":"1900-12-30"},null,{"$f":"IF(Harmonogram[[#This Row],[Realna data wydania]]=0,\"\",MONTH(Harmonogram[[#This Row],[Realna data wydania]]))","v":""},{"$f":"IF(AND(Harmonogram[[#This Row],[Realna data wydania]]>0,Harmonogram[[#This Row],[Realna data wydania]]<TODAY()),\"Wydany\",IF(Harmonogram[[#This Row],[Realna data skończenia]]>0,\"Zrobiony\",\"\"))","v":""}]
[null,null,null,null,null,{"$f":"Harmonogram[[#This Row],[Data przyjęcia ]]+30","v":"1900-01-30"},null,null,null,null,null,null,null,null,null,{"$f":"Harmonogram[[#This Row],[P: \nSzycie]]","v":0},null,null,null,null,null,null,null,null,null,{"$f":"SUM(Harmonogram[[#This Row],[P: Spawanie]:[P: Montaż]])","v":0},null,null,{"$f":"Harmonogram[[#This Row],[Realna data wydania]]+365","v":"1900-12-30"},null,{"$f":"IF(Harmonogram[[#This Row],[Realna data wydania]]=0,\"\",MONTH(Harmonogram[[#This Row],[Realna data wydania]]))","v":""},{"$f":"IF(AND(Harmonogram[[#This Row],[Realna data wydania]]>0,Harmonogram[[#This Row],[Realna data wydania]]<TODAY()),\"Wydany\",IF(Harmonogram[[#This Row],[Realna data skończenia]]>0,\"Zrobiony\",\"\"))","v":""}]
[null,null,null,null,null,{"$f":"Harmonogram[[#This Row],[Data przyjęcia ]]+30","v":"1900-01-30"},null,null,null,null,null,null,null,null,null,{"$f":"Harmonogram[[#This Row],[P: \nSzycie]]","v":0},null,null,null,null,null,null,null,null,null,{"$f":"SUM(Harmonogram[[#This Row],[P: Spawanie]:[P: Montaż]])","v":0},null,null,{"$f":"Harmonogram[[#This Row],[Realna data wydania]]+365","v":"1900-12-30"},null,{"$f":"IF(Harmonogram[[#This Row],[Realna data wydania]]=0,\"\",MONTH(Harmonogram[[#This Row],[Realna data wydania]]))","v":""},{"$f":"IF(AND(Harmonogram[[#This Row],[Realna data wydania]]>0,Harmonogram[[#This Row],[Realna data wydania]]<TODAY()),\"Wydany\",IF(Harmonogram[[#This Row],[Realna data skończenia]]>0,\"Zrobiony\",\"\"))","v":""}]
[null,null,null,null,null,{"$f":"Harmonogram[[#This Row],[Data przyjęcia ]]+30","v":"1900-01-30"},null,null,null,null,null,null,null,null,null,{"$f":"Harmonogram[[#This Row],[P: \nSzycie]]","v":0},null,null,null,null,null,null,null,null,null,{"$f":"SUM(Harmonogram[[#This Row],[P: Spawanie]:[P: Montaż]])","v":0},null,null,{"$f":"Harmonogram[[#This Row],[Realna data wydania]]+365","v":"1900-12-30"},null,{"$f":"IF(Harmonogram[[#This Row],[Realna data wydania]]=0,\"\",MONTH(Harmonogram[[#This Row],[Realna data wydania]]))","v":""},{"$f":"IF(AND(Harmonogram[[#This Row],[Realna data wydania]]>0,Harmonogram[[#This Row],[Realna data wydania]]<TODAY()),\"Wydany\",IF(Harmonogram[[#This Row],[Realna data skończenia]]>0,\"Zrobiony\",\"\"))","v":""}]
[null,null,null,null,null,{"$f":"Harmonogram[[#This Row],[Data przyjęcia ]]+30","v":"1900-01-30"},null,null,null,null,null,null,null,null,null,{"$f":"Harmonogram[[#This Row],[P: \nSzycie]]","v":0},null,null,null,null,null,null,null,null,null,{"$f":"SUM(Harmonogram[[#This Row],[P: Spawanie]:[P: Montaż]])","v":0},null,null,{"$f":"Harmonogram[[#This Row],[Realna data wydania]]+365","v":"1900-12-30"},null,{"$f":"IF(Harmonogram[[#This Row],[Realna data wydania]]=0,\"\",MONTH(Harmonogram[[#This Row],[Realna data wydania]]))","v":""},{"$f":"IF(AND(Harmonogram[[#This Row],[Realna data wydania]]>0,Harmonogram[[#This Row],[Realna data wydania]]<TODAY()),\"Wydany\",IF(Harmonogram[[#This Row],[Realna data skończenia]]>0,\"Zrobiony\",\"\"))","v":""}]
[null,null,null,null,null,{"$f":"Harmonogram[[#This Row],[Data przyjęcia ]]+30","v":"1900-01-30"},null,null,null,null,null,null,null,null,null,{"$f":"Harmonogram[[#This Row],[P: \nSzycie]]","v":0},null,null,null,null,null,null,null,null,null,{"$f":"SUM(Harmonogram[[#This Row],[P: Spawanie]:[P: Montaż]])","v":0},null,null,{"$f":"Harmonogram[[#This Row],[Realna data wydania]]+365","v":"1900-12-30"},null,{"$f":"IF(Harmonogram[[#This Row],[Realna data wydania]]=0,\"\",MONTH(Harmonogram[[#This Row],[Realna data wydania]]))","v":""},{"$f":"IF(AND(Harmonogram[[#This Row],[Realna data wydania]]>0,Harmonogram[[#This Row],[Realna data wydania]]<TODAY()),\"Wydany\",IF(Harmonogram[[#This Row],[Realna data skończenia]]>0,\"Zrobiony\",\"\"))","v":""}]
[null,null,null,null,null,{"$f":"Harmonogram[[#This Row],[Data przyjęcia ]]+30","v":"1900-01-30"},null,null,null,null,null,null,null,null,null,{"$f":"Harmonogram[[#This Row],[P: \nSzycie]]","v":0},null,null,null,null,null,null,null,null,null,{"$f":"SUM(Harmonogram[[#This Row],[P: Spawanie]:[P: Montaż]])","v":0},null,null,{"$f":"Harmonogram[[#This Row],[Realna data wydania]]+365","v":"1900-12-30"},null,{"$f":"IF(Harmonogram[[#This Row],[Realna data wydania]]=0,\"\",MONTH(Harmonogram[[#This Row],[Realna data wydania]]))","v":""},{"$f":"IF(AND(Harmonogram[[#This Row],[Realna data wydania]]>0,Harmonogram[[#This Row],[Realna data wydania]]<TODAY()),\"Wydany\",IF(Harmonogram[[#This Row],[Realna data skończenia]]>0,\"Zrobiony\",\"\"))","v":""}]
[null,null,null,null,null,{"$f":"Harmonogram[[#This Row],[Data przyjęcia ]]+30","v":"1900-01-30"},null,null,null,null,null,null,null,null,null,{"$f":"Harmonogram[[#This Row],[P: \nSzycie]]","v":0},null,null,null,null,null,null,null,null,null,{"$f":"SUM(Harmonogram[[#This Row],[P: Spawanie]:[P: Montaż]])","v":0},null,null,{"$f":"Harmonogram[[#This Row],[Realna data wydania]]+365","v":"1900-12-30"},null,{"$f":"IF(Harmonogram[[#This Row],[Realna data wydania]]=0,\"\",MONTH(Harmonogram[[#This Row],[Realna data wydania]]))","v":""},{"$f":"IF(AND(Harmonogram[[#This Row],[Realna data wydania]]>0,Harmonogram[[#This Row],[Realna data wydania]]<TODAY()),\"Wydany\",IF(Harmonogram[[#This Row],[Realna data skończenia]]>0,\"Zrobiony\",\"\"))","v":""}]
[null,null,null,null,null,{"$f":"Harmonogram[[#This Row],[Data przyjęcia ]]+30","v":"1900-01-30"},null,null,null,null,null,null,null,null,null,{"$f":"Harmonogram[[#This Row],[P: \nSzycie]]","v":0},null,null,null,null,null,null,null,null,null,{"$f":"SUM(Harmonogram[[#This Row],[P: Spawanie]:[P: Montaż]])","v":0},null,null,{"$f":"Harmonogram[[#This Row],[Realna data wydania]]+365","v":"1900-12-30"},null,{"$f":"IF(Harmonogram[[#This Row],[Realna data wydania]]=0,\"\",MONTH(Harmonogram[[#This Row],[Realna data wydania]]))","v":""},{"$f":"IF(AND(Harmonogram[[#This Row],[Realna data wydania]]>0,Harmonogram[[#This Row],[Realna data wydania]]<TODAY()),\"Wydany\",IF(Harmonogram[[#This Row],[Realna data skończenia]]>0,\"Zrobiony\",\"\"))","v":""}]
[null,null,null,null,null,{"$f":"Harmonogram[[#This Row],[Data przyjęcia ]]+30","v":"1900-01-30"},null,null,null,null,null,null,null,null,null,{"$f":"Harmonogram[[#This Row],[P: \nSzycie]]","v":0},null,null,null,null,null,null,null,null,null,{"$f":"SUM(Harmonogram[[#This Row],[P: Spawanie]:[P: Montaż]])","v":0},null,null,{"$f":"Harmonogram[[#This Row],[Realna data wydania]]+365","v":"1900-12-30"},null,{"$f":"IF(Harmonogram[[#This Row],[Realna data wydania]]=0,\"\",MONTH(Harmonogram[[#This Row],[Realna data wydania]]))","v":""},{"$f":"IF(AND(Harmonogram[[#This Row],[Realna data wydania]]>0,Harmonogram[[#This Row],[Realna data wydania]]<TODAY()),\"Wydany\",IF(Harmonogram[[#This Row],[Realna data skończenia]]>0,\"Zrobiony\",\"\"))","v":""}]
[null,null,null,null,null,{"$f":"Harmonogram[[#This Row],[Data przyjęcia ]]+30","v":"1900-01-30"},null,null,null,null,null,null,null,null,null,{"$f":"Harmonogram[[#This Row],[P: \nSzycie]]","v":0},null,null,null,null,null,null,null,null,null,{"$f":"SUM(Harmonogram[[#This Row],[P: Spawanie]:[P: Montaż]])","v":0},null,null,{"$f":"Harmonogram[[#This Row],[Realna data wydania]]+365","v":"1900-12-30"},null,{"$f":"IF(Harmonogram[[#This Row],[Realna data wydania]]=0,\"\",MONTH(Harmonogram[[#This Row],[Realna data wydania]]))","v":""},{"$f":"IF(AND(Harmonogram[[#This Row],[Realna data wydania]]>0,Harmonogram[[#This Row],[Realna data wydania]]<TODAY()),\"Wydany\",IF(Harmonogram[[#This Row],[Realna data skończenia]]>0,\"Zrobiony\",\"\"))","v":""}]
[null,null,null,null,null,{"$f":"Harmonogram[[#This Row],[Data przyjęcia ]]+30","v":"1900-01-30"},null,null,null,null,null,null,null,null,null,{"$f":"Harmonogram[[#This Row],[P: \nSzycie]]","v":0},null,null,null,null,null,null,null,null,null,{"$f":"SUM(Harmonogram[[#This Row],[P: Spawanie]:[P: Montaż]])","v":0},null,null,{"$f":"Harmonogram[[#This Row],[Realna data wydania]]+365","v":"1900-12-30"},null,{"$f":"IF(Harmonogram[[#This Row],[Realna data wydania]]=0,\"\",MONTH(Harmonogram[[#This Row],[Realna data wydania]]))","v":""},{"$f":"IF(AND(Harmonogram[[#This Row],[Realna data wydania]]>0,Harmonogram[[#This Row],[Realna data wydania]]<TODAY()),\"Wydany\",IF(Harmonogram[[#This Row],[Realna data skończenia]]>0,\"Zrobiony\",\"\"))","v":""}]
[null,null,null,null,null,{"$f":"Harmonogram[[#This Row],[Data przyjęcia ]]+30","v":"1900-01-30"},null,null,null,null,null,null,null,null,null,{"$f":"Harmonogram[[#This Row],[P: \nSzycie]]","v":0},null,null,null,null,null,null,null,null,null,{"$f":"SUM(Harmonogram[[#This Row],[P: Spawanie]:[P: Montaż]])","v":0},null,null,{"$f":"Harmonogram[[#This Row],[Realna data wydania]]+365","v":"1900-12-30"},null,{"$f":"IF(Harmonogram[[#This Row],[Realna data wydania]]=0,\"\",MONTH(Harmonogram[[#This Row],[Realna data wydania]]))","v":""},{"$f":"IF(AND(Harmonogram[[#This Row],[Realna data wydania]]>0,Harmonogram[[#This Row],[Realna data wydania]]<TODAY()),\"Wydany\",IF(Harmonogram[[#This Row],[Realna data skończenia]]>0,\"Zrobiony\",\"\"))","v":""}]
[null,null,null,null,null,{"$f":"Harmonogram[[#This Row],[Data przyjęcia ]]+30","v":"1900-01-30"},null,null,null,null,null,null,null,null,null,{"$f":"Harmonogram[[#This Row],[P: \nSzycie]]","v":0},null,null,null,null,null,null,null,null,null,{"$f":"SUM(Harmonogram[[#This Row],[P: Spawanie]:[P: Montaż]])","v":0},null,null,{"$f":"Harmonogram[[#This Row],[Realna data wydania]]+365","v":"1900-12-30"},null,{"$f":"IF(Harmonogram[[#This Row],[Realna data wydania]]=0,\"\",MONTH(Harmonogram[[#This Row],[Realna data wydania]]))","v":""},{"$f":"IF(AND(Harmonogram[[#This Row],[Realna data wydania]]>0,Harmonogram[[#This Row],[Realna data wydania]]<TODAY()),\"Wydany\",IF(Harmonogram[[#This Row],[Realna data skończenia]]>0,\"Zrobiony\",\"\"))","v":""}]
[null,null,null,null,null,{"$f":"Harmonogram[[#This Row],[Data przyjęcia ]]+30","v":"1900-01-30"},null,null,null,null,null,null,null,null,null,{"$f":"Harmonogram[[#This Row],[P: \nSzycie]]","v":0},null,null,null,null,null,null,null,null,null,{"$f":"SUM(Harmonogram[[#This Row],[P: Spawanie]:[P: Montaż]])","v":0},null,null,{"$f":"Harmonogram[[#This Row],[Realna data wydania]]+365","v":"1900-12-30"},null,{"$f":"IF(Harmonogram[[#This Row],[Realna data wydania]]=0,\"\",MONTH(Harmonogram[[#This Row],[Realna data wydania]]))","v":""},{"$f":"IF(AND(Harmonogram[[#This Row],[Realna data wydania]]>0,Harmonogram[[#This Row],[Realna data wydania]]<TODAY()),\"Wydany\",IF(Harmonogram[[#This Row],[Realna data skończenia]]>0,\"Zrobiony\",\"\"))","v":""}]
[null,null,null,null,null,{"$f":"Harmonogram[[#This Row],[Data przyjęcia ]]+30","v":"1900-01-30"},null,null,null,null,null,null,null,null,null,{"$f":"Harmonogram[[#This Row],[P: \nSzycie]]","v":0},null,null,null,null,null,null,null,null,null,{"$f":"SUM(Harmonogram[[#This Row],[P: Spawanie]:[P: Montaż]])","v":0},null,null,{"$f":"Harmonogram[[#This Row],[Realna data wydania]]+365","v":"1900-12-30"},null,{"$f":"IF(Harmonogram[[#This Row],[Realna data wydania]]=0,\"\",MONTH(Harmonogram[[#This Row],[Realna data wydania]]))","v":""},{"$f":"IF(AND(Harmonogram[[#This Row],[Realna data wydania]]>0,Harmonogram[[#This Row],[Realna data wydania]]<TODAY()),\"Wydany\",IF(Harmonogram[[#This Row],[Realna data skończenia]]>0,\"Zrobiony\",\"\"))","v":""}]
[null,null,null,null,null,{"$f":"Harmonogram[[#This Row],[Data przyjęcia ]]+30","v":"1900-01-30"},null,null,null,null,null,null,null,null,null,{"$f":"Harmonogram[[#This Row],[P: \nSzycie]]","v":0},null,null,null,null,null,null,null,null,null,{"$f":"SUM(Harmonogram[[#This Row],[P: Spawanie]:[P: Montaż]])","v":0},null,null,{"$f":"Harmonogram[[#This Row],[Realna data wydania]]+365","v":"1900-12-30"},null,{"$f":"IF(Harmonogram[[#This Row],[Realna data wydania]]=0,\"\",MONTH(Harmonogram[[#This Row],[Realna data wydania]]))","v":""},{"$f":"IF(AND(Harmonogram[[#This Row],[Realna data wydania]]>0,Harmonogram[[#This Row],[Realna data wydania]]<TODAY()),\"Wydany\",IF(Harmonogram[[#This Row],[Realna data skończenia]]>0,\"Zrobiony\",\"\"))","v":""}]
[null,null,null,null,null,{"$f":"Harmonogram[[#This Row],[Data przyjęcia ]]+30","v":"1900-01-30"},null,null,null,null,null,null,null,null,null,{"$f":"Harmonogram[[#This Row],[P: \nSzycie]]","v":0},null,null,null,null,null,null,null,null,null,{"$f":"SUM(Harmonogram[[#This Row],[P: Spawanie]:[P: Montaż]])","v":0},null,null,{"$f":"Harmonogram[[#This Row],[Realna data wydania]]+365","v":"1900-12-30"},null,{"$f":"IF(Harmonogram[[#This Row],[Realna data wydania]]=0,\"\",MONTH(Harmonogram[[#This Row],[Realna data wydania]]))","v":""},{"$f":"IF(AND(Harmonogram[[#This Row],[Realna data wydania]]>0,Harmonogram[[#This Row],[Realna data wydania]]<TODAY()),\"Wydany\",IF(Harmonogram[[#This Row],[Realna data skończenia]]>0,\"Zrobiony\",\"\"))","v":""}]
[null,null,null,null,null,{"$f":"Harmonogram[[#This Row],[Data przyjęcia ]]+30","v":"1900-01-30"},null,null,null,null,null,null,null,null,null,{"$f":"Harmonogram[[#This Row],[P: \nSzycie]]","v":0},null,null,null,null,null,null,null,null,null,{"$f":"SUM(Harmonogram[[#This Row],[P: Spawanie]:[P: Montaż]])","v":0},null,null,{"$f":"Harmonogram[[#This Row],[Realna data wydania]]+365","v":"1900-12-30"},null,{"$f":"IF(Harmonogram[[#This Row],[Realna data wydania]]=0,\"\",MONTH(Harmonogram[[#This Row],[Realna data wydania]]))","v":""},{"$f":"IF(AND(Harmonogram[[#This Row],[Realna data wydania]]>0,Harmonogram[[#This Row],[Realna data wydania]]<TODAY()),\"Wydany\",IF(Harmonogram[[#This Row],[Realna data skończenia]]>0,\"Zrobiony\",\"\"))","v":""}]
[null,null,null,null,null,{"$f":"Harmonogram[[#This Row],[Data przyjęcia ]]+30","v":"1900-01-30"},null,null,null,null,null,null,null,null,null,{"$f":"Harmonogram[[#This Row],[P: \nSzycie]]","v":0},null,null,null,null,null,null,null,null,null,{"$f":"SUM(Harmonogram[[#This Row],[P: Spawanie]:[P: Montaż]])","v":0},null,null,{"$f":"Harmonogram[[#This Row],[Realna data wydania]]+365","v":"1900-12-30"},null,{"$f":"IF(Harmonogram[[#This Row],[Realna data wydania]]=0,\"\",MONTH(Harmonogram[[#This Row],[Realna data wydania]]))","v":""},{"$f":"IF(AND(Harmonogram[[#This Row],[Realna data wydania]]>0,Harmonogram[[#This Row],[Realna data wydania]]<TODAY()),\"Wydany\",IF(Harmonogram[[#This Row],[Realna data skończenia]]>0,\"Zrobiony\",\"\"))","v":""}]
[null,null,null,null,null,{"$f":"Harmonogram[[#This Row],[Data przyjęcia ]]+30","v":"1900-01-30"},null,null,null,null,null,null,null,null,null,{"$f":"Harmonogram[[#This Row],[P: \nSzycie]]","v":0},null,null,null,null,null,null,null,null,null,{"$f":"SUM(Harmonogram[[#This Row],[P: Spawanie]:[P: Montaż]])","v":0},null,null,{"$f":"Harmonogram[[#This Row],[Realna data wydania]]+365","v":"1900-12-30"},null,{"$f":"IF(Harmonogram[[#This Row],[Realna data wydania]]=0,\"\",MONTH(Harmonogram[[#This Row],[Realna data wydania]]))","v":""},{"$f":"IF(AND(Harmonogram[[#This Row],[Realna data wydania]]>0,Harmonogram[[#This Row],[Realna data wydania]]<TODAY()),\"Wydany\",IF(Harmonogram[[#This Row],[Realna data skończenia]]>0,\"Zrobiony\",\"\"))","v":""}]
[null,null,null,null,null,{"$f":"Harmonogram[[#This Row],[Data przyjęcia ]]+30","v":"1900-01-30"},null,null,null,null,null,null,null,null,null,{"$f":"Harmonogram[[#This Row],[P: \nSzycie]]","v":0},null,null,null,null,null,null,null,null,null,{"$f":"SUM(Harmonogram[[#This Row],[P: Spawanie]:[P: Montaż]])","v":0},null,null,{"$f":"Harmonogram[[#This Row],[Realna data wydania]]+365","v":"1900-12-30"},null,{"$f":"IF(Harmonogram[[#This Row],[Realna data wydania]]=0,\"\",MONTH(Harmonogram[[#This Row],[Realna data wydania]]))","v":""},{"$f":"IF(AND(Harmonogram[[#This Row],[Realna data wydania]]>0,Harmonogram[[#This Row],[Realna data wydania]]<TODAY()),\"Wydany\",IF(Harmonogram[[#This Row],[Realna data skończenia]]>0,\"Zrobiony\",\"\"))","v":""}]
[null,null,null,null,null,{"$f":"Harmonogram[[#This Row],[Data przyjęcia ]]+30","v":"1900-01-30"},null,null,null,null,null,null,null,null,null,{"$f":"Harmonogram[[#This Row],[P: \nSzycie]]","v":0},null,null,null,null,null,null,null,null,null,{"$f":"SUM(Harmonogram[[#This Row],[P: Spawanie]:[P: Montaż]])","v":0},null,null,{"$f":"Harmonogram[[#This Row],[Realna data wydania]]+365","v":"1900-12-30"},null,{"$f":"IF(Harmonogram[[#This Row],[Realna data wydania]]=0,\"\",MONTH(Harmonogram[[#This Row],[Realna data wydania]]))","v":""},{"$f":"IF(AND(Harmonogram[[#This Row],[Realna data wydania]]>0,Harmonogram[[#This Row],[Realna data wydania]]<TODAY()),\"Wydany\",IF(Harmonogram[[#This Row],[Realna data skończenia]]>0,\"Zrobiony\",\"\"))","v":""}]
[null,null,null,null,null,{"$f":"Harmonogram[[#This Row],[Data przyjęcia ]]+30","v":"1900-01-30"},null,null,null,null,null,null,null,null,null,{"$f":"Harmonogram[[#This Row],[P: \nSzycie]]","v":0},null,null,null,null,null,null,null,null,null,{"$f":"SUM(Harmonogram[[#This Row],[P: Spawanie]:[P: Montaż]])","v":0},null,null,{"$f":"Harmonogram[[#This Row],[Realna data wydania]]+365","v":"1900-12-30"},null,{"$f":"IF(Harmonogram[[#This Row],[Realna data wydania]]=0,\"\",MONTH(Harmonogram[[#This Row],[Realna data wydania]]))","v":""},{"$f":"IF(AND(Harmonogram[[#This Row],[Realna data wydania]]>0,Harmonogram[[#This Row],[Realna data wydania]]<TODAY()),\"Wydany\",IF(Harmonogram[[#This Row],[Realna data skończenia]]>0,\"Zrobiony\",\"\"))","v":""}]
[null,null,null,null,null,{"$f":"Harmonogram[[#This Row],[Data przyjęcia ]]+30","v":"1900-01-30"},null,null,null,null,null,null,null,null,null,{"$f":"Harmonogram[[#This Row],[P: \nSzycie]]","v":0},null,null,null,null,null,null,null,null,null,{"$f":"SUM(Harmonogram[[#This Row],[P: Spawanie]:[P: Montaż]])","v":0},null,null,{"$f":"Harmonogram[[#This Row],[Realna data wydania]]+365","v":"1900-12-30"},null,{"$f":"IF(Harmonogram[[#This Row],[Realna data wydania]]=0,\"\",MONTH(Harmonogram[[#This Row],[Realna data wydania]]))","v":""},{"$f":"IF(AND(Harmonogram[[#This Row],[Realna data wydania]]>0,Harmonogram[[#This Row],[Realna data wydania]]<TODAY()),\"Wydany\",IF(Harmonogram[[#This Row],[Realna data skończenia]]>0,\"Zrobiony\",\"\"))","v":""}]
[null,null,null,null,null,{"$f":"Harmonogram[[#This Row],[Data przyjęcia ]]+30","v":"1900-01-30"},null,null,null,null,null,null,null,null,null,{"$f":"Harmonogram[[#This Row],[P: \nSzycie]]","v":0},null,null,null,null,null,null,null,null,null,{"$f":"SUM(Harmonogram[[#This Row],[P: Spawanie]:[P: Montaż]])","v":0},null,null,{"$f":"Harmonogram[[#This Row],[Realna data wydania]]+365","v":"1900-12-30"},null,{"$f":"IF(Harmonogram[[#This Row],[Realna data wydania]]=0,\"\",MONTH(Harmonogram[[#This Row],[Realna data wydania]]))","v":""},{"$f":"IF(AND(Harmonogram[[#This Row],[Realna data wydania]]>0,Harmonogram[[#This Row],[Realna data wydania]]<TODAY()),\"Wydany\",IF(Harmonogram[[#This Row],[Realna data skończenia]]>0,\"Zrobiony\",\"\"))","v":""}]
[null,null,null,null,null,{"$f":"Harmonogram[[#This Row],[Data przyjęcia ]]+30","v":"1900-01-30"},null,null,null,null,null,null,null,null,null,{"$f":"Harmonogram[[#This Row],[P: \nSzycie]]","v":0},null,null,null,null,null,null,null,null,null,{"$f":"SUM(Harmonogram[[#This Row],[P: Spawanie]:[P: Montaż]])","v":0},null,null,{"$f":"Harmonogram[[#This Row],[Realna data wydania]]+365","v":"1900-12-30"},null,{"$f":"IF(Harmonogram[[#This Row],[Realna data wydania]]=0,\"\",MONTH(Harmonogram[[#This Row],[Realna data wydania]]))","v":""},{"$f":"IF(AND(Harmonogram[[#This Row],[Realna data wydania]]>0,Harmonogram[[#This Row],[Realna data wydania]]<TODAY()),\"Wydany\",IF(Harmonogram[[#This Row],[Realna data skończenia]]>0,\"Zrobiony\",\"\"))","v":""}]
[null,null,null,null,null,{"$f":"Harmonogram[[#This Row],[Data przyjęcia ]]+30","v":"1900-01-30"},null,null,null,null,null,null,null,null,null,{"$f":"Harmonogram[[#This Row],[P: \nSzycie]]","v":0},null,null,null,null,null,null,null,null,null,{"$f":"SUM(Harmonogram[[#This Row],[P: Spawanie]:[P: Montaż]])","v":0},null,null,{"$f":"Harmonogram[[#This Row],[Realna data wydania]]+365","v":"1900-12-30"},null,{"$f":"IF(Harmonogram[[#This Row],[Realna data wydania]]=0,\"\",MONTH(Harmonogram[[#This Row],[Realna data wydania]]))","v":""},{"$f":"IF(AND(Harmonogram[[#This Row],[Realna data wydania]]>0,Harmonogram[[#This Row],[Realna data wydania]]<TODAY()),\"Wydany\",IF(Harmonogram[[#This Row],[Realna data skończenia]]>0,\"Zrobiony\",\"\"))","v":""}]
[null,null,null,null,null,{"$f":"Harmonogram[[#This Row],[Data przyjęcia ]]+30","v":"1900-01-30"},null,null,null,null,null,null,null,null,null,{"$f":"Harmonogram[[#This Row],[P: \nSzycie]]","v":0},null,null,null,null,null,null,null,null,null,{"$f":"SUM(Harmonogram[[#This Row],[P: Spawanie]:[P: Montaż]])","v":0},null,null,{"$f":"Harmonogram[[#This Row],[Realna data wydania]]+365","v":"1900-12-30"},null,{"$f":"IF(Harmonogram[[#This Row],[Realna data wydania]]=0,\"\",MONTH(Harmonogram[[#This Row],[Realna data wydania]]))","v":""},{"$f":"IF(AND(Harmonogram[[#This Row],[Realna data wydania]]>0,Harmonogram[[#This Row],[Realna data wydania]]<TODAY()),\"Wydany\",IF(Harmonogram[[#This Row],[Realna data skończenia]]>0,\"Zrobiony\",\"\"))","v":""}]
[null,null,null,null,null,{"$f":"Harmonogram[[#This Row],[Data przyjęcia ]]+30","v":"1900-01-30"},null,null,null,null,null,null,null,null,null,{"$f":"Harmonogram[[#This Row],[P: \nSzycie]]","v":0},null,null,null,null,null,null,null,null,null,{"$f":"SUM(Harmonogram[[#This Row],[P: Spawanie]:[P: Montaż]])","v":0},null,null,{"$f":"Harmonogram[[#This Row],[Realna data wydania]]+365","v":"1900-12-30"},null,{"$f":"IF(Harmonogram[[#This Row],[Realna data wydania]]=0,\"\",MONTH(Harmonogram[[#This Row],[Realna data wydania]]))","v":""},{"$f":"IF(AND(Harmonogram[[#This Row],[Realna data wydania]]>0,Harmonogram[[#This Row],[Realna data wydania]]<TODAY()),\"Wydany\",IF(Harmonogram[[#This Row],[Realna data skończenia]]>0,\"Zrobiony\",\"\"))","v":""}]
[null,null,null,null,null,{"$f":"Harmonogram[[#This Row],[Data przyjęcia ]]+30","v":"1900-01-30"},null,null,null,null,null,null,null,null,null,{"$f":"Harmonogram[[#This Row],[P: \nSzycie]]","v":0},null,null,null,null,null,null,null,null,null,{"$f":"SUM(Harmonogram[[#This Row],[P: Spawanie]:[P: Montaż]])","v":0},null,null,{"$f":"Harmonogram[[#This Row],[Realna data wydania]]+365","v":"1900-12-30"},null,{"$f":"IF(Harmonogram[[#This Row],[Realna data wydania]]=0,\"\",MONTH(Harmonogram[[#This Row],[Realna data wydania]]))","v":""},{"$f":"IF(AND(Harmonogram[[#This Row],[Realna data wydania]]>0,Harmonogram[[#This Row],[Realna data wydania]]<TODAY()),\"Wydany\",IF(Harmonogram[[#This Row],[Realna data skończenia]]>0,\"Zrobiony\",\"\"))","v":""}]
[null,null,null,null,null,{"$f":"Harmonogram[[#This Row],[Data przyjęcia ]]+30","v":"1900-01-30"},null,null,null,null,null,null,null,null,null,{"$f":"Harmonogram[[#This Row],[P: \nSzycie]]","v":0},null,null,null,null,null,null,null,null,null,{"$f":"SUM(Harmonogram[[#This Row],[P: Spawanie]:[P: Montaż]])","v":0},null,null,{"$f":"Harmonogram[[#This Row],[Realna data wydania]]+365","v":"1900-12-30"},null,{"$f":"IF(Harmonogram[[#This Row],[Realna data wydania]]=0,\"\",MONTH(Harmonogram[[#This Row],[Realna data wydania]]))","v":""},{"$f":"IF(AND(Harmonogram[[#This Row],[Realna data wydania]]>0,Harmonogram[[#This Row],[Realna data wydania]]<TODAY()),\"Wydany\",IF(Harmonogram[[#This Row],[Realna data skończenia]]>0,\"Zrobiony\",\"\"))","v":""}]
[null,null,null,null,null,{"$f":"Harmonogram[[#This Row],[Data przyjęcia ]]+30","v":"1900-01-30"},null,null,null,null,null,null,null,null,null,{"$f":"Harmonogram[[#This Row],[P: \nSzycie]]","v":0},null,null,null,null,null,null,null,null,null,{"$f":"SUM(Harmonogram[[#This Row],[P: Spawanie]:[P: Montaż]])","v":0},null,null,{"$f":"Harmonogram[[#This Row],[Realna data wydania]]+365","v":"1900-12-30"},null,{"$f":"IF(Harmonogram[[#This Row],[Realna data wydania]]=0,\"\",MONTH(Harmonogram[[#This Row],[Realna data wydania]]))","v":""},{"$f":"IF(AND(Harmonogram[[#This Row],[Realna data wydania]]>0,Harmonogram[[#This Row],[Realna data wydania]]<TODAY()),\"Wydany\",IF(Harmonogram[[#This Row],[Realna data skończenia]]>0,\"Zrobiony\",\"\"))","v":""}]
[null,null,null,null,null,{"$f":"Harmonogram[[#This Row],[Data przyjęcia ]]+30","v":"1900-01-30"},null,null,null,null,null,null,null,null,null,{"$f":"Harmonogram[[#This Row],[P: \nSzycie]]","v":0},null,null,null,null,null,null,null,null,null,{"$f":"SUM(Harmonogram[[#This Row],[P: Spawanie]:[P: Montaż]])","v":0},null,null,{"$f":"Harmonogram[[#This Row],[Realna data wydania]]+365","v":"1900-12-30"},null,{"$f":"IF(Harmonogram[[#This Row],[Realna data wydania]]=0,\"\",MONTH(Harmonogram[[#This Row],[Realna data wydania]]))","v":""},{"$f":"IF(AND(Harmonogram[[#This Row],[Realna data wydania]]>0,Harmonogram[[#This Row],[Realna data wydania]]<TODAY()),\"Wydany\",IF(Harmonogram[[#This Row],[Realna data skończenia]]>0,\"Zrobiony\",\"\"))","v":""}]
[null,null,null,null,null,{"$f":"Harmonogram[[#This Row],[Data przyjęcia ]]+30","v":"1900-01-30"},null,null,null,null,null,null,null,null,null,{"$f":"Harmonogram[[#This Row],[P: \nSzycie]]","v":0},null,null,null,null,null,null,null,null,null,{"$f":"SUM(Harmonogram[[#This Row],[P: Spawanie]:[P: Montaż]])","v":0},null,null,{"$f":"Harmonogram[[#This Row],[Realna data wydania]]+365","v":"1900-12-30"},null,{"$f":"IF(Harmonogram[[#This Row],[Realna data wydania]]=0,\"\",MONTH(Harmonogram[[#This Row],[Realna data wydania]]))","v":""},{"$f":"IF(AND(Harmonogram[[#This Row],[Realna data wydania]]>0,Harmonogram[[#This Row],[Realna data wydania]]<TODAY()),\"Wydany\",IF(Harmonogram[[#This Row],[Realna data skończenia]]>0,\"Zrobiony\",\"\"))","v":""}]
[null,null,null,null,null,{"$f":"Harmonogram[[#This Row],[Data przyjęcia ]]+30","v":"1900-01-30"},null,null,null,null,null,null,null,null,null,{"$f":"Harmonogram[[#This Row],[P: \nSzycie]]","v":0},null,null,null,null,null,null,null,null,null,{"$f":"SUM(Harmonogram[[#This Row],[P: Spawanie]:[P: Montaż]])","v":0},null,null,{"$f":"Harmonogram[[#This Row],[Realna data wydania]]+365","v":"1900-12-30"},null,{"$f":"IF(Harmonogram[[#This Row],[Realna data wydania]]=0,\"\",MONTH(Harmonogram[[#This Row],[Realna data wydania]]))","v":""},{"$f":"IF(AND(Harmonogram[[#This Row],[Realna data wydania]]>0,Harmonogram[[#This Row],[Realna data wydania]]<TODAY()),\"Wydany\",IF(Harmonogram[[#This Row],[Realna data skończenia]]>0,\"Zrobiony\",\"\"))","v":""}]
[null,null,null,null,null,{"$f":"Harmonogram[[#This Row],[Data przyjęcia ]]+30","v":"1900-01-30"},null,null,null,null,null,null,null,null,null,{"$f":"Harmonogram[[#This Row],[P: \nSzycie]]","v":0},null,null,null,null,null,null,null,null,null,{"$f":"SUM(Harmonogram[[#This Row],[P: Spawanie]:[P: Montaż]])","v":0},null,null,{"$f":"Harmonogram[[#This Row],[Realna data wydania]]+365","v":"1900-12-30"},null,{"$f":"IF(Harmonogram[[#This Row],[Realna data wydania]]=0,\"\",MONTH(Harmonogram[[#This Row],[Realna data wydania]]))","v":""},{"$f":"IF(AND(Harmonogram[[#This Row],[Realna data wydania]]>0,Harmonogram[[#This Row],[Realna data wydania]]<TODAY()),\"Wydany\",IF(Harmonogram[[#This Row],[Realna data skończenia]]>0,\"Zrobiony\",\"\"))","v":""}]
[null,null,null,null,null,{"$f":"Harmonogram[[#This Row],[Data przyjęcia ]]+30","v":"1900-01-30"},null,null,null,null,null,null,null,null,null,{"$f":"Harmonogram[[#This Row],[P: \nSzycie]]","v":0},null,null,null,null,null,null,null,null,null,{"$f":"SUM(Harmonogram[[#This Row],[P: Spawanie]:[P: Montaż]])","v":0},null,null,{"$f":"Harmonogram[[#This Row],[Realna data wydania]]+365","v":"1900-12-30"},null,{"$f":"IF(Harmonogram[[#This Row],[Realna data wydania]]=0,\"\",MONTH(Harmonogram[[#This Row],[Realna data wydania]]))","v":""},{"$f":"IF(AND(Harmonogram[[#This Row],[Realna data wydania]]>0,Harmonogram[[#This Row],[Realna data wydania]]<TODAY()),\"Wydany\",IF(Harmonogram[[#This Row],[Realna data skończenia]]>0,\"Zrobiony\",\"\"))","v":""}]
[null,null,null,null,null,{"$f":"Harmonogram[[#This Row],[Data przyjęcia ]]+30","v":"1900-01-30"},null,null,null,null,null,null,null,null,null,{"$f":"Harmonogram[[#This Row],[P: \nSzycie]]","v":0},null,null,null,null,null,null,null,null,null,{"$f":"SUM(Harmonogram[[#This Row],[P: Spawanie]:[P: Montaż]])","v":0},null,null,{"$f":"Harmonogram[[#This Row],[Realna data wydania]]+365","v":"1900-12-30"},null,{"$f":"IF(Harmonogram[[#This Row],[Realna data wydania]]=0,\"\",MONTH(Harmonogram[[#This Row],[Realna data wydania]]))","v":""},{"$f":"IF(AND(Harmonogram[[#This Row],[Realna data wydania]]>0,Harmonogram[[#This Row],[Realna data wydania]]<TODAY()),\"Wydany\",IF(Harmonogram[[#This Row],[Realna data skończenia]]>0,\"Zrobiony\",\"\"))","v":""}]
[null,null,null,null,null,{"$f":"Harmonogram[[#This Row],[Data przyjęcia ]]+30","v":"1900-01-30"},null,null,null,null,null,null,null,null,null,{"$f":"Harmonogram[[#This Row],[P: \nSzycie]]","v":0},null,null,null,null,null,null,null,null,null,{"$f":"SUM(Harmonogram[[#This Row],[P: Spawanie]:[P: Montaż]])","v":0},null,null,{"$f":"Harmonogram[[#This Row],[Realna data wydania]]+365","v":"1900-12-30"},null,{"$f":"IF(Harmonogram[[#This Row],[Realna data wydania]]=0,\"\",MONTH(Harmonogram[[#This Row],[Realna data wydania]]))","v":""},{"$f":"IF(AND(Harmonogram[[#This Row],[Realna data wydania]]>0,Harmonogram[[#This Row],[Realna data wydania]]<TODAY()),\"Wydany\",IF(Harmonogram[[#This Row],[Realna data skończenia]]>0,\"Zrobiony\",\"\"))","v":""}]
[null,null,null,null,null,{"$f":"Harmonogram[[#This Row],[Data przyjęcia ]]+30","v":"1900-01-30"},null,null,null,null,null,null,null,null,null,{"$f":"Harmonogram[[#This Row],[P: \nSzycie]]","v":0},null,null,null,null,null,null,null,null,null,{"$f":"SUM(Harmonogram[[#This Row],[P: Spawanie]:[P: Montaż]])","v":0},null,null,{"$f":"Harmonogram[[#This Row],[Realna data wydania]]+365","v":"1900-12-30"},null,{"$f":"IF(Harmonogram[[#This Row],[Realna data wydania]]=0,\"\",MONTH(Harmonogram[[#This Row],[Realna data wydania]]))","v":""},{"$f":"IF(AND(Harmonogram[[#This Row],[Realna data wydania]]>0,Harmonogram[[#This Row],[Realna data wydania]]<TODAY()),\"Wydany\",IF(Harmonogram[[#This Row],[Realna data skończenia]]>0,\"Zrobiony\",\"\"))","v":""}]
[null,null,null,null,null,{"$f":"Harmonogram[[#This Row],[Data przyjęcia ]]+30","v":"1900-01-30"},null,null,null,null,null,null,null,null,null,{"$f":"Harmonogram[[#This Row],[P: \nSzycie]]","v":0},null,null,null,null,null,null,null,null,null,{"$f":"SUM(Harmonogram[[#This Row],[P: Spawanie]:[P: Montaż]])","v":0},null,null,{"$f":"Harmonogram[[#This Row],[Realna data wydania]]+365","v":"1900-12-30"},null,{"$f":"IF(Harmonogram[[#This Row],[Realna data wydania]]=0,\"\",MONTH(Harmonogram[[#This Row],[Realna data wydania]]))","v":""},{"$f":"IF(AND(Harmonogram[[#This Row],[Realna data wydania]]>0,Harmonogram[[#This Row],[Realna data wydania]]<TODAY()),\"Wydany\",IF(Harmonogram[[#This Row],[Realna data skończenia]]>0,\"Zrobiony\",\"\"))","v":""}]
[null,null,null,null,null,{"$f":"Harmonogram[[#This Row],[Data przyjęcia ]]+30","v":"1900-01-30"},null,null,null,null,null,null,null,null,null,{"$f":"Harmonogram[[#This Row],[P: \nSzycie]]","v":0},null,null,null,null,null,null,null,null,null,{"$f":"SUM(Harmonogram[[#This Row],[P: Spawanie]:[P: Montaż]])","v":0},null,null,{"$f":"Harmonogram[[#This Row],[Realna data wydania]]+365","v":"1900-12-30"},null,{"$f":"IF(Harmonogram[[#This Row],[Realna data wydania]]=0,\"\",MONTH(Harmonogram[[#This Row],[Realna data wydania]]))","v":""},{"$f":"IF(AND(Harmonogram[[#This Row],[Realna data wydania]]>0,Harmonogram[[#This Row],[Realna data wydania]]<TODAY()),\"Wydany\",IF(Harmonogram[[#This Row],[Realna data skończenia]]>0,\"Zrobiony\",\"\"))","v":""}]
[null,null,null,null,null,{"$f":"Harmonogram[[#This Row],[Data przyjęcia ]]+30","v":"1900-01-30"},null,null,null,null,null,null,null,null,null,{"$f":"Harmonogram[[#This Row],[P: \nSzycie]]","v":0},null,null,null,null,null,null,null,null,null,{"$f":"SUM(Harmonogram[[#This Row],[P: Spawanie]:[P: Montaż]])","v":0},null,null,{"$f":"Harmonogram[[#This Row],[Realna data wydania]]+365","v":"1900-12-30"},null,{"$f":"IF(Harmonogram[[#This Row],[Realna data wydania]]=0,\"\",MONTH(Harmonogram[[#This Row],[Realna data wydania]]))","v":""},{"$f":"IF(AND(Harmonogram[[#This Row],[Realna data wydania]]>0,Harmonogram[[#This Row],[Realna data wydania]]<TODAY()),\"Wydany\",IF(Harmonogram[[#This Row],[Realna data skończenia]]>0,\"Zrobiony\",\"\"))","v":""}]
[null,null,null,null,null,{"$f":"Harmonogram[[#This Row],[Data przyjęcia ]]+30","v":"1900-01-30"},null,null,null,null,null,null,null,null,null,{"$f":"Harmonogram[[#This Row],[P: \nSzycie]]","v":0},null,null,null,null,null,null,null,null,null,{"$f":"SUM(Harmonogram[[#This Row],[P: Spawanie]:[P: Montaż]])","v":0},null,null,{"$f":"Harmonogram[[#This Row],[Realna data wydania]]+365","v":"1900-12-30"},null,{"$f":"IF(Harmonogram[[#This Row],[Realna data wydania]]=0,\"\",MONTH(Harmonogram[[#This Row],[Realna data wydania]]))","v":""},{"$f":"IF(AND(Harmonogram[[#This Row],[Realna data wydania]]>0,Harmonogram[[#This Row],[Realna data wydania]]<TODAY()),\"Wydany\",IF(Harmonogram[[#This Row],[Realna data skończenia]]>0,\"Zrobiony\",\"\"))","v":""}]
[null,null,null,null,null,{"$f":"Harmonogram[[#This Row],[Data przyjęcia ]]+30","v":"1900-01-30"},null,null,null,null,null,null,null,null,null,{"$f":"Harmonogram[[#This Row],[P: \nSzycie]]","v":0},null,null,null,null,null,null,null,null,null,{"$f":"SUM(Harmonogram[[#This Row],[P: Spawanie]:[P: Montaż]])","v":0},null,null,{"$f":"Harmonogram[[#This Row],[Realna data wydania]]+365","v":"1900-12-30"},null,{"$f":"IF(Harmonogram[[#This Row],[Realna data wydania]]=0,\"\",MONTH(Harmonogram[[#This Row],[Realna data wydania]]))","v":""},{"$f":"IF(AND(Harmonogram[[#This Row],[Realna data wydania]]>0,Harmonogram[[#This Row],[Realna data wydania]]<TODAY()),\"Wydany\",IF(Harmonogram[[#This Row],[Realna data skończenia]]>0,\"Zrobiony\",\"\"))","v":""}]
[null,null,null,null,null,{"$f":"Harmonogram[[#This Row],[Data przyjęcia ]]+30","v":"1900-01-30"},null,null,null,null,null,null,null,null,null,{"$f":"Harmonogram[[#This Row],[P: \nSzycie]]","v":0},null,null,null,null,null,null,null,null,null,{"$f":"SUM(Harmonogram[[#This Row],[P: Spawanie]:[P: Montaż]])","v":0},null,null,{"$f":"Harmonogram[[#This Row],[Realna data wydania]]+365","v":"1900-12-30"},null,{"$f":"IF(Harmonogram[[#This Row],[Realna data wydania]]=0,\"\",MONTH(Harmonogram[[#This Row],[Realna data wydania]]))","v":""},{"$f":"IF(AND(Harmonogram[[#This Row],[Realna data wydania]]>0,Harmonogram[[#This Row],[Realna data wydania]]<TODAY()),\"Wydany\",IF(Harmonogram[[#This Row],[Realna data skończenia]]>0,\"Zrobiony\",\"\"))","v":""}]
[null,null,null,null,null,{"$f":"Harmonogram[[#This Row],[Data przyjęcia ]]+30","v":"1900-01-30"},null,null,null,null,null,null,null,null,null,{"$f":"Harmonogram[[#This Row],[P: \nSzycie]]","v":0},null,null,null,null,null,null,null,null,null,{"$f":"SUM(Harmonogram[[#This Row],[P: Spawanie]:[P: Montaż]])","v":0},null,null,{"$f":"Harmonogram[[#This Row],[Realna data wydania]]+365","v":"1900-12-30"},null,{"$f":"IF(Harmonogram[[#This Row],[Realna data wydania]]=0,\"\",MONTH(Harmonogram[[#This Row],[Realna data wydania]]))","v":""},{"$f":"IF(AND(Harmonogram[[#This Row],[Realna data wydania]]>0,Harmonogram[[#This Row],[Realna data wydania]]<TODAY()),\"Wydany\",IF(Harmonogram[[#This Row],[Realna data skończenia]]>0,\"Zrobiony\",\"\"))","v":""}]
[null,null,null,null,null,{"$f":"Harmonogram[[#This Row],[Data przyjęcia ]]+30","v":"1900-01-30"},null,null,null,null,null,null,null,null,null,{"$f":"Harmonogram[[#This Row],[P: \nSzycie]]","v":0},null,null,null,null,null,null,null,null,null,{"$f":"SUM(Harmonogram[[#This Row],[P: Spawanie]:[P: Montaż]])","v":0},null,null,{"$f":"Harmonogram[[#This Row],[Realna data wydania]]+365","v":"1900-12-30"},null,{"$f":"IF(Harmonogram[[#This Row],[Realna data wydania]]=0,\"\",MONTH(Harmonogram[[#This Row],[Realna data wydania]]))","v":""},{"$f":"IF(AND(Harmonogram[[#This Row],[Realna data wydania]]>0,Harmonogram[[#This Row],[Realna data wydania]]<TODAY()),\"Wydany\",IF(Harmonogram[[#This Row],[Realna data skończenia]]>0,\"Zrobiony\",\"\"))","v":""}]
[null,null,null,null,null,{"$f":"Harmonogram[[#This Row],[Data przyjęcia ]]+30","v":"1900-01-30"},null,null,null,null,null,null,null,null,null,{"$f":"Harmonogram[[#This Row],[P: \nSzycie]]","v":0},null,null,null,null,null,null,null,null,null,{"$f":"SUM(Harmonogram[[#This Row],[P: Spawanie]:[P: Montaż]])","v":0},null,null,{"$f":"Harmonogram[[#This Row],[Realna data wydania]]+365","v":"1900-12-30"},null,{"$f":"IF(Harmonogram[[#This Row],[Realna data wydania]]=0,\"\",MONTH(Harmonogram[[#This Row],[Realna data wydania]]))","v":""},{"$f":"IF(AND(Harmonogram[[#This Row],[Realna data wydania]]>0,Harmonogram[[#This Row],[Realna data wydania]]<TODAY()),\"Wydany\",IF(Harmonogram[[#This Row],[Realna data skończenia]]>0,\"Zrobiony\",\"\"))","v":""}]
[null,null,null,null,null,{"$f":"Harmonogram[[#This Row],[Data przyjęcia ]]+30","v":"1900-01-30"},null,null,null,null,null,null,null,null,null,{"$f":"Harmonogram[[#This Row],[P: \nSzycie]]","v":0},null,null,null,null,null,null,null,null,null,{"$f":"SUM(Harmonogram[[#This Row],[P: Spawanie]:[P: Montaż]])","v":0},null,null,{"$f":"Harmonogram[[#This Row],[Realna data wydania]]+365","v":"1900-12-30"},null,{"$f":"IF(Harmonogram[[#This Row],[Realna data wydania]]=0,\"\",MONTH(Harmonogram[[#This Row],[Realna data wydania]]))","v":""},{"$f":"IF(AND(Harmonogram[[#This Row],[Realna data wydania]]>0,Harmonogram[[#This Row],[Realna data wydania]]<TODAY()),\"Wydany\",IF(Harmonogram[[#This Row],[Realna data skończenia]]>0,\"Zrobiony\",\"\"))","v":""}]
[null,null,null,null,null,{"$f":"Harmonogram[[#This Row],[Data przyjęcia ]]+30","v":"1900-01-30"},null,null,null,null,null,null,null,null,null,{"$f":"Harmonogram[[#This Row],[P: \nSzycie]]","v":0},null,null,null,null,null,null,null,null,null,{"$f":"SUM(Harmonogram[[#This Row],[P: Spawanie]:[P: Montaż]])","v":0},null,null,{"$f":"Harmonogram[[#This Row],[Realna data wydania]]+365","v":"1900-12-30"},null,{"$f":"IF(Harmonogram[[#This Row],[Realna data wydania]]=0,\"\",MONTH(Harmonogram[[#This Row],[Realna data wydania]]))","v":""},{"$f":"IF(AND(Harmonogram[[#This Row],[Realna data wydania]]>0,Harmonogram[[#This Row],[Realna data wydania]]<TODAY()),\"Wydany\",IF(Harmonogram[[#This Row],[Realna data skończenia]]>0,\"Zrobiony\",\"\"))","v":""}]
[null,null,null,null,null,{"$f":"Harmonogram[[#This Row],[Data przyjęcia ]]+30","v":"1900-01-30"},null,null,null,null,null,null,null,null,null,{"$f":"Harmonogram[[#This Row],[P: \nSzycie]]","v":0},null,null,null,null,null,null,null,null,null,{"$f":"SUM(Harmonogram[[#This Row],[P: Spawanie]:[P: Montaż]])","v":0},null,null,{"$f":"Harmonogram[[#This Row],[Realna data wydania]]+365","v":"1900-12-30"},null,{"$f":"IF(Harmonogram[[#This Row],[Realna data wydania]]=0,\"\",MONTH(Harmonogram[[#This Row],[Realna data wydania]]))","v":""},{"$f":"IF(AND(Harmonogram[[#This Row],[Realna data wydania]]>0,Harmonogram[[#This Row],[Realna data wydania]]<TODAY()),\"Wydany\",IF(Harmonogram[[#This Row],[Realna data skończenia]]>0,\"Zrobiony\",\"\"))","v":""}]
[null,null,null,null,null,{"$f":"Harmonogram[[#This Row],[Data przyjęcia ]]+30","v":"1900-01-30"},null,null,null,null,null,null,null,null,null,{"$f":"Harmonogram[[#This Row],[P: \nSzycie]]","v":0},null,null,null,null,null,null,null,null,null,{"$f":"SUM(Harmonogram[[#This Row],[P: Spawanie]:[P: Montaż]])","v":0},null,null,{"$f":"Harmonogram[[#This Row],[Realna data wydania]]+365","v":"1900-12-30"},null,{"$f":"IF(Harmonogram[[#This Row],[Realna data wydania]]=0,\"\",MONTH(Harmonogram[[#This Row],[Realna data wydania]]))","v":""},{"$f":"IF(AND(Harmonogram[[#This Row],[Realna data wydania]]>0,Harmonogram[[#This Row],[Realna data wydania]]<TODAY()),\"Wydany\",IF(Harmonogram[[#This Row],[Realna data skończenia]]>0,\"Zrobiony\",\"\"))","v":""}]
[null,null,null,null,null,{"$f":"Harmonogram[[#This Row],[Data przyjęcia ]]+30","v":"1900-01-30"},null,null,null,null,null,null,null,null,null,{"$f":"Harmonogram[[#This Row],[P: \nSzycie]]","v":0},null,null,null,null,null,null,null,null,null,{"$f":"SUM(Harmonogram[[#This Row],[P: Spawanie]:[P: Montaż]])","v":0},null,null,{"$f":"Harmonogram[[#This Row],[Realna data wydania]]+365","v":"1900-12-30"},null,{"$f":"IF(Harmonogram[[#This Row],[Realna data wydania]]=0,\"\",MONTH(Harmonogram[[#This Row],[Realna data wydania]]))","v":""},{"$f":"IF(AND(Harmonogram[[#This Row],[Realna data wydania]]>0,Harmonogram[[#This Row],[Realna data wydania]]<TODAY()),\"Wydany\",IF(Harmonogram[[#This Row],[Realna data skończenia]]>0,\"Zrobiony\",\"\"))","v":""}]
[null,null,null,null,null,{"$f":"Harmonogram[[#This Row],[Data przyjęcia ]]+30","v":"1900-01-30"},null,null,null,null,null,null,null,null,null,{"$f":"Harmonogram[[#This Row],[P: \nSzycie]]","v":0},null,null,null,null,null,null,null,null,null,{"$f":"SUM(Harmonogram[[#This Row],[P: Spawanie]:[P: Montaż]])","v":0},null,null,{"$f":"Harmonogram[[#This Row],[Realna data wydania]]+365","v":"1900-12-30"},null,{"$f":"IF(Harmonogram[[#This Row],[Realna data wydania]]=0,\"\",MONTH(Harmonogram[[#This Row],[Realna data wydania]]))","v":""},{"$f":"IF(AND(Harmonogram[[#This Row],[Realna data wydania]]>0,Harmonogram[[#This Row],[Realna data wydania]]<TODAY()),\"Wydany\",IF(Harmonogram[[#This Row],[Realna data skończenia]]>0,\"Zrobiony\",\"\"))","v":""}]
[null,null,null,null,null,{"$f":"Harmonogram[[#This Row],[Data przyjęcia ]]+30","v":"1900-01-30"},null,null,null,null,null,null,null,null,null,{"$f":"Harmonogram[[#This Row],[P: \nSzycie]]","v":0},null,null,null,null,null,null,null,null,null,{"$f":"SUM(Harmonogram[[#This Row],[P: Spawanie]:[P: Montaż]])","v":0},null,null,{"$f":"Harmonogram[[#This Row],[Realna data wydania]]+365","v":"1900-12-30"},null,{"$f":"IF(Harmonogram[[#This Row],[Realna data wydania]]=0,\"\",MONTH(Harmonogram[[#This Row],[Realna data wydania]]))","v":""},{"$f":"IF(AND(Harmonogram[[#This Row],[Realna data wydania]]>0,Harmonogram[[#This Row],[Realna data wydania]]<TODAY()),\"Wydany\",IF(Harmonogram[[#This Row],[Realna data skończenia]]>0,\"Zrobiony\",\"\"))","v":""}]
[null,null,null,null,null,{"$f":"Harmonogram[[#This Row],[Data przyjęcia ]]+30","v":"1900-01-30"},null,null,null,null,null,null,null,null,null,{"$f":"Harmonogram[[#This Row],[P: \nSzycie]]","v":0},null,null,null,null,null,null,null,null,null,{"$f":"SUM(Harmonogram[[#This Row],[P: Spawanie]:[P: Montaż]])","v":0},null,null,{"$f":"Harmonogram[[#This Row],[Realna data wydania]]+365","v":"1900-12-30"},null,{"$f":"IF(Harmonogram[[#This Row],[Realna data wydania]]=0,\"\",MONTH(Harmonogram[[#This Row],[Realna data wydania]]))","v":""},{"$f":"IF(AND(Harmonogram[[#This Row],[Realna data wydania]]>0,Harmonogram[[#This Row],[Realna data wydania]]<TODAY()),\"Wydany\",IF(Harmonogram[[#This Row],[Realna data skończenia]]>0,\"Zrobiony\",\"\"))","v":""}]
[null,null,null,null,null,{"$f":"Harmonogram[[#This Row],[Data przyjęcia ]]+30","v":"1900-01-30"},null,null,null,null,null,null,null,null,null,{"$f":"Harmonogram[[#This Row],[P: \nSzycie]]","v":0},null,null,null,null,null,null,null,null,null,{"$f":"SUM(Harmonogram[[#This Row],[P: Spawanie]:[P: Montaż]])","v":0},null,null,{"$f":"Harmonogram[[#This Row],[Realna data wydania]]+365","v":"1900-12-30"},null,{"$f":"IF(Harmonogram[[#This Row],[Realna data wydania]]=0,\"\",MONTH(Harmonogram[[#This Row],[Realna data wydania]]))","v":""},{"$f":"IF(AND(Harmonogram[[#This Row],[Realna data wydania]]>0,Harmonogram[[#This Row],[Realna data wydania]]<TODAY()),\"Wydany\",IF(Harmonogram[[#This Row],[Realna data skończenia]]>0,\"Zrobiony\",\"\"))","v":""}]
[null,null,null,null,null,{"$f":"Harmonogram[[#This Row],[Data przyjęcia ]]+30","v":"1900-01-30"},null,null,null,null,null,null,null,null,null,{"$f":"Harmonogram[[#This Row],[P: \nSzycie]]","v":0},null,null,null,null,null,null,null,null,null,{"$f":"SUM(Harmonogram[[#This Row],[P: Spawanie]:[P: Montaż]])","v":0},null,null,{"$f":"Harmonogram[[#This Row],[Realna data wydania]]+365","v":"1900-12-30"},null,{"$f":"IF(Harmonogram[[#This Row],[Realna data wydania]]=0,\"\",MONTH(Harmonogram[[#This Row],[Realna data wydania]]))","v":""},{"$f":"IF(AND(Harmonogram[[#This Row],[Realna data wydania]]>0,Harmonogram[[#This Row],[Realna data wydania]]<TODAY()),\"Wydany\",IF(Harmonogram[[#This Row],[Realna data skończenia]]>0,\"Zrobiony\",\"\"))","v":""}]
[null,null,null,null,null,{"$f":"Harmonogram[[#This Row],[Data przyjęcia ]]+30","v":"1900-01-30"},null,null,null,null,null,null,null,null,null,{"$f":"Harmonogram[[#This Row],[P: \nSzycie]]","v":0},null,null,null,null,null,null,null,null,null,{"$f":"SUM(Harmonogram[[#This Row],[P: Spawanie]:[P: Montaż]])","v":0},null,null,{"$f":"Harmonogram[[#This Row],[Realna data wydania]]+365","v":"1900-12-30"},null,{"$f":"IF(Harmonogram[[#This Row],[Realna data wydania]]=0,\"\",MONTH(Harmonogram[[#This Row],[Realna data wydania]]))","v":""},{"$f":"IF(AND(Harmonogram[[#This Row],[Realna data wydania]]>0,Harmonogram[[#This Row],[Realna data wydania]]<TODAY()),\"Wydany\",IF(Harmonogram[[#This Row],[Realna data skończenia]]>0,\"Zrobiony\",\"\"))","v":""}]
[null,null,null,null,null,{"$f":"Harmonogram[[#This Row],[Data przyjęcia ]]+30","v":"1900-01-30"},null,null,null,null,null,null,null,null,null,{"$f":"Harmonogram[[#This Row],[P: \nSzycie]]","v":0},null,null,null,null,null,null,null,null,null,{"$f":"SUM(Harmonogram[[#This Row],[P: Spawanie]:[P: Montaż]])","v":0},null,null,{"$f":"Harmonogram[[#This Row],[Realna data wydania]]+365","v":"1900-12-30"},null,{"$f":"IF(Harmonogram[[#This Row],[Realna data wydania]]=0,\"\",MONTH(Harmonogram[[#This Row],[Realna data wydania]]))","v":""},{"$f":"IF(AND(Harmonogram[[#This Row],[Realna data wydania]]>0,Harmonogram[[#This Row],[Realna data wydania]]<TODAY()),\"Wydany\",IF(Harmonogram[[#This Row],[Realna data skończenia]]>0,\"Zrobiony\",\"\"))","v":""}]
[null,null,null,null,null,{"$f":"Harmonogram[[#This Row],[Data przyjęcia ]]+30","v":"1900-01-30"},null,null,null,null,null,null,null,null,null,{"$f":"Harmonogram[[#This Row],[P: \nSzycie]]","v":0},null,null,null,null,null,null,null,null,null,{"$f":"SUM(Harmonogram[[#This Row],[P: Spawanie]:[P: Montaż]])","v":0},null,null,{"$f":"Harmonogram[[#This Row],[Realna data wydania]]+365","v":"1900-12-30"},null,{"$f":"IF(Harmonogram[[#This Row],[Realna data wydania]]=0,\"\",MONTH(Harmonogram[[#This Row],[Realna data wydania]]))","v":""},{"$f":"IF(AND(Harmonogram[[#This Row],[Realna data wydania]]>0,Harmonogram[[#This Row],[Realna data wydania]]<TODAY()),\"Wydany\",IF(Harmonogram[[#This Row],[Realna data skończenia]]>0,\"Zrobiony\",\"\"))","v":""}]
[null,null,null,null,null,{"$f":"Harmonogram[[#This Row],[Data przyjęcia ]]+30","v":"1900-01-30"},null,null,null,null,null,null,null,null,null,{"$f":"Harmonogram[[#This Row],[P: \nSzycie]]","v":0},null,null,null,null,null,null,null,null,null,{"$f":"SUM(Harmonogram[[#This Row],[P: Spawanie]:[P: Montaż]])","v":0},null,null,{"$f":"Harmonogram[[#This Row],[Realna data wydania]]+365","v":"1900-12-30"},null,{"$f":"IF(Harmonogram[[#This Row],[Realna data wydania]]=0,\"\",MONTH(Harmonogram[[#This Row],[Realna data wydania]]))","v":""},{"$f":"IF(AND(Harmonogram[[#This Row],[Realna data wydania]]>0,Harmonogram[[#This Row],[Realna data wydania]]<TODAY()),\"Wydany\",IF(Harmonogram[[#This Row],[Realna data skończenia]]>0,\"Zrobiony\",\"\"))","v":""}]
[null,null,null,null,null,{"$f":"Harmonogram[[#This Row],[Data przyjęcia ]]+30","v":"1900-01-30"},null,null,null,null,null,null,null,null,null,{"$f":"Harmonogram[[#This Row],[P: \nSzycie]]","v":0},null,null,null,null,null,null,null,null,null,{"$f":"SUM(Harmonogram[[#This Row],[P: Spawanie]:[P: Montaż]])","v":0},null,null,{"$f":"Harmonogram[[#This Row],[Realna data wydania]]+365","v":"1900-12-30"},null,{"$f":"IF(Harmonogram[[#This Row],[Realna data wydania]]=0,\"\",MONTH(Harmonogram[[#This Row],[Realna data wydania]]))","v":""},{"$f":"IF(AND(Harmonogram[[#This Row],[Realna data wydania]]>0,Harmonogram[[#This Row],[Realna data wydania]]<TODAY()),\"Wydany\",IF(Harmonogram[[#This Row],[Realna data skończenia]]>0,\"Zrobiony\",\"\"))","v":""}]
[null,null,null,null,null,{"$f":"Harmonogram[[#This Row],[Data przyjęcia ]]+30","v":"1900-01-30"},null,null,null,null,null,null,null,null,null,{"$f":"Harmonogram[[#This Row],[P: \nSzycie]]","v":0},null,null,null,null,null,null,null,null,null,{"$f":"SUM(Harmonogram[[#This Row],[P: Spawanie]:[P: Montaż]])","v":0},null,null,{"$f":"Harmonogram[[#This Row],[Realna data wydania]]+365","v":"1900-12-30"},null,{"$f":"IF(Harmonogram[[#This Row],[Realna data wydania]]=0,\"\",MONTH(Harmonogram[[#This Row],[Realna data wydania]]))","v":""},{"$f":"IF(AND(Harmonogram[[#This Row],[Realna data wydania]]>0,Harmonogram[[#This Row],[Realna data wydania]]<TODAY()),\"Wydany\",IF(Harmonogram[[#This Row],[Realna data skończenia]]>0,\"Zrobiony\",\"\"))","v":""}]
[null,null,null,null,null,{"$f":"Harmonogram[[#This Row],[Data przyjęcia ]]+30","v":"1900-01-30"},null,null,null,null,null,null,null,null,null,{"$f":"Harmonogram[[#This Row],[P: \nSzycie]]","v":0},null,null,null,null,null,null,null,null,null,{"$f":"SUM(Harmonogram[[#This Row],[P: Spawanie]:[P: Montaż]])","v":0},null,null,{"$f":"Harmonogram[[#This Row],[Realna data wydania]]+365","v":"1900-12-30"},null,{"$f":"IF(Harmonogram[[#This Row],[Realna data wydania]]=0,\"\",MONTH(Harmonogram[[#This Row],[Realna data wydania]]))","v":""},{"$f":"IF(AND(Harmonogram[[#This Row],[Realna data wydania]]>0,Harmonogram[[#This Row],[Realna data wydania]]<TODAY()),\"Wydany\",IF(Harmonogram[[#This Row],[Realna data skończenia]]>0,\"Zrobiony\",\"\"))","v":""}]
[null,null,null,null,null,{"$f":"Harmonogram[[#This Row],[Data przyjęcia ]]+30","v":"1900-01-30"},null,null,null,null,null,null,null,null,null,{"$f":"Harmonogram[[#This Row],[P: \nSzycie]]","v":0},null,null,null,null,null,null,null,null,null,{"$f":"SUM(Harmonogram[[#This Row],[P: Spawanie]:[P: Montaż]])","v":0},null,null,{"$f":"Harmonogram[[#This Row],[Realna data wydania]]+365","v":"1900-12-30"},null,{"$f":"IF(Harmonogram[[#This Row],[Realna data wydania]]=0,\"\",MONTH(Harmonogram[[#This Row],[Realna data wydania]]))","v":""},{"$f":"IF(AND(Harmonogram[[#This Row],[Realna data wydania]]>0,Harmonogram[[#This Row],[Realna data wydania]]<TODAY()),\"Wydany\",IF(Harmonogram[[#This Row],[Realna data skończenia]]>0,\"Zrobiony\",\"\"))","v":""}]
[null,null,null,null,null,{"$f":"Harmonogram[[#This Row],[Data przyjęcia ]]+30","v":"1900-01-30"},null,null,null,null,null,null,null,null,null,{"$f":"Harmonogram[[#This Row],[P: \nSzycie]]","v":0},null,null,null,null,null,null,null,null,null,{"$f":"SUM(Harmonogram[[#This Row],[P: Spawanie]:[P: Montaż]])","v":0},null,null,{"$f":"Harmonogram[[#This Row],[Realna data wydania]]+365","v":"1900-12-30"},null,{"$f":"IF(Harmonogram[[#This Row],[Realna data wydania]]=0,\"\",MONTH(Harmonogram[[#This Row],[Realna data wydania]]))","v":""},{"$f":"IF(AND(Harmonogram[[#This Row],[Realna data wydania]]>0,Harmonogram[[#This Row],[Realna data wydania]]<TODAY()),\"Wydany\",IF(Harmonogram[[#This Row],[Realna data skończenia]]>0,\"Zrobiony\",\"\"))","v":""}]
[null,null,null,null,null,{"$f":"Harmonogram[[#This Row],[Data przyjęcia ]]+30","v":"1900-01-30"},null,null,null,null,null,null,null,null,null,{"$f":"Harmonogram[[#This Row],[P: \nSzycie]]","v":0},null,null,null,null,null,null,null,null,null,{"$f":"SUM(Harmonogram[[#This Row],[P: Spawanie]:[P: Montaż]])","v":0},null,null,{"$f":"Harmonogram[[#This Row],[Realna data wydania]]+365","v":"1900-12-30"},null,{"$f":"IF(Harmonogram[[#This Row],[Realna data wydania]]=0,\"\",MONTH(Harmonogram[[#This Row],[Realna data wydania]]))","v":""},{"$f":"IF(AND(Harmonogram[[#This Row],[Realna data wydania]]>0,Harmonogram[[#This Row],[Realna data wydania]]<TODAY()),\"Wydany\",IF(Harmonogram[[#This Row],[Realna data skończenia]]>0,\"Zrobiony\",\"\"))","v":""}]
[null,null,null,null,null,{"$f":"Harmonogram[[#This Row],[Data przyjęcia ]]+30","v":"1900-01-30"},null,null,null,null,null,null,null,null,null,{"$f":"Harmonogram[[#This Row],[P: \nSzycie]]","v":0},null,null,null,null,null,null,null,null,null,{"$f":"SUM(Harmonogram[[#This Row],[P: Spawanie]:[P: Montaż]])","v":0},null,null,{"$f":"Harmonogram[[#This Row],[Realna data wydania]]+365","v":"1900-12-30"},null,{"$f":"IF(Harmonogram[[#This Row],[Realna data wydania]]=0,\"\",MONTH(Harmonogram[[#This Row],[Realna data wydania]]))","v":""},{"$f":"IF(AND(Harmonogram[[#This Row],[Realna data wydania]]>0,Harmonogram[[#This Row],[Realna data wydania]]<TODAY()),\"Wydany\",IF(Harmonogram[[#This Row],[Realna data skończenia]]>0,\"Zrobiony\",\"\"))","v":""}]
[null,null,null,null,null,{"$f":"Harmonogram[[#This Row],[Data przyjęcia ]]+30","v":"1900-01-30"},null,null,null,null,null,null,null,null,null,{"$f":"Harmonogram[[#This Row],[P: \nSzycie]]","v":0},null,null,null,null,null,null,null,null,null,{"$f":"SUM(Harmonogram[[#This Row],[P: Spawanie]:[P: Montaż]])","v":0},null,null,{"$f":"Harmonogram[[#This Row],[Realna data wydania]]+365","v":"1900-12-30"},null,{"$f":"IF(Harmonogram[[#This Row],[Realna data wydania]]=0,\"\",MONTH(Harmonogram[[#This Row],[Realna data wydania]]))","v":""},{"$f":"IF(AND(Harmonogram[[#This Row],[Realna data wydania]]>0,Harmonogram[[#This Row],[Realna data wydania]]<TODAY()),\"Wydany\",IF(Harmonogram[[#This Row],[Realna data skończenia]]>0,\"Zrobiony\",\"\"))","v":""}]
[null,null,null,null,null,{"$f":"Harmonogram[[#This Row],[Data przyjęcia ]]+30","v":"1900-01-30"},null,null,null,null,null,null,null,null,null,{"$f":"Harmonogram[[#This Row],[P: \nSzycie]]","v":0},null,null,null,null,null,null,null,null,null,{"$f":"SUM(Harmonogram[[#This Row],[P: Spawanie]:[P: Montaż]])","v":0},null,null,{"$f":"Harmonogram[[#This Row],[Realna data wydania]]+365","v":"1900-12-30"},null,{"$f":"IF(Harmonogram[[#This Row],[Realna data wydania]]=0,\"\",MONTH(Harmonogram[[#This Row],[Realna data wydania]]))","v":""},{"$f":"IF(AND(Harmonogram[[#This Row],[Realna data wydania]]>0,Harmonogram[[#This Row],[Realna data wydania]]<TODAY()),\"Wydany\",IF(Harmonogram[[#This Row],[Realna data skończenia]]>0,\"Zrobiony\",\"\"))","v":""}]
[null,null,null,null,null,{"$f":"Harmonogram[[#This Row],[Data przyjęcia ]]+30","v":"1900-01-30"},null,null,null,null,null,null,null,null,null,{"$f":"Harmonogram[[#This Row],[P: \nSzycie]]","v":0},null,null,null,null,null,null,null,null,null,{"$f":"SUM(Harmonogram[[#This Row],[P: Spawanie]:[P: Montaż]])","v":0},null,null,{"$f":"Harmonogram[[#This Row],[Realna data wydania]]+365","v":"1900-12-30"},null,{"$f":"IF(Harmonogram[[#This Row],[Realna data wydania]]=0,\"\",MONTH(Harmonogram[[#This Row],[Realna data wydania]]))","v":""},{"$f":"IF(AND(Harmonogram[[#This Row],[Realna data wydania]]>0,Harmonogram[[#This Row],[Realna data wydania]]<TODAY()),\"Wydany\",IF(Harmonogram[[#This Row],[Realna data skończenia]]>0,\"Zrobiony\",\"\"))","v":""}]
[null,null,null,null,null,{"$f":"Harmonogram[[#This Row],[Data przyjęcia ]]+30","v":"1900-01-30"},null,null,null,null,null,null,null,null,null,{"$f":"Harmonogram[[#This Row],[P: \nSzycie]]","v":0},null,null,null,null,null,null,null,null,null,{"$f":"SUM(Harmonogram[[#This Row],[P: Spawanie]:[P: Montaż]])","v":0},null,null,{"$f":"Harmonogram[[#This Row],[Realna data wydania]]+365","v":"1900-12-30"},null,{"$f":"IF(Harmonogram[[#This Row],[Realna data wydania]]=0,\"\",MONTH(Harmonogram[[#This Row],[Realna data wydania]]))","v":""},{"$f":"IF(AND(Harmonogram[[#This Row],[Realna data wydania]]>0,Harmonogram[[#This Row],[Realna data wydania]]<TODAY()),\"Wydany\",IF(Harmonogram[[#This Row],[Realna data skończenia]]>0,\"Zrobiony\",\"\"))","v":""}]
[null,null,null,null,null,{"$f":"Harmonogram[[#This Row],[Data przyjęcia ]]+30","v":"1900-01-30"},null,null,null,null,null,null,null,null,null,{"$f":"Harmonogram[[#This Row],[P: \nSzycie]]","v":0},null,null,null,null,null,null,null,null,null,{"$f":"SUM(Harmonogram[[#This Row],[P: Spawanie]:[P: Montaż]])","v":0},null,null,{"$f":"Harmonogram[[#This Row],[Realna data wydania]]+365","v":"1900-12-30"},null,{"$f":"IF(Harmonogram[[#This Row],[Realna data wydania]]=0,\"\",MONTH(Harmonogram[[#This Row],[Realna data wydania]]))","v":""},{"$f":"IF(AND(Harmonogram[[#This Row],[Realna data wydania]]>0,Harmonogram[[#This Row],[Realna data wydania]]<TODAY()),\"Wydany\",IF(Harmonogram[[#This Row],[Realna data skończenia]]>0,\"Zrobiony\",\"\"))","v":""}]
[null,null,null,null,null,{"$f":"Harmonogram[[#This Row],[Data przyjęcia ]]+30","v":"1900-01-30"},null,null,null,null,null,null,null,null,null,{"$f":"Harmonogram[[#This Row],[P: \nSzycie]]","v":0},null,null,null,null,null,null,null,null,null,{"$f":"SUM(Harmonogram[[#This Row],[P: Spawanie]:[P: Montaż]])","v":0},null,null,{"$f":"Harmonogram[[#This Row],[Realna data wydania]]+365","v":"1900-12-30"},null,{"$f":"IF(Harmonogram[[#This Row],[Realna data wydania]]=0,\"\",MONTH(Harmonogram[[#This Row],[Realna data wydania]]))","v":""},{"$f":"IF(AND(Harmonogram[[#This Row],[Realna data wydania]]>0,Harmonogram[[#This Row],[Realna data wydania]]<TODAY()),\"Wydany\",IF(Harmonogram[[#This Row],[Realna data skończenia]]>0,\"Zrobiony\",\"\"))","v":""}]
[null,null,null,null,null,{"$f":"Harmonogram[[#This Row],[Data przyjęcia ]]+30","v":"1900-01-30"},null,null,null,null,null,null,null,null,null,{"$f":"Harmonogram[[#This Row],[P: \nSzycie]]","v":0},null,null,null,null,null,null,null,null,null,{"$f":"SUM(Harmonogram[[#This Row],[P: Spawanie]:[P: Montaż]])","v":0},null,null,{"$f":"Harmonogram[[#This Row],[Realna data wydania]]+365","v":"1900-12-30"},null,{"$f":"IF(Harmonogram[[#This Row],[Realna data wydania]]=0,\"\",MONTH(Harmonogram[[#This Row],[Realna data wydania]]))","v":""},{"$f":"IF(AND(Harmonogram[[#This Row],[Realna data wydania]]>0,Harmonogram[[#This Row],[Realna data wydania]]<TODAY()),\"Wydany\",IF(Harmonogram[[#This Row],[Realna data skończenia]]>0,\"Zrobiony\",\"\"))","v":""}]
[null,null,null,null,null,{"$f":"Harmonogram[[#This Row],[Data przyjęcia ]]+30","v":"1900-01-30"},null,null,null,null,null,null,null,null,null,{"$f":"Harmonogram[[#This Row],[P: \nSzycie]]","v":0},null,null,null,null,null,null,null,null,null,{"$f":"SUM(Harmonogram[[#This Row],[P: Spawanie]:[P: Montaż]])","v":0},null,null,{"$f":"Harmonogram[[#This Row],[Realna data wydania]]+365","v":"1900-12-30"},null,{"$f":"IF(Harmonogram[[#This Row],[Realna data wydania]]=0,\"\",MONTH(Harmonogram[[#This Row],[Realna data wydania]]))","v":""},{"$f":"IF(AND(Harmonogram[[#This Row],[Realna data wydania]]>0,Harmonogram[[#This Row],[Realna data wydania]]<TODAY()),\"Wydany\",IF(Harmonogram[[#This Row],[Realna data skończenia]]>0,\"Zrobiony\",\"\"))","v":""}]
[null,null,null,null,null,{"$f":"Harmonogram[[#This Row],[Data przyjęcia ]]+30","v":"1900-01-30"},null,null,null,null,null,null,null,null,null,{"$f":"Harmonogram[[#This Row],[P: \nSzycie]]","v":0},null,null,null,null,null,null,null,null,null,{"$f":"SUM(Harmonogram[[#This Row],[P: Spawanie]:[P: Montaż]])","v":0},null,null,{"$f":"Harmonogram[[#This Row],[Realna data wydania]]+365","v":"1900-12-30"},null,{"$f":"IF(Harmonogram[[#This Row],[Realna data wydania]]=0,\"\",MONTH(Harmonogram[[#This Row],[Realna data wydania]]))","v":""},{"$f":"IF(AND(Harmonogram[[#This Row],[Realna data wydania]]>0,Harmonogram[[#This Row],[Realna data wydania]]<TODAY()),\"Wydany\",IF(Harmonogram[[#This Row],[Realna data skończenia]]>0,\"Zrobiony\",\"\"))","v":""}]
[null,null,null,null,null,{"$f":"Harmonogram[[#This Row],[Data przyjęcia ]]+30","v":"1900-01-30"},null,null,null,null,null,null,null,null,null,{"$f":"Harmonogram[[#This Row],[P: \nSzycie]]","v":0},null,null,null,null,null,null,null,null,null,{"$f":"SUM(Harmonogram[[#This Row],[P: Spawanie]:[P: Montaż]])","v":0},null,null,{"$f":"Harmonogram[[#This Row],[Realna data wydania]]+365","v":"1900-12-30"},null,{"$f":"IF(Harmonogram[[#This Row],[Realna data wydania]]=0,\"\",MONTH(Harmonogram[[#This Row],[Realna data wydania]]))","v":""},{"$f":"IF(AND(Harmonogram[[#This Row],[Realna data wydania]]>0,Harmonogram[[#This Row],[Realna data wydania]]<TODAY()),\"Wydany\",IF(Harmonogram[[#This Row],[Realna data skończenia]]>0,\"Zrobiony\",\"\"))","v":""}]
[null,null,null,null,null,{"$f":"Harmonogram[[#This Row],[Data przyjęcia ]]+30","v":"1900-01-30"},null,null,null,null,null,null,null,null,null,{"$f":"Harmonogram[[#This Row],[P: \nSzycie]]","v":0},null,null,null,null,null,null,null,null,null,{"$f":"SUM(Harmonogram[[#This Row],[P: Spawanie]:[P: Montaż]])","v":0},null,null,{"$f":"Harmonogram[[#This Row],[Realna data wydania]]+365","v":"1900-12-30"},null,{"$f":"IF(Harmonogram[[#This Row],[Realna data wydania]]=0,\"\",MONTH(Harmonogram[[#This Row],[Realna data wydania]]))","v":""},{"$f":"IF(AND(Harmonogram[[#This Row],[Realna data wydania]]>0,Harmonogram[[#This Row],[Realna data wydania]]<TODAY()),\"Wydany\",IF(Harmonogram[[#This Row],[Realna data skończenia]]>0,\"Zrobiony\",\"\"))","v":""}]
[null,null,null,null,null,{"$f":"Harmonogram[[#This Row],[Data przyjęcia ]]+30","v":"1900-01-30"},null,null,null,null,null,null,null,null,null,{"$f":"Harmonogram[[#This Row],[P: \nSzycie]]","v":0},null,null,null,null,null,null,null,null,null,{"$f":"SUM(Harmonogram[[#This Row],[P: Spawanie]:[P: Montaż]])","v":0},null,null,{"$f":"Harmonogram[[#This Row],[Realna data wydania]]+365","v":"1900-12-30"},null,{"$f":"IF(Harmonogram[[#This Row],[Realna data wydania]]=0,\"\",MONTH(Harmonogram[[#This Row],[Realna data wydania]]))","v":""},{"$f":"IF(AND(Harmonogram[[#This Row],[Realna data wydania]]>0,Harmonogram[[#This Row],[Realna data wydania]]<TODAY()),\"Wydany\",IF(Harmonogram[[#This Row],[Realna data skończenia]]>0,\"Zrobiony\",\"\"))","v":""}]
[null,null,null,null,null,{"$f":"Harmonogram[[#This Row],[Data przyjęcia ]]+30","v":"1900-01-30"},null,null,null,null,null,null,null,null,null,{"$f":"Harmonogram[[#This Row],[P: \nSzycie]]","v":0},null,null,null,null,null,null,null,null,null,{"$f":"SUM(Harmonogram[[#This Row],[P: Spawanie]:[P: Montaż]])","v":0},null,null,{"$f":"Harmonogram[[#This Row],[Realna data wydania]]+365","v":"1900-12-30"},null,{"$f":"IF(Harmonogram[[#This Row],[Realna data wydania]]=0,\"\",MONTH(Harmonogram[[#This Row],[Realna data wydania]]))","v":""},{"$f":"IF(AND(Harmonogram[[#This Row],[Realna data wydania]]>0,Harmonogram[[#This Row],[Realna data wydania]]<TODAY()),\"Wydany\",IF(Harmonogram[[#This Row],[Realna data skończenia]]>0,\"Zrobiony\",\"\"))","v":""}]
[null,null,null,null,null,{"$f":"Harmonogram[[#This Row],[Data przyjęcia ]]+30","v":"1900-01-30"},null,null,null,null,null,null,null,null,null,{"$f":"Harmonogram[[#This Row],[P: \nSzycie]]","v":0},null,null,null,null,null,null,null,null,null,{"$f":"SUM(Harmonogram[[#This Row],[P: Spawanie]:[P: Montaż]])","v":0},null,null,{"$f":"Harmonogram[[#This Row],[Realna data wydania]]+365","v":"1900-12-30"},null,{"$f":"IF(Harmonogram[[#This Row],[Realna data wydania]]=0,\"\",MONTH(Harmonogram[[#This Row],[Realna data wydania]]))","v":""},{"$f":"IF(AND(Harmonogram[[#This Row],[Realna data wydania]]>0,Harmonogram[[#This Row],[Realna data wydania]]<TODAY()),\"Wydany\",IF(Harmonogram[[#This Row],[Realna data skończenia]]>0,\"Zrobiony\",\"\"))","v":""}]
[null,null,null,null,null,{"$f":"Harmonogram[[#This Row],[Data przyjęcia ]]+30","v":"1900-01-30"},null,null,null,null,null,null,null,null,null,{"$f":"Harmonogram[[#This Row],[P: \nSzycie]]","v":0},null,null,null,null,null,null,null,null,null,{"$f":"SUM(Harmonogram[[#This Row],[P: Spawanie]:[P: Montaż]])","v":0},null,null,{"$f":"Harmonogram[[#This Row],[Realna data wydania]]+365","v":"1900-12-30"},null,{"$f":"IF(Harmonogram[[#This Row],[Realna data wydania]]=0,\"\",MONTH(Harmonogram[[#This Row],[Realna data wydania]]))","v":""},{"$f":"IF(AND(Harmonogram[[#This Row],[Realna data wydania]]>0,Harmonogram[[#This Row],[Realna data wydania]]<TODAY()),\"Wydany\",IF(Harmonogram[[#This Row],[Realna data skończenia]]>0,\"Zrobiony\",\"\"))","v":""}]
[null,null,null,null,null,{"$f":"Harmonogram[[#This Row],[Data przyjęcia ]]+30","v":"1900-01-30"},null,null,null,null,null,null,null,null,null,{"$f":"Harmonogram[[#This Row],[P: \nSzycie]]","v":0},null,null,null,null,null,null,null,null,null,{"$f":"SUM(Harmonogram[[#This Row],[P: Spawanie]:[P: Montaż]])","v":0},null,null,{"$f":"Harmonogram[[#This Row],[Realna data wydania]]+365","v":"1900-12-30"},null,{"$f":"IF(Harmonogram[[#This Row],[Realna data wydania]]=0,\"\",MONTH(Harmonogram[[#This Row],[Realna data wydania]]))","v":""},{"$f":"IF(AND(Harmonogram[[#This Row],[Realna data wydania]]>0,Harmonogram[[#This Row],[Realna data wydania]]<TODAY()),\"Wydany\",IF(Harmonogram[[#This Row],[Realna data skończenia]]>0,\"Zrobiony\",\"\"))","v":""}]
[null,null,null,null,null,{"$f":"Harmonogram[[#This Row],[Data przyjęcia ]]+30","v":"1900-01-30"},null,null,null,null,null,null,null,null,null,{"$f":"Harmonogram[[#This Row],[P: \nSzycie]]","v":0},null,null,null,null,null,null,null,null,null,{"$f":"SUM(Harmonogram[[#This Row],[P: Spawanie]:[P: Montaż]])","v":0},null,null,{"$f":"Harmonogram[[#This Row],[Realna data wydania]]+365","v":"1900-12-30"},null,{"$f":"IF(Harmonogram[[#This Row],[Realna data wydania]]=0,\"\",MONTH(Harmonogram[[#This Row],[Realna data wydania]]))","v":""},{"$f":"IF(AND(Harmonogram[[#This Row],[Realna data wydania]]>0,Harmonogram[[#This Row],[Realna data wydania]]<TODAY()),\"Wydany\",IF(Harmonogram[[#This Row],[Realna data skończenia]]>0,\"Zrobiony\",\"\"))","v":""}]
[null,null,null,null,null,{"$f":"Harmonogram[[#This Row],[Data przyjęcia ]]+30","v":"1900-01-30"},null,null,null,null,null,null,null,null,null,{"$f":"Harmonogram[[#This Row],[P: \nSzycie]]","v":0},null,null,null,null,null,null,null,null,null,{"$f":"SUM(Harmonogram[[#This Row],[P: Spawanie]:[P: Montaż]])","v":0},null,null,{"$f":"Harmonogram[[#This Row],[Realna data wydania]]+365","v":"1900-12-30"},null,{"$f":"IF(Harmonogram[[#This Row],[Realna data wydania]]=0,\"\",MONTH(Harmonogram[[#This Row],[Realna data wydania]]))","v":""},{"$f":"IF(AND(Harmonogram[[#This Row],[Realna data wydania]]>0,Harmonogram[[#This Row],[Realna data wydania]]<TODAY()),\"Wydany\",IF(Harmonogram[[#This Row],[Realna data skończenia]]>0,\"Zrobiony\",\"\"))","v":""}]
[null,null,null,null,null,{"$f":"Harmonogram[[#This Row],[Data przyjęcia ]]+30","v":"1900-01-30"},null,null,null,null,null,null,null,null,null,{"$f":"Harmonogram[[#This Row],[P: \nSzycie]]","v":0},null,null,null,null,null,null,null,null,null,{"$f":"SUM(Harmonogram[[#This Row],[P: Spawanie]:[P: Montaż]])","v":0},null,null,{"$f":"Harmonogram[[#This Row],[Realna data wydania]]+365","v":"1900-12-30"},null,{"$f":"IF(Harmonogram[[#This Row],[Realna data wydania]]=0,\"\",MONTH(Harmonogram[[#This Row],[Realna data wydania]]))","v":""},{"$f":"IF(AND(Harmonogram[[#This Row],[Realna data wydania]]>0,Harmonogram[[#This Row],[Realna data wydania]]<TODAY()),\"Wydany\",IF(Harmonogram[[#This Row],[Realna data skończenia]]>0,\"Zrobiony\",\"\"))","v":""}]
[null,null,null,null,null,{"$f":"Harmonogram[[#This Row],[Data przyjęcia ]]+30","v":"1900-01-30"},null,null,null,null,null,null,null,null,null,{"$f":"Harmonogram[[#This Row],[P: \nSzycie]]","v":0},null,null,null,null,null,null,null,null,null,{"$f":"SUM(Harmonogram[[#This Row],[P: Spawanie]:[P: Montaż]])","v":0},null,null,{"$f":"Harmonogram[[#This Row],[Realna data wydania]]+365","v":"1900-12-30"},null,{"$f":"IF(Harmonogram[[#This Row],[Realna data wydania]]=0,\"\",MONTH(Harmonogram[[#This Row],[Realna data wydania]]))","v":""},{"$f":"IF(AND(Harmonogram[[#This Row],[Realna data wydania]]>0,Harmonogram[[#This Row],[Realna data wydania]]<TODAY()),\"Wydany\",IF(Harmonogram[[#This Row],[Realna data skończenia]]>0,\"Zrobiony\",\"\"))","v":""}]
[null,null,null,null,null,{"$f":"Harmonogram[[#This Row],[Data przyjęcia ]]+30","v":"1900-01-30"},null,null,null,null,null,null,null,null,null,{"$f":"Harmonogram[[#This Row],[P: \nSzycie]]","v":0},null,null,null,null,null,null,null,null,null,{"$f":"SUM(Harmonogram[[#This Row],[P: Spawanie]:[P: Montaż]])","v":0},null,null,{"$f":"Harmonogram[[#This Row],[Realna data wydania]]+365","v":"1900-12-30"},null,{"$f":"IF(Harmonogram[[#This Row],[Realna data wydania]]=0,\"\",MONTH(Harmonogram[[#This Row],[Realna data wydania]]))","v":""},{"$f":"IF(AND(Harmonogram[[#This Row],[Realna data wydania]]>0,Harmonogram[[#This Row],[Realna data wydania]]<TODAY()),\"Wydany\",IF(Harmonogram[[#This Row],[Realna data skończenia]]>0,\"Zrobiony\",\"\"))","v":""}]
[null,null,null,null,null,{"$f":"Harmonogram[[#This Row],[Data przyjęcia ]]+30","v":"1900-01-30"},null,null,null,null,null,null,null,null,null,{"$f":"Harmonogram[[#This Row],[P: \nSzycie]]","v":0},null,null,null,null,null,null,null,null,null,{"$f":"SUM(Harmonogram[[#This Row],[P: Spawanie]:[P: Montaż]])","v":0},null,null,{"$f":"Harmonogram[[#This Row],[Realna data wydania]]+365","v":"1900-12-30"},null,{"$f":"IF(Harmonogram[[#This Row],[Realna data wydania]]=0,\"\",MONTH(Harmonogram[[#This Row],[Realna data wydania]]))","v":""},{"$f":"IF(AND(Harmonogram[[#This Row],[Realna data wydania]]>0,Harmonogram[[#This Row],[Realna data wydania]]<TODAY()),\"Wydany\",IF(Harmonogram[[#This Row],[Realna data skończenia]]>0,\"Zrobiony\",\"\"))","v":""}]
[null,null,null,null,null,{"$f":"Harmonogram[[#This Row],[Data przyjęcia ]]+30","v":"1900-01-30"},null,null,null,null,null,null,null,null,null,{"$f":"Harmonogram[[#This Row],[P: \nSzycie]]","v":0},null,null,null,null,null,null,null,null,null,{"$f":"SUM(Harmonogram[[#This Row],[P: Spawanie]:[P: Montaż]])","v":0},null,null,{"$f":"Harmonogram[[#This Row],[Realna data wydania]]+365","v":"1900-12-30"},null,{"$f":"IF(Harmonogram[[#This Row],[Realna data wydania]]=0,\"\",MONTH(Harmonogram[[#This Row],[Realna data wydania]]))","v":""},{"$f":"IF(AND(Harmonogram[[#This Row],[Realna data wydania]]>0,Harmonogram[[#This Row],[Realna data wydania]]<TODAY()),\"Wydany\",IF(Harmonogram[[#This Row],[Realna data skończenia]]>0,\"Zrobiony\",\"\"))","v":""}]
[null,null,null,null,null,{"$f":"Harmonogram[[#This Row],[Data przyjęcia ]]+30","v":"1900-01-30"},null,null,null,null,null,null,null,null,null,{"$f":"Harmonogram[[#This Row],[P: \nSzycie]]","v":0},null,null,null,null,null,null,null,null,null,{"$f":"SUM(Harmonogram[[#This Row],[P: Spawanie]:[P: Montaż]])","v":0},null,null,{"$f":"Harmonogram[[#This Row],[Realna data wydania]]+365","v":"1900-12-30"},null,{"$f":"IF(Harmonogram[[#This Row],[Realna data wydania]]=0,\"\",MONTH(Harmonogram[[#This Row],[Realna data wydania]]))","v":""},{"$f":"IF(AND(Harmonogram[[#This Row],[Realna data wydania]]>0,Harmonogram[[#This Row],[Realna data wydania]]<TODAY()),\"Wydany\",IF(Harmonogram[[#This Row],[Realna data skończenia]]>0,\"Zrobiony\",\"\"))","v":""}]
[null,null,null,null,null,{"$f":"Harmonogram[[#This Row],[Data przyjęcia ]]+30","v":"1900-01-30"},null,null,null,null,null,null,null,null,null,{"$f":"Harmonogram[[#This Row],[P: \nSzycie]]","v":0},null,null,null,null,null,null,null,null,null,{"$f":"SUM(Harmonogram[[#This Row],[P: Spawanie]:[P: Montaż]])","v":0},null,null,{"$f":"Harmonogram[[#This Row],[Realna data wydania]]+365","v":"1900-12-30"},null,{"$f":"IF(Harmonogram[[#This Row],[Realna data wydania]]=0,\"\",MONTH(Harmonogram[[#This Row],[Realna data wydania]]))","v":""},{"$f":"IF(AND(Harmonogram[[#This Row],[Realna data wydania]]>0,Harmonogram[[#This Row],[Realna data wydania]]<TODAY()),\"Wydany\",IF(Harmonogram[[#This Row],[Realna data skończenia]]>0,\"Zrobiony\",\"\"))","v":""}]
[null,null,null,null,null,{"$f":"Harmonogram[[#This Row],[Data przyjęcia ]]+30","v":"1900-01-30"},null,null,null,null,null,null,null,null,null,{"$f":"Harmonogram[[#This Row],[P: \nSzycie]]","v":0},null,null,null,null,null,null,null,null,null,{"$f":"SUM(Harmonogram[[#This Row],[P: Spawanie]:[P: Montaż]])","v":0},null,null,{"$f":"Harmonogram[[#This Row],[Realna data wydania]]+365","v":"1900-12-30"},null,{"$f":"IF(Harmonogram[[#This Row],[Realna data wydania]]=0,\"\",MONTH(Harmonogram[[#This Row],[Realna data wydania]]))","v":""},{"$f":"IF(AND(Harmonogram[[#This Row],[Realna data wydania]]>0,Harmonogram[[#This Row],[Realna data wydania]]<TODAY()),\"Wydany\",IF(Harmonogram[[#This Row],[Realna data skończenia]]>0,\"Zrobiony\",\"\"))","v":""}]
[null,null,null,null,null,{"$f":"Harmonogram[[#This Row],[Data przyjęcia ]]+30","v":"1900-01-30"},null,null,null,null,null,null,null,null,null,{"$f":"Harmonogram[[#This Row],[P: \nSzycie]]","v":0},null,null,null,null,null,null,null,null,null,{"$f":"SUM(Harmonogram[[#This Row],[P: Spawanie]:[P: Montaż]])","v":0},null,null,{"$f":"Harmonogram[[#This Row],[Realna data wydania]]+365","v":"1900-12-30"},null,{"$f":"IF(Harmonogram[[#This Row],[Realna data wydania]]=0,\"\",MONTH(Harmonogram[[#This Row],[Realna data wydania]]))","v":""},{"$f":"IF(AND(Harmonogram[[#This Row],[Realna data wydania]]>0,Harmonogram[[#This Row],[Realna data wydania]]<TODAY()),\"Wydany\",IF(Harmonogram[[#This Row],[Realna data skończenia]]>0,\"Zrobiony\",\"\"))","v":""}]
[null,null,null,null,null,{"$f":"Harmonogram[[#This Row],[Data przyjęcia ]]+30","v":"1900-01-30"},null,null,null,null,null,null,null,null,null,{"$f":"Harmonogram[[#This Row],[P: \nSzycie]]","v":0},null,null,null,null,null,null,null,null,null,{"$f":"SUM(Harmonogram[[#This Row],[P: Spawanie]:[P: Montaż]])","v":0},null,null,{"$f":"Harmonogram[[#This Row],[Realna data wydania]]+365","v":"1900-12-30"},null,{"$f":"IF(Harmonogram[[#This Row],[Realna data wydania]]=0,\"\",MONTH(Harmonogram[[#This Row],[Realna data wydania]]))","v":""},{"$f":"IF(AND(Harmonogram[[#This Row],[Realna data wydania]]>0,Harmonogram[[#This Row],[Realna data wydania]]<TODAY()),\"Wydany\",IF(Harmonogram[[#This Row],[Realna data skończenia]]>0,\"Zrobiony\",\"\"))","v":""}]
[null,null,null,null,null,{"$f":"Harmonogram[[#This Row],[Data przyjęcia ]]+30","v":"1900-01-30"},null,null,null,null,null,null,null,null,null,{"$f":"Harmonogram[[#This Row],[P: \nSzycie]]","v":0},null,null,null,null,null,null,null,null,null,{"$f":"SUM(Harmonogram[[#This Row],[P: Spawanie]:[P: Montaż]])","v":0},null,null,{"$f":"Harmonogram[[#This Row],[Realna data wydania]]+365","v":"1900-12-30"},null,{"$f":"IF(Harmonogram[[#This Row],[Realna data wydania]]=0,\"\",MONTH(Harmonogram[[#This Row],[Realna data wydania]]))","v":""},{"$f":"IF(AND(Harmonogram[[#This Row],[Realna data wydania]]>0,Harmonogram[[#This Row],[Realna data wydania]]<TODAY()),\"Wydany\",IF(Harmonogram[[#This Row],[Realna data skończenia]]>0,\"Zrobiony\",\"\"))","v":""}]
[null,null,null,null,null,{"$f":"Harmonogram[[#This Row],[Data przyjęcia ]]+30","v":"1900-01-30"},null,null,null,null,null,null,null,null,null,{"$f":"Harmonogram[[#This Row],[P: \nSzycie]]","v":0},null,null,null,null,null,null,null,null,null,{"$f":"SUM(Harmonogram[[#This Row],[P: Spawanie]:[P: Montaż]])","v":0},null,null,{"$f":"Harmonogram[[#This Row],[Realna data wydania]]+365","v":"1900-12-30"},null,{"$f":"IF(Harmonogram[[#This Row],[Realna data wydania]]=0,\"\",MONTH(Harmonogram[[#This Row],[Realna data wydania]]))","v":""},{"$f":"IF(AND(Harmonogram[[#This Row],[Realna data wydania]]>0,Harmonogram[[#This Row],[Realna data wydania]]<TODAY()),\"Wydany\",IF(Harmonogram[[#This Row],[Realna data skończenia]]>0,\"Zrobiony\",\"\"))","v":""}]
[null,null,null,null,null,{"$f":"Harmonogram[[#This Row],[Data przyjęcia ]]+30","v":"1900-01-30"},null,null,null,null,null,null,null,null,null,{"$f":"Harmonogram[[#This Row],[P: \nSzycie]]","v":0},null,null,null,null,null,null,null,null,null,{"$f":"SUM(Harmonogram[[#This Row],[P: Spawanie]:[P: Montaż]])","v":0},null,null,{"$f":"Harmonogram[[#This Row],[Realna data wydania]]+365","v":"1900-12-30"},null,{"$f":"IF(Harmonogram[[#This Row],[Realna data wydania]]=0,\"\",MONTH(Harmonogram[[#This Row],[Realna data wydania]]))","v":""},{"$f":"IF(AND(Harmonogram[[#This Row],[Realna data wydania]]>0,Harmonogram[[#This Row],[Realna data wydania]]<TODAY()),\"Wydany\",IF(Harmonogram[[#This Row],[Realna data skończenia]]>0,\"Zrobiony\",\"\"))","v":""}]
[null,null,null,null,null,{"$f":"Harmonogram[[#This Row],[Data przyjęcia ]]+30","v":"1900-01-30"},null,null,null,null,null,null,null,null,null,{"$f":"Harmonogram[[#This Row],[P: \nSzycie]]","v":0},null,null,null,null,null,null,null,null,null,{"$f":"SUM(Harmonogram[[#This Row],[P: Spawanie]:[P: Montaż]])","v":0},null,null,{"$f":"Harmonogram[[#This Row],[Realna data wydania]]+365","v":"1900-12-30"},null,{"$f":"IF(Harmonogram[[#This Row],[Realna data wydania]]=0,\"\",MONTH(Harmonogram[[#This Row],[Realna data wydania]]))","v":""},{"$f":"IF(AND(Harmonogram[[#This Row],[Realna data wydania]]>0,Harmonogram[[#This Row],[Realna data wydania]]<TODAY()),\"Wydany\",IF(Harmonogram[[#This Row],[Realna data skończenia]]>0,\"Zrobiony\",\"\"))","v":""}]
[null,null,null,null,null,{"$f":"Harmonogram[[#This Row],[Data przyjęcia ]]+30","v":"1900-01-30"},null,null,null,null,null,null,null,null,null,{"$f":"Harmonogram[[#This Row],[P: \nSzycie]]","v":0},null,null,null,null,null,null,null,null,null,{"$f":"SUM(Harmonogram[[#This Row],[P: Spawanie]:[P: Montaż]])","v":0},null,null,{"$f":"Harmonogram[[#This Row],[Realna data wydania]]+365","v":"1900-12-30"},null,{"$f":"IF(Harmonogram[[#This Row],[Realna data wydania]]=0,\"\",MONTH(Harmonogram[[#This Row],[Realna data wydania]]))","v":""},{"$f":"IF(AND(Harmonogram[[#This Row],[Realna data wydania]]>0,Harmonogram[[#This Row],[Realna data wydania]]<TODAY()),\"Wydany\",IF(Harmonogram[[#This Row],[Realna data skończenia]]>0,\"Zrobiony\",\"\"))","v":""}]
[null,null,null,null,null,{"$f":"Harmonogram[[#This Row],[Data przyjęcia ]]+30","v":"1900-01-30"},null,null,null,null,null,null,null,null,null,{"$f":"Harmonogram[[#This Row],[P: \nSzycie]]","v":0},null,null,null,null,null,null,null,null,null,{"$f":"SUM(Harmonogram[[#This Row],[P: Spawanie]:[P: Montaż]])","v":0},null,null,{"$f":"Harmonogram[[#This Row],[Realna data wydania]]+365","v":"1900-12-30"},null,{"$f":"IF(Harmonogram[[#This Row],[Realna data wydania]]=0,\"\",MONTH(Harmonogram[[#This Row],[Realna data wydania]]))","v":""},{"$f":"IF(AND(Harmonogram[[#This Row],[Realna data wydania]]>0,Harmonogram[[#This Row],[Realna data wydania]]<TODAY()),\"Wydany\",IF(Harmonogram[[#This Row],[Realna data skończenia]]>0,\"Zrobiony\",\"\"))","v":""}]
[null,null,null,null,null,{"$f":"Harmonogram[[#This Row],[Data przyjęcia ]]+30","v":"1900-01-30"},null,null,null,null,null,null,null,null,null,{"$f":"Harmonogram[[#This Row],[P: \nSzycie]]","v":0},null,null,null,null,null,null,null,null,null,{"$f":"SUM(Harmonogram[[#This Row],[P: Spawanie]:[P: Montaż]])","v":0},null,null,{"$f":"Harmonogram[[#This Row],[Realna data wydania]]+365","v":"1900-12-30"},null,{"$f":"IF(Harmonogram[[#This Row],[Realna data wydania]]=0,\"\",MONTH(Harmonogram[[#This Row],[Realna data wydania]]))","v":""},{"$f":"IF(AND(Harmonogram[[#This Row],[Realna data wydania]]>0,Harmonogram[[#This Row],[Realna data wydania]]<TODAY()),\"Wydany\",IF(Harmonogram[[#This Row],[Realna data skończenia]]>0,\"Zrobiony\",\"\"))","v":""}]
[null,null,null,null,null,{"$f":"Harmonogram[[#This Row],[Data przyjęcia ]]+30","v":"1900-01-30"},null,null,null,null,null,null,null,null,null,{"$f":"Harmonogram[[#This Row],[P: \nSzycie]]","v":0},null,null,null,null,null,null,null,null,null,{"$f":"SUM(Harmonogram[[#This Row],[P: Spawanie]:[P: Montaż]])","v":0},null,null,{"$f":"Harmonogram[[#This Row],[Realna data wydania]]+365","v":"1900-12-30"},null,{"$f":"IF(Harmonogram[[#This Row],[Realna data wydania]]=0,\"\",MONTH(Harmonogram[[#This Row],[Realna data wydania]]))","v":""},{"$f":"IF(AND(Harmonogram[[#This Row],[Realna data wydania]]>0,Harmonogram[[#This Row],[Realna data wydania]]<TODAY()),\"Wydany\",IF(Harmonogram[[#This Row],[Realna data skończenia]]>0,\"Zrobiony\",\"\"))","v":""}]
[null,null,null,null,null,{"$f":"Harmonogram[[#This Row],[Data przyjęcia ]]+30","v":"1900-01-30"},null,null,null,null,null,null,null,null,null,{"$f":"Harmonogram[[#This Row],[P: \nSzycie]]","v":0},null,null,null,null,null,null,null,null,null,{"$f":"SUM(Harmonogram[[#This Row],[P: Spawanie]:[P: Montaż]])","v":0},null,null,{"$f":"Harmonogram[[#This Row],[Realna data wydania]]+365","v":"1900-12-30"},null,{"$f":"IF(Harmonogram[[#This Row],[Realna data wydania]]=0,\"\",MONTH(Harmonogram[[#This Row],[Realna data wydania]]))","v":""},{"$f":"IF(AND(Harmonogram[[#This Row],[Realna data wydania]]>0,Harmonogram[[#This Row],[Realna data wydania]]<TODAY()),\"Wydany\",IF(Harmonogram[[#This Row],[Realna data skończenia]]>0,\"Zrobiony\",\"\"))","v":""}]
[null,null,null,null,null,{"$f":"Harmonogram[[#This Row],[Data przyjęcia ]]+30","v":"1900-01-30"},null,null,null,null,null,null,null,null,null,{"$f":"Harmonogram[[#This Row],[P: \nSzycie]]","v":0},null,null,null,null,null,null,null,null,null,{"$f":"SUM(Harmonogram[[#This Row],[P: Spawanie]:[P: Montaż]])","v":0},null,null,{"$f":"Harmonogram[[#This Row],[Realna data wydania]]+365","v":"1900-12-30"},null,{"$f":"IF(Harmonogram[[#This Row],[Realna data wydania]]=0,\"\",MONTH(Harmonogram[[#This Row],[Realna data wydania]]))","v":""},{"$f":"IF(AND(Harmonogram[[#This Row],[Realna data wydania]]>0,Harmonogram[[#This Row],[Realna data wydania]]<TODAY()),\"Wydany\",IF(Harmonogram[[#This Row],[Realna data skończenia]]>0,\"Zrobiony\",\"\"))","v":""}]
[null,null,null,null,null,{"$f":"Harmonogram[[#This Row],[Data przyjęcia ]]+30","v":"1900-01-30"},null,null,null,null,null,null,null,null,null,{"$f":"Harmonogram[[#This Row],[P: \nSzycie]]","v":0},null,null,null,null,null,null,null,null,null,{"$f":"SUM(Harmonogram[[#This Row],[P: Spawanie]:[P: Montaż]])","v":0},null,null,{"$f":"Harmonogram[[#This Row],[Realna data wydania]]+365","v":"1900-12-30"},null,{"$f":"IF(Harmonogram[[#This Row],[Realna data wydania]]=0,\"\",MONTH(Harmonogram[[#This Row],[Realna data wydania]]))","v":""},{"$f":"IF(AND(Harmonogram[[#This Row],[Realna data wydania]]>0,Harmonogram[[#This Row],[Realna data wydania]]<TODAY()),\"Wydany\",IF(Harmonogram[[#This Row],[Realna data skończenia]]>0,\"Zrobiony\",\"\"))","v":""}]
[null,null,null,null,null,{"$f":"Harmonogram[[#This Row],[Data przyjęcia ]]+30","v":"1900-01-30"},null,null,null,null,null,null,null,null,null,{"$f":"Harmonogram[[#This Row],[P: \nSzycie]]","v":0},null,null,null,null,null,null,null,null,null,{"$f":"SUM(Harmonogram[[#This Row],[P: Spawanie]:[P: Montaż]])","v":0},null,null,{"$f":"Harmonogram[[#This Row],[Realna data wydania]]+365","v":"1900-12-30"},null,{"$f":"IF(Harmonogram[[#This Row],[Realna data wydania]]=0,\"\",MONTH(Harmonogram[[#This Row],[Realna data wydania]]))","v":""},{"$f":"IF(AND(Harmonogram[[#This Row],[Realna data wydania]]>0,Harmonogram[[#This Row],[Realna data wydania]]<TODAY()),\"Wydany\",IF(Harmonogram[[#This Row],[Realna data skończenia]]>0,\"Zrobiony\",\"\"))","v":""}]
[null,null,null,null,null,{"$f":"Harmonogram[[#This Row],[Data przyjęcia ]]+30","v":"1900-01-30"},null,null,null,null,null,null,null,null,null,{"$f":"Harmonogram[[#This Row],[P: \nSzycie]]","v":0},null,null,null,null,null,null,null,null,null,{"$f":"SUM(Harmonogram[[#This Row],[P: Spawanie]:[P: Montaż]])","v":0},null,null,{"$f":"Harmonogram[[#This Row],[Realna data wydania]]+365","v":"1900-12-30"},null,{"$f":"IF(Harmonogram[[#This Row],[Realna data wydania]]=0,\"\",MONTH(Harmonogram[[#This Row],[Realna data wydania]]))","v":""},{"$f":"IF(AND(Harmonogram[[#This Row],[Realna data wydania]]>0,Harmonogram[[#This Row],[Realna data wydania]]<TODAY()),\"Wydany\",IF(Harmonogram[[#This Row],[Realna data skończenia]]>0,\"Zrobiony\",\"\"))","v":""}]
[null,null,null,null,null,{"$f":"Harmonogram[[#This Row],[Data przyjęcia ]]+30","v":"1900-01-30"},null,null,null,null,null,null,null,null,null,{"$f":"Harmonogram[[#This Row],[P: \nSzycie]]","v":0},null,null,null,null,null,null,null,null,null,{"$f":"SUM(Harmonogram[[#This Row],[P: Spawanie]:[P: Montaż]])","v":0},null,null,{"$f":"Harmonogram[[#This Row],[Realna data wydania]]+365","v":"1900-12-30"},null,{"$f":"IF(Harmonogram[[#This Row],[Realna data wydania]]=0,\"\",MONTH(Harmonogram[[#This Row],[Realna data wydania]]))","v":""},{"$f":"IF(AND(Harmonogram[[#This Row],[Realna data wydania]]>0,Harmonogram[[#This Row],[Realna data wydania]]<TODAY()),\"Wydany\",IF(Harmonogram[[#This Row],[Realna data skończenia]]>0,\"Zrobiony\",\"\"))","v":""}]
[null,null,null,null,null,{"$f":"Harmonogram[[#This Row],[Data przyjęcia ]]+30","v":"1900-01-30"},null,null,null,null,null,null,null,null,null,{"$f":"Harmonogram[[#This Row],[P: \nSzycie]]","v":0},null,null,null,null,null,null,null,null,null,{"$f":"SUM(Harmonogram[[#This Row],[P: Spawanie]:[P: Montaż]])","v":0},null,null,{"$f":"Harmonogram[[#This Row],[Realna data wydania]]+365","v":"1900-12-30"},null,{"$f":"IF(Harmonogram[[#This Row],[Realna data wydania]]=0,\"\",MONTH(Harmonogram[[#This Row],[Realna data wydania]]))","v":""},{"$f":"IF(AND(Harmonogram[[#This Row],[Realna data wydania]]>0,Harmonogram[[#This Row],[Realna data wydania]]<TODAY()),\"Wydany\",IF(Harmonogram[[#This Row],[Realna data skończenia]]>0,\"Zrobiony\",\"\"))","v":""}]
[null,null,null,null,null,{"$f":"Harmonogram[[#This Row],[Data przyjęcia ]]+30","v":"1900-01-30"},null,null,null,null,null,null,null,null,null,{"$f":"Harmonogram[[#This Row],[P: \nSzycie]]","v":0},null,null,null,null,null,null,null,null,null,{"$f":"SUM(Harmonogram[[#This Row],[P: Spawanie]:[P: Montaż]])","v":0},null,null,{"$f":"Harmonogram[[#This Row],[Realna data wydania]]+365","v":"1900-12-30"},null,{"$f":"IF(Harmonogram[[#This Row],[Realna data wydania]]=0,\"\",MONTH(Harmonogram[[#This Row],[Realna data wydania]]))","v":""},{"$f":"IF(AND(Harmonogram[[#This Row],[Realna data wydania]]>0,Harmonogram[[#This Row],[Realna data wydania]]<TODAY()),\"Wydany\",IF(Harmonogram[[#This Row],[Realna data skończenia]]>0,\"Zrobiony\",\"\"))","v":""}]
[null,null,null,null,null,{"$f":"Harmonogram[[#This Row],[Data przyjęcia ]]+30","v":"1900-01-30"},null,null,null,null,null,null,null,null,null,{"$f":"Harmonogram[[#This Row],[P: \nSzycie]]","v":0},null,null,null,null,null,null,null,null,null,{"$f":"SUM(Harmonogram[[#This Row],[P: Spawanie]:[P: Montaż]])","v":0},null,null,{"$f":"Harmonogram[[#This Row],[Realna data wydania]]+365","v":"1900-12-30"},null,{"$f":"IF(Harmonogram[[#This Row],[Realna data wydania]]=0,\"\",MONTH(Harmonogram[[#This Row],[Realna data wydania]]))","v":""},{"$f":"IF(AND(Harmonogram[[#This Row],[Realna data wydania]]>0,Harmonogram[[#This Row],[Realna data wydania]]<TODAY()),\"Wydany\",IF(Harmonogram[[#This Row],[Realna data skończenia]]>0,\"Zrobiony\",\"\"))","v":""}]
[null,null,null,null,null,{"$f":"Harmonogram[[#This Row],[Data przyjęcia ]]+30","v":"1900-01-30"},null,null,null,null,null,null,null,null,null,{"$f":"Harmonogram[[#This Row],[P: \nSzycie]]","v":0},null,null,null,null,null,null,null,null,null,{"$f":"SUM(Harmonogram[[#This Row],[P: Spawanie]:[P: Montaż]])","v":0},null,null,{"$f":"Harmonogram[[#This Row],[Realna data wydania]]+365","v":"1900-12-30"},null,{"$f":"IF(Harmonogram[[#This Row],[Realna data wydania]]=0,\"\",MONTH(Harmonogram[[#This Row],[Realna data wydania]]))","v":""},{"$f":"IF(AND(Harmonogram[[#This Row],[Realna data wydania]]>0,Harmonogram[[#This Row],[Realna data wydania]]<TODAY()),\"Wydany\",IF(Harmonogram[[#This Row],[Realna data skończenia]]>0,\"Zrobiony\",\"\"))","v":""}]
[null,null,null,null,null,{"$f":"Harmonogram[[#This Row],[Data przyjęcia ]]+30","v":"1900-01-30"},null,null,null,null,null,null,null,null,null,{"$f":"Harmonogram[[#This Row],[P: \nSzycie]]","v":0},null,null,null,null,null,null,null,null,null,{"$f":"SUM(Harmonogram[[#This Row],[P: Spawanie]:[P: Montaż]])","v":0},null,null,{"$f":"Harmonogram[[#This Row],[Realna data wydania]]+365","v":"1900-12-30"},null,{"$f":"IF(Harmonogram[[#This Row],[Realna data wydania]]=0,\"\",MONTH(Harmonogram[[#This Row],[Realna data wydania]]))","v":""},{"$f":"IF(AND(Harmonogram[[#This Row],[Realna data wydania]]>0,Harmonogram[[#This Row],[Realna data wydania]]<TODAY()),\"Wydany\",IF(Harmonogram[[#This Row],[Realna data skończenia]]>0,\"Zrobiony\",\"\"))","v":""}]
[null,null,null,null,null,{"$f":"Harmonogram[[#This Row],[Data przyjęcia ]]+30","v":"1900-01-30"},null,null,null,null,null,null,null,null,null,{"$f":"Harmonogram[[#This Row],[P: \nSzycie]]","v":0},null,null,null,null,null,null,null,null,null,{"$f":"SUM(Harmonogram[[#This Row],[P: Spawanie]:[P: Montaż]])","v":0},null,null,{"$f":"Harmonogram[[#This Row],[Realna data wydania]]+365","v":"1900-12-30"},null,{"$f":"IF(Harmonogram[[#This Row],[Realna data wydania]]=0,\"\",MONTH(Harmonogram[[#This Row],[Realna data wydania]]))","v":""},{"$f":"IF(AND(Harmonogram[[#This Row],[Realna data wydania]]>0,Harmonogram[[#This Row],[Realna data wydania]]<TODAY()),\"Wydany\",IF(Harmonogram[[#This Row],[Realna data skończenia]]>0,\"Zrobiony\",\"\"))","v":""}]
[null,null,null,null,null,{"$f":"Harmonogram[[#This Row],[Data przyjęcia ]]+30","v":"1900-01-30"},null,null,null,null,null,null,null,null,null,{"$f":"Harmonogram[[#This Row],[P: \nSzycie]]","v":0},null,null,null,null,null,null,null,null,null,{"$f":"SUM(Harmonogram[[#This Row],[P: Spawanie]:[P: Montaż]])","v":0},null,null,{"$f":"Harmonogram[[#This Row],[Realna data wydania]]+365","v":"1900-12-30"},null,{"$f":"IF(Harmonogram[[#This Row],[Realna data wydania]]=0,\"\",MONTH(Harmonogram[[#This Row],[Realna data wydania]]))","v":""},{"$f":"IF(AND(Harmonogram[[#This Row],[Realna data wydania]]>0,Harmonogram[[#This Row],[Realna data wydania]]<TODAY()),\"Wydany\",IF(Harmonogram[[#This Row],[Realna data skończenia]]>0,\"Zrobiony\",\"\"))","v":""}]
[null,null,null,null,null,{"$f":"Harmonogram[[#This Row],[Data przyjęcia ]]+30","v":"1900-01-30"},null,null,null,null,null,null,null,null,null,{"$f":"Harmonogram[[#This Row],[P: \nSzycie]]","v":0},null,null,null,null,null,null,null,null,null,{"$f":"SUM(Harmonogram[[#This Row],[P: Spawanie]:[P: Montaż]])","v":0},null,null,{"$f":"Harmonogram[[#This Row],[Realna data wydania]]+365","v":"1900-12-30"},null,{"$f":"IF(Harmonogram[[#This Row],[Realna data wydania]]=0,\"\",MONTH(Harmonogram[[#This Row],[Realna data wydania]]))","v":""},{"$f":"IF(AND(Harmonogram[[#This Row],[Realna data wydania]]>0,Harmonogram[[#This Row],[Realna data wydania]]<TODAY()),\"Wydany\",IF(Harmonogram[[#This Row],[Realna data skończenia]]>0,\"Zrobiony\",\"\"))","v":""}]
[null,null,null,null,null,{"$f":"Harmonogram[[#This Row],[Data przyjęcia ]]+30","v":"1900-01-30"},null,null,null,null,null,null,null,null,null,{"$f":"Harmonogram[[#This Row],[P: \nSzycie]]","v":0},null,null,null,null,null,null,null,null,null,{"$f":"SUM(Harmonogram[[#This Row],[P: Spawanie]:[P: Montaż]])","v":0},null,null,{"$f":"Harmonogram[[#This Row],[Realna data wydania]]+365","v":"1900-12-30"},null,{"$f":"IF(Harmonogram[[#This Row],[Realna data wydania]]=0,\"\",MONTH(Harmonogram[[#This Row],[Realna data wydania]]))","v":""},{"$f":"IF(AND(Harmonogram[[#This Row],[Realna data wydania]]>0,Harmonogram[[#This Row],[Realna data wydania]]<TODAY()),\"Wydany\",IF(Harmonogram[[#This Row],[Realna data skończenia]]>0,\"Zrobiony\",\"\"))","v":""}]
[null,null,null,null,null,{"$f":"Harmonogram[[#This Row],[Data przyjęcia ]]+30","v":"1900-01-30"},null,null,null,null,null,null,null,null,null,{"$f":"Harmonogram[[#This Row],[P: \nSzycie]]","v":0},null,null,null,null,null,null,null,null,null,{"$f":"SUM(Harmonogram[[#This Row],[P: Spawanie]:[P: Montaż]])","v":0},null,null,{"$f":"Harmonogram[[#This Row],[Realna data wydania]]+365","v":"1900-12-30"},null,{"$f":"IF(Harmonogram[[#This Row],[Realna data wydania]]=0,\"\",MONTH(Harmonogram[[#This Row],[Realna data wydania]]))","v":""},{"$f":"IF(AND(Harmonogram[[#This Row],[Realna data wydania]]>0,Harmonogram[[#This Row],[Realna data wydania]]<TODAY()),\"Wydany\",IF(Harmonogram[[#This Row],[Realna data skończenia]]>0,\"Zrobiony\",\"\"))","v":""}]
[null,null,null,null,null,{"$f":"Harmonogram[[#This Row],[Data przyjęcia ]]+30","v":"1900-01-30"},null,null,null,null,null,null,null,null,null,{"$f":"Harmonogram[[#This Row],[P: \nSzycie]]","v":0},null,null,null,null,null,null,null,null,null,{"$f":"SUM(Harmonogram[[#This Row],[P: Spawanie]:[P: Montaż]])","v":0},null,null,{"$f":"Harmonogram[[#This Row],[Realna data wydania]]+365","v":"1900-12-30"},null,{"$f":"IF(Harmonogram[[#This Row],[Realna data wydania]]=0,\"\",MONTH(Harmonogram[[#This Row],[Realna data wydania]]))","v":""},{"$f":"IF(AND(Harmonogram[[#This Row],[Realna data wydania]]>0,Harmonogram[[#This Row],[Realna data wydania]]<TODAY()),\"Wydany\",IF(Harmonogram[[#This Row],[Realna data skończenia]]>0,\"Zrobiony\",\"\"))","v":""}]
[null,null,null,null,null,{"$f":"Harmonogram[[#This Row],[Data przyjęcia ]]+30","v":"1900-01-30"},null,null,null,null,null,null,null,null,null,{"$f":"Harmonogram[[#This Row],[P: \nSzycie]]","v":0},null,null,null,null,null,null,null,null,null,{"$f":"SUM(Harmonogram[[#This Row],[P: Spawanie]:[P: Montaż]])","v":0},null,null,{"$f":"Harmonogram[[#This Row],[Realna data wydania]]+365","v":"1900-12-30"},null,{"$f":"IF(Harmonogram[[#This Row],[Realna data wydania]]=0,\"\",MONTH(Harmonogram[[#This Row],[Realna data wydania]]))","v":""},{"$f":"IF(AND(Harmonogram[[#This Row],[Realna data wydania]]>0,Harmonogram[[#This Row],[Realna data wydania]]<TODAY()),\"Wydany\",IF(Harmonogram[[#This Row],[Realna data skończenia]]>0,\"Zrobiony\",\"\"))","v":""}]
[null,null,null,null,null,{"$f":"Harmonogram[[#This Row],[Data przyjęcia ]]+30","v":"1900-01-30"},null,null,null,null,null,null,null,null,null,{"$f":"Harmonogram[[#This Row],[P: \nSzycie]]","v":0},null,null,null,null,null,null,null,null,null,{"$f":"SUM(Harmonogram[[#This Row],[P: Spawanie]:[P: Montaż]])","v":0},null,null,{"$f":"Harmonogram[[#This Row],[Realna data wydania]]+365","v":"1900-12-30"},null,{"$f":"IF(Harmonogram[[#This Row],[Realna data wydania]]=0,\"\",MONTH(Harmonogram[[#This Row],[Realna data wydania]]))","v":""},{"$f":"IF(AND(Harmonogram[[#This Row],[Realna data wydania]]>0,Harmonogram[[#This Row],[Realna data wydania]]<TODAY()),\"Wydany\",IF(Harmonogram[[#This Row],[Realna data skończenia]]>0,\"Zrobiony\",\"\"))","v":""}]
[null,null,null,null,null,{"$f":"Harmonogram[[#This Row],[Data przyjęcia ]]+30","v":"1900-01-30"},null,null,null,null,null,null,null,null,null,{"$f":"Harmonogram[[#This Row],[P: \nSzycie]]","v":0},null,null,null,null,null,null,null,null,null,{"$f":"SUM(Harmonogram[[#This Row],[P: Spawanie]:[P: Montaż]])","v":0},null,null,{"$f":"Harmonogram[[#This Row],[Realna data wydania]]+365","v":"1900-12-30"},null,{"$f":"IF(Harmonogram[[#This Row],[Realna data wydania]]=0,\"\",MONTH(Harmonogram[[#This Row],[Realna data wydania]]))","v":""},{"$f":"IF(AND(Harmonogram[[#This Row],[Realna data wydania]]>0,Harmonogram[[#This Row],[Realna data wydania]]<TODAY()),\"Wydany\",IF(Harmonogram[[#This Row],[Realna data skończenia]]>0,\"Zrobiony\",\"\"))","v":""}]
[null,null,null,null,null,{"$f":"Harmonogram[[#This Row],[Data przyjęcia ]]+30","v":"1900-01-30"},null,null,null,null,null,null,null,null,null,{"$f":"Harmonogram[[#This Row],[P: \nSzycie]]","v":0},null,null,null,null,null,null,null,null,null,{"$f":"SUM(Harmonogram[[#This Row],[P: Spawanie]:[P: Montaż]])","v":0},null,null,{"$f":"Harmonogram[[#This Row],[Realna data wydania]]+365","v":"1900-12-30"},null,{"$f":"IF(Harmonogram[[#This Row],[Realna data wydania]]=0,\"\",MONTH(Harmonogram[[#This Row],[Realna data wydania]]))","v":""},{"$f":"IF(AND(Harmonogram[[#This Row],[Realna data wydania]]>0,Harmonogram[[#This Row],[Realna data wydania]]<TODAY()),\"Wydany\",IF(Harmonogram[[#This Row],[Realna data skończenia]]>0,\"Zrobiony\",\"\"))","v":""}]
[null,null,null,null,null,{"$f":"Harmonogram[[#This Row],[Data przyjęcia ]]+30","v":"1900-01-30"},null,null,null,null,null,null,null,null,null,{"$f":"Harmonogram[[#This Row],[P: \nSzycie]]","v":0},null,null,null,null,null,null,null,null,null,{"$f":"SUM(Harmonogram[[#This Row],[P: Spawanie]:[P: Montaż]])","v":0},null,null,{"$f":"Harmonogram[[#This Row],[Realna data wydania]]+365","v":"1900-12-30"},null,{"$f":"IF(Harmonogram[[#This Row],[Realna data wydania]]=0,\"\",MONTH(Harmonogram[[#This Row],[Realna data wydania]]))","v":""},{"$f":"IF(AND(Harmonogram[[#This Row],[Realna data wydania]]>0,Harmonogram[[#This Row],[Realna data wydania]]<TODAY()),\"Wydany\",IF(Harmonogram[[#This Row],[Realna data skończenia]]>0,\"Zrobiony\",\"\"))","v":""}]
[null,null,null,null,null,{"$f":"Harmonogram[[#This Row],[Data przyjęcia ]]+30","v":"1900-01-30"},null,null,null,null,null,null,null,null,null,{"$f":"Harmonogram[[#This Row],[P: \nSzycie]]","v":0},null,null,null,null,null,null,null,null,null,{"$f":"SUM(Harmonogram[[#This Row],[P: Spawanie]:[P: Montaż]])","v":0},null,null,{"$f":"Harmonogram[[#This Row],[Realna data wydania]]+365","v":"1900-12-30"},null,{"$f":"IF(Harmonogram[[#This Row],[Realna data wydania]]=0,\"\",MONTH(Harmonogram[[#This Row],[Realna data wydania]]))","v":""},{"$f":"IF(AND(Harmonogram[[#This Row],[Realna data wydania]]>0,Harmonogram[[#This Row],[Realna data wydania]]<TODAY()),\"Wydany\",IF(Harmonogram[[#This Row],[Realna data skończenia]]>0,\"Zrobiony\",\"\"))","v":""}]
[null,null,null,null,null,{"$f":"Harmonogram[[#This Row],[Data przyjęcia ]]+30","v":"1900-01-30"},null,null,null,null,null,null,null,null,null,{"$f":"Harmonogram[[#This Row],[P: \nSzycie]]","v":0},null,null,null,null,null,null,null,null,null,{"$f":"SUM(Harmonogram[[#This Row],[P: Spawanie]:[P: Montaż]])","v":0},null,null,{"$f":"Harmonogram[[#This Row],[Realna data wydania]]+365","v":"1900-12-30"},null,{"$f":"IF(Harmonogram[[#This Row],[Realna data wydania]]=0,\"\",MONTH(Harmonogram[[#This Row],[Realna data wydania]]))","v":""},{"$f":"IF(AND(Harmonogram[[#This Row],[Realna data wydania]]>0,Harmonogram[[#This Row],[Realna data wydania]]<TODAY()),\"Wydany\",IF(Harmonogram[[#This Row],[Realna data skończenia]]>0,\"Zrobiony\",\"\"))","v":""}]
[null,null,null,null,null,{"$f":"Harmonogram[[#This Row],[Data przyjęcia ]]+30","v":"1900-01-30"},null,null,null,null,null,null,null,null,null,{"$f":"Harmonogram[[#This Row],[P: \nSzycie]]","v":0},null,null,null,null,null,null,null,null,null,{"$f":"SUM(Harmonogram[[#This Row],[P: Spawanie]:[P: Montaż]])","v":0},null,null,{"$f":"Harmonogram[[#This Row],[Realna data wydania]]+365","v":"1900-12-30"},null,{"$f":"IF(Harmonogram[[#This Row],[Realna data wydania]]=0,\"\",MONTH(Harmonogram[[#This Row],[Realna data wydania]]))","v":""},{"$f":"IF(AND(Harmonogram[[#This Row],[Realna data wydania]]>0,Harmonogram[[#This Row],[Realna data wydania]]<TODAY()),\"Wydany\",IF(Harmonogram[[#This Row],[Realna data skończenia]]>0,\"Zrobiony\",\"\"))","v":""}]
[null,null,null,null,null,{"$f":"Harmonogram[[#This Row],[Data przyjęcia ]]+30","v":"1900-01-30"},null,null,null,null,null,null,null,null,null,{"$f":"Harmonogram[[#This Row],[P: \nSzycie]]","v":0},null,null,null,null,null,null,null,null,null,{"$f":"SUM(Harmonogram[[#This Row],[P: Spawanie]:[P: Montaż]])","v":0},null,null,{"$f":"Harmonogram[[#This Row],[Realna data wydania]]+365","v":"1900-12-30"},null,{"$f":"IF(Harmonogram[[#This Row],[Realna data wydania]]=0,\"\",MONTH(Harmonogram[[#This Row],[Realna data wydania]]))","v":""},{"$f":"IF(AND(Harmonogram[[#This Row],[Realna data wydania]]>0,Harmonogram[[#This Row],[Realna data wydania]]<TODAY()),\"Wydany\",IF(Harmonogram[[#This Row],[Realna data skończenia]]>0,\"Zrobiony\",\"\"))","v":""}]
[null,null,null,null,null,{"$f":"Harmonogram[[#This Row],[Data przyjęcia ]]+30","v":"1900-01-30"},null,null,null,null,null,null,null,null,null,{"$f":"Harmonogram[[#This Row],[P: \nSzycie]]","v":0},null,null,null,null,null,null,null,null,null,{"$f":"SUM(Harmonogram[[#This Row],[P: Spawanie]:[P: Montaż]])","v":0},null,null,{"$f":"Harmonogram[[#This Row],[Realna data wydania]]+365","v":"1900-12-30"},null,{"$f":"IF(Harmonogram[[#This Row],[Realna data wydania]]=0,\"\",MONTH(Harmonogram[[#This Row],[Realna data wydania]]))","v":""},{"$f":"IF(AND(Harmonogram[[#This Row],[Realna data wydania]]>0,Harmonogram[[#This Row],[Realna data wydania]]<TODAY()),\"Wydany\",IF(Harmonogram[[#This Row],[Realna data skończenia]]>0,\"Zrobiony\",\"\"))","v":""}]
[null,null,null,null,null,{"$f":"Harmonogram[[#This Row],[Data przyjęcia ]]+30","v":"1900-01-30"},null,null,null,null,null,null,null,null,null,{"$f":"Harmonogram[[#This Row],[P: \nSzycie]]","v":0},null,null,null,null,null,null,null,null,null,{"$f":"SUM(Harmonogram[[#This Row],[P: Spawanie]:[P: Montaż]])","v":0},null,null,{"$f":"Harmonogram[[#This Row],[Realna data wydania]]+365","v":"1900-12-30"},null,{"$f":"IF(Harmonogram[[#This Row],[Realna data wydania]]=0,\"\",MONTH(Harmonogram[[#This Row],[Realna data wydania]]))","v":""},{"$f":"IF(AND(Harmonogram[[#This Row],[Realna data wydania]]>0,Harmonogram[[#This Row],[Realna data wydania]]<TODAY()),\"Wydany\",IF(Harmonogram[[#This Row],[Realna data skończenia]]>0,\"Zrobiony\",\"\"))","v":""}]
[null,null,null,null,null,{"$f":"Harmonogram[[#This Row],[Data przyjęcia ]]+30","v":"1900-01-30"},null,null,null,null,null,null,null,null,null,{"$f":"Harmonogram[[#This Row],[P: \nSzycie]]","v":0},null,null,null,null,null,null,null,null,null,{"$f":"SUM(Harmonogram[[#This Row],[P: Spawanie]:[P: Montaż]])","v":0},null,null,{"$f":"Harmonogram[[#This Row],[Realna data wydania]]+365","v":"1900-12-30"},null,{"$f":"IF(Harmonogram[[#This Row],[Realna data wydania]]=0,\"\",MONTH(Harmonogram[[#This Row],[Realna data wydania]]))","v":""},{"$f":"IF(AND(Harmonogram[[#This Row],[Realna data wydania]]>0,Harmonogram[[#This Row],[Realna data wydania]]<TODAY()),\"Wydany\",IF(Harmonogram[[#This Row],[Realna data skończenia]]>0,\"Zrobiony\",\"\"))","v":""}]
[null,null,null,null,null,{"$f":"Harmonogram[[#This Row],[Data przyjęcia ]]+30","v":"1900-01-30"},null,null,null,null,null,null,null,null,null,{"$f":"Harmonogram[[#This Row],[P: \nSzycie]]","v":0},null,null,null,null,null,null,null,null,null,{"$f":"SUM(Harmonogram[[#This Row],[P: Spawanie]:[P: Montaż]])","v":0},null,null,{"$f":"Harmonogram[[#This Row],[Realna data wydania]]+365","v":"1900-12-30"},null,{"$f":"IF(Harmonogram[[#This Row],[Realna data wydania]]=0,\"\",MONTH(Harmonogram[[#This Row],[Realna data wydania]]))","v":""},{"$f":"IF(AND(Harmonogram[[#This Row],[Realna data wydania]]>0,Harmonogram[[#This Row],[Realna data wydania]]<TODAY()),\"Wydany\",IF(Harmonogram[[#This Row],[Realna data skończenia]]>0,\"Zrobiony\",\"\"))","v":""}]
[null,null,null,null,null,{"$f":"Harmonogram[[#This Row],[Data przyjęcia ]]+30","v":"1900-01-30"},null,null,null,null,null,null,null,null,null,{"$f":"Harmonogram[[#This Row],[P: \nSzycie]]","v":0},null,null,null,null,null,null,null,null,null,{"$f":"SUM(Harmonogram[[#This Row],[P: Spawanie]:[P: Montaż]])","v":0},null,null,{"$f":"Harmonogram[[#This Row],[Realna data wydania]]+365","v":"1900-12-30"},null,{"$f":"IF(Harmonogram[[#This Row],[Realna data wydania]]=0,\"\",MONTH(Harmonogram[[#This Row],[Realna data wydania]]))","v":""},{"$f":"IF(AND(Harmonogram[[#This Row],[Realna data wydania]]>0,Harmonogram[[#This Row],[Realna data wydania]]<TODAY()),\"Wydany\",IF(Harmonogram[[#This Row],[Realna data skończenia]]>0,\"Zrobiony\",\"\"))","v":""}]
[null,null,null,null,null,{"$f":"Harmonogram[[#This Row],[Data przyjęcia ]]+30","v":"1900-01-30"},null,null,null,null,null,null,null,null,null,{"$f":"Harmonogram[[#This Row],[P: \nSzycie]]","v":0},null,null,null,null,null,null,null,null,null,{"$f":"SUM(Harmonogram[[#This Row],[P: Spawanie]:[P: Montaż]])","v":0},null,null,{"$f":"Harmonogram[[#This Row],[Realna data wydania]]+365","v":"1900-12-30"},null,{"$f":"IF(Harmonogram[[#This Row],[Realna data wydania]]=0,\"\",MONTH(Harmonogram[[#This Row],[Realna data wydania]]))","v":""},{"$f":"IF(AND(Harmonogram[[#This Row],[Realna data wydania]]>0,Harmonogram[[#This Row],[Realna data wydania]]<TODAY()),\"Wydany\",IF(Harmonogram[[#This Row],[Realna data skończenia]]>0,\"Zrobiony\",\"\"))","v":""}]
[null,null,null,null,null,{"$f":"Harmonogram[[#This Row],[Data przyjęcia ]]+30","v":"1900-01-30"},null,null,null,null,null,null,null,null,null,{"$f":"Harmonogram[[#This Row],[P: \nSzycie]]","v":0},null,null,null,null,null,null,null,null,null,{"$f":"SUM(Harmonogram[[#This Row],[P: Spawanie]:[P: Montaż]])","v":0},null,null,{"$f":"Harmonogram[[#This Row],[Realna data wydania]]+365","v":"1900-12-30"},null,{"$f":"IF(Harmonogram[[#This Row],[Realna data wydania]]=0,\"\",MONTH(Harmonogram[[#This Row],[Realna data wydania]]))","v":""},{"$f":"IF(AND(Harmonogram[[#This Row],[Realna data wydania]]>0,Harmonogram[[#This Row],[Realna data wydania]]<TODAY()),\"Wydany\",IF(Harmonogram[[#This Row],[Realna data skończenia]]>0,\"Zrobiony\",\"\"))","v":""}]
[null,null,null,null,null,{"$f":"Harmonogram[[#This Row],[Data przyjęcia ]]+30","v":"1900-01-30"},null,null,null,null,null,null,null,null,null,{"$f":"Harmonogram[[#This Row],[P: \nSzycie]]","v":0},null,null,null,null,null,null,null,null,null,{"$f":"SUM(Harmonogram[[#This Row],[P: Spawanie]:[P: Montaż]])","v":0},null,null,{"$f":"Harmonogram[[#This Row],[Realna data wydania]]+365","v":"1900-12-30"},null,{"$f":"IF(Harmonogram[[#This Row],[Realna data wydania]]=0,\"\",MONTH(Harmonogram[[#This Row],[Realna data wydania]]))","v":""},{"$f":"IF(AND(Harmonogram[[#This Row],[Realna data wydania]]>0,Harmonogram[[#This Row],[Realna data wydania]]<TODAY()),\"Wydany\",IF(Harmonogram[[#This Row],[Realna data skończenia]]>0,\"Zrobiony\",\"\"))","v":""}]
[null,null,null,null,null,{"$f":"Harmonogram[[#This Row],[Data przyjęcia ]]+30","v":"1900-01-30"},null,null,null,null,null,null,null,null,null,{"$f":"Harmonogram[[#This Row],[P: \nSzycie]]","v":0},null,null,null,null,null,null,null,null,null,{"$f":"SUM(Harmonogram[[#This Row],[P: Spawanie]:[P: Montaż]])","v":0},null,null,{"$f":"Harmonogram[[#This Row],[Realna data wydania]]+365","v":"1900-12-30"},null,{"$f":"IF(Harmonogram[[#This Row],[Realna data wydania]]=0,\"\",MONTH(Harmonogram[[#This Row],[Realna data wydania]]))","v":""},{"$f":"IF(AND(Harmonogram[[#This Row],[Realna data wydania]]>0,Harmonogram[[#This Row],[Realna data wydania]]<TODAY()),\"Wydany\",IF(Harmonogram[[#This Row],[Realna data skończenia]]>0,\"Zrobiony\",\"\"))","v":""}]
[null,null,null,null,null,{"$f":"Harmonogram[[#This Row],[Data przyjęcia ]]+30","v":"1900-01-30"},null,null,null,null,null,null,null,null,null,{"$f":"Harmonogram[[#This Row],[P: \nSzycie]]","v":0},null,null,null,null,null,null,null,null,null,{"$f":"SUM(Harmonogram[[#This Row],[P: Spawanie]:[P: Montaż]])","v":0},null,null,{"$f":"Harmonogram[[#This Row],[Realna data wydania]]+365","v":"1900-12-30"},null,{"$f":"IF(Harmonogram[[#This Row],[Realna data wydania]]=0,\"\",MONTH(Harmonogram[[#This Row],[Realna data wydania]]))","v":""},{"$f":"IF(AND(Harmonogram[[#This Row],[Realna data wydania]]>0,Harmonogram[[#This Row],[Realna data wydania]]<TODAY()),\"Wydany\",IF(Harmonogram[[#This Row],[Realna data skończenia]]>0,\"Zrobiony\",\"\"))","v":""}]
[null,null,null,null,null,{"$f":"Harmonogram[[#This Row],[Data przyjęcia ]]+30","v":"1900-01-30"},null,null,null,null,null,null,null,null,null,{"$f":"Harmonogram[[#This Row],[P: \nSzycie]]","v":0},null,null,null,null,null,null,null,null,null,{"$f":"SUM(Harmonogram[[#This Row],[P: Spawanie]:[P: Montaż]])","v":0},null,null,{"$f":"Harmonogram[[#This Row],[Realna data wydania]]+365","v":"1900-12-30"},null,{"$f":"IF(Harmonogram[[#This Row],[Realna data wydania]]=0,\"\",MONTH(Harmonogram[[#This Row],[Realna data wydania]]))","v":""},{"$f":"IF(AND(Harmonogram[[#This Row],[Realna data wydania]]>0,Harmonogram[[#This Row],[Realna data wydania]]<TODAY()),\"Wydany\",IF(Harmonogram[[#This Row],[Realna data skończenia]]>0,\"Zrobiony\",\"\"))","v":""}]
[null,null,null,null,null,{"$f":"Harmonogram[[#This Row],[Data przyjęcia ]]+30","v":"1900-01-30"},null,null,null,null,null,null,null,null,null,{"$f":"Harmonogram[[#This Row],[P: \nSzycie]]","v":0},null,null,null,null,null,null,null,null,null,{"$f":"SUM(Harmonogram[[#This Row],[P: Spawanie]:[P: Montaż]])","v":0},null,null,{"$f":"Harmonogram[[#This Row],[Realna data wydania]]+365","v":"1900-12-30"},null,{"$f":"IF(Harmonogram[[#This Row],[Realna data wydania]]=0,\"\",MONTH(Harmonogram[[#This Row],[Realna data wydania]]))","v":""},{"$f":"IF(AND(Harmonogram[[#This Row],[Realna data wydania]]>0,Harmonogram[[#This Row],[Realna data wydania]]<TODAY()),\"Wydany\",IF(Harmonogram[[#This Row],[Realna data skończenia]]>0,\"Zrobiony\",\"\"))","v":""}]
[null,null,null,null,null,{"$f":"Harmonogram[[#This Row],[Data przyjęcia ]]+30","v":"1900-01-30"},null,null,null,null,null,null,null,null,null,{"$f":"Harmonogram[[#This Row],[P: \nSzycie]]","v":0},null,null,null,null,null,null,null,null,null,{"$f":"SUM(Harmonogram[[#This Row],[P: Spawanie]:[P: Montaż]])","v":0},null,null,{"$f":"Harmonogram[[#This Row],[Realna data wydania]]+365","v":"1900-12-30"},null,{"$f":"IF(Harmonogram[[#This Row],[Realna data wydania]]=0,\"\",MONTH(Harmonogram[[#This Row],[Realna data wydania]]))","v":""},{"$f":"IF(AND(Harmonogram[[#This Row],[Realna data wydania]]>0,Harmonogram[[#This Row],[Realna data wydania]]<TODAY()),\"Wydany\",IF(Harmonogram[[#This Row],[Realna data skończenia]]>0,\"Zrobiony\",\"\"))","v":""}]
[null,null,null,null,null,{"$f":"Harmonogram[[#This Row],[Data przyjęcia ]]+30","v":"1900-01-30"},null,null,null,null,null,null,null,null,null,{"$f":"Harmonogram[[#This Row],[P: \nSzycie]]","v":0},null,null,null,null,null,null,null,null,null,{"$f":"SUM(Harmonogram[[#This Row],[P: Spawanie]:[P: Montaż]])","v":0},null,null,{"$f":"Harmonogram[[#This Row],[Realna data wydania]]+365","v":"1900-12-30"},null,{"$f":"IF(Harmonogram[[#This Row],[Realna data wydania]]=0,\"\",MONTH(Harmonogram[[#This Row],[Realna data wydania]]))","v":""},{"$f":"IF(AND(Harmonogram[[#This Row],[Realna data wydania]]>0,Harmonogram[[#This Row],[Realna data wydania]]<TODAY()),\"Wydany\",IF(Harmonogram[[#This Row],[Realna data skończenia]]>0,\"Zrobiony\",\"\"))","v":""}]
[null,null,null,null,null,{"$f":"Harmonogram[[#This Row],[Data przyjęcia ]]+30","v":"1900-01-30"},null,null,null,null,null,null,null,null,null,{"$f":"Harmonogram[[#This Row],[P: \nSzycie]]","v":0},null,null,null,null,null,null,null,null,null,{"$f":"SUM(Harmonogram[[#This Row],[P: Spawanie]:[P: Montaż]])","v":0},null,null,{"$f":"Harmonogram[[#This Row],[Realna data wydania]]+365","v":"1900-12-30"},null,{"$f":"IF(Harmonogram[[#This Row],[Realna data wydania]]=0,\"\",MONTH(Harmonogram[[#This Row],[Realna data wydania]]))","v":""},{"$f":"IF(AND(Harmonogram[[#This Row],[Realna data wydania]]>0,Harmonogram[[#This Row],[Realna data wydania]]<TODAY()),\"Wydany\",IF(Harmonogram[[#This Row],[Realna data skończenia]]>0,\"Zrobiony\",\"\"))","v":""}]
[null,null,null,null,null,{"$f":"Harmonogram[[#This Row],[Data przyjęcia ]]+30","v":"1900-01-30"},null,null,null,null,null,null,null,null,null,{"$f":"Harmonogram[[#This Row],[P: \nSzycie]]","v":0},null,null,null,null,null,null,null,null,null,{"$f":"SUM(Harmonogram[[#This Row],[P: Spawanie]:[P: Montaż]])","v":0},null,null,{"$f":"Harmonogram[[#This Row],[Realna data wydania]]+365","v":"1900-12-30"},null,{"$f":"IF(Harmonogram[[#This Row],[Realna data wydania]]=0,\"\",MONTH(Harmonogram[[#This Row],[Realna data wydania]]))","v":""},{"$f":"IF(AND(Harmonogram[[#This Row],[Realna data wydania]]>0,Harmonogram[[#This Row],[Realna data wydania]]<TODAY()),\"Wydany\",IF(Harmonogram[[#This Row],[Realna data skończenia]]>0,\"Zrobiony\",\"\"))","v":""}]
[null,null,null,null,null,{"$f":"Harmonogram[[#This Row],[Data przyjęcia ]]+30","v":"1900-01-30"},null,null,null,null,null,null,null,null,null,{"$f":"Harmonogram[[#This Row],[P: \nSzycie]]","v":0},null,null,null,null,null,null,null,null,null,{"$f":"SUM(Harmonogram[[#This Row],[P: Spawanie]:[P: Montaż]])","v":0},null,null,{"$f":"Harmonogram[[#This Row],[Realna data wydania]]+365","v":"1900-12-30"},null,{"$f":"IF(Harmonogram[[#This Row],[Realna data wydania]]=0,\"\",MONTH(Harmonogram[[#This Row],[Realna data wydania]]))","v":""},{"$f":"IF(AND(Harmonogram[[#This Row],[Realna data wydania]]>0,Harmonogram[[#This Row],[Realna data wydania]]<TODAY()),\"Wydany\",IF(Harmonogram[[#This Row],[Realna data skończenia]]>0,\"Zrobiony\",\"\"))","v":""}]
[null,null,null,null,null,{"$f":"Harmonogram[[#This Row],[Data przyjęcia ]]+30","v":"1900-01-30"},null,null,null,null,null,null,null,null,null,{"$f":"Harmonogram[[#This Row],[P: \nSzycie]]","v":0},null,null,null,null,null,null,null,null,null,{"$f":"SUM(Harmonogram[[#This Row],[P: Spawanie]:[P: Montaż]])","v":0},null,null,{"$f":"Harmonogram[[#This Row],[Realna data wydania]]+365","v":"1900-12-30"},null,{"$f":"IF(Harmonogram[[#This Row],[Realna data wydania]]=0,\"\",MONTH(Harmonogram[[#This Row],[Realna data wydania]]))","v":""},{"$f":"IF(AND(Harmonogram[[#This Row],[Realna data wydania]]>0,Harmonogram[[#This Row],[Realna data wydania]]<TODAY()),\"Wydany\",IF(Harmonogram[[#This Row],[Realna data skończenia]]>0,\"Zrobiony\",\"\"))","v":""}]
[null,null,null,null,null,{"$f":"Harmonogram[[#This Row],[Data przyjęcia ]]+30","v":"1900-01-30"},null,null,null,null,null,null,null,null,null,{"$f":"Harmonogram[[#This Row],[P: \nSzycie]]","v":0},null,null,null,null,null,null,null,null,null,{"$f":"SUM(Harmonogram[[#This Row],[P: Spawanie]:[P: Montaż]])","v":0},null,null,{"$f":"Harmonogram[[#This Row],[Realna data wydania]]+365","v":"1900-12-30"},null,{"$f":"IF(Harmonogram[[#This Row],[Realna data wydania]]=0,\"\",MONTH(Harmonogram[[#This Row],[Realna data wydania]]))","v":""},{"$f":"IF(AND(Harmonogram[[#This Row],[Realna data wydania]]>0,Harmonogram[[#This Row],[Realna data wydania]]<TODAY()),\"Wydany\",IF(Harmonogram[[#This Row],[Realna data skończenia]]>0,\"Zrobiony\",\"\"))","v":""}]
[null,null,null,null,null,{"$f":"Harmonogram[[#This Row],[Data przyjęcia ]]+30","v":"1900-01-30"},null,null,null,null,null,null,null,null,null,{"$f":"Harmonogram[[#This Row],[P: \nSzycie]]","v":0},null,null,null,null,null,null,null,null,null,{"$f":"SUM(Harmonogram[[#This Row],[P: Spawanie]:[P: Montaż]])","v":0},null,null,{"$f":"Harmonogram[[#This Row],[Realna data wydania]]+365","v":"1900-12-30"},null,{"$f":"IF(Harmonogram[[#This Row],[Realna data wydania]]=0,\"\",MONTH(Harmonogram[[#This Row],[Realna data wydania]]))","v":""},{"$f":"IF(AND(Harmonogram[[#This Row],[Realna data wydania]]>0,Harmonogram[[#This Row],[Realna data wydania]]<TODAY()),\"Wydany\",IF(Harmonogram[[#This Row],[Realna data skończenia]]>0,\"Zrobiony\",\"\"))","v":""}]
[null,null,null,null,null,{"$f":"Harmonogram[[#This Row],[Data przyjęcia ]]+30","v":"1900-01-30"},null,null,null,null,null,null,null,null,null,{"$f":"Harmonogram[[#This Row],[P: \nSzycie]]","v":0},null,null,null,null,null,null,null,null,null,{"$f":"SUM(Harmonogram[[#This Row],[P: Spawanie]:[P: Montaż]])","v":0},null,null,{"$f":"Harmonogram[[#This Row],[Realna data wydania]]+365","v":"1900-12-30"},null,{"$f":"IF(Harmonogram[[#This Row],[Realna data wydania]]=0,\"\",MONTH(Harmonogram[[#This Row],[Realna data wydania]]))","v":""},{"$f":"IF(AND(Harmonogram[[#This Row],[Realna data wydania]]>0,Harmonogram[[#This Row],[Realna data wydania]]<TODAY()),\"Wydany\",IF(Harmonogram[[#This Row],[Realna data skończenia]]>0,\"Zrobiony\",\"\"))","v":""}]
[null,null,null,null,null,{"$f":"Harmonogram[[#This Row],[Data przyjęcia ]]+30","v":"1900-01-30"},null,null,null,null,null,null,null,null,null,{"$f":"Harmonogram[[#This Row],[P: \nSzycie]]","v":0},null,null,null,null,null,null,null,null,null,{"$f":"SUM(Harmonogram[[#This Row],[P: Spawanie]:[P: Montaż]])","v":0},null,null,{"$f":"Harmonogram[[#This Row],[Realna data wydania]]+365","v":"1900-12-30"},null,{"$f":"IF(Harmonogram[[#This Row],[Realna data wydania]]=0,\"\",MONTH(Harmonogram[[#This Row],[Realna data wydania]]))","v":""},{"$f":"IF(AND(Harmonogram[[#This Row],[Realna data wydania]]>0,Harmonogram[[#This Row],[Realna data wydania]]<TODAY()),\"Wydany\",IF(Harmonogram[[#This Row],[Realna data skończenia]]>0,\"Zrobiony\",\"\"))","v":""}]
[null,null,null,null,null,{"$f":"Harmonogram[[#This Row],[Data przyjęcia ]]+30","v":"1900-01-30"},null,null,null,null,null,null,null,null,null,{"$f":"Harmonogram[[#This Row],[P: \nSzycie]]","v":0},null,null,null,null,null,null,null,null,null,{"$f":"SUM(Harmonogram[[#This Row],[P: Spawanie]:[P: Montaż]])","v":0},null,null,{"$f":"Harmonogram[[#This Row],[Realna data wydania]]+365","v":"1900-12-30"},null,{"$f":"IF(Harmonogram[[#This Row],[Realna data wydania]]=0,\"\",MONTH(Harmonogram[[#This Row],[Realna data wydania]]))","v":""},{"$f":"IF(AND(Harmonogram[[#This Row],[Realna data wydania]]>0,Harmonogram[[#This Row],[Realna data wydania]]<TODAY()),\"Wydany\",IF(Harmonogram[[#This Row],[Realna data skończenia]]>0,\"Zrobiony\",\"\"))","v":""}]
[null,null,null,null,null,{"$f":"Harmonogram[[#This Row],[Data przyjęcia ]]+30","v":"1900-01-30"},null,null,null,null,null,null,null,null,null,{"$f":"Harmonogram[[#This Row],[P: \nSzycie]]","v":0},null,null,null,null,null,null,null,null,null,{"$f":"SUM(Harmonogram[[#This Row],[P: Spawanie]:[P: Montaż]])","v":0},null,null,{"$f":"Harmonogram[[#This Row],[Realna data wydania]]+365","v":"1900-12-30"},null,{"$f":"IF(Harmonogram[[#This Row],[Realna data wydania]]=0,\"\",MONTH(Harmonogram[[#This Row],[Realna data wydania]]))","v":""},{"$f":"IF(AND(Harmonogram[[#This Row],[Realna data wydania]]>0,Harmonogram[[#This Row],[Realna data wydania]]<TODAY()),\"Wydany\",IF(Harmonogram[[#This Row],[Realna data skończenia]]>0,\"Zrobiony\",\"\"))","v":""}]
[null,null,null,null,null,{"$f":"Harmonogram[[#This Row],[Data przyjęcia ]]+30","v":"1900-01-30"},null,null,null,null,null,null,null,null,null,{"$f":"Harmonogram[[#This Row],[P: \nSzycie]]","v":0},null,null,null,null,null,null,null,null,null,{"$f":"SUM(Harmonogram[[#This Row],[P: Spawanie]:[P: Montaż]])","v":0},null,null,{"$f":"Harmonogram[[#This Row],[Realna data wydania]]+365","v":"1900-12-30"},null,{"$f":"IF(Harmonogram[[#This Row],[Realna data wydania]]=0,\"\",MONTH(Harmonogram[[#This Row],[Realna data wydania]]))","v":""},{"$f":"IF(AND(Harmonogram[[#This Row],[Realna data wydania]]>0,Harmonogram[[#This Row],[Realna data wydania]]<TODAY()),\"Wydany\",IF(Harmonogram[[#This Row],[Realna data skończenia]]>0,\"Zrobiony\",\"\"))","v":""}]
[null,null,null,null,null,{"$f":"Harmonogram[[#This Row],[Data przyjęcia ]]+30","v":"1900-01-30"},null,null,null,null,null,null,null,null,null,{"$f":"Harmonogram[[#This Row],[P: \nSzycie]]","v":0},null,null,null,null,null,null,null,null,null,{"$f":"SUM(Harmonogram[[#This Row],[P: Spawanie]:[P: Montaż]])","v":0},null,null,{"$f":"Harmonogram[[#This Row],[Realna data wydania]]+365","v":"1900-12-30"},null,{"$f":"IF(Harmonogram[[#This Row],[Realna data wydania]]=0,\"\",MONTH(Harmonogram[[#This Row],[Realna data wydania]]))","v":""},{"$f":"IF(AND(Harmonogram[[#This Row],[Realna data wydania]]>0,Harmonogram[[#This Row],[Realna data wydania]]<TODAY()),\"Wydany\",IF(Harmonogram[[#This Row],[Realna data skończenia]]>0,\"Zrobiony\",\"\"))","v":""}]
[null,null,null,null,null,{"$f":"Harmonogram[[#This Row],[Data przyjęcia ]]+30","v":"1900-01-30"},null,null,null,null,null,null,null,null,null,{"$f":"Harmonogram[[#This Row],[P: \nSzycie]]","v":0},null,null,null,null,null,null,null,null,null,{"$f":"SUM(Harmonogram[[#This Row],[P: Spawanie]:[P: Montaż]])","v":0},null,null,{"$f":"Harmonogram[[#This Row],[Realna data wydania]]+365","v":"1900-12-30"},null,{"$f":"IF(Harmonogram[[#This Row],[Realna data wydania]]=0,\"\",MONTH(Harmonogram[[#This Row],[Realna data wydania]]))","v":""},{"$f":"IF(AND(Harmonogram[[#This Row],[Realna data wydania]]>0,Harmonogram[[#This Row],[Realna data wydania]]<TODAY()),\"Wydany\",IF(Harmonogram[[#This Row],[Realna data skończenia]]>0,\"Zrobiony\",\"\"))","v":""}]
[null,null,null,null,null,{"$f":"Harmonogram[[#This Row],[Data przyjęcia ]]+30","v":"1900-01-30"},null,null,null,null,null,null,null,null,null,{"$f":"Harmonogram[[#This Row],[P: \nSzycie]]","v":0},null,null,null,null,null,null,null,null,null,{"$f":"SUM(Harmonogram[[#This Row],[P: Spawanie]:[P: Montaż]])","v":0},null,null,{"$f":"Harmonogram[[#This Row],[Realna data wydania]]+365","v":"1900-12-30"},null,{"$f":"IF(Harmonogram[[#This Row],[Realna data wydania]]=0,\"\",MONTH(Harmonogram[[#This Row],[Realna data wydania]]))","v":""},{"$f":"IF(AND(Harmonogram[[#This Row],[Realna data wydania]]>0,Harmonogram[[#This Row],[Realna data wydania]]<TODAY()),\"Wydany\",IF(Harmonogram[[#This Row],[Realna data skończenia]]>0,\"Zrobiony\",\"\"))","v":""}]
[null,null,null,null,null,{"$f":"Harmonogram[[#This Row],[Data przyjęcia ]]+30","v":"1900-01-30"},null,null,null,null,null,null,null,null,null,{"$f":"Harmonogram[[#This Row],[P: \nSzycie]]","v":0},null,null,null,null,null,null,null,null,null,{"$f":"SUM(Harmonogram[[#This Row],[P: Spawanie]:[P: Montaż]])","v":0},null,null,{"$f":"Harmonogram[[#This Row],[Realna data wydania]]+365","v":"1900-12-30"},null,{"$f":"IF(Harmonogram[[#This Row],[Realna data wydania]]=0,\"\",MONTH(Harmonogram[[#This Row],[Realna data wydania]]))","v":""},{"$f":"IF(AND(Harmonogram[[#This Row],[Realna data wydania]]>0,Harmonogram[[#This Row],[Realna data wydania]]<TODAY()),\"Wydany\",IF(Harmonogram[[#This Row],[Realna data skończenia]]>0,\"Zrobiony\",\"\"))","v":""}]
[null,null,null,null,null,{"$f":"Harmonogram[[#This Row],[Data przyjęcia ]]+30","v":"1900-01-30"},null,null,null,null,null,null,null,null,null,{"$f":"Harmonogram[[#This Row],[P: \nSzycie]]","v":0},null,null,null,null,null,null,null,null,null,{"$f":"SUM(Harmonogram[[#This Row],[P: Spawanie]:[P: Montaż]])","v":0},null,null,{"$f":"Harmonogram[[#This Row],[Realna data wydania]]+365","v":"1900-12-30"},null,{"$f":"IF(Harmonogram[[#This Row],[Realna data wydania]]=0,\"\",MONTH(Harmonogram[[#This Row],[Realna data wydania]]))","v":""},{"$f":"IF(AND(Harmonogram[[#This Row],[Realna data wydania]]>0,Harmonogram[[#This Row],[Realna data wydania]]<TODAY()),\"Wydany\",IF(Harmonogram[[#This Row],[Realna data skończenia]]>0,\"Zrobiony\",\"\"))","v":""}]
[null,null,null,null,null,{"$f":"Harmonogram[[#This Row],[Data przyjęcia ]]+30","v":"1900-01-30"},null,null,null,null,null,null,null,null,null,{"$f":"Harmonogram[[#This Row],[P: \nSzycie]]","v":0},null,null,null,null,null,null,null,null,null,{"$f":"SUM(Harmonogram[[#This Row],[P: Spawanie]:[P: Montaż]])","v":0},null,null,{"$f":"Harmonogram[[#This Row],[Realna data wydania]]+365","v":"1900-12-30"},null,{"$f":"IF(Harmonogram[[#This Row],[Realna data wydania]]=0,\"\",MONTH(Harmonogram[[#This Row],[Realna data wydania]]))","v":""},{"$f":"IF(AND(Harmonogram[[#This Row],[Realna data wydania]]>0,Harmonogram[[#This Row],[Realna data wydania]]<TODAY()),\"Wydany\",IF(Harmonogram[[#This Row],[Realna data skończenia]]>0,\"Zrobiony\",\"\"))","v":""}]
[null,null,null,null,null,{"$f":"Harmonogram[[#This Row],[Data przyjęcia ]]+30","v":"1900-01-30"},null,null,null,null,null,null,null,null,null,{"$f":"Harmonogram[[#This Row],[P: \nSzycie]]","v":0},null,null,null,null,null,null,null,null,null,{"$f":"SUM(Harmonogram[[#This Row],[P: Spawanie]:[P: Montaż]])","v":0},null,null,{"$f":"Harmonogram[[#This Row],[Realna data wydania]]+365","v":"1900-12-30"},null,{"$f":"IF(Harmonogram[[#This Row],[Realna data wydania]]=0,\"\",MONTH(Harmonogram[[#This Row],[Realna data wydania]]))","v":""},{"$f":"IF(AND(Harmonogram[[#This Row],[Realna data wydania]]>0,Harmonogram[[#This Row],[Realna data wydania]]<TODAY()),\"Wydany\",IF(Harmonogram[[#This Row],[Realna data skończenia]]>0,\"Zrobiony\",\"\"))","v":""}]
[null,null,null,null,null,{"$f":"Harmonogram[[#This Row],[Data przyjęcia ]]+30","v":"1900-01-30"},null,null,null,null,null,null,null,null,null,{"$f":"Harmonogram[[#This Row],[P: \nSzycie]]","v":0},null,null,null,null,null,null,null,null,null,{"$f":"SUM(Harmonogram[[#This Row],[P: Spawanie]:[P: Montaż]])","v":0},null,null,{"$f":"Harmonogram[[#This Row],[Realna data wydania]]+365","v":"1900-12-30"},null,{"$f":"IF(Harmonogram[[#This Row],[Realna data wydania]]=0,\"\",MONTH(Harmonogram[[#This Row],[Realna data wydania]]))","v":""},{"$f":"IF(AND(Harmonogram[[#This Row],[Realna data wydania]]>0,Harmonogram[[#This Row],[Realna data wydania]]<TODAY()),\"Wydany\",IF(Harmonogram[[#This Row],[Realna data skończenia]]>0,\"Zrobiony\",\"\"))","v":""}]
[null,null,null,null,null,{"$f":"Harmonogram[[#This Row],[Data przyjęcia ]]+30","v":"1900-01-30"},null,null,null,null,null,null,null,null,null,{"$f":"Harmonogram[[#This Row],[P: \nSzycie]]","v":0},null,null,null,null,null,null,null,null,null,{"$f":"SUM(Harmonogram[[#This Row],[P: Spawanie]:[P: Montaż]])","v":0},null,null,{"$f":"Harmonogram[[#This Row],[Realna data wydania]]+365","v":"1900-12-30"},null,{"$f":"IF(Harmonogram[[#This Row],[Realna data wydania]]=0,\"\",MONTH(Harmonogram[[#This Row],[Realna data wydania]]))","v":""},{"$f":"IF(AND(Harmonogram[[#This Row],[Realna data wydania]]>0,Harmonogram[[#This Row],[Realna data wydania]]<TODAY()),\"Wydany\",IF(Harmonogram[[#This Row],[Realna data skończenia]]>0,\"Zrobiony\",\"\"))","v":""}]
[null,null,null,null,null,{"$f":"Harmonogram[[#This Row],[Data przyjęcia ]]+30","v":"1900-01-30"},null,null,null,null,null,null,null,null,null,{"$f":"Harmonogram[[#This Row],[P: \nSzycie]]","v":0},null,null,null,null,null,null,null,null,null,{"$f":"SUM(Harmonogram[[#This Row],[P: Spawanie]:[P: Montaż]])","v":0},null,null,{"$f":"Harmonogram[[#This Row],[Realna data wydania]]+365","v":"1900-12-30"},null,{"$f":"IF(Harmonogram[[#This Row],[Realna data wydania]]=0,\"\",MONTH(Harmonogram[[#This Row],[Realna data wydania]]))","v":""},{"$f":"IF(AND(Harmonogram[[#This Row],[Realna data wydania]]>0,Harmonogram[[#This Row],[Realna data wydania]]<TODAY()),\"Wydany\",IF(Harmonogram[[#This Row],[Realna data skończenia]]>0,\"Zrobiony\",\"\"))","v":""}]
[null,null,null,null,null,{"$f":"Harmonogram[[#This Row],[Data przyjęcia ]]+30","v":"1900-01-30"},null,null,null,null,null,null,null,null,null,{"$f":"Harmonogram[[#This Row],[P: \nSzycie]]","v":0},null,null,null,null,null,null,null,null,null,{"$f":"SUM(Harmonogram[[#This Row],[P: Spawanie]:[P: Montaż]])","v":0},null,null,{"$f":"Harmonogram[[#This Row],[Realna data wydania]]+365","v":"1900-12-30"},null,{"$f":"IF(Harmonogram[[#This Row],[Realna data wydania]]=0,\"\",MONTH(Harmonogram[[#This Row],[Realna data wydania]]))","v":""},{"$f":"IF(AND(Harmonogram[[#This Row],[Realna data wydania]]>0,Harmonogram[[#This Row],[Realna data wydania]]<TODAY()),\"Wydany\",IF(Harmonogram[[#This Row],[Realna data skończenia]]>0,\"Zrobiony\",\"\"))","v":""}]
[null,null,null,null,null,{"$f":"Harmonogram[[#This Row],[Data przyjęcia ]]+30","v":"1900-01-30"},null,null,null,null,null,null,null,null,null,{"$f":"Harmonogram[[#This Row],[P: \nSzycie]]","v":0},null,null,null,null,null,null,null,null,null,{"$f":"SUM(Harmonogram[[#This Row],[P: Spawanie]:[P: Montaż]])","v":0},null,null,{"$f":"Harmonogram[[#This Row],[Realna data wydania]]+365","v":"1900-12-30"},null,{"$f":"IF(Harmonogram[[#This Row],[Realna data wydania]]=0,\"\",MONTH(Harmonogram[[#This Row],[Realna data wydania]]))","v":""},{"$f":"IF(AND(Harmonogram[[#This Row],[Realna data wydania]]>0,Harmonogram[[#This Row],[Realna data wydania]]<TODAY()),\"Wydany\",IF(Harmonogram[[#This Row],[Realna data skończenia]]>0,\"Zrobiony\",\"\"))","v":""}]
[null,null,null,null,null,{"$f":"Harmonogram[[#This Row],[Data przyjęcia ]]+30","v":"1900-01-30"},null,null,null,null,null,null,null,null,null,{"$f":"Harmonogram[[#This Row],[P: \nSzycie]]","v":0},null,null,null,null,null,null,null,null,null,{"$f":"SUM(Harmonogram[[#This Row],[P: Spawanie]:[P: Montaż]])","v":0},null,null,{"$f":"Harmonogram[[#This Row],[Realna data wydania]]+365","v":"1900-12-30"},null,{"$f":"IF(Harmonogram[[#This Row],[Realna data wydania]]=0,\"\",MONTH(Harmonogram[[#This Row],[Realna data wydania]]))","v":""},{"$f":"IF(AND(Harmonogram[[#This Row],[Realna data wydania]]>0,Harmonogram[[#This Row],[Realna data wydania]]<TODAY()),\"Wydany\",IF(Harmonogram[[#This Row],[Realna data skończenia]]>0,\"Zrobiony\",\"\"))","v":""}]
[null,null,null,null,null,{"$f":"Harmonogram[[#This Row],[Data przyjęcia ]]+30","v":"1900-01-30"},null,null,null,null,null,null,null,null,null,{"$f":"Harmonogram[[#This Row],[P: \nSzycie]]","v":0},null,null,null,null,null,null,null,null,null,{"$f":"SUM(Harmonogram[[#This Row],[P: Spawanie]:[P: Montaż]])","v":0},null,null,{"$f":"Harmonogram[[#This Row],[Realna data wydania]]+365","v":"1900-12-30"},null,{"$f":"IF(Harmonogram[[#This Row],[Realna data wydania]]=0,\"\",MONTH(Harmonogram[[#This Row],[Realna data wydania]]))","v":""},{"$f":"IF(AND(Harmonogram[[#This Row],[Realna data wydania]]>0,Harmonogram[[#This Row],[Realna data wydania]]<TODAY()),\"Wydany\",IF(Harmonogram[[#This Row],[Realna data skończenia]]>0,\"Zrobiony\",\"\"))","v":""}]
[null,null,null,null,null,{"$f":"Harmonogram[[#This Row],[Data przyjęcia ]]+30","v":"1900-01-30"},null,null,null,null,null,null,null,null,null,{"$f":"Harmonogram[[#This Row],[P: \nSzycie]]","v":0},null,null,null,null,null,null,null,null,null,{"$f":"SUM(Harmonogram[[#This Row],[P: Spawanie]:[P: Montaż]])","v":0},null,null,{"$f":"Harmonogram[[#This Row],[Realna data wydania]]+365","v":"1900-12-30"},null,{"$f":"IF(Harmonogram[[#This Row],[Realna data wydania]]=0,\"\",MONTH(Harmonogram[[#This Row],[Realna data wydania]]))","v":""},{"$f":"IF(AND(Harmonogram[[#This Row],[Realna data wydania]]>0,Harmonogram[[#This Row],[Realna data wydania]]<TODAY()),\"Wydany\",IF(Harmonogram[[#This Row],[Realna data skończenia]]>0,\"Zrobiony\",\"\"))","v":""}]
[null,null,null,null,null,{"$f":"Harmonogram[[#This Row],[Data przyjęcia ]]+30","v":"1900-01-30"},null,null,null,null,null,null,null,null,null,{"$f":"Harmonogram[[#This Row],[P: \nSzycie]]","v":0},null,null,null,null,null,null,null,null,null,{"$f":"SUM(Harmonogram[[#This Row],[P: Spawanie]:[P: Montaż]])","v":0},null,null,{"$f":"Harmonogram[[#This Row],[Realna data wydania]]+365","v":"1900-12-30"},null,{"$f":"IF(Harmonogram[[#This Row],[Realna data wydania]]=0,\"\",MONTH(Harmonogram[[#This Row],[Realna data wydania]]))","v":""},{"$f":"IF(AND(Harmonogram[[#This Row],[Realna data wydania]]>0,Harmonogram[[#This Row],[Realna data wydania]]<TODAY()),\"Wydany\",IF(Harmonogram[[#This Row],[Realna data skończenia]]>0,\"Zrobiony\",\"\"))","v":""}]
[null,null,null,null,null,{"$f":"Harmonogram[[#This Row],[Data przyjęcia ]]+30","v":"1900-01-30"},null,null,null,null,null,null,null,null,null,{"$f":"Harmonogram[[#This Row],[P: \nSzycie]]","v":0},null,null,null,null,null,null,null,null,null,{"$f":"SUM(Harmonogram[[#This Row],[P: Spawanie]:[P: Montaż]])","v":0},null,null,{"$f":"Harmonogram[[#This Row],[Realna data wydania]]+365","v":"1900-12-30"},null,{"$f":"IF(Harmonogram[[#This Row],[Realna data wydania]]=0,\"\",MONTH(Harmonogram[[#This Row],[Realna data wydania]]))","v":""},{"$f":"IF(AND(Harmonogram[[#This Row],[Realna data wydania]]>0,Harmonogram[[#This Row],[Realna data wydania]]<TODAY()),\"Wydany\",IF(Harmonogram[[#This Row],[Realna data skończenia]]>0,\"Zrobiony\",\"\"))","v":""}]
[null,null,null,null,null,{"$f":"Harmonogram[[#This Row],[Data przyjęcia ]]+30","v":"1900-01-30"},null,null,null,null,null,null,null,null,null,{"$f":"Harmonogram[[#This Row],[P: \nSzycie]]","v":0},null,null,null,null,null,null,null,null,null,{"$f":"SUM(Harmonogram[[#This Row],[P: Spawanie]:[P: Montaż]])","v":0},null,null,{"$f":"Harmonogram[[#This Row],[Realna data wydania]]+365","v":"1900-12-30"},null,{"$f":"IF(Harmonogram[[#This Row],[Realna data wydania]]=0,\"\",MONTH(Harmonogram[[#This Row],[Realna data wydania]]))","v":""},{"$f":"IF(AND(Harmonogram[[#This Row],[Realna data wydania]]>0,Harmonogram[[#This Row],[Realna data wydania]]<TODAY()),\"Wydany\",IF(Harmonogram[[#This Row],[Realna data skończenia]]>0,\"Zrobiony\",\"\"))","v":""}]
[null,null,null,null,null,{"$f":"Harmonogram[[#This Row],[Data przyjęcia ]]+30","v":"1900-01-30"},null,null,null,null,null,null,null,null,null,{"$f":"Harmonogram[[#This Row],[P: \nSzycie]]","v":0},null,null,null,null,null,null,null,null,null,{"$f":"SUM(Harmonogram[[#This Row],[P: Spawanie]:[P: Montaż]])","v":0},null,null,{"$f":"Harmonogram[[#This Row],[Realna data wydania]]+365","v":"1900-12-30"},null,{"$f":"IF(Harmonogram[[#This Row],[Realna data wydania]]=0,\"\",MONTH(Harmonogram[[#This Row],[Realna data wydania]]))","v":""},{"$f":"IF(AND(Harmonogram[[#This Row],[Realna data wydania]]>0,Harmonogram[[#This Row],[Realna data wydania]]<TODAY()),\"Wydany\",IF(Harmonogram[[#This Row],[Realna data skończenia]]>0,\"Zrobiony\",\"\"))","v":""}]
[null,null,null,null,null,{"$f":"Harmonogram[[#This Row],[Data przyjęcia ]]+30","v":"1900-01-30"},null,null,null,null,null,null,null,null,null,{"$f":"Harmonogram[[#This Row],[P: \nSzycie]]","v":0},null,null,null,null,null,null,null,null,null,{"$f":"SUM(Harmonogram[[#This Row],[P: Spawanie]:[P: Montaż]])","v":0},null,null,{"$f":"Harmonogram[[#This Row],[Realna data wydania]]+365","v":"1900-12-30"},null,{"$f":"IF(Harmonogram[[#This Row],[Realna data wydania]]=0,\"\",MONTH(Harmonogram[[#This Row],[Realna data wydania]]))","v":""},{"$f":"IF(AND(Harmonogram[[#This Row],[Realna data wydania]]>0,Harmonogram[[#This Row],[Realna data wydania]]<TODAY()),\"Wydany\",IF(Harmonogram[[#This Row],[Realna data skończenia]]>0,\"Zrobiony\",\"\"))","v":""}]
[null,null,null,null,null,{"$f":"Harmonogram[[#This Row],[Data przyjęcia ]]+30","v":"1900-01-30"},null,null,null,null,null,null,null,null,null,{"$f":"Harmonogram[[#This Row],[P: \nSzycie]]","v":0},null,null,null,null,null,null,null,null,null,{"$f":"SUM(Harmonogram[[#This Row],[P: Spawanie]:[P: Montaż]])","v":0},null,null,{"$f":"Harmonogram[[#This Row],[Realna data wydania]]+365","v":"1900-12-30"},null,{"$f":"IF(Harmonogram[[#This Row],[Realna data wydania]]=0,\"\",MONTH(Harmonogram[[#This Row],[Realna data wydania]]))","v":""},{"$f":"IF(AND(Harmonogram[[#This Row],[Realna data wydania]]>0,Harmonogram[[#This Row],[Realna data wydania]]<TODAY()),\"Wydany\",IF(Harmonogram[[#This Row],[Realna data skończenia]]>0,\"Zrobiony\",\"\"))","v":""}]
[null,null,null,null,null,{"$f":"Harmonogram[[#This Row],[Data przyjęcia ]]+30","v":"1900-01-30"},null,null,null,null,null,null,null,null,null,{"$f":"Harmonogram[[#This Row],[P: \nSzycie]]","v":0},null,null,null,null,null,null,null,null,null,{"$f":"SUM(Harmonogram[[#This Row],[P: Spawanie]:[P: Montaż]])","v":0},null,null,{"$f":"Harmonogram[[#This Row],[Realna data wydania]]+365","v":"1900-12-30"},null,{"$f":"IF(Harmonogram[[#This Row],[Realna data wydania]]=0,\"\",MONTH(Harmonogram[[#This Row],[Realna data wydania]]))","v":""},{"$f":"IF(AND(Harmonogram[[#This Row],[Realna data wydania]]>0,Harmonogram[[#This Row],[Realna data wydania]]<TODAY()),\"Wydany\",IF(Harmonogram[[#This Row],[Realna data skończenia]]>0,\"Zrobiony\",\"\"))","v":""}]
[null,null,null,null,null,{"$f":"Harmonogram[[#This Row],[Data przyjęcia ]]+30","v":"1900-01-30"},null,null,null,null,null,null,null,null,null,{"$f":"Harmonogram[[#This Row],[P: \nSzycie]]","v":0},null,null,null,null,null,null,null,null,null,{"$f":"SUM(Harmonogram[[#This Row],[P: Spawanie]:[P: Montaż]])","v":0},null,null,{"$f":"Harmonogram[[#This Row],[Realna data wydania]]+365","v":"1900-12-30"},null,{"$f":"IF(Harmonogram[[#This Row],[Realna data wydania]]=0,\"\",MONTH(Harmonogram[[#This Row],[Realna data wydania]]))","v":""},{"$f":"IF(AND(Harmonogram[[#This Row],[Realna data wydania]]>0,Harmonogram[[#This Row],[Realna data wydania]]<TODAY()),\"Wydany\",IF(Harmonogram[[#This Row],[Realna data skończenia]]>0,\"Zrobiony\",\"\"))","v":""}]
[null,null,null,null,null,{"$f":"Harmonogram[[#This Row],[Data przyjęcia ]]+30","v":"1900-01-30"},null,null,null,null,null,null,null,null,null,{"$f":"Harmonogram[[#This Row],[P: \nSzycie]]","v":0},null,null,null,null,null,null,null,null,null,{"$f":"SUM(Harmonogram[[#This Row],[P: Spawanie]:[P: Montaż]])","v":0},null,null,{"$f":"Harmonogram[[#This Row],[Realna data wydania]]+365","v":"1900-12-30"},null,{"$f":"IF(Harmonogram[[#This Row],[Realna data wydania]]=0,\"\",MONTH(Harmonogram[[#This Row],[Realna data wydania]]))","v":""},{"$f":"IF(AND(Harmonogram[[#This Row],[Realna data wydania]]>0,Harmonogram[[#This Row],[Realna data wydania]]<TODAY()),\"Wydany\",IF(Harmonogram[[#This Row],[Realna data skończenia]]>0,\"Zrobiony\",\"\"))","v":""}]
[null,null,null,null,null,{"$f":"Harmonogram[[#This Row],[Data przyjęcia ]]+30","v":"1900-01-30"},null,null,null,null,null,null,null,null,null,{"$f":"Harmonogram[[#This Row],[P: \nSzycie]]","v":0},null,null,null,null,null,null,null,null,null,{"$f":"SUM(Harmonogram[[#This Row],[P: Spawanie]:[P: Montaż]])","v":0},null,null,{"$f":"Harmonogram[[#This Row],[Realna data wydania]]+365","v":"1900-12-30"},null,{"$f":"IF(Harmonogram[[#This Row],[Realna data wydania]]=0,\"\",MONTH(Harmonogram[[#This Row],[Realna data wydania]]))","v":""},{"$f":"IF(AND(Harmonogram[[#This Row],[Realna data wydania]]>0,Harmonogram[[#This Row],[Realna data wydania]]<TODAY()),\"Wydany\",IF(Harmonogram[[#This Row],[Realna data skończenia]]>0,\"Zrobiony\",\"\"))","v":""}]
[null,null,null,null,null,{"$f":"Harmonogram[[#This Row],[Data przyjęcia ]]+30","v":"1900-01-30"},null,null,null,null,null,null,null,null,null,{"$f":"Harmonogram[[#This Row],[P: \nSzycie]]","v":0},null,null,null,null,null,null,null,null,null,{"$f":"SUM(Harmonogram[[#This Row],[P: Spawanie]:[P: Montaż]])","v":0},null,null,{"$f":"Harmonogram[[#This Row],[Realna data wydania]]+365","v":"1900-12-30"},null,{"$f":"IF(Harmonogram[[#This Row],[Realna data wydania]]=0,\"\",MONTH(Harmonogram[[#This Row],[Realna data wydania]]))","v":""},{"$f":"IF(AND(Harmonogram[[#This Row],[Realna data wydania]]>0,Harmonogram[[#This Row],[Realna data wydania]]<TODAY()),\"Wydany\",IF(Harmonogram[[#This Row],[Realna data skończenia]]>0,\"Zrobiony\",\"\"))","v":""}]
[null,null,null,null,null,{"$f":"Harmonogram[[#This Row],[Data przyjęcia ]]+30","v":"1900-01-30"},null,null,null,null,null,null,null,null,null,{"$f":"Harmonogram[[#This Row],[P: \nSzycie]]","v":0},null,null,null,null,null,null,null,null,null,{"$f":"SUM(Harmonogram[[#This Row],[P: Spawanie]:[P: Montaż]])","v":0},null,null,{"$f":"Harmonogram[[#This Row],[Realna data wydania]]+365","v":"1900-12-30"},null,{"$f":"IF(Harmonogram[[#This Row],[Realna data wydania]]=0,\"\",MONTH(Harmonogram[[#This Row],[Realna data wydania]]))","v":""},{"$f":"IF(AND(Harmonogram[[#This Row],[Realna data wydania]]>0,Harmonogram[[#This Row],[Realna data wydania]]<TODAY()),\"Wydany\",IF(Harmonogram[[#This Row],[Realna data skończenia]]>0,\"Zrobiony\",\"\"))","v":""}]
[null,null,null,null,null,{"$f":"Harmonogram[[#This Row],[Data przyjęcia ]]+30","v":"1900-01-30"},null,null,null,null,null,null,null,null,null,{"$f":"Harmonogram[[#This Row],[P: \nSzycie]]","v":0},null,null,null,null,null,null,null,null,null,{"$f":"SUM(Harmonogram[[#This Row],[P: Spawanie]:[P: Montaż]])","v":0},null,null,{"$f":"Harmonogram[[#This Row],[Realna data wydania]]+365","v":"1900-12-30"},null,{"$f":"IF(Harmonogram[[#This Row],[Realna data wydania]]=0,\"\",MONTH(Harmonogram[[#This Row],[Realna data wydania]]))","v":""},{"$f":"IF(AND(Harmonogram[[#This Row],[Realna data wydania]]>0,Harmonogram[[#This Row],[Realna data wydania]]<TODAY()),\"Wydany\",IF(Harmonogram[[#This Row],[Realna data skończenia]]>0,\"Zrobiony\",\"\"))","v":""}]
[null,null,null,null,null,{"$f":"Harmonogram[[#This Row],[Data przyjęcia ]]+30","v":"1900-01-30"},null,null,null,null,null,null,null,null,null,{"$f":"Harmonogram[[#This Row],[P: \nSzycie]]","v":0},null,null,null,null,null,null,null,null,null,{"$f":"SUM(Harmonogram[[#This Row],[P: Spawanie]:[P: Montaż]])","v":0},null,null,{"$f":"Harmonogram[[#This Row],[Realna data wydania]]+365","v":"1900-12-30"},null,{"$f":"IF(Harmonogram[[#This Row],[Realna data wydania]]=0,\"\",MONTH(Harmonogram[[#This Row],[Realna data wydania]]))","v":""},{"$f":"IF(AND(Harmonogram[[#This Row],[Realna data wydania]]>0,Harmonogram[[#This Row],[Realna data wydania]]<TODAY()),\"Wydany\",IF(Harmonogram[[#This Row],[Realna data skończenia]]>0,\"Zrobiony\",\"\"))","v":""}]
[null,null,null,null,null,{"$f":"Harmonogram[[#This Row],[Data przyjęcia ]]+30","v":"1900-01-30"},null,null,null,null,null,null,null,null,null,{"$f":"Harmonogram[[#This Row],[P: \nSzycie]]","v":0},null,null,null,null,null,null,null,null,null,{"$f":"SUM(Harmonogram[[#This Row],[P: Spawanie]:[P: Montaż]])","v":0},null,null,{"$f":"Harmonogram[[#This Row],[Realna data wydania]]+365","v":"1900-12-30"},null,{"$f":"IF(Harmonogram[[#This Row],[Realna data wydania]]=0,\"\",MONTH(Harmonogram[[#This Row],[Realna data wydania]]))","v":""},{"$f":"IF(AND(Harmonogram[[#This Row],[Realna data wydania]]>0,Harmonogram[[#This Row],[Realna data wydania]]<TODAY()),\"Wydany\",IF(Harmonogram[[#This Row],[Realna data skończenia]]>0,\"Zrobiony\",\"\"))","v":""}]
[null,null,null,null,null,{"$f":"Harmonogram[[#This Row],[Data przyjęcia ]]+30","v":"1900-01-30"},null,null,null,null,null,null,null,null,null,{"$f":"Harmonogram[[#This Row],[P: \nSzycie]]","v":0},null,null,null,null,null,null,null,null,null,{"$f":"SUM(Harmonogram[[#This Row],[P: Spawanie]:[P: Montaż]])","v":0},null,null,{"$f":"Harmonogram[[#This Row],[Realna data wydania]]+365","v":"1900-12-30"},null,{"$f":"IF(Harmonogram[[#This Row],[Realna data wydania]]=0,\"\",MONTH(Harmonogram[[#This Row],[Realna data wydania]]))","v":""},{"$f":"IF(AND(Harmonogram[[#This Row],[Realna data wydania]]>0,Harmonogram[[#This Row],[Realna data wydania]]<TODAY()),\"Wydany\",IF(Harmonogram[[#This Row],[Realna data skończenia]]>0,\"Zrobiony\",\"\"))","v":""}]
[null,null,null,null,null,{"$f":"Harmonogram[[#This Row],[Data przyjęcia ]]+30","v":"1900-01-30"},null,null,null,null,null,null,null,null,null,{"$f":"Harmonogram[[#This Row],[P: \nSzycie]]","v":0},null,null,null,null,null,null,null,null,null,{"$f":"SUM(Harmonogram[[#This Row],[P: Spawanie]:[P: Montaż]])","v":0},null,null,{"$f":"Harmonogram[[#This Row],[Realna data wydania]]+365","v":"1900-12-30"},null,{"$f":"IF(Harmonogram[[#This Row],[Realna data wydania]]=0,\"\",MONTH(Harmonogram[[#This Row],[Realna data wydania]]))","v":""},{"$f":"IF(AND(Harmonogram[[#This Row],[Realna data wydania]]>0,Harmonogram[[#This Row],[Realna data wydania]]<TODAY()),\"Wydany\",IF(Harmonogram[[#This Row],[Realna data skończenia]]>0,\"Zrobiony\",\"\"))","v":""}]
[null,null,null,null,null,{"$f":"Harmonogram[[#This Row],[Data przyjęcia ]]+30","v":"1900-01-30"},null,null,null,null,null,null,null,null,null,{"$f":"Harmonogram[[#This Row],[P: \nSzycie]]","v":0},null,null,null,null,null,null,null,null,null,{"$f":"SUM(Harmonogram[[#This Row],[P: Spawanie]:[P: Montaż]])","v":0},null,null,{"$f":"Harmonogram[[#This Row],[Realna data wydania]]+365","v":"1900-12-30"},null,{"$f":"IF(Harmonogram[[#This Row],[Realna data wydania]]=0,\"\",MONTH(Harmonogram[[#This Row],[Realna data wydania]]))","v":""},{"$f":"IF(AND(Harmonogram[[#This Row],[Realna data wydania]]>0,Harmonogram[[#This Row],[Realna data wydania]]<TODAY()),\"Wydany\",IF(Harmonogram[[#This Row],[Realna data skończenia]]>0,\"Zrobiony\",\"\"))","v":""}]
[null,null,null,null,null,{"$f":"Harmonogram[[#This Row],[Data przyjęcia ]]+30","v":"1900-01-30"},null,null,null,null,null,null,null,null,null,{"$f":"Harmonogram[[#This Row],[P: \nSzycie]]","v":0},null,null,null,null,null,null,null,null,null,{"$f":"SUM(Harmonogram[[#This Row],[P: Spawanie]:[P: Montaż]])","v":0},null,null,{"$f":"Harmonogram[[#This Row],[Realna data wydania]]+365","v":"1900-12-30"},null,{"$f":"IF(Harmonogram[[#This Row],[Realna data wydania]]=0,\"\",MONTH(Harmonogram[[#This Row],[Realna data wydania]]))","v":""},{"$f":"IF(AND(Harmonogram[[#This Row],[Realna data wydania]]>0,Harmonogram[[#This Row],[Realna data wydania]]<TODAY()),\"Wydany\",IF(Harmonogram[[#This Row],[Realna data skończenia]]>0,\"Zrobiony\",\"\"))","v":""}]
[null,null,null,null,null,{"$f":"Harmonogram[[#This Row],[Data przyjęcia ]]+30","v":"1900-01-30"},null,null,null,null,null,null,null,null,null,{"$f":"Harmonogram[[#This Row],[P: \nSzycie]]","v":0},null,null,null,null,null,null,null,null,null,{"$f":"SUM(Harmonogram[[#This Row],[P: Spawanie]:[P: Montaż]])","v":0},null,null,{"$f":"Harmonogram[[#This Row],[Realna data wydania]]+365","v":"1900-12-30"},null,{"$f":"IF(Harmonogram[[#This Row],[Realna data wydania]]=0,\"\",MONTH(Harmonogram[[#This Row],[Realna data wydania]]))","v":""},{"$f":"IF(AND(Harmonogram[[#This Row],[Realna data wydania]]>0,Harmonogram[[#This Row],[Realna data wydania]]<TODAY()),\"Wydany\",IF(Harmonogram[[#This Row],[Realna data skończenia]]>0,\"Zrobiony\",\"\"))","v":""}]
[null,null,null,null,null,{"$f":"Harmonogram[[#This Row],[Data przyjęcia ]]+30","v":"1900-01-30"},null,null,null,null,null,null,null,null,null,{"$f":"Harmonogram[[#This Row],[P: \nSzycie]]","v":0},null,null,null,null,null,null,null,null,null,{"$f":"SUM(Harmonogram[[#This Row],[P: Spawanie]:[P: Montaż]])","v":0},null,null,{"$f":"Harmonogram[[#This Row],[Realna data wydania]]+365","v":"1900-12-30"},null,{"$f":"IF(Harmonogram[[#This Row],[Realna data wydania]]=0,\"\",MONTH(Harmonogram[[#This Row],[Realna data wydania]]))","v":""},{"$f":"IF(AND(Harmonogram[[#This Row],[Realna data wydania]]>0,Harmonogram[[#This Row],[Realna data wydania]]<TODAY()),\"Wydany\",IF(Harmonogram[[#This Row],[Realna data skończenia]]>0,\"Zrobiony\",\"\"))","v":""}]
[null,null,null,null,null,{"$f":"Harmonogram[[#This Row],[Data przyjęcia ]]+30","v":"1900-01-30"},null,null,null,null,null,null,null,null,null,{"$f":"Harmonogram[[#This Row],[P: \nSzycie]]","v":0},null,null,null,null,null,null,null,null,null,{"$f":"SUM(Harmonogram[[#This Row],[P: Spawanie]:[P: Montaż]])","v":0},null,null,{"$f":"Harmonogram[[#This Row],[Realna data wydania]]+365","v":"1900-12-30"},null,{"$f":"IF(Harmonogram[[#This Row],[Realna data wydania]]=0,\"\",MONTH(Harmonogram[[#This Row],[Realna data wydania]]))","v":""},{"$f":"IF(AND(Harmonogram[[#This Row],[Realna data wydania]]>0,Harmonogram[[#This Row],[Realna data wydania]]<TODAY()),\"Wydany\",IF(Harmonogram[[#This Row],[Realna data skończenia]]>0,\"Zrobiony\",\"\"))","v":""}]
[null,null,null,null,null,{"$f":"Harmonogram[[#This Row],[Data przyjęcia ]]+30","v":"1900-01-30"},null,null,null,null,null,null,null,null,null,{"$f":"Harmonogram[[#This Row],[P: \nSzycie]]","v":0},null,null,null,null,null,null,null,null,null,{"$f":"SUM(Harmonogram[[#This Row],[P: Spawanie]:[P: Montaż]])","v":0},null,null,{"$f":"Harmonogram[[#This Row],[Realna data wydania]]+365","v":"1900-12-30"},null,{"$f":"IF(Harmonogram[[#This Row],[Realna data wydania]]=0,\"\",MONTH(Harmonogram[[#This Row],[Realna data wydania]]))","v":""},{"$f":"IF(AND(Harmonogram[[#This Row],[Realna data wydania]]>0,Harmonogram[[#This Row],[Realna data wydania]]<TODAY()),\"Wydany\",IF(Harmonogram[[#This Row],[Realna data skończenia]]>0,\"Zrobiony\",\"\"))","v":""}]
[null,null,null,null,null,{"$f":"Harmonogram[[#This Row],[Data przyjęcia ]]+30","v":"1900-01-30"},null,null,null,null,null,null,null,null,null,{"$f":"Harmonogram[[#This Row],[P: \nSzycie]]","v":0},null,null,null,null,null,null,null,null,null,{"$f":"SUM(Harmonogram[[#This Row],[P: Spawanie]:[P: Montaż]])","v":0},null,null,{"$f":"Harmonogram[[#This Row],[Realna data wydania]]+365","v":"1900-12-30"},null,{"$f":"IF(Harmonogram[[#This Row],[Realna data wydania]]=0,\"\",MONTH(Harmonogram[[#This Row],[Realna data wydania]]))","v":""},{"$f":"IF(AND(Harmonogram[[#This Row],[Realna data wydania]]>0,Harmonogram[[#This Row],[Realna data wydania]]<TODAY()),\"Wydany\",IF(Harmonogram[[#This Row],[Realna data skończenia]]>0,\"Zrobiony\",\"\"))","v":""}]
[null,null,null,null,null,{"$f":"Harmonogram[[#This Row],[Data przyjęcia ]]+30","v":"1900-01-30"},null,null,null,null,null,null,null,null,null,{"$f":"Harmonogram[[#This Row],[P: \nSzycie]]","v":0},null,null,null,null,null,null,null,null,null,{"$f":"SUM(Harmonogram[[#This Row],[P: Spawanie]:[P: Montaż]])","v":0},null,null,{"$f":"Harmonogram[[#This Row],[Realna data wydania]]+365","v":"1900-12-30"},null,{"$f":"IF(Harmonogram[[#This Row],[Realna data wydania]]=0,\"\",MONTH(Harmonogram[[#This Row],[Realna data wydania]]))","v":""},{"$f":"IF(AND(Harmonogram[[#This Row],[Realna data wydania]]>0,Harmonogram[[#This Row],[Realna data wydania]]<TODAY()),\"Wydany\",IF(Harmonogram[[#This Row],[Realna data skończenia]]>0,\"Zrobiony\",\"\"))","v":""}]
[null,null,null,null,null,{"$f":"Harmonogram[[#This Row],[Data przyjęcia ]]+30","v":"1900-01-30"},null,null,null,null,null,null,null,null,null,{"$f":"Harmonogram[[#This Row],[P: \nSzycie]]","v":0},null,null,null,null,null,null,null,null,null,{"$f":"SUM(Harmonogram[[#This Row],[P: Spawanie]:[P: Montaż]])","v":0},null,null,{"$f":"Harmonogram[[#This Row],[Realna data wydania]]+365","v":"1900-12-30"},null,{"$f":"IF(Harmonogram[[#This Row],[Realna data wydania]]=0,\"\",MONTH(Harmonogram[[#This Row],[Realna data wydania]]))","v":""},{"$f":"IF(AND(Harmonogram[[#This Row],[Realna data wydania]]>0,Harmonogram[[#This Row],[Realna data wydania]]<TODAY()),\"Wydany\",IF(Harmonogram[[#This Row],[Realna data skończenia]]>0,\"Zrobiony\",\"\"))","v":""}]
[null,null,null,null,null,{"$f":"Harmonogram[[#This Row],[Data przyjęcia ]]+30","v":"1900-01-30"},null,null,null,null,null,null,null,null,null,{"$f":"Harmonogram[[#This Row],[P: \nSzycie]]","v":0},null,null,null,null,null,null,null,null,null,{"$f":"SUM(Harmonogram[[#This Row],[P: Spawanie]:[P: Montaż]])","v":0},null,null,{"$f":"Harmonogram[[#This Row],[Realna data wydania]]+365","v":"1900-12-30"},null,{"$f":"IF(Harmonogram[[#This Row],[Realna data wydania]]=0,\"\",MONTH(Harmonogram[[#This Row],[Realna data wydania]]))","v":""},{"$f":"IF(AND(Harmonogram[[#This Row],[Realna data wydania]]>0,Harmonogram[[#This Row],[Realna data wydania]]<TODAY()),\"Wydany\",IF(Harmonogram[[#This Row],[Realna data skończenia]]>0,\"Zrobiony\",\"\"))","v":""}]
[null,null,null,null,null,{"$f":"Harmonogram[[#This Row],[Data przyjęcia ]]+30","v":"1900-01-30"},null,null,null,null,null,null,null,null,null,{"$f":"Harmonogram[[#This Row],[P: \nSzycie]]","v":0},null,null,null,null,null,null,null,null,null,{"$f":"SUM(Harmonogram[[#This Row],[P: Spawanie]:[P: Montaż]])","v":0},null,null,{"$f":"Harmonogram[[#This Row],[Realna data wydania]]+365","v":"1900-12-30"},null,{"$f":"IF(Harmonogram[[#This Row],[Realna data wydania]]=0,\"\",MONTH(Harmonogram[[#This Row],[Realna data wydania]]))","v":""},{"$f":"IF(AND(Harmonogram[[#This Row],[Realna data wydania]]>0,Harmonogram[[#This Row],[Realna data wydania]]<TODAY()),\"Wydany\",IF(Harmonogram[[#This Row],[Realna data skończenia]]>0,\"Zrobiony\",\"\"))","v":""}]
[null,null,null,null,null,{"$f":"Harmonogram[[#This Row],[Data przyjęcia ]]+30","v":"1900-01-30"},null,null,null,null,null,null,null,null,null,{"$f":"Harmonogram[[#This Row],[P: \nSzycie]]","v":0},null,null,null,null,null,null,null,null,null,{"$f":"SUM(Harmonogram[[#This Row],[P: Spawanie]:[P: Montaż]])","v":0},null,null,{"$f":"Harmonogram[[#This Row],[Realna data wydania]]+365","v":"1900-12-30"},null,{"$f":"IF(Harmonogram[[#This Row],[Realna data wydania]]=0,\"\",MONTH(Harmonogram[[#This Row],[Realna data wydania]]))","v":""},{"$f":"IF(AND(Harmonogram[[#This Row],[Realna data wydania]]>0,Harmonogram[[#This Row],[Realna data wydania]]<TODAY()),\"Wydany\",IF(Harmonogram[[#This Row],[Realna data skończenia]]>0,\"Zrobiony\",\"\"))","v":""}]
[null,null,null,null,null,{"$f":"Harmonogram[[#This Row],[Data przyjęcia ]]+30","v":"1900-01-30"},null,null,null,null,null,null,null,null,null,{"$f":"Harmonogram[[#This Row],[P: \nSzycie]]","v":0},null,null,null,null,null,null,null,null,null,{"$f":"SUM(Harmonogram[[#This Row],[P: Spawanie]:[P: Montaż]])","v":0},null,null,{"$f":"Harmonogram[[#This Row],[Realna data wydania]]+365","v":"1900-12-30"},null,{"$f":"IF(Harmonogram[[#This Row],[Realna data wydania]]=0,\"\",MONTH(Harmonogram[[#This Row],[Realna data wydania]]))","v":""},{"$f":"IF(AND(Harmonogram[[#This Row],[Realna data wydania]]>0,Harmonogram[[#This Row],[Realna data wydania]]<TODAY()),\"Wydany\",IF(Harmonogram[[#This Row],[Realna data skończenia]]>0,\"Zrobiony\",\"\"))","v":""}]
[null,null,null,null,null,{"$f":"Harmonogram[[#This Row],[Data przyjęcia ]]+30","v":"1900-01-30"},null,null,null,null,null,null,null,null,null,{"$f":"Harmonogram[[#This Row],[P: \nSzycie]]","v":0},null,null,null,null,null,null,null,null,null,{"$f":"SUM(Harmonogram[[#This Row],[P: Spawanie]:[P: Montaż]])","v":0},null,null,{"$f":"Harmonogram[[#This Row],[Realna data wydania]]+365","v":"1900-12-30"},null,{"$f":"IF(Harmonogram[[#This Row],[Realna data wydania]]=0,\"\",MONTH(Harmonogram[[#This Row],[Realna data wydania]]))","v":""},{"$f":"IF(AND(Harmonogram[[#This Row],[Realna data wydania]]>0,Harmonogram[[#This Row],[Realna data wydania]]<TODAY()),\"Wydany\",IF(Harmonogram[[#This Row],[Realna data skończenia]]>0,\"Zrobiony\",\"\"))","v":""}]
[null,null,null,null,null,{"$f":"Harmonogram[[#This Row],[Data przyjęcia ]]+30","v":"1900-01-30"},null,null,null,null,null,null,null,null,null,{"$f":"Harmonogram[[#This Row],[P: \nSzycie]]","v":0},null,null,null,null,null,null,null,null,null,{"$f":"SUM(Harmonogram[[#This Row],[P: Spawanie]:[P: Montaż]])","v":0},null,null,{"$f":"Harmonogram[[#This Row],[Realna data wydania]]+365","v":"1900-12-30"},null,{"$f":"IF(Harmonogram[[#This Row],[Realna data wydania]]=0,\"\",MONTH(Harmonogram[[#This Row],[Realna data wydania]]))","v":""},{"$f":"IF(AND(Harmonogram[[#This Row],[Realna data wydania]]>0,Harmonogram[[#This Row],[Realna data wydania]]<TODAY()),\"Wydany\",IF(Harmonogram[[#This Row],[Realna data skończenia]]>0,\"Zrobiony\",\"\"))","v":""}]
[null,null,null,null,null,{"$f":"Harmonogram[[#This Row],[Data przyjęcia ]]+30","v":"1900-01-30"},null,null,null,null,null,null,null,null,null,{"$f":"Harmonogram[[#This Row],[P: \nSzycie]]","v":0},null,null,null,null,null,null,null,null,null,{"$f":"SUM(Harmonogram[[#This Row],[P: Spawanie]:[P: Montaż]])","v":0},null,null,{"$f":"Harmonogram[[#This Row],[Realna data wydania]]+365","v":"1900-12-30"},null,{"$f":"IF(Harmonogram[[#This Row],[Realna data wydania]]=0,\"\",MONTH(Harmonogram[[#This Row],[Realna data wydania]]))","v":""},{"$f":"IF(AND(Harmonogram[[#This Row],[Realna data wydania]]>0,Harmonogram[[#This Row],[Realna data wydania]]<TODAY()),\"Wydany\",IF(Harmonogram[[#This Row],[Realna data skończenia]]>0,\"Zrobiony\",\"\"))","v":""}]
[null,null,null,null,null,{"$f":"Harmonogram[[#This Row],[Data przyjęcia ]]+30","v":"1900-01-30"},null,null,null,null,null,null,null,null,null,{"$f":"Harmonogram[[#This Row],[P: \nSzycie]]","v":0},null,null,null,null,null,null,null,null,null,{"$f":"SUM(Harmonogram[[#This Row],[P: Spawanie]:[P: Montaż]])","v":0},null,null,{"$f":"Harmonogram[[#This Row],[Realna data wydania]]+365","v":"1900-12-30"},null,{"$f":"IF(Harmonogram[[#This Row],[Realna data wydania]]=0,\"\",MONTH(Harmonogram[[#This Row],[Realna data wydania]]))","v":""},{"$f":"IF(AND(Harmonogram[[#This Row],[Realna data wydania]]>0,Harmonogram[[#This Row],[Realna data wydania]]<TODAY()),\"Wydany\",IF(Harmonogram[[#This Row],[Realna data skończenia]]>0,\"Zrobiony\",\"\"))","v":""}]
[null,null,null,null,null,{"$f":"Harmonogram[[#This Row],[Data przyjęcia ]]+30","v":"1900-01-30"},null,null,null,null,null,null,null,null,null,{"$f":"Harmonogram[[#This Row],[P: \nSzycie]]","v":0},null,null,null,null,null,null,null,null,null,{"$f":"SUM(Harmonogram[[#This Row],[P: Spawanie]:[P: Montaż]])","v":0},null,null,{"$f":"Harmonogram[[#This Row],[Realna data wydania]]+365","v":"1900-12-30"},null,{"$f":"IF(Harmonogram[[#This Row],[Realna data wydania]]=0,\"\",MONTH(Harmonogram[[#This Row],[Realna data wydania]]))","v":""},{"$f":"IF(AND(Harmonogram[[#This Row],[Realna data wydania]]>0,Harmonogram[[#This Row],[Realna data wydania]]<TODAY()),\"Wydany\",IF(Harmonogram[[#This Row],[Realna data skończenia]]>0,\"Zrobiony\",\"\"))","v":""}]
[null,null,null,null,null,{"$f":"Harmonogram[[#This Row],[Data przyjęcia ]]+30","v":"1900-01-30"},null,null,null,null,null,null,null,null,null,{"$f":"Harmonogram[[#This Row],[P: \nSzycie]]","v":0},null,null,null,null,null,null,null,null,null,{"$f":"SUM(Harmonogram[[#This Row],[P: Spawanie]:[P: Montaż]])","v":0},null,null,{"$f":"Harmonogram[[#This Row],[Realna data wydania]]+365","v":"1900-12-30"},null,{"$f":"IF(Harmonogram[[#This Row],[Realna data wydania]]=0,\"\",MONTH(Harmonogram[[#This Row],[Realna data wydania]]))","v":""},{"$f":"IF(AND(Harmonogram[[#This Row],[Realna data wydania]]>0,Harmonogram[[#This Row],[Realna data wydania]]<TODAY()),\"Wydany\",IF(Harmonogram[[#This Row],[Realna data skończenia]]>0,\"Zrobiony\",\"\"))","v":""}]
[null,null,null,null,null,{"$f":"Harmonogram[[#This Row],[Data przyjęcia ]]+30","v":"1900-01-30"},null,null,null,null,null,null,null,null,null,{"$f":"Harmonogram[[#This Row],[P: \nSzycie]]","v":0},null,null,null,null,null,null,null,null,null,{"$f":"SUM(Harmonogram[[#This Row],[P: Spawanie]:[P: Montaż]])","v":0},null,null,{"$f":"Harmonogram[[#This Row],[Realna data wydania]]+365","v":"1900-12-30"},null,{"$f":"IF(Harmonogram[[#This Row],[Realna data wydania]]=0,\"\",MONTH(Harmonogram[[#This Row],[Realna data wydania]]))","v":""},{"$f":"IF(AND(Harmonogram[[#This Row],[Realna data wydania]]>0,Harmonogram[[#This Row],[Realna data wydania]]<TODAY()),\"Wydany\",IF(Harmonogram[[#This Row],[Realna data skończenia]]>0,\"Zrobiony\",\"\"))","v":""}]
[null,null,null,null,null,{"$f":"Harmonogram[[#This Row],[Data przyjęcia ]]+30","v":"1900-01-30"},null,null,null,null,null,null,null,null,null,{"$f":"Harmonogram[[#This Row],[P: \nSzycie]]","v":0},null,null,null,null,null,null,null,null,null,{"$f":"SUM(Harmonogram[[#This Row],[P: Spawanie]:[P: Montaż]])","v":0},null,null,{"$f":"Harmonogram[[#This Row],[Realna data wydania]]+365","v":"1900-12-30"},null,{"$f":"IF(Harmonogram[[#This Row],[Realna data wydania]]=0,\"\",MONTH(Harmonogram[[#This Row],[Realna data wydania]]))","v":""},{"$f":"IF(AND(Harmonogram[[#This Row],[Realna data wydania]]>0,Harmonogram[[#This Row],[Realna data wydania]]<TODAY()),\"Wydany\",IF(Harmonogram[[#This Row],[Realna data skończenia]]>0,\"Zrobiony\",\"\"))","v":""}]
[null,null,null,null,null,{"$f":"Harmonogram[[#This Row],[Data przyjęcia ]]+30","v":"1900-01-30"},null,null,null,null,null,null,null,null,null,{"$f":"Harmonogram[[#This Row],[P: \nSzycie]]","v":0},null,null,null,null,null,null,null,null,null,{"$f":"SUM(Harmonogram[[#This Row],[P: Spawanie]:[P: Montaż]])","v":0},null,null,{"$f":"Harmonogram[[#This Row],[Realna data wydania]]+365","v":"1900-12-30"},null,{"$f":"IF(Harmonogram[[#This Row],[Realna data wydania]]=0,\"\",MONTH(Harmonogram[[#This Row],[Realna data wydania]]))","v":""},{"$f":"IF(AND(Harmonogram[[#This Row],[Realna data wydania]]>0,Harmonogram[[#This Row],[Realna data wydania]]<TODAY()),\"Wydany\",IF(Harmonogram[[#This Row],[Realna data skończenia]]>0,\"Zrobiony\",\"\"))","v":""}]
[null,null,null,null,null,{"$f":"Harmonogram[[#This Row],[Data przyjęcia ]]+30","v":"1900-01-30"},null,null,null,null,null,null,null,null,null,{"$f":"Harmonogram[[#This Row],[P: \nSzycie]]","v":0},null,null,null,null,null,null,null,null,null,{"$f":"SUM(Harmonogram[[#This Row],[P: Spawanie]:[P: Montaż]])","v":0},null,null,{"$f":"Harmonogram[[#This Row],[Realna data wydania]]+365","v":"1900-12-30"},null,{"$f":"IF(Harmonogram[[#This Row],[Realna data wydania]]=0,\"\",MONTH(Harmonogram[[#This Row],[Realna data wydania]]))","v":""},{"$f":"IF(AND(Harmonogram[[#This Row],[Realna data wydania]]>0,Harmonogram[[#This Row],[Realna data wydania]]<TODAY()),\"Wydany\",IF(Harmonogram[[#This Row],[Realna data skończenia]]>0,\"Zrobiony\",\"\"))","v":""}]
[null,null,null,null,null,{"$f":"Harmonogram[[#This Row],[Data przyjęcia ]]+30","v":"1900-01-30"},null,null,null,null,null,null,null,null,null,{"$f":"Harmonogram[[#This Row],[P: \nSzycie]]","v":0},null,null,null,null,null,null,null,null,null,{"$f":"SUM(Harmonogram[[#This Row],[P: Spawanie]:[P: Montaż]])","v":0},null,null,{"$f":"Harmonogram[[#This Row],[Realna data wydania]]+365","v":"1900-12-30"},null,{"$f":"IF(Harmonogram[[#This Row],[Realna data wydania]]=0,\"\",MONTH(Harmonogram[[#This Row],[Realna data wydania]]))","v":""},{"$f":"IF(AND(Harmonogram[[#This Row],[Realna data wydania]]>0,Harmonogram[[#This Row],[Realna data wydania]]<TODAY()),\"Wydany\",IF(Harmonogram[[#This Row],[Realna data skończenia]]>0,\"Zrobiony\",\"\"))","v":""}]
[null,null,null,null,null,{"$f":"Harmonogram[[#This Row],[Data przyjęcia ]]+30","v":"1900-01-30"},null,null,null,null,null,null,null,null,null,{"$f":"Harmonogram[[#This Row],[P: \nSzycie]]","v":0},null,null,null,null,null,null,null,null,null,{"$f":"SUM(Harmonogram[[#This Row],[P: Spawanie]:[P: Montaż]])","v":0},null,null,{"$f":"Harmonogram[[#This Row],[Realna data wydania]]+365","v":"1900-12-30"},null,{"$f":"IF(Harmonogram[[#This Row],[Realna data wydania]]=0,\"\",MONTH(Harmonogram[[#This Row],[Realna data wydania]]))","v":""},{"$f":"IF(AND(Harmonogram[[#This Row],[Realna data wydania]]>0,Harmonogram[[#This Row],[Realna data wydania]]<TODAY()),\"Wydany\",IF(Harmonogram[[#This Row],[Realna data skończenia]]>0,\"Zrobiony\",\"\"))","v":""}]
[null,null,null,null,null,{"$f":"Harmonogram[[#This Row],[Data przyjęcia ]]+30","v":"1900-01-30"},null,null,null,null,null,null,null,null,null,{"$f":"Harmonogram[[#This Row],[P: \nSzycie]]","v":0},null,null,null,null,null,null,null,null,null,{"$f":"SUM(Harmonogram[[#This Row],[P: Spawanie]:[P: Montaż]])","v":0},null,null,{"$f":"Harmonogram[[#This Row],[Realna data wydania]]+365","v":"1900-12-30"},null,{"$f":"IF(Harmonogram[[#This Row],[Realna data wydania]]=0,\"\",MONTH(Harmonogram[[#This Row],[Realna data wydania]]))","v":""},{"$f":"IF(AND(Harmonogram[[#This Row],[Realna data wydania]]>0,Harmonogram[[#This Row],[Realna data wydania]]<TODAY()),\"Wydany\",IF(Harmonogram[[#This Row],[Realna data skończenia]]>0,\"Zrobiony\",\"\"))","v":""}]
[null,null,null,null,null,{"$f":"Harmonogram[[#This Row],[Data przyjęcia ]]+30","v":"1900-01-30"},null,null,null,null,null,null,null,null,null,{"$f":"Harmonogram[[#This Row],[P: \nSzycie]]","v":0},null,null,null,null,null,null,null,null,null,{"$f":"SUM(Harmonogram[[#This Row],[P: Spawanie]:[P: Montaż]])","v":0},null,null,{"$f":"Harmonogram[[#This Row],[Realna data wydania]]+365","v":"1900-12-30"},null,{"$f":"IF(Harmonogram[[#This Row],[Realna data wydania]]=0,\"\",MONTH(Harmonogram[[#This Row],[Realna data wydania]]))","v":""},{"$f":"IF(AND(Harmonogram[[#This Row],[Realna data wydania]]>0,Harmonogram[[#This Row],[Realna data wydania]]<TODAY()),\"Wydany\",IF(Harmonogram[[#This Row],[Realna data skończenia]]>0,\"Zrobiony\",\"\"))","v":""}]
[null,null,null,null,null,{"$f":"Harmonogram[[#This Row],[Data przyjęcia ]]+30","v":"1900-01-30"},null,null,null,null,null,null,null,null,null,{"$f":"Harmonogram[[#This Row],[P: \nSzycie]]","v":0},null,null,null,null,null,null,null,null,null,{"$f":"SUM(Harmonogram[[#This Row],[P: Spawanie]:[P: Montaż]])","v":0},null,null,{"$f":"Harmonogram[[#This Row],[Realna data wydania]]+365","v":"1900-12-30"},null,{"$f":"IF(Harmonogram[[#This Row],[Realna data wydania]]=0,\"\",MONTH(Harmonogram[[#This Row],[Realna data wydania]]))","v":""},{"$f":"IF(AND(Harmonogram[[#This Row],[Realna data wydania]]>0,Harmonogram[[#This Row],[Realna data wydania]]<TODAY()),\"Wydany\",IF(Harmonogram[[#This Row],[Realna data skończenia]]>0,\"Zrobiony\",\"\"))","v":""}]
[null,null,null,null,null,{"$f":"Harmonogram[[#This Row],[Data przyjęcia ]]+30","v":"1900-01-30"},null,null,null,null,null,null,null,null,null,{"$f":"Harmonogram[[#This Row],[P: \nSzycie]]","v":0},null,null,null,null,null,null,null,null,null,{"$f":"SUM(Harmonogram[[#This Row],[P: Spawanie]:[P: Montaż]])","v":0},null,null,{"$f":"Harmonogram[[#This Row],[Realna data wydania]]+365","v":"1900-12-30"},null,{"$f":"IF(Harmonogram[[#This Row],[Realna data wydania]]=0,\"\",MONTH(Harmonogram[[#This Row],[Realna data wydania]]))","v":""},{"$f":"IF(AND(Harmonogram[[#This Row],[Realna data wydania]]>0,Harmonogram[[#This Row],[Realna data wydania]]<TODAY()),\"Wydany\",IF(Harmonogram[[#This Row],[Realna data skończenia]]>0,\"Zrobiony\",\"\"))","v":""}]
[null,null,null,null,null,{"$f":"Harmonogram[[#This Row],[Data przyjęcia ]]+30","v":"1900-01-30"},null,null,null,null,null,null,null,null,null,{"$f":"Harmonogram[[#This Row],[P: \nSzycie]]","v":0},null,null,null,null,null,null,null,null,null,{"$f":"SUM(Harmonogram[[#This Row],[P: Spawanie]:[P: Montaż]])","v":0},null,null,{"$f":"Harmonogram[[#This Row],[Realna data wydania]]+365","v":"1900-12-30"},null,{"$f":"IF(Harmonogram[[#This Row],[Realna data wydania]]=0,\"\",MONTH(Harmonogram[[#This Row],[Realna data wydania]]))","v":""},{"$f":"IF(AND(Harmonogram[[#This Row],[Realna data wydania]]>0,Harmonogram[[#This Row],[Realna data wydania]]<TODAY()),\"Wydany\",IF(Harmonogram[[#This Row],[Realna data skończenia]]>0,\"Zrobiony\",\"\"))","v":""}]
[null,null,null,null,null,{"$f":"Harmonogram[[#This Row],[Data przyjęcia ]]+30","v":"1900-01-30"},null,null,null,null,null,null,null,null,null,{"$f":"Harmonogram[[#This Row],[P: \nSzycie]]","v":0},null,null,null,null,null,null,null,null,null,{"$f":"SUM(Harmonogram[[#This Row],[P: Spawanie]:[P: Montaż]])","v":0},null,null,{"$f":"Harmonogram[[#This Row],[Realna data wydania]]+365","v":"1900-12-30"},null,{"$f":"IF(Harmonogram[[#This Row],[Realna data wydania]]=0,\"\",MONTH(Harmonogram[[#This Row],[Realna data wydania]]))","v":""},{"$f":"IF(AND(Harmonogram[[#This Row],[Realna data wydania]]>0,Harmonogram[[#This Row],[Realna data wydania]]<TODAY()),\"Wydany\",IF(Harmonogram[[#This Row],[Realna data skończenia]]>0,\"Zrobiony\",\"\"))","v":""}]
[null,null,null,null,null,{"$f":"Harmonogram[[#This Row],[Data przyjęcia ]]+30","v":"1900-01-30"},null,null,null,null,null,null,null,null,null,{"$f":"Harmonogram[[#This Row],[P: \nSzycie]]","v":0},null,null,null,null,null,null,null,null,null,{"$f":"SUM(Harmonogram[[#This Row],[P: Spawanie]:[P: Montaż]])","v":0},null,null,{"$f":"Harmonogram[[#This Row],[Realna data wydania]]+365","v":"1900-12-30"},null,{"$f":"IF(Harmonogram[[#This Row],[Realna data wydania]]=0,\"\",MONTH(Harmonogram[[#This Row],[Realna data wydania]]))","v":""},{"$f":"IF(AND(Harmonogram[[#This Row],[Realna data wydania]]>0,Harmonogram[[#This Row],[Realna data wydania]]<TODAY()),\"Wydany\",IF(Harmonogram[[#This Row],[Realna data skończenia]]>0,\"Zrobiony\",\"\"))","v":""}]
[null,null,null,null,null,{"$f":"Harmonogram[[#This Row],[Data przyjęcia ]]+30","v":"1900-01-30"},null,null,null,null,null,null,null,null,null,{"$f":"Harmonogram[[#This Row],[P: \nSzycie]]","v":0},null,null,null,null,null,null,null,null,null,{"$f":"SUM(Harmonogram[[#This Row],[P: Spawanie]:[P: Montaż]])","v":0},null,null,{"$f":"Harmonogram[[#This Row],[Realna data wydania]]+365","v":"1900-12-30"},null,{"$f":"IF(Harmonogram[[#This Row],[Realna data wydania]]=0,\"\",MONTH(Harmonogram[[#This Row],[Realna data wydania]]))","v":""},{"$f":"IF(AND(Harmonogram[[#This Row],[Realna data wydania]]>0,Harmonogram[[#This Row],[Realna data wydania]]<TODAY()),\"Wydany\",IF(Harmonogram[[#This Row],[Realna data skończenia]]>0,\"Zrobiony\",\"\"))","v":""}]
[null,null,null,null,null,{"$f":"Harmonogram[[#This Row],[Data przyjęcia ]]+30","v":"1900-01-30"},null,null,null,null,null,null,null,null,null,{"$f":"Harmonogram[[#This Row],[P: \nSzycie]]","v":0},null,null,null,null,null,null,null,null,null,{"$f":"SUM(Harmonogram[[#This Row],[P: Spawanie]:[P: Montaż]])","v":0},null,null,{"$f":"Harmonogram[[#This Row],[Realna data wydania]]+365","v":"1900-12-30"},null,{"$f":"IF(Harmonogram[[#This Row],[Realna data wydania]]=0,\"\",MONTH(Harmonogram[[#This Row],[Realna data wydania]]))","v":""},{"$f":"IF(AND(Harmonogram[[#This Row],[Realna data wydania]]>0,Harmonogram[[#This Row],[Realna data wydania]]<TODAY()),\"Wydany\",IF(Harmonogram[[#This Row],[Realna data skończenia]]>0,\"Zrobiony\",\"\"))","v":""}]
[null,null,null,null,null,{"$f":"Harmonogram[[#This Row],[Data przyjęcia ]]+30","v":"1900-01-30"},null,null,null,null,null,null,null,null,null,{"$f":"Harmonogram[[#This Row],[P: \nSzycie]]","v":0},null,null,null,null,null,null,null,null,null,{"$f":"SUM(Harmonogram[[#This Row],[P: Spawanie]:[P: Montaż]])","v":0},null,null,{"$f":"Harmonogram[[#This Row],[Realna data wydania]]+365","v":"1900-12-30"},null,{"$f":"IF(Harmonogram[[#This Row],[Realna data wydania]]=0,\"\",MONTH(Harmonogram[[#This Row],[Realna data wydania]]))","v":""},{"$f":"IF(AND(Harmonogram[[#This Row],[Realna data wydania]]>0,Harmonogram[[#This Row],[Realna data wydania]]<TODAY()),\"Wydany\",IF(Harmonogram[[#This Row],[Realna data skończenia]]>0,\"Zrobiony\",\"\"))","v":""}]
[null,null,null,null,null,{"$f":"Harmonogram[[#This Row],[Data przyjęcia ]]+30","v":"1900-01-30"},null,null,null,null,null,null,null,null,null,{"$f":"Harmonogram[[#This Row],[P: \nSzycie]]","v":0},null,null,null,null,null,null,null,null,null,{"$f":"SUM(Harmonogram[[#This Row],[P: Spawanie]:[P: Montaż]])","v":0},null,null,{"$f":"Harmonogram[[#This Row],[Realna data wydania]]+365","v":"1900-12-30"},null,{"$f":"IF(Harmonogram[[#This Row],[Realna data wydania]]=0,\"\",MONTH(Harmonogram[[#This Row],[Realna data wydania]]))","v":""},{"$f":"IF(AND(Harmonogram[[#This Row],[Realna data wydania]]>0,Harmonogram[[#This Row],[Realna data wydania]]<TODAY()),\"Wydany\",IF(Harmonogram[[#This Row],[Realna data skończenia]]>0,\"Zrobiony\",\"\"))","v":""}]
[null,null,null,null,null,{"$f":"Harmonogram[[#This Row],[Data przyjęcia ]]+30","v":"1900-01-30"},null,null,null,null,null,null,null,null,null,{"$f":"Harmonogram[[#This Row],[P: \nSzycie]]","v":0},null,null,null,null,null,null,null,null,null,{"$f":"SUM(Harmonogram[[#This Row],[P: Spawanie]:[P: Montaż]])","v":0},null,null,{"$f":"Harmonogram[[#This Row],[Realna data wydania]]+365","v":"1900-12-30"},null,{"$f":"IF(Harmonogram[[#This Row],[Realna data wydania]]=0,\"\",MONTH(Harmonogram[[#This Row],[Realna data wydania]]))","v":""},{"$f":"IF(AND(Harmonogram[[#This Row],[Realna data wydania]]>0,Harmonogram[[#This Row],[Realna data wydania]]<TODAY()),\"Wydany\",IF(Harmonogram[[#This Row],[Realna data skończenia]]>0,\"Zrobiony\",\"\"))","v":""}]
[null,null,null,null,null,{"$f":"Harmonogram[[#This Row],[Data przyjęcia ]]+30","v":"1900-01-30"},null,null,null,null,null,null,null,null,null,{"$f":"Harmonogram[[#This Row],[P: \nSzycie]]","v":0},null,null,null,null,null,null,null,null,null,{"$f":"SUM(Harmonogram[[#This Row],[P: Spawanie]:[P: Montaż]])","v":0},null,null,{"$f":"Harmonogram[[#This Row],[Realna data wydania]]+365","v":"1900-12-30"},null,{"$f":"IF(Harmonogram[[#This Row],[Realna data wydania]]=0,\"\",MONTH(Harmonogram[[#This Row],[Realna data wydania]]))","v":""},{"$f":"IF(AND(Harmonogram[[#This Row],[Realna data wydania]]>0,Harmonogram[[#This Row],[Realna data wydania]]<TODAY()),\"Wydany\",IF(Harmonogram[[#This Row],[Realna data skończenia]]>0,\"Zrobiony\",\"\"))","v":""}]
[null,null,null,null,null,{"$f":"Harmonogram[[#This Row],[Data przyjęcia ]]+30","v":"1900-01-30"},null,null,null,null,null,null,null,null,null,{"$f":"Harmonogram[[#This Row],[P: \nSzycie]]","v":0},null,null,null,null,null,null,null,null,null,{"$f":"SUM(Harmonogram[[#This Row],[P: Spawanie]:[P: Montaż]])","v":0},null,null,{"$f":"Harmonogram[[#This Row],[Realna data wydania]]+365","v":"1900-12-30"},null,{"$f":"IF(Harmonogram[[#This Row],[Realna data wydania]]=0,\"\",MONTH(Harmonogram[[#This Row],[Realna data wydania]]))","v":""},{"$f":"IF(AND(Harmonogram[[#This Row],[Realna data wydania]]>0,Harmonogram[[#This Row],[Realna data wydania]]<TODAY()),\"Wydany\",IF(Harmonogram[[#This Row],[Realna data skończenia]]>0,\"Zrobiony\",\"\"))","v":""}]
[null,null,null,null,null,{"$f":"Harmonogram[[#This Row],[Data przyjęcia ]]+30","v":"1900-01-30"},null,null,null,null,null,null,null,null,null,{"$f":"Harmonogram[[#This Row],[P: \nSzycie]]","v":0},null,null,null,null,null,null,null,null,null,{"$f":"SUM(Harmonogram[[#This Row],[P: Spawanie]:[P: Montaż]])","v":0},null,null,{"$f":"Harmonogram[[#This Row],[Realna data wydania]]+365","v":"1900-12-30"},null,{"$f":"IF(Harmonogram[[#This Row],[Realna data wydania]]=0,\"\",MONTH(Harmonogram[[#This Row],[Realna data wydania]]))","v":""},{"$f":"IF(AND(Harmonogram[[#This Row],[Realna data wydania]]>0,Harmonogram[[#This Row],[Realna data wydania]]<TODAY()),\"Wydany\",IF(Harmonogram[[#This Row],[Realna data skończenia]]>0,\"Zrobiony\",\"\"))","v":""}]
[null,null,null,null,null,{"$f":"Harmonogram[[#This Row],[Data przyjęcia ]]+30","v":"1900-01-30"},null,null,null,null,null,null,null,null,null,{"$f":"Harmonogram[[#This Row],[P: \nSzycie]]","v":0},null,null,null,null,null,null,null,null,null,{"$f":"SUM(Harmonogram[[#This Row],[P: Spawanie]:[P: Montaż]])","v":0},null,null,{"$f":"Harmonogram[[#This Row],[Realna data wydania]]+365","v":"1900-12-30"},null,{"$f":"IF(Harmonogram[[#This Row],[Realna data wydania]]=0,\"\",MONTH(Harmonogram[[#This Row],[Realna data wydania]]))","v":""},{"$f":"IF(AND(Harmonogram[[#This Row],[Realna data wydania]]>0,Harmonogram[[#This Row],[Realna data wydania]]<TODAY()),\"Wydany\",IF(Harmonogram[[#This Row],[Realna data skończenia]]>0,\"Zrobiony\",\"\"))","v":""}]
[null,null,null,null,null,{"$f":"Harmonogram[[#This Row],[Data przyjęcia ]]+30","v":"1900-01-30"},null,null,null,null,null,null,null,null,null,{"$f":"Harmonogram[[#This Row],[P: \nSzycie]]","v":0},null,null,null,null,null,null,null,null,null,{"$f":"SUM(Harmonogram[[#This Row],[P: Spawanie]:[P: Montaż]])","v":0},null,null,{"$f":"Harmonogram[[#This Row],[Realna data wydania]]+365","v":"1900-12-30"},null,{"$f":"IF(Harmonogram[[#This Row],[Realna data wydania]]=0,\"\",MONTH(Harmonogram[[#This Row],[Realna data wydania]]))","v":""},{"$f":"IF(AND(Harmonogram[[#This Row],[Realna data wydania]]>0,Harmonogram[[#This Row],[Realna data wydania]]<TODAY()),\"Wydany\",IF(Harmonogram[[#This Row],[Realna data skończenia]]>0,\"Zrobiony\",\"\"))","v":""}]
[null,null,null,null,null,{"$f":"Harmonogram[[#This Row],[Data przyjęcia ]]+30","v":"1900-01-30"},null,null,null,null,null,null,null,null,null,{"$f":"Harmonogram[[#This Row],[P: \nSzycie]]","v":0},null,null,null,null,null,null,null,null,null,{"$f":"SUM(Harmonogram[[#This Row],[P: Spawanie]:[P: Montaż]])","v":0},null,null,{"$f":"Harmonogram[[#This Row],[Realna data wydania]]+365","v":"1900-12-30"},null,{"$f":"IF(Harmonogram[[#This Row],[Realna data wydania]]=0,\"\",MONTH(Harmonogram[[#This Row],[Realna data wydania]]))","v":""},{"$f":"IF(AND(Harmonogram[[#This Row],[Realna data wydania]]>0,Harmonogram[[#This Row],[Realna data wydania]]<TODAY()),\"Wydany\",IF(Harmonogram[[#This Row],[Realna data skończenia]]>0,\"Zrobiony\",\"\"))","v":""}]
[null,null,null,null,null,{"$f":"Harmonogram[[#This Row],[Data przyjęcia ]]+30","v":"1900-01-30"},null,null,null,null,null,null,null,null,null,{"$f":"Harmonogram[[#This Row],[P: \nSzycie]]","v":0},null,null,null,null,null,null,null,null,null,{"$f":"SUM(Harmonogram[[#This Row],[P: Spawanie]:[P: Montaż]])","v":0},null,null,{"$f":"Harmonogram[[#This Row],[Realna data wydania]]+365","v":"1900-12-30"},null,{"$f":"IF(Harmonogram[[#This Row],[Realna data wydania]]=0,\"\",MONTH(Harmonogram[[#This Row],[Realna data wydania]]))","v":""},{"$f":"IF(AND(Harmonogram[[#This Row],[Realna data wydania]]>0,Harmonogram[[#This Row],[Realna data wydania]]<TODAY()),\"Wydany\",IF(Harmonogram[[#This Row],[Realna data skończenia]]>0,\"Zrobiony\",\"\"))","v":""}]
[null,null,null,null,null,{"$f":"Harmonogram[[#This Row],[Data przyjęcia ]]+30","v":"1900-01-30"},null,null,null,null,null,null,null,null,null,{"$f":"Harmonogram[[#This Row],[P: \nSzycie]]","v":0},null,null,null,null,null,null,null,null,null,{"$f":"SUM(Harmonogram[[#This Row],[P: Spawanie]:[P: Montaż]])","v":0},null,null,{"$f":"Harmonogram[[#This Row],[Realna data wydania]]+365","v":"1900-12-30"},null,{"$f":"IF(Harmonogram[[#This Row],[Realna data wydania]]=0,\"\",MONTH(Harmonogram[[#This Row],[Realna data wydania]]))","v":""},{"$f":"IF(AND(Harmonogram[[#This Row],[Realna data wydania]]>0,Harmonogram[[#This Row],[Realna data wydania]]<TODAY()),\"Wydany\",IF(Harmonogram[[#This Row],[Realna data skończenia]]>0,\"Zrobiony\",\"\"))","v":""}]
[null,null,null,null,null,{"$f":"Harmonogram[[#This Row],[Data przyjęcia ]]+30","v":"1900-01-30"},null,null,null,null,null,null,null,null,null,{"$f":"Harmonogram[[#This Row],[P: \nSzycie]]","v":0},null,null,null,null,null,null,null,null,null,{"$f":"SUM(Harmonogram[[#This Row],[P: Spawanie]:[P: Montaż]])","v":0},null,null,{"$f":"Harmonogram[[#This Row],[Realna data wydania]]+365","v":"1900-12-30"},null,{"$f":"IF(Harmonogram[[#This Row],[Realna data wydania]]=0,\"\",MONTH(Harmonogram[[#This Row],[Realna data wydania]]))","v":""},{"$f":"IF(AND(Harmonogram[[#This Row],[Realna data wydania]]>0,Harmonogram[[#This Row],[Realna data wydania]]<TODAY()),\"Wydany\",IF(Harmonogram[[#This Row],[Realna data skończenia]]>0,\"Zrobiony\",\"\"))","v":""}]
[null,null,null,null,null,{"$f":"Harmonogram[[#This Row],[Data przyjęcia ]]+30","v":"1900-01-30"},null,null,null,null,null,null,null,null,null,{"$f":"Harmonogram[[#This Row],[P: \nSzycie]]","v":0},null,null,null,null,null,null,null,null,null,{"$f":"SUM(Harmonogram[[#This Row],[P: Spawanie]:[P: Montaż]])","v":0},null,null,{"$f":"Harmonogram[[#This Row],[Realna data wydania]]+365","v":"1900-12-30"},null,{"$f":"IF(Harmonogram[[#This Row],[Realna data wydania]]=0,\"\",MONTH(Harmonogram[[#This Row],[Realna data wydania]]))","v":""},{"$f":"IF(AND(Harmonogram[[#This Row],[Realna data wydania]]>0,Harmonogram[[#This Row],[Realna data wydania]]<TODAY()),\"Wydany\",IF(Harmonogram[[#This Row],[Realna data skończenia]]>0,\"Zrobiony\",\"\"))","v":""}]
[null,null,null,null,null,{"$f":"Harmonogram[[#This Row],[Data przyjęcia ]]+30","v":"1900-01-30"},null,null,null,null,null,null,null,null,null,{"$f":"Harmonogram[[#This Row],[P: \nSzycie]]","v":0},null,null,null,null,null,null,null,null,null,{"$f":"SUM(Harmonogram[[#This Row],[P: Spawanie]:[P: Montaż]])","v":0},null,null,{"$f":"Harmonogram[[#This Row],[Realna data wydania]]+365","v":"1900-12-30"},null,{"$f":"IF(Harmonogram[[#This Row],[Realna data wydania]]=0,\"\",MONTH(Harmonogram[[#This Row],[Realna data wydania]]))","v":""},{"$f":"IF(AND(Harmonogram[[#This Row],[Realna data wydania]]>0,Harmonogram[[#This Row],[Realna data wydania]]<TODAY()),\"Wydany\",IF(Harmonogram[[#This Row],[Realna data skończenia]]>0,\"Zrobiony\",\"\"))","v":""}]
[null,null,null,null,null,{"$f":"Harmonogram[[#This Row],[Data przyjęcia ]]+30","v":"1900-01-30"},null,null,null,null,null,null,null,null,null,{"$f":"Harmonogram[[#This Row],[P: \nSzycie]]","v":0},null,null,null,null,null,null,null,null,null,{"$f":"SUM(Harmonogram[[#This Row],[P: Spawanie]:[P: Montaż]])","v":0},null,null,{"$f":"Harmonogram[[#This Row],[Realna data wydania]]+365","v":"1900-12-30"},null,{"$f":"IF(Harmonogram[[#This Row],[Realna data wydania]]=0,\"\",MONTH(Harmonogram[[#This Row],[Realna data wydania]]))","v":""},{"$f":"IF(AND(Harmonogram[[#This Row],[Realna data wydania]]>0,Harmonogram[[#This Row],[Realna data wydania]]<TODAY()),\"Wydany\",IF(Harmonogram[[#This Row],[Realna data skończenia]]>0,\"Zrobiony\",\"\"))","v":""}]
[null,null,null,null,null,{"$f":"Harmonogram[[#This Row],[Data przyjęcia ]]+30","v":"1900-01-30"},null,null,null,null,null,null,null,null,null,{"$f":"Harmonogram[[#This Row],[P: \nSzycie]]","v":0},null,null,null,null,null,null,null,null,null,{"$f":"SUM(Harmonogram[[#This Row],[P: Spawanie]:[P: Montaż]])","v":0},null,null,{"$f":"Harmonogram[[#This Row],[Realna data wydania]]+365","v":"1900-12-30"},null,{"$f":"IF(Harmonogram[[#This Row],[Realna data wydania]]=0,\"\",MONTH(Harmonogram[[#This Row],[Realna data wydania]]))","v":""},{"$f":"IF(AND(Harmonogram[[#This Row],[Realna data wydania]]>0,Harmonogram[[#This Row],[Realna data wydania]]<TODAY()),\"Wydany\",IF(Harmonogram[[#This Row],[Realna data skończenia]]>0,\"Zrobiony\",\"\"))","v":""}]
[null,null,null,null,null,{"$f":"Harmonogram[[#This Row],[Data przyjęcia ]]+30","v":"1900-01-30"},null,null,null,null,null,null,null,null,null,{"$f":"Harmonogram[[#This Row],[P: \nSzycie]]","v":0},null,null,null,null,null,null,null,null,null,{"$f":"SUM(Harmonogram[[#This Row],[P: Spawanie]:[P: Montaż]])","v":0},null,null,{"$f":"Harmonogram[[#This Row],[Realna data wydania]]+365","v":"1900-12-30"},null,{"$f":"IF(Harmonogram[[#This Row],[Realna data wydania]]=0,\"\",MONTH(Harmonogram[[#This Row],[Realna data wydania]]))","v":""},{"$f":"IF(AND(Harmonogram[[#This Row],[Realna data wydania]]>0,Harmonogram[[#This Row],[Realna data wydania]]<TODAY()),\"Wydany\",IF(Harmonogram[[#This Row],[Realna data skończenia]]>0,\"Zrobiony\",\"\"))","v":""}]
[null,null,null,null,null,{"$f":"Harmonogram[[#This Row],[Data przyjęcia ]]+30","v":"1900-01-30"},null,null,null,null,null,null,null,null,null,{"$f":"Harmonogram[[#This Row],[P: \nSzycie]]","v":0},null,null,null,null,null,null,null,null,null,{"$f":"SUM(Harmonogram[[#This Row],[P: Spawanie]:[P: Montaż]])","v":0},null,null,{"$f":"Harmonogram[[#This Row],[Realna data wydania]]+365","v":"1900-12-30"},null,{"$f":"IF(Harmonogram[[#This Row],[Realna data wydania]]=0,\"\",MONTH(Harmonogram[[#This Row],[Realna data wydania]]))","v":""},{"$f":"IF(AND(Harmonogram[[#This Row],[Realna data wydania]]>0,Harmonogram[[#This Row],[Realna data wydania]]<TODAY()),\"Wydany\",IF(Harmonogram[[#This Row],[Realna data skończenia]]>0,\"Zrobiony\",\"\"))","v":""}]
[null,null,null,null,null,{"$f":"Harmonogram[[#This Row],[Data przyjęcia ]]+30","v":"1900-01-30"},null,null,null,null,null,null,null,null,null,{"$f":"Harmonogram[[#This Row],[P: \nSzycie]]","v":0},null,null,null,null,null,null,null,null,null,{"$f":"SUM(Harmonogram[[#This Row],[P: Spawanie]:[P: Montaż]])","v":0},null,null,{"$f":"Harmonogram[[#This Row],[Realna data wydania]]+365","v":"1900-12-30"},null,{"$f":"IF(Harmonogram[[#This Row],[Realna data wydania]]=0,\"\",MONTH(Harmonogram[[#This Row],[Realna data wydania]]))","v":""},{"$f":"IF(AND(Harmonogram[[#This Row],[Realna data wydania]]>0,Harmonogram[[#This Row],[Realna data wydania]]<TODAY()),\"Wydany\",IF(Harmonogram[[#This Row],[Realna data skończenia]]>0,\"Zrobiony\",\"\"))","v":""}]
[null,null,null,null,null,{"$f":"Harmonogram[[#This Row],[Data przyjęcia ]]+30","v":"1900-01-30"},null,null,null,null,null,null,null,null,null,{"$f":"Harmonogram[[#This Row],[P: \nSzycie]]","v":0},null,null,null,null,null,null,null,null,null,{"$f":"SUM(Harmonogram[[#This Row],[P: Spawanie]:[P: Montaż]])","v":0},null,null,{"$f":"Harmonogram[[#This Row],[Realna data wydania]]+365","v":"1900-12-30"},null,{"$f":"IF(Harmonogram[[#This Row],[Realna data wydania]]=0,\"\",MONTH(Harmonogram[[#This Row],[Realna data wydania]]))","v":""},{"$f":"IF(AND(Harmonogram[[#This Row],[Realna data wydania]]>0,Harmonogram[[#This Row],[Realna data wydania]]<TODAY()),\"Wydany\",IF(Harmonogram[[#This Row],[Realna data skończenia]]>0,\"Zrobiony\",\"\"))","v":""}]
[null,null,null,null,null,{"$f":"Harmonogram[[#This Row],[Data przyjęcia ]]+30","v":"1900-01-30"},null,null,null,null,null,null,null,null,null,{"$f":"Harmonogram[[#This Row],[P: \nSzycie]]","v":0},null,null,null,null,null,null,null,null,null,{"$f":"SUM(Harmonogram[[#This Row],[P: Spawanie]:[P: Montaż]])","v":0},null,null,{"$f":"Harmonogram[[#This Row],[Realna data wydania]]+365","v":"1900-12-30"},null,{"$f":"IF(Harmonogram[[#This Row],[Realna data wydania]]=0,\"\",MONTH(Harmonogram[[#This Row],[Realna data wydania]]))","v":""},{"$f":"IF(AND(Harmonogram[[#This Row],[Realna data wydania]]>0,Harmonogram[[#This Row],[Realna data wydania]]<TODAY()),\"Wydany\",IF(Harmonogram[[#This Row],[Realna data skończenia]]>0,\"Zrobiony\",\"\"))","v":""}]
[null,null,null,null,null,{"$f":"Harmonogram[[#This Row],[Data przyjęcia ]]+30","v":"1900-01-30"},null,null,null,null,null,null,null,null,null,{"$f":"Harmonogram[[#This Row],[P: \nSzycie]]","v":0},null,null,null,null,null,null,null,null,null,{"$f":"SUM(Harmonogram[[#This Row],[P: Spawanie]:[P: Montaż]])","v":0},null,null,{"$f":"Harmonogram[[#This Row],[Realna data wydania]]+365","v":"1900-12-30"},null,{"$f":"IF(Harmonogram[[#This Row],[Realna data wydania]]=0,\"\",MONTH(Harmonogram[[#This Row],[Realna data wydania]]))","v":""},{"$f":"IF(AND(Harmonogram[[#This Row],[Realna data wydania]]>0,Harmonogram[[#This Row],[Realna data wydania]]<TODAY()),\"Wydany\",IF(Harmonogram[[#This Row],[Realna data skończenia]]>0,\"Zrobiony\",\"\"))","v":""}]
[null,null,null,null,null,{"$f":"Harmonogram[[#This Row],[Data przyjęcia ]]+30","v":"1900-01-30"},null,null,null,null,null,null,null,null,null,{"$f":"Harmonogram[[#This Row],[P: \nSzycie]]","v":0},null,null,null,null,null,null,null,null,null,{"$f":"SUM(Harmonogram[[#This Row],[P: Spawanie]:[P: Montaż]])","v":0},null,null,{"$f":"Harmonogram[[#This Row],[Realna data wydania]]+365","v":"1900-12-30"},null,{"$f":"IF(Harmonogram[[#This Row],[Realna data wydania]]=0,\"\",MONTH(Harmonogram[[#This Row],[Realna data wydania]]))","v":""},{"$f":"IF(AND(Harmonogram[[#This Row],[Realna data wydania]]>0,Harmonogram[[#This Row],[Realna data wydania]]<TODAY()),\"Wydany\",IF(Harmonogram[[#This Row],[Realna data skończenia]]>0,\"Zrobiony\",\"\"))","v":""}]
[null,null,null,null,null,{"$f":"Harmonogram[[#This Row],[Data przyjęcia ]]+30","v":"1900-01-30"},null,null,null,null,null,null,null,null,null,{"$f":"Harmonogram[[#This Row],[P: \nSzycie]]","v":0},null,null,null,null,null,null,null,null,null,{"$f":"SUM(Harmonogram[[#This Row],[P: Spawanie]:[P: Montaż]])","v":0},null,null,{"$f":"Harmonogram[[#This Row],[Realna data wydania]]+365","v":"1900-12-30"},null,{"$f":"IF(Harmonogram[[#This Row],[Realna data wydania]]=0,\"\",MONTH(Harmonogram[[#This Row],[Realna data wydania]]))","v":""},{"$f":"IF(AND(Harmonogram[[#This Row],[Realna data wydania]]>0,Harmonogram[[#This Row],[Realna data wydania]]<TODAY()),\"Wydany\",IF(Harmonogram[[#This Row],[Realna data skończenia]]>0,\"Zrobiony\",\"\"))","v":""}]
[null,null,null,null,null,{"$f":"Harmonogram[[#This Row],[Data przyjęcia ]]+30","v":"1900-01-30"},null,null,null,null,null,null,null,null,null,{"$f":"Harmonogram[[#This Row],[P: \nSzycie]]","v":0},null,null,null,null,null,null,null,null,null,{"$f":"SUM(Harmonogram[[#This Row],[P: Spawanie]:[P: Montaż]])","v":0},null,null,{"$f":"Harmonogram[[#This Row],[Realna data wydania]]+365","v":"1900-12-30"},null,{"$f":"IF(Harmonogram[[#This Row],[Realna data wydania]]=0,\"\",MONTH(Harmonogram[[#This Row],[Realna data wydania]]))","v":""},{"$f":"IF(AND(Harmonogram[[#This Row],[Realna data wydania]]>0,Harmonogram[[#This Row],[Realna data wydania]]<TODAY()),\"Wydany\",IF(Harmonogram[[#This Row],[Realna data skończenia]]>0,\"Zrobiony\",\"\"))","v":""}]
[null,null,null,null,null,{"$f":"Harmonogram[[#This Row],[Data przyjęcia ]]+30","v":"1900-01-30"},null,null,null,null,null,null,null,null,null,{"$f":"Harmonogram[[#This Row],[P: \nSzycie]]","v":0},null,null,null,null,null,null,null,null,null,{"$f":"SUM(Harmonogram[[#This Row],[P: Spawanie]:[P: Montaż]])","v":0},null,null,{"$f":"Harmonogram[[#This Row],[Realna data wydania]]+365","v":"1900-12-30"},null,{"$f":"IF(Harmonogram[[#This Row],[Realna data wydania]]=0,\"\",MONTH(Harmonogram[[#This Row],[Realna data wydania]]))","v":""},{"$f":"IF(AND(Harmonogram[[#This Row],[Realna data wydania]]>0,Harmonogram[[#This Row],[Realna data wydania]]<TODAY()),\"Wydany\",IF(Harmonogram[[#This Row],[Realna data skończenia]]>0,\"Zrobiony\",\"\"))","v":""}]
[null,null,null,null,null,{"$f":"Harmonogram[[#This Row],[Data przyjęcia ]]+30","v":"1900-01-30"},null,null,null,null,null,null,null,null,null,{"$f":"Harmonogram[[#This Row],[P: \nSzycie]]","v":0},null,null,null,null,null,null,null,null,null,{"$f":"SUM(Harmonogram[[#This Row],[P: Spawanie]:[P: Montaż]])","v":0},null,null,{"$f":"Harmonogram[[#This Row],[Realna data wydania]]+365","v":"1900-12-30"},null,{"$f":"IF(Harmonogram[[#This Row],[Realna data wydania]]=0,\"\",MONTH(Harmonogram[[#This Row],[Realna data wydania]]))","v":""},{"$f":"IF(AND(Harmonogram[[#This Row],[Realna data wydania]]>0,Harmonogram[[#This Row],[Realna data wydania]]<TODAY()),\"Wydany\",IF(Harmonogram[[#This Row],[Realna data skończenia]]>0,\"Zrobiony\",\"\"))","v":""}]

{"sheet":"Listy wyboru","index":1,"n_rows":45,"n_cols":25,"rows_kept":45,"cut":false,"hidden":false,"merged":[[10,9,13,13]]}
["Model:","Rodzaj",null,"Nr wewnętrzny",null,"Brygady",null,"Klienci",null,null,null,null,null,null,null,null,null,null,null,null,null,null,null,null,{"$f":"TODAY()+roznica","v":"2018-05-15"}]
["Sprinter Mercedes","Duże",null,182,null,"Darek + Grzesiek",null,"Klient 1",null,null,null,null,null,null,null,null,null,null,null,null,null,null,null,null,0]
["Renault Master","Duże",null,202,null,"Rudy + Marcin",null,"Klient 2"]
["Opel Movano","Duże",null,203,null,"Kamil + Stanisław",null,"Klient 3"]
["Iveco Daily","Duże",null,204,null,"Jurek + Damian",null,"Klient 4"]
["Fiat Ducato","Duże",null,205,null,"Maciek + Dawid",null,"Klient 5"]
["Peugeot Boxer","Duże",null,206,null,null,null,"Klient 6"]
["VW Crafter","Duże",null,207,null,null,null,"Klient 7"]
["Ford Transit","Duże",null,208,null,null,null,"Klient 8"]
["Renault Trafic","Małe",null,209,null,null,null,"Klient 9"]
["Opel Vivaro","Małe",null,213,null,null,null,"Klient 10",null,"Aby dostosować listy wewnątrz formularza, wystarczy, że dodasz pozycję do pierwszej wolnej komórki pod tabelą, możesz również podmieniać i usuwać istniejące dane"]
["VW Transporter","Małe",null,216,null,null,null,"Klient 11"]
["Mercedes Vito","Małe",null,217,null,null,null,"Klient 12"]
["Ford Custom","Małe",null,218,null,null,null,"Klient 13"]
[null,null,null,214]
[null,null,null,219]
[null,null,null,220]
[null,null,null,999]
[null,null,null,231]
[null,null,null,228]
[null,null,null,223]
[null,null,null,226]
[null,null,null,224]
[null,null,null,225]
[null,null,null,229]
[null,null,null,227]
[null,null,null,232]
[null,null,null,235]
[null,null,null,233]
[null,null,null,236]
[null,null,null,241]
[null,null,null,243]
[null,null,null,237]
[null,null,null,238]
[null,null,null,239]
[null,null,null,242]
[null,null,null,244]
[null,null,null,257]
[null,null,null,245]
[null,null,null,246]
[null,null,null,247]
[null,null,null,254]
[null,null,null,248]
[null,null,null,255]
[null,null,null,258]